Workbook

Sheet Toelichting
A1: =RIGHT(CELL("filename", A1), LEN(CELL("filename", A1)) - SEARCH("]", CELL("filename", A1))) -> Toelichting
E3: Toelichting bij model: GAW sheet Elektriciteit
E5: Dit Excel-bestand bevat het model waarmee de Gestandaardiseerde Activa Waarde (GAW) voor regionale netbeheerders elektriciteit voor de periode 2001 - 2016 worden berekend. Dit dient als invoer voor de kapitaalkosten in het x-factor model.
E6: In het model worden voor de netbeheerders alle investeringen, desinvesteringen, opgegeven afschrijvingen, etc. invoerd per jaar waarna het model de jaarlijkse boekwaardes en totalen berekend.
E7: Op de dashboards zijn de resultaten te vinden die als invoer dienen voor het x-factor model.
E8: Deze berekening maakt onderdeel uit van de x-factorberekening voor de zesde periode en wordt zodoende gebaseerd op het methodebesluit regionale netbeheerders elektriciteit zesde reguleringsperiode: besluit van 26 september 2013 met kenmerk 103999/536.
E9: Dit methodebesluit is gepubliceerd op 2 oktober 2013 op de website van ACM. Hieronder wordt een overzicht weergegeven van de x-factorbesluiten voor de individuele netbeheerders waarin de x-factoren door ACM zijn vastgesteld.
E11: Overzicht X-factorbesluiten behorende bij methodebesluit regionale netbeheerders elektriciteit zesde reguleringsperiode: besluit van 26 september 2013 met kenmerk 103999/536
G13: X-factorbesluiten Elektriciteit | K13: Zaaknummer | O13: Kenmerk
G14: Cogas Infra & Beheer B.V. | K14: 13.0789.52 | O14: ACM/DE/2013/204370
G15: DELTA Netwerkbedrijf B.V. | K15: 13.0791.52 | O15: ACM/DE/2013/204372
G16: Endinet B.V. | K16: 13.0797.52 | O16: ACM/DE/2013/204377
G17: Enexis B.V. | K17: 13.0793.52 | O17: ACM/DE/2013/204374
G18: Liander N.V. | K18: 13.0795.52 | O18: ACM/DE/2013/204368
G19: N.V. RENDO | K19: 13.0799.52 | O19: ACM/DE/2013/204379
G20: Stedin Netbeheer B.V. | K20: 13.0801.52 | O20: ACM/DE/2013/204383
G21: Westland Infra Netbeheer B.V. | K21: 13.0803.52 | O21: ACM/DE/2013/204385
E24: Databronnen
B26: Bronnen
E27: t/m 2008: Kapitaalkostensheet RNB’s zoals gehanteerd voor het x-factorbesluit NE5R en gepubliceerd op 27 augustus 2012.
E28: 2009 t/m 2011: Gevalideerde en gecontroleerde data conform PRD-uitvraag over de betreffende jaren met eventuele aanpassingen daarop als gevolg van uitvraag CORR2009-2011 in het voorjaar van 2013.
E29: 2012: Gevalideerde en gecontroleerde data conform PRD-uitvraag over 2012
E31: Toelichting bij aannames en parameters in het model
E33: Het model rekent door na de toetsencombinatie: ctrl+alt+F9 of met de updateknoppen op de dashboards.
B35: Werking model
E37: BOVEN DE MOTORKAP
G40: Inputs | O40: Dashboards
E45: ONDER DE MOTORKAP
G50: Input verwerking | K50: Berekeningen | O50: Resultaten
B57: Model flow (indeling werkbladen)
G59: Inputs | K59: Berekeningen | O59: Resultaten
G62: InpC | K62: Tijd | O62: Check
G64: InpNetbeheerder1 | K64: CPI
G66: ... | K66: ActieveNetbeheerder
G68: InpNetbeheerderN
K71: GAW
K76: Indexatie
O78: Dashboard Netbeheerder
O80: Dashboard Boekjaar
K81: UI & Overgenomen Netten
B86: Belangrijkste modelaannames en keuzes
E87: Ten behoeve van transparantie en flexibiliteit zijn in het model de inputs, berekeningen en resultaten uit elkaar gehaald.
E88: Het wijzigen van een input werkt door in het hele model (na het updaten!).
E89: Vanwege de extra benodigde flexibiliteit m.b.t. Uitzonderlijke Investeringen en Overgenomen Netten staan die berekeningen op zichzelf en hebben zij alleen input nodig bij de eigen berekeningen.
E90: Vanaf 2010 worden in de berekeningen van de boekwaardes geen desinvesteringen en bijzondere waardeverminderingen meer meegenomen, met uitzondering van opbrengsten bij desinvesteringen en overdracht van activa tussen netbeheerders. Het ontbreken van de correctie maakt de berekeningen vanaf dat moment eenvoudiger. Dat betekent eveneens dat de data met betrekking tot desinvesteringen vanaf het jaar 2010 niet meer geheel volledig is. Soms zijn nog bedragen opgenomen (die dan geen impact meer hebben op de berekeningen, soms ontbreken de bedragen.
B92: In te stellen variabelen / vlaggen in het model
E93: Het model werkt met één regionale netbeheerder tegelijk. Dit houdt in dat op het Dashboard Netbeheerder de juiste netbeheerder geselecteerd dient te zijn alvorens het model door te rekenen. Het werkblad ActieveNebeheerder haalt de gegevens op uit het werkblad van de relevante netbeheerder die daarna gebruikt worden voor de berekeningen op het werkblad GAW. Vervolgens haalt het werkblad Indexatie de gegevens op uit het werkblad GAW.
E94: Alle berekeningen bestaan uit blokken. In ieder blok worden eerst alle relevante inputs voor de berekening onder elkaar gezet waarna de berekening volgt. Berekeningen zijn dan te doorgronden zonder door verschillende werkbladen heen te moeten zoeken naar de verwijzingen.
E95: Dit model maakt gebruik van een tijdslijn en doorgetrokken formules. Alle formules in een rij zijn daarom over de tijd gelijk aan de eerste formule in kolom K.
E96: In het werkblad InpC zijn alle overige inputvariabelen gedefinieerd die nodig zijn voor een juiste werking van het model. Waaronder de CPI, investeringsjaren en mogelijke afschrijvingstermijnen. Daarnaast zijn hier de netbeheerders opgegeven die corresponderen met de verschillende input werkbladen InpNetbeheerder.
E98: Er wordt veelvuldig gebruik gemaakt van vlaggen in de vorm van 0/1. Deze geven in een berekening aan of iets wel of niet voorkomt. Bijvoorbeeld, in de jaren t/m 2006 is gebruik gemaakt van handmatige afschrijvingen. In dit model zal de vlag voor handmatige afschrijvingen dus t/m 2006 op 1 staan en vanaf 2007 op 0. Als in de inputs de looptijd voor handmatige afschrijvingen aangepast wordt, dan zal de vlag zich ook aanpassen.
E101: Legenda
B103: Tabbladen
E104: Toelichting en templates
E105: Output (dashboards)
E106: Invoer van data algemeen en per netbeheerder
E107: Berekeningen
E108: Checks en waarschuwingen
B110: Cellen
E111: Inputdata
E112: Inputdata overgenomen van het dashboard
E113: Waarde opgehaald uit een andere cel ten behoeve van een berekening
E114: Berekening
E115: Waarde of berekening die speciale aandacht vraagt
E116: Invoerlijn die op een later moment ingevoerd dient te worden. (Ten behoeve van flexibiliteit bij UI's)
E117: Losse invoer voor berekeningen
E118: Checkwaarde correct
E119: Checkwaarde incorrect
B121: Tekst
E122: Opgehaalde data van hetzelfde werkblad
E123: Opgehaalde data van een ander werkblad
E124: Berekening die geëxporteerd wordt naar een ander werkblad
B126: Celnamen
E127: ActBeheerder | I127: ='Dashboard Netbeheerder'!$O$4
E128: ActJaar | I128: ='Dashboard Boekjaar'!$N$5
E129: Beheerder1 | I129: ='Dashboard Boekjaar'!$K$11
E130: Chk_Tol | I130: =InpC!$G$97
E131: ColumnKey | I131: =InpC!$G$10
E132: Jaartallen | I132: =InpC!$G$17:$G$39
E133: Netbeheerders | I133: =InpC!$G$59:$G$68
E134: PrintBeheerder | I134: ='Dashboard Netbeheerder'!$E$11
E135: PrintJaar | I135: ='Dashboard Boekjaar'!$E$11
E136: Tijdslijn | I136: ='Dashboard Netbeheerder'!$K$11:$CL$11
B138: Macros()
E139: LanguageKey() | I139: Voor Excelversies voor 2007. Bepaald de gebruikte taal bij het opstarten van dit workbook en past op basis daarvan in de inputs de kolomsleutel aan. Deze input wordt gebruikt door de indirectfunctie in het werkblad "Actieve Netbeheerder"
E140: Optimise() | I140: Rekent voor de geselecteerde netbeheerder de activawaardes uit en toont die op het dashboard.
E141: OpBeheerders() | I141: Gaat op basis van het geselecteerde jaar op het Dashboard Boekjaar alle netbeheerders af en geeft op het dashboard een overzicht van de boekwaardes in dat jaar. De boekwaardes van iedere netbeheerder worden naast elkaar geprint ter vergelijking.

Sheet Dashboard Netbeheerder
L2: Kapitaalkosten Regionale Netbeheerders Elektriciteit
L4: Actieve Netbeheerder: | O4: Cogas
L5: Gemarkeerd jaar: | O5: 2000
B9: Overzicht Geïndexeerde Activa Waarde Actieve Netbeheerder*
E11: Netbeheerder: Liander Excl HS | K11: =Tijd!K$4 -> 2000 | L11: =Tijd!L$4 -> 2001 | M11: =Tijd!M$4 -> 2002 | N11: =Tijd!N$4 -> 2003 | O11: =Tijd!O$4 -> 2004 | P11: =Tijd!P$4 -> 2005 | Q11: =Tijd!Q$4 -> 2006 | R11: =Tijd!R$4 -> 2007 | S11: =Tijd!S$4 -> 2008 | T11: =Tijd!T$4 -> 2009 | U11: =Tijd!U$4 -> 2010 | V11: =Tijd!V$4 -> 2011 | W11: =Tijd!W$4 -> 2012 | X11: =Tijd!X$4 -> 2013 | Y11: =Tijd!Y$4 -> 2014 | Z11: =Tijd!Z$4 -> 2015 | AA11: =Tijd!AA$4 -> 2016 | AB11: =Tijd!AB$4 -> 2017 | AC11: =Tijd!AC$4 -> 2018 | AD11: =Tijd!AD$4 -> 2019 | AE11: =Tijd!AE$4 -> 2020 | AF11: =Tijd!AF$4 -> 2021 | AG11: =Tijd!AG$4 -> 2022 | AH11: =Tijd!AH$4 -> 2023 | AI11: =Tijd!AI$4 -> 2024 | AJ11: =Tijd!AJ$4 -> 2025 | AK11: =Tijd!AK$4 -> 2026 | AL11: =Tijd!AL$4 -> 2027 | AM11: =Tijd!AM$4 -> 2028 | AN11: =Tijd!AN$4 -> 2029 | AO11: =Tijd!AO$4 -> 2030 | AP11: =Tijd!AP$4 -> 2031 | AQ11: =Tijd!AQ$4 -> 2032 | AR11: =Tijd!AR$4 -> 2033 | AS11: =Tijd!AS$4 -> 2034 | AT11: =Tijd!AT$4 -> 2035 | AU11: =Tijd!AU$4 -> 2036 | AV11: =Tijd!AV$4 -> 2037 | AW11: =Tijd!AW$4 -> 2038 | AX11: =Tijd!AX$4 -> 2039 | AY11: =Tijd!AY$4 -> 2040 | AZ11: =Tijd!AZ$4 -> 2041 | BA11: =Tijd!BA$4 -> 2042 | BB11: =Tijd!BB$4 -> 2043 | BC11: =Tijd!BC$4 -> 2044 | BD11: =Tijd!BD$4 -> 2045 | BE11: =Tijd!BE$4 -> 2046 | BF11: =Tijd!BF$4 -> 2047 | BG11: =Tijd!BG$4 -> 2048 | BH11: =Tijd!BH$4 -> 2049 | BI11: =Tijd!BI$4 -> 2050 | BJ11: =Tijd!BJ$4 -> 2051 | BK11: =Tijd!BK$4 -> 2052 | BL11: =Tijd!BL$4 -> 2053 | BM11: =Tijd!BM$4 -> 2054 | BN11: =Tijd!BN$4 -> 2055 | BO11: =Tijd!BO$4 -> 2056 | BP11: =Tijd!BP$4 -> 2057 | BQ11: =Tijd!BQ$4 -> 2058 | BR11: =Tijd!BR$4 -> 2059 | BS11: =Tijd!BS$4 -> 2060 | BT11: =Tijd!BT$4 -> 2061 | BU11: =Tijd!BU$4 -> 2062 | BV11: =Tijd!BV$4 -> 2063 | BW11: =Tijd!BW$4 -> 2064 | BX11: =Tijd!BX$4 -> 2065 | BY11: =Tijd!BY$4 -> 2066 | BZ11: =Tijd!BZ$4 -> 2067 | CA11: =Tijd!CA$4 -> 2068 | CB11: =Tijd!CB$4 -> 2069 | CC11: =Tijd!CC$4 -> 2070 | CD11: =Tijd!CD$4 -> 2071 | CE11: =Tijd!CE$4 -> 2072 | CF11: =Tijd!CF$4 -> 2073 | CG11: =Tijd!CG$4 -> 2074 | CH11: =Tijd!CH$4 -> 2075 | CI11: =Tijd!CI$4 -> 2076 | CJ11: =Tijd!CJ$4 -> 2077 | CK11: =Tijd!CK$4 -> 2078 | CL11: =Tijd!CL$4 -> 2079
E12: Start-GAW (excl. bijzonderheden)
E13: =GAW!E$90 -> Investeringsbedrag boekjaar Start-GAW | F13: =GAW!F$90 -> 0 | G13: =GAW!G$90 -> 0 | H13: =GAW!H$90 -> € | I13: =GAW!I$90 -> 41336981.83 | J13: =GAW!J$90 -> 0 | K13: =GAW!K$90 -> 41336981.83 | L13: =GAW!L$90 -> 0 | M13: =GAW!M$90 -> 0 | N13: =GAW!N$90 -> 0 | O13: =GAW!O$90 -> 0 | P13: =GAW!P$90 -> 0 | Q13: =GAW!Q$90 -> 0 | R13: =GAW!R$90 -> 0 | S13: =GAW!S$90 -> 0 | T13: =GAW!T$90 -> 0 | U13: =GAW!U$90 -> 0 | V13: =GAW!V$90 -> 0 | W13: =GAW!W$90 -> 0 | X13: =GAW!X$90 -> 0 | Y13: =GAW!Y$90 -> 0 | Z13: =GAW!Z$90 -> 0 | AA13: =GAW!AA$90 -> 0 | AB13: =GAW!AB$90 -> 0 | AC13: =GAW!AC$90 -> 0 | AD13: =GAW!AD$90 -> 0 | AE13: =GAW!AE$90 -> 0 | AF13: =GAW!AF$90 -> 0 | AG13: =GAW!AG$90 -> 0 | AH13: =GAW!AH$90 -> 0 | AI13: =GAW!AI$90 -> 0 | AJ13: =GAW!AJ$90 -> 0 | AK13: =GAW!AK$90 -> 0 | AL13: =GAW!AL$90 -> 0 | AM13: =GAW!AM$90 -> 0 | AN13: =GAW!AN$90 -> 0 | AO13: =GAW!AO$90 -> 0 | AP13: =GAW!AP$90 -> 0 | AQ13: =GAW!AQ$90 -> 0 | AR13: =GAW!AR$90 -> 0 | AS13: =GAW!AS$90 -> 0 | AT13: =GAW!AT$90 -> 0 | AU13: =GAW!AU$90 -> 0 | AV13: =GAW!AV$90 -> 0 | AW13: =GAW!AW$90 -> 0 | AX13: =GAW!AX$90 -> 0 | AY13: =GAW!AY$90 -> 0 | AZ13: =GAW!AZ$90 -> 0 | BA13: =GAW!BA$90 -> 0 | BB13: =GAW!BB$90 -> 0 | BC13: =GAW!BC$90 -> 0 | BD13: =GAW!BD$90 -> 0 | BE13: =GAW!BE$90 -> 0 | BF13: =GAW!BF$90 -> 0 | BG13: =GAW!BG$90 -> 0 | BH13: =GAW!BH$90 -> 0 | BI13: =GAW!BI$90 -> 0 | BJ13: =GAW!BJ$90 -> 0 | BK13: =GAW!BK$90 -> 0 | BL13: =GAW!BL$90 -> 0 | BM13: =GAW!BM$90 -> 0 | BN13: =GAW!BN$90 -> 0 | BO13: =GAW!BO$90 -> 0 | BP13: =GAW!BP$90 -> 0 | BQ13: =GAW!BQ$90 -> 0 | BR13: =GAW!BR$90 -> 0 | BS13: =GAW!BS$90 -> 0 | BT13: =GAW!BT$90 -> 0 | BU13: =GAW!BU$90 -> 0 | BV13: =GAW!BV$90 -> 0 | BW13: =GAW!BW$90 -> 0 | BX13: =GAW!BX$90 -> 0 | BY13: =GAW!BY$90 -> 0 | BZ13: =GAW!BZ$90 -> 0 | CA13: =GAW!CA$90 -> 0 | CB13: =GAW!CB$90 -> 0 | CC13: =GAW!CC$90 -> 0 | CD13: =GAW!CD$90 -> 0 | CE13: =GAW!CE$90 -> 0 | CF13: =GAW!CF$90 -> 0 | CG13: =GAW!CG$90 -> 0 | CH13: =GAW!CH$90 -> 0 | CI13: =GAW!CI$90 -> 0 | CJ13: =GAW!CJ$90 -> 0 | CK13: =GAW!CK$90 -> 0 | CL13: =GAW!CL$90 -> 0
E14: =Indexatie!E$17 -> Afschrijvingen Start-GAW | F14: =Indexatie!F$17 -> 0 | G14: =Indexatie!G$17 -> 0 | H14: =Indexatie!H$17 -> € | I14: =Indexatie!I$17 -> 51216060.9 | J14: =Indexatie!J$17 -> 0 | K14: =Indexatie!K$17 -> 0 | L14: =Indexatie!L$17 -> 1866216.381 | M14: =Indexatie!M$17 -> 1953928.551 | N14: =Indexatie!N$17 -> 2018408.193 | O14: =Indexatie!O$17 -> 2060794.765 | P14: =Indexatie!P$17 -> 2083463.507 | Q14: =Indexatie!Q$17 -> 2120965.85 | R14: =Indexatie!R$17 -> 2150659.372 | S14: =Indexatie!S$17 -> 2174316.625 | T14: =Indexatie!T$17 -> 2243894.757 | U14: =Indexatie!U$17 -> 2250626.442 | V14: =Indexatie!V$17 -> 2284385.838 | W14: =Indexatie!W$17 -> 2343779.87 | X14: =Indexatie!X$17 -> 2397686.807 | Y14: =Indexatie!Y$17 -> 2397686.807 | Z14: =Indexatie!Z$17 -> 2397686.807 | AA14: =Indexatie!AA$17 -> 2397686.807 | AB14: =Indexatie!AB$17 -> 2397686.807 | AC14: =Indexatie!AC$17 -> 2397686.807 | AD14: =Indexatie!AD$17 -> 2397686.807 | AE14: =Indexatie!AE$17 -> 2397686.807 | AF14: =Indexatie!AF$17 -> 2397686.807 | AG14: =Indexatie!AG$17 -> 2397686.807 | AH14: =Indexatie!AH$17 -> 1687752.672 | AI14: =Indexatie!AI$17 -> 0 | AJ14: =Indexatie!AJ$17 -> 0 | AK14: =Indexatie!AK$17 -> 0 | AL14: =Indexatie!AL$17 -> 0 | AM14: =Indexatie!AM$17 -> 0 | AN14: =Indexatie!AN$17 -> 0 | AO14: =Indexatie!AO$17 -> 0 | AP14: =Indexatie!AP$17 -> 0 | AQ14: =Indexatie!AQ$17 -> 0 | AR14: =Indexatie!AR$17 -> 0 | AS14: =Indexatie!AS$17 -> 0 | AT14: =Indexatie!AT$17 -> 0 | AU14: =Indexatie!AU$17 -> 0 | AV14: =Indexatie!AV$17 -> 0 | AW14: =Indexatie!AW$17 -> 0 | AX14: =Indexatie!AX$17 -> 0 | AY14: =Indexatie!AY$17 -> 0 | AZ14: =Indexatie!AZ$17 -> 0 | BA14: =Indexatie!BA$17 -> 0 | BB14: =Indexatie!BB$17 -> 0 | BC14: =Indexatie!BC$17 -> 0 | BD14: =Indexatie!BD$17 -> 0 | BE14: =Indexatie!BE$17 -> 0 | BF14: =Indexatie!BF$17 -> 0 | BG14: =Indexatie!BG$17 -> 0 | BH14: =Indexatie!BH$17 -> 0 | BI14: =Indexatie!BI$17 -> 0 | BJ14: =Indexatie!BJ$17 -> 0 | BK14: =Indexatie!BK$17 -> 0 | BL14: =Indexatie!BL$17 -> 0 | BM14: =Indexatie!BM$17 -> 0 | BN14: =Indexatie!BN$17 -> 0 | BO14: =Indexatie!BO$17 -> 0 | BP14: =Indexatie!BP$17 -> 0 | BQ14: =Indexatie!BQ$17 -> 0 | BR14: =Indexatie!BR$17 -> 0 | BS14: =Indexatie!BS$17 -> 0 | BT14: =Indexatie!BT$17 -> 0 | BU14: =Indexatie!BU$17 -> 0 | BV14: =Indexatie!BV$17 -> 0 | BW14: =Indexatie!BW$17 -> 0 | BX14: =Indexatie!BX$17 -> 0 | BY14: =Indexatie!BY$17 -> 0 | BZ14: =Indexatie!BZ$17 -> 0 | CA14: =Indexatie!CA$17 -> 0 | CB14: =Indexatie!CB$17 -> 0 | CC14: =Indexatie!CC$17 -> 0 | CD14: =Indexatie!CD$17 -> 0 | CE14: =Indexatie!CE$17 -> 0 | CF14: =Indexatie!CF$17 -> 0 | CG14: =Indexatie!CG$17 -> 0 | CH14: =Indexatie!CH$17 -> 0 | CI14: =Indexatie!CI$17 -> 0 | CJ14: =Indexatie!CJ$17 -> 0 | CK14: =Indexatie!CK$17 -> 0 | CL14: =Indexatie!CL$17 -> 0
E15: =Indexatie!E$13 -> Boekwaarde Start-GAW | F15: =Indexatie!F$13 -> 0 | G15: =Indexatie!G$13 -> 0 | H15: =Indexatie!H$13 -> € | I15: =Indexatie!I$13 -> 574608321.7 | J15: =Indexatie!J$13 -> 0 | K15: =Indexatie!K$13 -> 41336981.83 | L15: =Indexatie!L$13 -> 40504190 | M15: =Indexatie!M$13 -> 40453958.37 | N15: =Indexatie!N$13 -> 39770530.81 | O15: =Indexatie!O$13 -> 38544917.19 | P15: =Indexatie!P$13 -> 36885447.77 | Q15: =Indexatie!Q$13 -> 35428419.98 | R15: =Indexatie!R$13 -> 33773758.49 | S15: =Indexatie!S$13 -> 31970953.21 | T15: =Indexatie!T$13 -> 30750128.95 | U15: =Indexatie!U$13 -> 28591752.9 | V15: =Indexatie!V$13 -> 26736243.35 | W15: =Indexatie!W$13 -> 25087605.81 | X15: =Indexatie!X$13 -> 23266933.94 | Y15: =Indexatie!Y$13 -> 20869247.13 | Z15: =Indexatie!Z$13 -> 18471560.32 | AA15: =Indexatie!AA$13 -> 16073873.51 | AB15: =Indexatie!AB$13 -> 13676186.71 | AC15: =Indexatie!AC$13 -> 11278499.9 | AD15: =Indexatie!AD$13 -> 8880813.093 | AE15: =Indexatie!AE$13 -> 6483126.286 | AF15: =Indexatie!AF$13 -> 4085439.479 | AG15: =Indexatie!AG$13 -> 1687752.672 | AH15: =Indexatie!AH$13 -> -1.011831977e-08 | AI15: =Indexatie!AI$13 -> -1.011831977e-08 | AJ15: =Indexatie!AJ$13 -> -1.011831977e-08 | AK15: =Indexatie!AK$13 -> -1.011831977e-08 | AL15: =Indexatie!AL$13 -> -1.011831977e-08 | AM15: =Indexatie!AM$13 -> -1.011831977e-08 | AN15: =Indexatie!AN$13 -> -1.011831977e-08 | AO15: =Indexatie!AO$13 -> -1.011831977e-08 | AP15: =Indexatie!AP$13 -> -1.011831977e-08 | AQ15: =Indexatie!AQ$13 -> -1.011831977e-08 | AR15: =Indexatie!AR$13 -> -1.011831977e-08 | AS15: =Indexatie!AS$13 -> -1.011831977e-08 | AT15: =Indexatie!AT$13 -> -1.011831977e-08 | AU15: =Indexatie!AU$13 -> -1.011831977e-08 | AV15: =Indexatie!AV$13 -> -1.011831977e-08 | AW15: =Indexatie!AW$13 -> -1.011831977e-08 | AX15: =Indexatie!AX$13 -> -1.011831977e-08 | AY15: =Indexatie!AY$13 -> -1.011831977e-08 | AZ15: =Indexatie!AZ$13 -> -1.011831977e-08 | BA15: =Indexatie!BA$13 -> -1.011831977e-08 | BB15: =Indexatie!BB$13 -> -1.011831977e-08 | BC15: =Indexatie!BC$13 -> -1.011831977e-08 | BD15: =Indexatie!BD$13 -> -1.011831977e-08 | BE15: =Indexatie!BE$13 -> -1.011831977e-08 | BF15: =Indexatie!BF$13 -> -1.011831977e-08 | BG15: =Indexatie!BG$13 -> -1.011831977e-08 | BH15: =Indexatie!BH$13 -> -1.011831977e-08 | BI15: =Indexatie!BI$13 -> -1.011831977e-08 | BJ15: =Indexatie!BJ$13 -> -7.683411241e-09 | BK15: =Indexatie!BK$13 -> -7.683411241e-09 | BL15: =Indexatie!BL$13 -> -7.683411241e-09 | BM15: =Indexatie!BM$13 -> -7.683411241e-09 | BN15: =Indexatie!BN$13 -> -7.683411241e-09 | BO15: =Indexatie!BO$13 -> -7.683411241e-09 | BP15: =Indexatie!BP$13 -> -7.683411241e-09 | BQ15: =Indexatie!BQ$13 -> -7.683411241e-09 | BR15: =Indexatie!BR$13 -> -7.683411241e-09 | BS15: =Indexatie!BS$13 -> -7.683411241e-09 | BT15: =Indexatie!BT$13 -> -7.683411241e-09 | BU15: =Indexatie!BU$13 -> -7.683411241e-09 | BV15: =Indexatie!BV$13 -> -7.683411241e-09 | BW15: =Indexatie!BW$13 -> -7.683411241e-09 | BX15: =Indexatie!BX$13 -> -7.683411241e-09 | BY15: =Indexatie!BY$13 -> -7.683411241e-09 | BZ15: =Indexatie!BZ$13 -> -7.683411241e-09 | CA15: =Indexatie!CA$13 -> -7.683411241e-09 | CB15: =Indexatie!CB$13 -> -7.683411241e-09 | CC15: =Indexatie!CC$13 -> -7.683411241e-09 | CD15: =Indexatie!CD$13 -> -7.683411241e-09 | CE15: =Indexatie!CE$13 -> -7.683411241e-09 | CF15: =Indexatie!CF$13 -> -7.683411241e-09 | CG15: =Indexatie!CG$13 -> -7.683411241e-09 | CH15: =Indexatie!CH$13 -> -7.683411241e-09 | CI15: =Indexatie!CI$13 -> -7.683411241e-09 | CJ15: =Indexatie!CJ$13 -> -7.683411241e-09 | CK15: =Indexatie!CK$13 -> -7.683411241e-09 | CL15: =Indexatie!CL$13 -> -7.683411241e-09
E17: Nieuwe Investeringen (excl. bijzonderheden)
E18: =Indexatie!E$388 -> Investeringsbedrag boekjaar | F18: =Indexatie!F$388 -> 0 | G18: =Indexatie!G$388 -> 0 | H18: =Indexatie!H$388 -> € | I18: =Indexatie!I$388 -> 30312134.57 | J18: =Indexatie!J$388 -> 0 | K18: =Indexatie!K$388 -> 0 | L18: =Indexatie!L$388 -> 4068000 | M18: =Indexatie!M$388 -> 3263000 | N18: =Indexatie!N$388 -> 1676000 | O18: =Indexatie!O$388 -> 625000 | P18: =Indexatie!P$388 -> 1075000 | Q18: =Indexatie!Q$388 -> 266000 | R18: =Indexatie!R$388 -> 2205000 | S18: =Indexatie!S$388 -> 2383000 | T18: =Indexatie!T$388 -> 3384000 | U18: =Indexatie!U$388 -> 2782000 | V18: =Indexatie!V$388 -> 4705325.57 | W18: =Indexatie!W$388 -> 3879809 | X18: =Indexatie!X$388 -> 0 | Y18: =Indexatie!Y$388 -> 0 | Z18: =Indexatie!Z$388 -> 0 | AA18: =Indexatie!AA$388 -> 0 | AB18: =Indexatie!AB$388 -> 0 | AC18: =Indexatie!AC$388 -> 0 | AD18: =Indexatie!AD$388 -> 0 | AE18: =Indexatie!AE$388 -> 0 | AF18: =Indexatie!AF$388 -> 0 | AG18: =Indexatie!AG$388 -> 0 | AH18: =Indexatie!AH$388 -> 0 | AI18: =Indexatie!AI$388 -> 0 | AJ18: =Indexatie!AJ$388 -> 0 | AK18: =Indexatie!AK$388 -> 0 | AL18: =Indexatie!AL$388 -> 0 | AM18: =Indexatie!AM$388 -> 0 | AN18: =Indexatie!AN$388 -> 0 | AO18: =Indexatie!AO$388 -> 0 | AP18: =Indexatie!AP$388 -> 0 | AQ18: =Indexatie!AQ$388 -> 0 | AR18: =Indexatie!AR$388 -> 0 | AS18: =Indexatie!AS$388 -> 0 | AT18: =Indexatie!AT$388 -> 0 | AU18: =Indexatie!AU$388 -> 0 | AV18: =Indexatie!AV$388 -> 0 | AW18: =Indexatie!AW$388 -> 0 | AX18: =Indexatie!AX$388 -> 0 | AY18: =Indexatie!AY$388 -> 0 | AZ18: =Indexatie!AZ$388 -> 0 | BA18: =Indexatie!BA$388 -> 0 | BB18: =Indexatie!BB$388 -> 0 | BC18: =Indexatie!BC$388 -> 0 | BD18: =Indexatie!BD$388 -> 0 | BE18: =Indexatie!BE$388 -> 0 | BF18: =Indexatie!BF$388 -> 0 | BG18: =Indexatie!BG$388 -> 0 | BH18: =Indexatie!BH$388 -> 0 | BI18: =Indexatie!BI$388 -> 0 | BJ18: =Indexatie!BJ$388 -> 0 | BK18: =Indexatie!BK$388 -> 0 | BL18: =Indexatie!BL$388 -> 0 | BM18: =Indexatie!BM$388 -> 0 | BN18: =Indexatie!BN$388 -> 0 | BO18: =Indexatie!BO$388 -> 0 | BP18: =Indexatie!BP$388 -> 0 | BQ18: =Indexatie!BQ$388 -> 0 | BR18: =Indexatie!BR$388 -> 0 | BS18: =Indexatie!BS$388 -> 0 | BT18: =Indexatie!BT$388 -> 0 | BU18: =Indexatie!BU$388 -> 0 | BV18: =Indexatie!BV$388 -> 0 | BW18: =Indexatie!BW$388 -> 0 | BX18: =Indexatie!BX$388 -> 0 | BY18: =Indexatie!BY$388 -> 0 | BZ18: =Indexatie!BZ$388 -> 0 | CA18: =Indexatie!CA$388 -> 0 | CB18: =Indexatie!CB$388 -> 0 | CC18: =Indexatie!CC$388 -> 0 | CD18: =Indexatie!CD$388 -> 0 | CE18: =Indexatie!CE$388 -> 0 | CF18: =Indexatie!CF$388 -> 0 | CG18: =Indexatie!CG$388 -> 0 | CH18: =Indexatie!CH$388 -> 0 | CI18: =Indexatie!CI$388 -> 0 | CJ18: =Indexatie!CJ$388 -> 0 | CK18: =Indexatie!CK$388 -> 0 | CL18: =Indexatie!CL$388 -> 0
E19: =Indexatie!E$341 -> Afschrijvingen | F19: =Indexatie!F$341 -> 0 | G19: =Indexatie!G$341 -> 0 | H19: =Indexatie!H$341 -> € | I19: =Indexatie!I$341 -> 33384083.23 | J19: =Indexatie!J$341 -> 0 | K19: =Indexatie!K$341 -> 0 | L19: =Indexatie!L$341 -> 43960 | M19: =Indexatie!M$341 -> 120052.24 | N19: =Indexatie!N$341 -> 184887.6539 | O19: =Indexatie!O$341 -> 213206.5547 | P19: =Indexatie!P$341 -> 232605.9093 | Q19: =Indexatie!Q$341 -> 250593.8656 | R19: =Indexatie!R$341 -> 281252.51 | S19: =Indexatie!S$341 -> 332888.6326 | T19: =Indexatie!T$341 -> 405065.8822 | U19: =Indexatie!U$341 -> 473116.0948 | V19: =Indexatie!V$341 -> 563195.9391 | W19: =Indexatie!W$341 -> 672751.0327 | X19: =Indexatie!X$341 -> 731127.9086 | Y19: =Indexatie!Y$341 -> 731127.9086 | Z19: =Indexatie!Z$341 -> 731127.9086 | AA19: =Indexatie!AA$341 -> 731127.9086 | AB19: =Indexatie!AB$341 -> 731127.9086 | AC19: =Indexatie!AC$341 -> 731127.9086 | AD19: =Indexatie!AD$341 -> 731127.9086 | AE19: =Indexatie!AE$341 -> 731127.9086 | AF19: =Indexatie!AF$341 -> 731127.9086 | AG19: =Indexatie!AG$341 -> 731127.9086 | AH19: =Indexatie!AH$341 -> 731127.9086 | AI19: =Indexatie!AI$341 -> 731127.9086 | AJ19: =Indexatie!AJ$341 -> 731127.9086 | AK19: =Indexatie!AK$341 -> 731127.9086 | AL19: =Indexatie!AL$341 -> 731127.9086 | AM19: =Indexatie!AM$341 -> 731127.9086 | AN19: =Indexatie!AN$341 -> 731127.9086 | AO19: =Indexatie!AO$341 -> 731127.9086 | AP19: =Indexatie!AP$341 -> 731127.9086 | AQ19: =Indexatie!AQ$341 -> 731127.9086 | AR19: =Indexatie!AR$341 -> 731127.9086 | AS19: =Indexatie!AS$341 -> 731127.9086 | AT19: =Indexatie!AT$341 -> 731127.9086 | AU19: =Indexatie!AU$341 -> 731127.9086 | AV19: =Indexatie!AV$341 -> 731127.9086 | AW19: =Indexatie!AW$341 -> 731127.9086 | AX19: =Indexatie!AX$341 -> 730451.1678 | AY19: =Indexatie!AY$341 -> 726613.9126 | AZ19: =Indexatie!AZ$341 -> 698031.6875 | BA19: =Indexatie!BA$341 -> 641843.5001 | BB19: =Indexatie!BB$341 -> 635666.3693 | BC19: =Indexatie!BC$341 -> 627816.7407 | BD19: =Indexatie!BD$341 -> 626978.5857 | BE19: =Indexatie!BE$341 -> 625113.9331 | BF19: =Indexatie!BF$341 -> 614583.0373 | BG19: =Indexatie!BG$341 -> 600906.6616 | BH19: =Indexatie!BH$341 -> 584510.3735 | BI19: =Indexatie!BI$341 -> 563931.0295 | BJ19: =Indexatie!BJ$341 -> 455201.6105 | BK19: =Indexatie!BK$341 -> 373470.9044 | BL19: =Indexatie!BL$341 -> 322042.5204 | BM19: =Indexatie!BM$341 -> 304612.5204 | BN19: =Indexatie!BN$341 -> 288342.5204 | BO19: =Indexatie!BO$341 -> 276392.5204 | BP19: =Indexatie!BP$341 -> 259272.5204 | BQ19: =Indexatie!BQ$341 -> 223312.5204 | BR19: =Indexatie!BR$341 -> 178392.5204 | BS19: =Indexatie!BS$341 -> 134552.5204 | BT19: =Indexatie!BT$341 -> 83581.4402 | BU19: =Indexatie!BU$341 -> 25560.18 | BV19: =Indexatie!BV$341 -> 0 | BW19: =Indexatie!BW$341 -> 0 | BX19: =Indexatie!BX$341 -> 0 | BY19: =Indexatie!BY$341 -> 0 | BZ19: =Indexatie!BZ$341 -> 0 | CA19: =Indexatie!CA$341 -> 0 | CB19: =Indexatie!CB$341 -> 0 | CC19: =Indexatie!CC$341 -> 0 | CD19: =Indexatie!CD$341 -> 0 | CE19: =Indexatie!CE$341 -> 0 | CF19: =Indexatie!CF$341 -> 0 | CG19: =Indexatie!CG$341 -> 0 | CH19: =Indexatie!CH$341 -> 0 | CI19: =Indexatie!CI$341 -> 0 | CJ19: =Indexatie!CJ$341 -> 0 | CK19: =Indexatie!CK$341 -> 0 | CL19: =Indexatie!CL$341 -> 0
E20: =Indexatie!E$301 -> Boekwaarde | F20: =Indexatie!F$301 -> 0 | G20: =Indexatie!G$301 -> 0 | H20: =Indexatie!H$301 -> € | I20: =Indexatie!I$301 -> 791380351.6 | J20: =Indexatie!J$301 -> 0 | K20: =Indexatie!K$301 -> 0 | L20: =Indexatie!L$301 -> 4024040 | M20: =Indexatie!M$301 -> 7356117.64 | N20: =Indexatie!N$301 -> 9089981.868 | O20: =Indexatie!O$301 -> 9692664.933 | P20: =Indexatie!P$301 -> 10641678.34 | Q20: =Indexatie!Q$301 -> 10848634.68 | R20: =Indexatie!R$301 -> 12924263.06 | S20: =Indexatie!S$301 -> 15116541.32 | T20: =Indexatie!T$301 -> 18579204.76 | U20: =Indexatie!U$301 -> 20943826.28 | V20: =Indexatie!V$301 -> 25400113.3 | W20: =Indexatie!W$301 -> 29267574.22 | X20: =Indexatie!X$301 -> 29209600.52 | Y20: =Indexatie!Y$301 -> 28478472.61 | Z20: =Indexatie!Z$301 -> 27747344.7 | AA20: =Indexatie!AA$301 -> 27016216.79 | AB20: =Indexatie!AB$301 -> 26285088.88 | AC20: =Indexatie!AC$301 -> 25553960.97 | AD20: =Indexatie!AD$301 -> 24822833.06 | AE20: =Indexatie!AE$301 -> 24091705.16 | AF20: =Indexatie!AF$301 -> 23360577.25 | AG20: =Indexatie!AG$301 -> 22629449.34 | AH20: =Indexatie!AH$301 -> 21898321.43 | AI20: =Indexatie!AI$301 -> 21167193.52 | AJ20: =Indexatie!AJ$301 -> 20436065.61 | AK20: =Indexatie!AK$301 -> 19704937.7 | AL20: =Indexatie!AL$301 -> 18973809.8 | AM20: =Indexatie!AM$301 -> 18242681.89 | AN20: =Indexatie!AN$301 -> 17511553.98 | AO20: =Indexatie!AO$301 -> 16780426.07 | AP20: =Indexatie!AP$301 -> 16049298.16 | AQ20: =Indexatie!AQ$301 -> 15318170.25 | AR20: =Indexatie!AR$301 -> 14587042.34 | AS20: =Indexatie!AS$301 -> 13855914.44 | AT20: =Indexatie!AT$301 -> 13124786.53 | AU20: =Indexatie!AU$301 -> 12393658.62 | AV20: =Indexatie!AV$301 -> 11662530.71 | AW20: =Indexatie!AW$301 -> 10931402.8 | AX20: =Indexatie!AX$301 -> 10200951.63 | AY20: =Indexatie!AY$301 -> 9474337.721 | AZ20: =Indexatie!AZ$301 -> 8776306.033 | BA20: =Indexatie!BA$301 -> 8134462.533 | BB20: =Indexatie!BB$301 -> 7498796.164 | BC20: =Indexatie!BC$301 -> 6870979.423 | BD20: =Indexatie!BD$301 -> 6244000.837 | BE20: =Indexatie!BE$301 -> 5618886.904 | BF20: =Indexatie!BF$301 -> 5004303.867 | BG20: =Indexatie!BG$301 -> 4403397.205 | BH20: =Indexatie!BH$301 -> 3818886.832 | BI20: =Indexatie!BI$301 -> 3254955.802 | BJ20: =Indexatie!BJ$301 -> 2572017.688 | BK20: =Indexatie!BK$301 -> 2198546.783 | BL20: =Indexatie!BL$301 -> 1876504.263 | BM20: =Indexatie!BM$301 -> 1571891.743 | BN20: =Indexatie!BN$301 -> 1283549.222 | BO20: =Indexatie!BO$301 -> 1007156.702 | BP20: =Indexatie!BP$301 -> 747884.1814 | BQ20: =Indexatie!BQ$301 -> 524571.661 | BR20: =Indexatie!BR$301 -> 346179.1406 | BS20: =Indexatie!BS$301 -> 211626.6202 | BT20: =Indexatie!BT$301 -> 128045.18 | BU20: =Indexatie!BU$301 -> 102485 | BV20: =Indexatie!BV$301 -> 102485 | BW20: =Indexatie!BW$301 -> 102485 | BX20: =Indexatie!BX$301 -> 102485 | BY20: =Indexatie!BY$301 -> 102485 | BZ20: =Indexatie!BZ$301 -> 102485 | CA20: =Indexatie!CA$301 -> 102485 | CB20: =Indexatie!CB$301 -> 102485 | CC20: =Indexatie!CC$301 -> 102485 | CD20: =Indexatie!CD$301 -> 102485 | CE20: =Indexatie!CE$301 -> 102485 | CF20: =Indexatie!CF$301 -> 102485 | CG20: =Indexatie!CG$301 -> 102485 | CH20: =Indexatie!CH$301 -> 102485 | CI20: =Indexatie!CI$301 -> 102485 | CJ20: =Indexatie!CJ$301 -> 102485 | CK20: =Indexatie!CK$301 -> 102485 | CL20: =Indexatie!CL$301 -> 102485
E22: Bijzonderheid: precario
E23: =GAW!E$94 -> Investeringsbedrag boekjaar precario | F23: =GAW!F$94 -> 0 | G23: =GAW!G$94 -> 0 | H23: =GAW!H$94 -> € | I23: =GAW!I$94 -> 7775439 | J23: =GAW!J$94 -> 0 | K23: =GAW!K$94 -> 7775439 | L23: =GAW!L$94 -> 0 | M23: =GAW!M$94 -> 0 | N23: =GAW!N$94 -> 0 | O23: =GAW!O$94 -> 0 | P23: =GAW!P$94 -> 0 | Q23: =GAW!Q$94 -> 0 | R23: =GAW!R$94 -> 0 | S23: =GAW!S$94 -> 0 | T23: =GAW!T$94 -> 0 | U23: =GAW!U$94 -> 0 | V23: =GAW!V$94 -> 0 | W23: =GAW!W$94 -> 0 | X23: =GAW!X$94 -> 0 | Y23: =GAW!Y$94 -> 0 | Z23: =GAW!Z$94 -> 0 | AA23: =GAW!AA$94 -> 0 | AB23: =GAW!AB$94 -> 0 | AC23: =GAW!AC$94 -> 0 | AD23: =GAW!AD$94 -> 0 | AE23: =GAW!AE$94 -> 0 | AF23: =GAW!AF$94 -> 0 | AG23: =GAW!AG$94 -> 0 | AH23: =GAW!AH$94 -> 0 | AI23: =GAW!AI$94 -> 0 | AJ23: =GAW!AJ$94 -> 0 | AK23: =GAW!AK$94 -> 0 | AL23: =GAW!AL$94 -> 0 | AM23: =GAW!AM$94 -> 0 | AN23: =GAW!AN$94 -> 0 | AO23: =GAW!AO$94 -> 0 | AP23: =GAW!AP$94 -> 0 | AQ23: =GAW!AQ$94 -> 0 | AR23: =GAW!AR$94 -> 0 | AS23: =GAW!AS$94 -> 0 | AT23: =GAW!AT$94 -> 0 | AU23: =GAW!AU$94 -> 0 | AV23: =GAW!AV$94 -> 0 | AW23: =GAW!AW$94 -> 0 | AX23: =GAW!AX$94 -> 0 | AY23: =GAW!AY$94 -> 0 | AZ23: =GAW!AZ$94 -> 0 | BA23: =GAW!BA$94 -> 0 | BB23: =GAW!BB$94 -> 0 | BC23: =GAW!BC$94 -> 0 | BD23: =GAW!BD$94 -> 0 | BE23: =GAW!BE$94 -> 0 | BF23: =GAW!BF$94 -> 0 | BG23: =GAW!BG$94 -> 0 | BH23: =GAW!BH$94 -> 0 | BI23: =GAW!BI$94 -> 0 | BJ23: =GAW!BJ$94 -> 0 | BK23: =GAW!BK$94 -> 0 | BL23: =GAW!BL$94 -> 0 | BM23: =GAW!BM$94 -> 0 | BN23: =GAW!BN$94 -> 0 | BO23: =GAW!BO$94 -> 0 | BP23: =GAW!BP$94 -> 0 | BQ23: =GAW!BQ$94 -> 0 | BR23: =GAW!BR$94 -> 0 | BS23: =GAW!BS$94 -> 0 | BT23: =GAW!BT$94 -> 0 | BU23: =GAW!BU$94 -> 0 | BV23: =GAW!BV$94 -> 0 | BW23: =GAW!BW$94 -> 0 | BX23: =GAW!BX$94 -> 0 | BY23: =GAW!BY$94 -> 0 | BZ23: =GAW!BZ$94 -> 0 | CA23: =GAW!CA$94 -> 0 | CB23: =GAW!CB$94 -> 0 | CC23: =GAW!CC$94 -> 0 | CD23: =GAW!CD$94 -> 0 | CE23: =GAW!CE$94 -> 0 | CF23: =GAW!CF$94 -> 0 | CG23: =GAW!CG$94 -> 0 | CH23: =GAW!CH$94 -> 0 | CI23: =GAW!CI$94 -> 0 | CJ23: =GAW!CJ$94 -> 0 | CK23: =GAW!CK$94 -> 0 | CL23: =GAW!CL$94 -> 0
E24: =Indexatie!E$25 -> Afschrijvingen precario | F24: =Indexatie!F$25 -> 0 | G24: =Indexatie!G$25 -> 0 | H24: =Indexatie!H$25 -> € | I24: =Indexatie!I$25 -> 8935450.194 | J24: =Indexatie!J$25 -> 0 | K24: =Indexatie!K$25 -> 0 | L24: =Indexatie!L$25 -> 796982.4975 | M24: =Indexatie!M$25 -> 834440.6749 | N24: =Indexatie!N$25 -> 861977.2172 | O24: =Indexatie!O$25 -> 880078.7387 | P24: =Indexatie!P$25 -> 889759.6048 | Q24: =Indexatie!Q$25 -> 905775.2777 | R24: =Indexatie!R$25 -> 918456.1316 | S24: =Indexatie!S$25 -> 928559.1491 | T24: =Indexatie!T$25 -> 958273.0418 | U24: =Indexatie!U$25 -> 961147.861 | V24: =Indexatie!V$25 -> 0 | W24: =Indexatie!W$25 -> 0 | X24: =Indexatie!X$25 -> 0 | Y24: =Indexatie!Y$25 -> 0 | Z24: =Indexatie!Z$25 -> 0 | AA24: =Indexatie!AA$25 -> 0 | AB24: =Indexatie!AB$25 -> 0 | AC24: =Indexatie!AC$25 -> 0 | AD24: =Indexatie!AD$25 -> 0 | AE24: =Indexatie!AE$25 -> 0 | AF24: =Indexatie!AF$25 -> 0 | AG24: =Indexatie!AG$25 -> 0 | AH24: =Indexatie!AH$25 -> 0 | AI24: =Indexatie!AI$25 -> 0 | AJ24: =Indexatie!AJ$25 -> 0 | AK24: =Indexatie!AK$25 -> 0 | AL24: =Indexatie!AL$25 -> 0 | AM24: =Indexatie!AM$25 -> 0 | AN24: =Indexatie!AN$25 -> 0 | AO24: =Indexatie!AO$25 -> 0 | AP24: =Indexatie!AP$25 -> 0 | AQ24: =Indexatie!AQ$25 -> 0 | AR24: =Indexatie!AR$25 -> 0 | AS24: =Indexatie!AS$25 -> 0 | AT24: =Indexatie!AT$25 -> 0 | AU24: =Indexatie!AU$25 -> 0 | AV24: =Indexatie!AV$25 -> 0 | AW24: =Indexatie!AW$25 -> 0 | AX24: =Indexatie!AX$25 -> 0 | AY24: =Indexatie!AY$25 -> 0 | AZ24: =Indexatie!AZ$25 -> 0 | BA24: =Indexatie!BA$25 -> 0 | BB24: =Indexatie!BB$25 -> 0 | BC24: =Indexatie!BC$25 -> 0 | BD24: =Indexatie!BD$25 -> 0 | BE24: =Indexatie!BE$25 -> 0 | BF24: =Indexatie!BF$25 -> 0 | BG24: =Indexatie!BG$25 -> 0 | BH24: =Indexatie!BH$25 -> 0 | BI24: =Indexatie!BI$25 -> 0 | BJ24: =Indexatie!BJ$25 -> 0 | BK24: =Indexatie!BK$25 -> 0 | BL24: =Indexatie!BL$25 -> 0 | BM24: =Indexatie!BM$25 -> 0 | BN24: =Indexatie!BN$25 -> 0 | BO24: =Indexatie!BO$25 -> 0 | BP24: =Indexatie!BP$25 -> 0 | BQ24: =Indexatie!BQ$25 -> 0 | BR24: =Indexatie!BR$25 -> 0 | BS24: =Indexatie!BS$25 -> 0 | BT24: =Indexatie!BT$25 -> 0 | BU24: =Indexatie!BU$25 -> 0 | BV24: =Indexatie!BV$25 -> 0 | BW24: =Indexatie!BW$25 -> 0 | BX24: =Indexatie!BX$25 -> 0 | BY24: =Indexatie!BY$25 -> 0 | BZ24: =Indexatie!BZ$25 -> 0 | CA24: =Indexatie!CA$25 -> 0 | CB24: =Indexatie!CB$25 -> 0 | CC24: =Indexatie!CC$25 -> 0 | CD24: =Indexatie!CD$25 -> 0 | CE24: =Indexatie!CE$25 -> 0 | CF24: =Indexatie!CF$25 -> 0 | CG24: =Indexatie!CG$25 -> 0 | CH24: =Indexatie!CH$25 -> 0 | CI24: =Indexatie!CI$25 -> 0 | CJ24: =Indexatie!CJ$25 -> 0 | CK24: =Indexatie!CK$25 -> 0 | CL24: =Indexatie!CL$25 -> 0
E25: =Indexatie!E$21 -> Boekwaarde precario | F25: =Indexatie!F$21 -> 0 | G25: =Indexatie!G$21 -> 0 | H25: =Indexatie!H$21 -> € | I25: =Indexatie!I$21 -> 46580778.7 | J25: =Indexatie!J$21 -> 0 | K25: =Indexatie!K$21 -> 7775439 | L25: =Indexatie!L$21 -> 7172842.477 | M25: =Indexatie!M$21 -> 6675525.399 | N25: =Indexatie!N$21 -> 6033840.52 | O25: =Indexatie!O$21 -> 5280472.432 | P25: =Indexatie!P$21 -> 4448798.024 | Q25: =Indexatie!Q$21 -> 3623101.111 | R25: =Indexatie!R$21 -> 2755368.395 | S25: =Indexatie!S$21 -> 1857118.298 | T25: =Indexatie!T$21 -> 958273.0418 | U25: =Indexatie!U$21 -> -3.02200183e-09 | V25: =Indexatie!V$21 -> -3.067331857e-09 | W25: =Indexatie!W$21 -> -3.147082486e-09 | X25: =Indexatie!X$21 -> -3.219465383e-09 | Y25: =Indexatie!Y$21 -> -3.219465383e-09 | Z25: =Indexatie!Z$21 -> -3.219465383e-09 | AA25: =Indexatie!AA$21 -> -3.219465383e-09 | AB25: =Indexatie!AB$21 -> -3.219465383e-09 | AC25: =Indexatie!AC$21 -> -3.219465383e-09 | AD25: =Indexatie!AD$21 -> -3.219465383e-09 | AE25: =Indexatie!AE$21 -> -3.219465383e-09 | AF25: =Indexatie!AF$21 -> -3.219465383e-09 | AG25: =Indexatie!AG$21 -> -3.219465383e-09 | AH25: =Indexatie!AH$21 -> -3.219465383e-09 | AI25: =Indexatie!AI$21 -> -3.219465383e-09 | AJ25: =Indexatie!AJ$21 -> -3.219465383e-09 | AK25: =Indexatie!AK$21 -> -3.219465383e-09 | AL25: =Indexatie!AL$21 -> -3.219465383e-09 | AM25: =Indexatie!AM$21 -> -3.219465383e-09 | AN25: =Indexatie!AN$21 -> -3.219465383e-09 | AO25: =Indexatie!AO$21 -> -3.219465383e-09 | AP25: =Indexatie!AP$21 -> -3.219465383e-09 | AQ25: =Indexatie!AQ$21 -> -3.219465383e-09 | AR25: =Indexatie!AR$21 -> -3.219465383e-09 | AS25: =Indexatie!AS$21 -> -3.219465383e-09 | AT25: =Indexatie!AT$21 -> -3.219465383e-09 | AU25: =Indexatie!AU$21 -> -3.219465383e-09 | AV25: =Indexatie!AV$21 -> -3.219465383e-09 | AW25: =Indexatie!AW$21 -> -3.219465383e-09 | AX25: =Indexatie!AX$21 -> -3.219465383e-09 | AY25: =Indexatie!AY$21 -> -3.219465383e-09 | AZ25: =Indexatie!AZ$21 -> -3.219465383e-09 | BA25: =Indexatie!BA$21 -> -3.219465383e-09 | BB25: =Indexatie!BB$21 -> -3.219465383e-09 | BC25: =Indexatie!BC$21 -> -3.219465383e-09 | BD25: =Indexatie!BD$21 -> -3.219465383e-09 | BE25: =Indexatie!BE$21 -> -3.219465383e-09 | BF25: =Indexatie!BF$21 -> -3.219465383e-09 | BG25: =Indexatie!BG$21 -> -3.219465383e-09 | BH25: =Indexatie!BH$21 -> -3.219465383e-09 | BI25: =Indexatie!BI$21 -> -3.219465383e-09 | BJ25: =Indexatie!BJ$21 -> -2.444721758e-09 | BK25: =Indexatie!BK$21 -> -2.444721758e-09 | BL25: =Indexatie!BL$21 -> -2.444721758e-09 | BM25: =Indexatie!BM$21 -> -2.444721758e-09 | BN25: =Indexatie!BN$21 -> -2.444721758e-09 | BO25: =Indexatie!BO$21 -> -2.444721758e-09 | BP25: =Indexatie!BP$21 -> -2.444721758e-09 | BQ25: =Indexatie!BQ$21 -> -2.444721758e-09 | BR25: =Indexatie!BR$21 -> -2.444721758e-09 | BS25: =Indexatie!BS$21 -> -2.444721758e-09 | BT25: =Indexatie!BT$21 -> -2.444721758e-09 | BU25: =Indexatie!BU$21 -> -2.444721758e-09 | BV25: =Indexatie!BV$21 -> -2.444721758e-09 | BW25: =Indexatie!BW$21 -> -2.444721758e-09 | BX25: =Indexatie!BX$21 -> -2.444721758e-09 | BY25: =Indexatie!BY$21 -> -2.444721758e-09 | BZ25: =Indexatie!BZ$21 -> -2.444721758e-09 | CA25: =Indexatie!CA$21 -> -2.444721758e-09 | CB25: =Indexatie!CB$21 -> -2.444721758e-09 | CC25: =Indexatie!CC$21 -> -2.444721758e-09 | CD25: =Indexatie!CD$21 -> -2.444721758e-09 | CE25: =Indexatie!CE$21 -> -2.444721758e-09 | CF25: =Indexatie!CF$21 -> -2.444721758e-09 | CG25: =Indexatie!CG$21 -> -2.444721758e-09 | CH25: =Indexatie!CH$21 -> -2.444721758e-09 | CI25: =Indexatie!CI$21 -> -2.444721758e-09 | CJ25: =Indexatie!CJ$21 -> -2.444721758e-09 | CK25: =Indexatie!CK$21 -> -2.444721758e-09 | CL25: =Indexatie!CL$21 -> -2.444721758e-09
E27: Bijzonderheid: UI's
E28: ='UI & Overgenomen Netten'!E$836 -> Investeringsbedrag UI's | F28: ='UI & Overgenomen Netten'!F$836 -> 0 | G28: ='UI & Overgenomen Netten'!G$836 -> 0 | H28: ='UI & Overgenomen Netten'!H$836 -> € | I28: ='UI & Overgenomen Netten'!I$836 -> 0 | J28: ='UI & Overgenomen Netten'!J$836 -> 0 | K28: ='UI & Overgenomen Netten'!K$836 -> 0 | L28: ='UI & Overgenomen Netten'!L$836 -> 0 | M28: ='UI & Overgenomen Netten'!M$836 -> 0 | N28: ='UI & Overgenomen Netten'!N$836 -> 0 | O28: ='UI & Overgenomen Netten'!O$836 -> 0 | P28: ='UI & Overgenomen Netten'!P$836 -> 0 | Q28: ='UI & Overgenomen Netten'!Q$836 -> 0 | R28: ='UI & Overgenomen Netten'!R$836 -> 0 | S28: ='UI & Overgenomen Netten'!S$836 -> 0 | T28: ='UI & Overgenomen Netten'!T$836 -> 0 | U28: ='UI & Overgenomen Netten'!U$836 -> 0 | V28: ='UI & Overgenomen Netten'!V$836 -> 0 | W28: ='UI & Overgenomen Netten'!W$836 -> 0 | X28: ='UI & Overgenomen Netten'!X$836 -> 0 | Y28: ='UI & Overgenomen Netten'!Y$836 -> 0 | Z28: ='UI & Overgenomen Netten'!Z$836 -> 0 | AA28: ='UI & Overgenomen Netten'!AA$836 -> 0 | AB28: ='UI & Overgenomen Netten'!AB$836 -> 0 | AC28: ='UI & Overgenomen Netten'!AC$836 -> 0 | AD28: ='UI & Overgenomen Netten'!AD$836 -> 0 | AE28: ='UI & Overgenomen Netten'!AE$836 -> 0 | AF28: ='UI & Overgenomen Netten'!AF$836 -> 0 | AG28: ='UI & Overgenomen Netten'!AG$836 -> 0 | AH28: ='UI & Overgenomen Netten'!AH$836 -> 0 | AI28: ='UI & Overgenomen Netten'!AI$836 -> 0 | AJ28: ='UI & Overgenomen Netten'!AJ$836 -> 0 | AK28: ='UI & Overgenomen Netten'!AK$836 -> 0 | AL28: ='UI & Overgenomen Netten'!AL$836 -> 0 | AM28: ='UI & Overgenomen Netten'!AM$836 -> 0 | AN28: ='UI & Overgenomen Netten'!AN$836 -> 0 | AO28: ='UI & Overgenomen Netten'!AO$836 -> 0 | AP28: ='UI & Overgenomen Netten'!AP$836 -> 0 | AQ28: ='UI & Overgenomen Netten'!AQ$836 -> 0 | AR28: ='UI & Overgenomen Netten'!AR$836 -> 0 | AS28: ='UI & Overgenomen Netten'!AS$836 -> 0 | AT28: ='UI & Overgenomen Netten'!AT$836 -> 0 | AU28: ='UI & Overgenomen Netten'!AU$836 -> 0 | AV28: ='UI & Overgenomen Netten'!AV$836 -> 0 | AW28: ='UI & Overgenomen Netten'!AW$836 -> 0 | AX28: ='UI & Overgenomen Netten'!AX$836 -> 0 | AY28: ='UI & Overgenomen Netten'!AY$836 -> 0 | AZ28: ='UI & Overgenomen Netten'!AZ$836 -> 0 | BA28: ='UI & Overgenomen Netten'!BA$836 -> 0 | BB28: ='UI & Overgenomen Netten'!BB$836 -> 0 | BC28: ='UI & Overgenomen Netten'!BC$836 -> 0 | BD28: ='UI & Overgenomen Netten'!BD$836 -> 0 | BE28: ='UI & Overgenomen Netten'!BE$836 -> 0 | BF28: ='UI & Overgenomen Netten'!BF$836 -> 0 | BG28: ='UI & Overgenomen Netten'!BG$836 -> 0 | BH28: ='UI & Overgenomen Netten'!BH$836 -> 0 | BI28: ='UI & Overgenomen Netten'!BI$836 -> 0 | BJ28: ='UI & Overgenomen Netten'!BJ$836 -> 0 | BK28: ='UI & Overgenomen Netten'!BK$836 -> 0 | BL28: ='UI & Overgenomen Netten'!BL$836 -> 0 | BM28: ='UI & Overgenomen Netten'!BM$836 -> 0 | BN28: ='UI & Overgenomen Netten'!BN$836 -> 0 | BO28: ='UI & Overgenomen Netten'!BO$836 -> 0 | BP28: ='UI & Overgenomen Netten'!BP$836 -> 0 | BQ28: ='UI & Overgenomen Netten'!BQ$836 -> 0 | BR28: ='UI & Overgenomen Netten'!BR$836 -> 0 | BS28: ='UI & Overgenomen Netten'!BS$836 -> 0 | BT28: ='UI & Overgenomen Netten'!BT$836 -> 0 | BU28: ='UI & Overgenomen Netten'!BU$836 -> 0 | BV28: ='UI & Overgenomen Netten'!BV$836 -> 0 | BW28: ='UI & Overgenomen Netten'!BW$836 -> 0 | BX28: ='UI & Overgenomen Netten'!BX$836 -> 0 | BY28: ='UI & Overgenomen Netten'!BY$836 -> 0 | BZ28: ='UI & Overgenomen Netten'!BZ$836 -> 0 | CA28: ='UI & Overgenomen Netten'!CA$836 -> 0 | CB28: ='UI & Overgenomen Netten'!CB$836 -> 0 | CC28: ='UI & Overgenomen Netten'!CC$836 -> 0 | CD28: ='UI & Overgenomen Netten'!CD$836 -> 0 | CE28: ='UI & Overgenomen Netten'!CE$836 -> 0 | CF28: ='UI & Overgenomen Netten'!CF$836 -> 0 | CG28: ='UI & Overgenomen Netten'!CG$836 -> 0 | CH28: ='UI & Overgenomen Netten'!CH$836 -> 0 | CI28: ='UI & Overgenomen Netten'!CI$836 -> 0 | CJ28: ='UI & Overgenomen Netten'!CJ$836 -> 0 | CK28: ='UI & Overgenomen Netten'!CK$836 -> 0 | CL28: ='UI & Overgenomen Netten'!CL$836 -> 0
E29: ='UI & Overgenomen Netten'!E$823 -> Afschrijvingen UI's | F29: ='UI & Overgenomen Netten'!F$823 -> 0 | G29: ='UI & Overgenomen Netten'!G$823 -> 0 | H29: ='UI & Overgenomen Netten'!H$823 -> € | I29: ='UI & Overgenomen Netten'!I$823 -> 0 | J29: ='UI & Overgenomen Netten'!J$823 -> 0 | K29: ='UI & Overgenomen Netten'!K$823 -> 0 | L29: ='UI & Overgenomen Netten'!L$823 -> 0 | M29: ='UI & Overgenomen Netten'!M$823 -> 0 | N29: ='UI & Overgenomen Netten'!N$823 -> 0 | O29: ='UI & Overgenomen Netten'!O$823 -> 0 | P29: ='UI & Overgenomen Netten'!P$823 -> 0 | Q29: ='UI & Overgenomen Netten'!Q$823 -> 0 | R29: ='UI & Overgenomen Netten'!R$823 -> 0 | S29: ='UI & Overgenomen Netten'!S$823 -> 0 | T29: ='UI & Overgenomen Netten'!T$823 -> 0 | U29: ='UI & Overgenomen Netten'!U$823 -> 0 | V29: ='UI & Overgenomen Netten'!V$823 -> 0 | W29: ='UI & Overgenomen Netten'!W$823 -> 0 | X29: ='UI & Overgenomen Netten'!X$823 -> 0 | Y29: ='UI & Overgenomen Netten'!Y$823 -> 0 | Z29: ='UI & Overgenomen Netten'!Z$823 -> 0 | AA29: ='UI & Overgenomen Netten'!AA$823 -> 0 | AB29: ='UI & Overgenomen Netten'!AB$823 -> 0 | AC29: ='UI & Overgenomen Netten'!AC$823 -> 0 | AD29: ='UI & Overgenomen Netten'!AD$823 -> 0 | AE29: ='UI & Overgenomen Netten'!AE$823 -> 0 | AF29: ='UI & Overgenomen Netten'!AF$823 -> 0 | AG29: ='UI & Overgenomen Netten'!AG$823 -> 0 | AH29: ='UI & Overgenomen Netten'!AH$823 -> 0 | AI29: ='UI & Overgenomen Netten'!AI$823 -> 0 | AJ29: ='UI & Overgenomen Netten'!AJ$823 -> 0 | AK29: ='UI & Overgenomen Netten'!AK$823 -> 0 | AL29: ='UI & Overgenomen Netten'!AL$823 -> 0 | AM29: ='UI & Overgenomen Netten'!AM$823 -> 0 | AN29: ='UI & Overgenomen Netten'!AN$823 -> 0 | AO29: ='UI & Overgenomen Netten'!AO$823 -> 0 | AP29: ='UI & Overgenomen Netten'!AP$823 -> 0 | AQ29: ='UI & Overgenomen Netten'!AQ$823 -> 0 | AR29: ='UI & Overgenomen Netten'!AR$823 -> 0 | AS29: ='UI & Overgenomen Netten'!AS$823 -> 0 | AT29: ='UI & Overgenomen Netten'!AT$823 -> 0 | AU29: ='UI & Overgenomen Netten'!AU$823 -> 0 | AV29: ='UI & Overgenomen Netten'!AV$823 -> 0 | AW29: ='UI & Overgenomen Netten'!AW$823 -> 0 | AX29: ='UI & Overgenomen Netten'!AX$823 -> 0 | AY29: ='UI & Overgenomen Netten'!AY$823 -> 0 | AZ29: ='UI & Overgenomen Netten'!AZ$823 -> 0 | BA29: ='UI & Overgenomen Netten'!BA$823 -> 0 | BB29: ='UI & Overgenomen Netten'!BB$823 -> 0 | BC29: ='UI & Overgenomen Netten'!BC$823 -> 0 | BD29: ='UI & Overgenomen Netten'!BD$823 -> 0 | BE29: ='UI & Overgenomen Netten'!BE$823 -> 0 | BF29: ='UI & Overgenomen Netten'!BF$823 -> 0 | BG29: ='UI & Overgenomen Netten'!BG$823 -> 0 | BH29: ='UI & Overgenomen Netten'!BH$823 -> 0 | BI29: ='UI & Overgenomen Netten'!BI$823 -> 0 | BJ29: ='UI & Overgenomen Netten'!BJ$823 -> 0 | BK29: ='UI & Overgenomen Netten'!BK$823 -> 0 | BL29: ='UI & Overgenomen Netten'!BL$823 -> 0 | BM29: ='UI & Overgenomen Netten'!BM$823 -> 0 | BN29: ='UI & Overgenomen Netten'!BN$823 -> 0 | BO29: ='UI & Overgenomen Netten'!BO$823 -> 0 | BP29: ='UI & Overgenomen Netten'!BP$823 -> 0 | BQ29: ='UI & Overgenomen Netten'!BQ$823 -> 0 | BR29: ='UI & Overgenomen Netten'!BR$823 -> 0 | BS29: ='UI & Overgenomen Netten'!BS$823 -> 0 | BT29: ='UI & Overgenomen Netten'!BT$823 -> 0 | BU29: ='UI & Overgenomen Netten'!BU$823 -> 0 | BV29: ='UI & Overgenomen Netten'!BV$823 -> 0 | BW29: ='UI & Overgenomen Netten'!BW$823 -> 0 | BX29: ='UI & Overgenomen Netten'!BX$823 -> 0 | BY29: ='UI & Overgenomen Netten'!BY$823 -> 0 | BZ29: ='UI & Overgenomen Netten'!BZ$823 -> 0 | CA29: ='UI & Overgenomen Netten'!CA$823 -> 0 | CB29: ='UI & Overgenomen Netten'!CB$823 -> 0 | CC29: ='UI & Overgenomen Netten'!CC$823 -> 0 | CD29: ='UI & Overgenomen Netten'!CD$823 -> 0 | CE29: ='UI & Overgenomen Netten'!CE$823 -> 0 | CF29: ='UI & Overgenomen Netten'!CF$823 -> 0 | CG29: ='UI & Overgenomen Netten'!CG$823 -> 0 | CH29: ='UI & Overgenomen Netten'!CH$823 -> 0 | CI29: ='UI & Overgenomen Netten'!CI$823 -> 0 | CJ29: ='UI & Overgenomen Netten'!CJ$823 -> 0 | CK29: ='UI & Overgenomen Netten'!CK$823 -> 0 | CL29: ='UI & Overgenomen Netten'!CL$823 -> 0
E30: ='UI & Overgenomen Netten'!E$810 -> Boekwaarde UI's | F30: ='UI & Overgenomen Netten'!F$810 -> 0 | G30: ='UI & Overgenomen Netten'!G$810 -> 0 | H30: ='UI & Overgenomen Netten'!H$810 -> € | I30: ='UI & Overgenomen Netten'!I$810 -> 0 | J30: ='UI & Overgenomen Netten'!J$810 -> 0 | K30: ='UI & Overgenomen Netten'!K$810 -> 0 | L30: ='UI & Overgenomen Netten'!L$810 -> 0 | M30: ='UI & Overgenomen Netten'!M$810 -> 0 | N30: ='UI & Overgenomen Netten'!N$810 -> 0 | O30: ='UI & Overgenomen Netten'!O$810 -> 0 | P30: ='UI & Overgenomen Netten'!P$810 -> 0 | Q30: ='UI & Overgenomen Netten'!Q$810 -> 0 | R30: ='UI & Overgenomen Netten'!R$810 -> 0 | S30: ='UI & Overgenomen Netten'!S$810 -> 0 | T30: ='UI & Overgenomen Netten'!T$810 -> 0 | U30: ='UI & Overgenomen Netten'!U$810 -> 0 | V30: ='UI & Overgenomen Netten'!V$810 -> 0 | W30: ='UI & Overgenomen Netten'!W$810 -> 0 | X30: ='UI & Overgenomen Netten'!X$810 -> 0 | Y30: ='UI & Overgenomen Netten'!Y$810 -> 0 | Z30: ='UI & Overgenomen Netten'!Z$810 -> 0 | AA30: ='UI & Overgenomen Netten'!AA$810 -> 0 | AB30: ='UI & Overgenomen Netten'!AB$810 -> 0 | AC30: ='UI & Overgenomen Netten'!AC$810 -> 0 | AD30: ='UI & Overgenomen Netten'!AD$810 -> 0 | AE30: ='UI & Overgenomen Netten'!AE$810 -> 0 | AF30: ='UI & Overgenomen Netten'!AF$810 -> 0 | AG30: ='UI & Overgenomen Netten'!AG$810 -> 0 | AH30: ='UI & Overgenomen Netten'!AH$810 -> 0 | AI30: ='UI & Overgenomen Netten'!AI$810 -> 0 | AJ30: ='UI & Overgenomen Netten'!AJ$810 -> 0 | AK30: ='UI & Overgenomen Netten'!AK$810 -> 0 | AL30: ='UI & Overgenomen Netten'!AL$810 -> 0 | AM30: ='UI & Overgenomen Netten'!AM$810 -> 0 | AN30: ='UI & Overgenomen Netten'!AN$810 -> 0 | AO30: ='UI & Overgenomen Netten'!AO$810 -> 0 | AP30: ='UI & Overgenomen Netten'!AP$810 -> 0 | AQ30: ='UI & Overgenomen Netten'!AQ$810 -> 0 | AR30: ='UI & Overgenomen Netten'!AR$810 -> 0 | AS30: ='UI & Overgenomen Netten'!AS$810 -> 0 | AT30: ='UI & Overgenomen Netten'!AT$810 -> 0 | AU30: ='UI & Overgenomen Netten'!AU$810 -> 0 | AV30: ='UI & Overgenomen Netten'!AV$810 -> 0 | AW30: ='UI & Overgenomen Netten'!AW$810 -> 0 | AX30: ='UI & Overgenomen Netten'!AX$810 -> 0 | AY30: ='UI & Overgenomen Netten'!AY$810 -> 0 | AZ30: ='UI & Overgenomen Netten'!AZ$810 -> 0 | BA30: ='UI & Overgenomen Netten'!BA$810 -> 0 | BB30: ='UI & Overgenomen Netten'!BB$810 -> 0 | BC30: ='UI & Overgenomen Netten'!BC$810 -> 0 | BD30: ='UI & Overgenomen Netten'!BD$810 -> 0 | BE30: ='UI & Overgenomen Netten'!BE$810 -> 0 | BF30: ='UI & Overgenomen Netten'!BF$810 -> 0 | BG30: ='UI & Overgenomen Netten'!BG$810 -> 0 | BH30: ='UI & Overgenomen Netten'!BH$810 -> 0 | BI30: ='UI & Overgenomen Netten'!BI$810 -> 0 | BJ30: ='UI & Overgenomen Netten'!BJ$810 -> 0 | BK30: ='UI & Overgenomen Netten'!BK$810 -> 0 | BL30: ='UI & Overgenomen Netten'!BL$810 -> 0 | BM30: ='UI & Overgenomen Netten'!BM$810 -> 0 | BN30: ='UI & Overgenomen Netten'!BN$810 -> 0 | BO30: ='UI & Overgenomen Netten'!BO$810 -> 0 | BP30: ='UI & Overgenomen Netten'!BP$810 -> 0 | BQ30: ='UI & Overgenomen Netten'!BQ$810 -> 0 | BR30: ='UI & Overgenomen Netten'!BR$810 -> 0 | BS30: ='UI & Overgenomen Netten'!BS$810 -> 0 | BT30: ='UI & Overgenomen Netten'!BT$810 -> 0 | BU30: ='UI & Overgenomen Netten'!BU$810 -> 0 | BV30: ='UI & Overgenomen Netten'!BV$810 -> 0 | BW30: ='UI & Overgenomen Netten'!BW$810 -> 0 | BX30: ='UI & Overgenomen Netten'!BX$810 -> 0 | BY30: ='UI & Overgenomen Netten'!BY$810 -> 0 | BZ30: ='UI & Overgenomen Netten'!BZ$810 -> 0 | CA30: ='UI & Overgenomen Netten'!CA$810 -> 0 | CB30: ='UI & Overgenomen Netten'!CB$810 -> 0 | CC30: ='UI & Overgenomen Netten'!CC$810 -> 0 | CD30: ='UI & Overgenomen Netten'!CD$810 -> 0 | CE30: ='UI & Overgenomen Netten'!CE$810 -> 0 | CF30: ='UI & Overgenomen Netten'!CF$810 -> 0 | CG30: ='UI & Overgenomen Netten'!CG$810 -> 0 | CH30: ='UI & Overgenomen Netten'!CH$810 -> 0 | CI30: ='UI & Overgenomen Netten'!CI$810 -> 0 | CJ30: ='UI & Overgenomen Netten'!CJ$810 -> 0 | CK30: ='UI & Overgenomen Netten'!CK$810 -> 0 | CL30: ='UI & Overgenomen Netten'!CL$810 -> 0
E32: Bijzonderheid: overgenomen netten
E33: ='UI & Overgenomen Netten'!E$844 -> Investeringsbedrag overgenomen netten | F33: ='UI & Overgenomen Netten'!F$844 -> 0 | G33: ='UI & Overgenomen Netten'!G$844 -> 0 | H33: ='UI & Overgenomen Netten'!H$844 -> € | I33: ='UI & Overgenomen Netten'!I$844 -> 0 | J33: ='UI & Overgenomen Netten'!J$844 -> 0 | K33: ='UI & Overgenomen Netten'!K$844 -> 0 | L33: ='UI & Overgenomen Netten'!L$844 -> 0 | M33: ='UI & Overgenomen Netten'!M$844 -> 0 | N33: ='UI & Overgenomen Netten'!N$844 -> 0 | O33: ='UI & Overgenomen Netten'!O$844 -> 0 | P33: ='UI & Overgenomen Netten'!P$844 -> 0 | Q33: ='UI & Overgenomen Netten'!Q$844 -> 0 | R33: ='UI & Overgenomen Netten'!R$844 -> 0 | S33: ='UI & Overgenomen Netten'!S$844 -> 0 | T33: ='UI & Overgenomen Netten'!T$844 -> 0 | U33: ='UI & Overgenomen Netten'!U$844 -> 0 | V33: ='UI & Overgenomen Netten'!V$844 -> 0 | W33: ='UI & Overgenomen Netten'!W$844 -> 0 | X33: ='UI & Overgenomen Netten'!X$844 -> 0 | Y33: ='UI & Overgenomen Netten'!Y$844 -> 0 | Z33: ='UI & Overgenomen Netten'!Z$844 -> 0 | AA33: ='UI & Overgenomen Netten'!AA$844 -> 0 | AB33: ='UI & Overgenomen Netten'!AB$844 -> 0 | AC33: ='UI & Overgenomen Netten'!AC$844 -> 0 | AD33: ='UI & Overgenomen Netten'!AD$844 -> 0 | AE33: ='UI & Overgenomen Netten'!AE$844 -> 0 | AF33: ='UI & Overgenomen Netten'!AF$844 -> 0 | AG33: ='UI & Overgenomen Netten'!AG$844 -> 0 | AH33: ='UI & Overgenomen Netten'!AH$844 -> 0 | AI33: ='UI & Overgenomen Netten'!AI$844 -> 0 | AJ33: ='UI & Overgenomen Netten'!AJ$844 -> 0 | AK33: ='UI & Overgenomen Netten'!AK$844 -> 0 | AL33: ='UI & Overgenomen Netten'!AL$844 -> 0 | AM33: ='UI & Overgenomen Netten'!AM$844 -> 0 | AN33: ='UI & Overgenomen Netten'!AN$844 -> 0 | AO33: ='UI & Overgenomen Netten'!AO$844 -> 0 | AP33: ='UI & Overgenomen Netten'!AP$844 -> 0 | AQ33: ='UI & Overgenomen Netten'!AQ$844 -> 0 | AR33: ='UI & Overgenomen Netten'!AR$844 -> 0 | AS33: ='UI & Overgenomen Netten'!AS$844 -> 0 | AT33: ='UI & Overgenomen Netten'!AT$844 -> 0 | AU33: ='UI & Overgenomen Netten'!AU$844 -> 0 | AV33: ='UI & Overgenomen Netten'!AV$844 -> 0 | AW33: ='UI & Overgenomen Netten'!AW$844 -> 0 | AX33: ='UI & Overgenomen Netten'!AX$844 -> 0 | AY33: ='UI & Overgenomen Netten'!AY$844 -> 0 | AZ33: ='UI & Overgenomen Netten'!AZ$844 -> 0 | BA33: ='UI & Overgenomen Netten'!BA$844 -> 0 | BB33: ='UI & Overgenomen Netten'!BB$844 -> 0 | BC33: ='UI & Overgenomen Netten'!BC$844 -> 0 | BD33: ='UI & Overgenomen Netten'!BD$844 -> 0 | BE33: ='UI & Overgenomen Netten'!BE$844 -> 0 | BF33: ='UI & Overgenomen Netten'!BF$844 -> 0 | BG33: ='UI & Overgenomen Netten'!BG$844 -> 0 | BH33: ='UI & Overgenomen Netten'!BH$844 -> 0 | BI33: ='UI & Overgenomen Netten'!BI$844 -> 0 | BJ33: ='UI & Overgenomen Netten'!BJ$844 -> 0 | BK33: ='UI & Overgenomen Netten'!BK$844 -> 0 | BL33: ='UI & Overgenomen Netten'!BL$844 -> 0 | BM33: ='UI & Overgenomen Netten'!BM$844 -> 0 | BN33: ='UI & Overgenomen Netten'!BN$844 -> 0 | BO33: ='UI & Overgenomen Netten'!BO$844 -> 0 | BP33: ='UI & Overgenomen Netten'!BP$844 -> 0 | BQ33: ='UI & Overgenomen Netten'!BQ$844 -> 0 | BR33: ='UI & Overgenomen Netten'!BR$844 -> 0 | BS33: ='UI & Overgenomen Netten'!BS$844 -> 0 | BT33: ='UI & Overgenomen Netten'!BT$844 -> 0 | BU33: ='UI & Overgenomen Netten'!BU$844 -> 0 | BV33: ='UI & Overgenomen Netten'!BV$844 -> 0 | BW33: ='UI & Overgenomen Netten'!BW$844 -> 0 | BX33: ='UI & Overgenomen Netten'!BX$844 -> 0 | BY33: ='UI & Overgenomen Netten'!BY$844 -> 0 | BZ33: ='UI & Overgenomen Netten'!BZ$844 -> 0 | CA33: ='UI & Overgenomen Netten'!CA$844 -> 0 | CB33: ='UI & Overgenomen Netten'!CB$844 -> 0 | CC33: ='UI & Overgenomen Netten'!CC$844 -> 0 | CD33: ='UI & Overgenomen Netten'!CD$844 -> 0 | CE33: ='UI & Overgenomen Netten'!CE$844 -> 0 | CF33: ='UI & Overgenomen Netten'!CF$844 -> 0 | CG33: ='UI & Overgenomen Netten'!CG$844 -> 0 | CH33: ='UI & Overgenomen Netten'!CH$844 -> 0 | CI33: ='UI & Overgenomen Netten'!CI$844 -> 0 | CJ33: ='UI & Overgenomen Netten'!CJ$844 -> 0 | CK33: ='UI & Overgenomen Netten'!CK$844 -> 0 | CL33: ='UI & Overgenomen Netten'!CL$844 -> 0
E34: ='UI & Overgenomen Netten'!E$831 -> Afschrijvingen overgenomen netten | F34: ='UI & Overgenomen Netten'!F$831 -> 0 | G34: ='UI & Overgenomen Netten'!G$831 -> 0 | H34: ='UI & Overgenomen Netten'!H$831 -> € | I34: ='UI & Overgenomen Netten'!I$831 -> 0 | J34: ='UI & Overgenomen Netten'!J$831 -> 0 | K34: ='UI & Overgenomen Netten'!K$831 -> 0 | L34: ='UI & Overgenomen Netten'!L$831 -> 0 | M34: ='UI & Overgenomen Netten'!M$831 -> 0 | N34: ='UI & Overgenomen Netten'!N$831 -> 0 | O34: ='UI & Overgenomen Netten'!O$831 -> 0 | P34: ='UI & Overgenomen Netten'!P$831 -> 0 | Q34: ='UI & Overgenomen Netten'!Q$831 -> 0 | R34: ='UI & Overgenomen Netten'!R$831 -> 0 | S34: ='UI & Overgenomen Netten'!S$831 -> 0 | T34: ='UI & Overgenomen Netten'!T$831 -> 0 | U34: ='UI & Overgenomen Netten'!U$831 -> 0 | V34: ='UI & Overgenomen Netten'!V$831 -> 0 | W34: ='UI & Overgenomen Netten'!W$831 -> 0 | X34: ='UI & Overgenomen Netten'!X$831 -> 0 | Y34: ='UI & Overgenomen Netten'!Y$831 -> 0 | Z34: ='UI & Overgenomen Netten'!Z$831 -> 0 | AA34: ='UI & Overgenomen Netten'!AA$831 -> 0 | AB34: ='UI & Overgenomen Netten'!AB$831 -> 0 | AC34: ='UI & Overgenomen Netten'!AC$831 -> 0 | AD34: ='UI & Overgenomen Netten'!AD$831 -> 0 | AE34: ='UI & Overgenomen Netten'!AE$831 -> 0 | AF34: ='UI & Overgenomen Netten'!AF$831 -> 0 | AG34: ='UI & Overgenomen Netten'!AG$831 -> 0 | AH34: ='UI & Overgenomen Netten'!AH$831 -> 0 | AI34: ='UI & Overgenomen Netten'!AI$831 -> 0 | AJ34: ='UI & Overgenomen Netten'!AJ$831 -> 0 | AK34: ='UI & Overgenomen Netten'!AK$831 -> 0 | AL34: ='UI & Overgenomen Netten'!AL$831 -> 0 | AM34: ='UI & Overgenomen Netten'!AM$831 -> 0 | AN34: ='UI & Overgenomen Netten'!AN$831 -> 0 | AO34: ='UI & Overgenomen Netten'!AO$831 -> 0 | AP34: ='UI & Overgenomen Netten'!AP$831 -> 0 | AQ34: ='UI & Overgenomen Netten'!AQ$831 -> 0 | AR34: ='UI & Overgenomen Netten'!AR$831 -> 0 | AS34: ='UI & Overgenomen Netten'!AS$831 -> 0 | AT34: ='UI & Overgenomen Netten'!AT$831 -> 0 | AU34: ='UI & Overgenomen Netten'!AU$831 -> 0 | AV34: ='UI & Overgenomen Netten'!AV$831 -> 0 | AW34: ='UI & Overgenomen Netten'!AW$831 -> 0 | AX34: ='UI & Overgenomen Netten'!AX$831 -> 0 | AY34: ='UI & Overgenomen Netten'!AY$831 -> 0 | AZ34: ='UI & Overgenomen Netten'!AZ$831 -> 0 | BA34: ='UI & Overgenomen Netten'!BA$831 -> 0 | BB34: ='UI & Overgenomen Netten'!BB$831 -> 0 | BC34: ='UI & Overgenomen Netten'!BC$831 -> 0 | BD34: ='UI & Overgenomen Netten'!BD$831 -> 0 | BE34: ='UI & Overgenomen Netten'!BE$831 -> 0 | BF34: ='UI & Overgenomen Netten'!BF$831 -> 0 | BG34: ='UI & Overgenomen Netten'!BG$831 -> 0 | BH34: ='UI & Overgenomen Netten'!BH$831 -> 0 | BI34: ='UI & Overgenomen Netten'!BI$831 -> 0 | BJ34: ='UI & Overgenomen Netten'!BJ$831 -> 0 | BK34: ='UI & Overgenomen Netten'!BK$831 -> 0 | BL34: ='UI & Overgenomen Netten'!BL$831 -> 0 | BM34: ='UI & Overgenomen Netten'!BM$831 -> 0 | BN34: ='UI & Overgenomen Netten'!BN$831 -> 0 | BO34: ='UI & Overgenomen Netten'!BO$831 -> 0 | BP34: ='UI & Overgenomen Netten'!BP$831 -> 0 | BQ34: ='UI & Overgenomen Netten'!BQ$831 -> 0 | BR34: ='UI & Overgenomen Netten'!BR$831 -> 0 | BS34: ='UI & Overgenomen Netten'!BS$831 -> 0 | BT34: ='UI & Overgenomen Netten'!BT$831 -> 0 | BU34: ='UI & Overgenomen Netten'!BU$831 -> 0 | BV34: ='UI & Overgenomen Netten'!BV$831 -> 0 | BW34: ='UI & Overgenomen Netten'!BW$831 -> 0 | BX34: ='UI & Overgenomen Netten'!BX$831 -> 0 | BY34: ='UI & Overgenomen Netten'!BY$831 -> 0 | BZ34: ='UI & Overgenomen Netten'!BZ$831 -> 0 | CA34: ='UI & Overgenomen Netten'!CA$831 -> 0 | CB34: ='UI & Overgenomen Netten'!CB$831 -> 0 | CC34: ='UI & Overgenomen Netten'!CC$831 -> 0 | CD34: ='UI & Overgenomen Netten'!CD$831 -> 0 | CE34: ='UI & Overgenomen Netten'!CE$831 -> 0 | CF34: ='UI & Overgenomen Netten'!CF$831 -> 0 | CG34: ='UI & Overgenomen Netten'!CG$831 -> 0 | CH34: ='UI & Overgenomen Netten'!CH$831 -> 0 | CI34: ='UI & Overgenomen Netten'!CI$831 -> 0 | CJ34: ='UI & Overgenomen Netten'!CJ$831 -> 0 | CK34: ='UI & Overgenomen Netten'!CK$831 -> 0 | CL34: ='UI & Overgenomen Netten'!CL$831 -> 0
E35: ='UI & Overgenomen Netten'!E$818 -> Boekwaarde overgenomen netten | F35: ='UI & Overgenomen Netten'!F$818 -> 0 | G35: ='UI & Overgenomen Netten'!G$818 -> 0 | H35: ='UI & Overgenomen Netten'!H$818 -> € | I35: ='UI & Overgenomen Netten'!I$818 -> 0 | J35: ='UI & Overgenomen Netten'!J$818 -> 0 | K35: ='UI & Overgenomen Netten'!K$818 -> 0 | L35: ='UI & Overgenomen Netten'!L$818 -> 0 | M35: ='UI & Overgenomen Netten'!M$818 -> 0 | N35: ='UI & Overgenomen Netten'!N$818 -> 0 | O35: ='UI & Overgenomen Netten'!O$818 -> 0 | P35: ='UI & Overgenomen Netten'!P$818 -> 0 | Q35: ='UI & Overgenomen Netten'!Q$818 -> 0 | R35: ='UI & Overgenomen Netten'!R$818 -> 0 | S35: ='UI & Overgenomen Netten'!S$818 -> 0 | T35: ='UI & Overgenomen Netten'!T$818 -> 0 | U35: ='UI & Overgenomen Netten'!U$818 -> 0 | V35: ='UI & Overgenomen Netten'!V$818 -> 0 | W35: ='UI & Overgenomen Netten'!W$818 -> 0 | X35: ='UI & Overgenomen Netten'!X$818 -> 0 | Y35: ='UI & Overgenomen Netten'!Y$818 -> 0 | Z35: ='UI & Overgenomen Netten'!Z$818 -> 0 | AA35: ='UI & Overgenomen Netten'!AA$818 -> 0 | AB35: ='UI & Overgenomen Netten'!AB$818 -> 0 | AC35: ='UI & Overgenomen Netten'!AC$818 -> 0 | AD35: ='UI & Overgenomen Netten'!AD$818 -> 0 | AE35: ='UI & Overgenomen Netten'!AE$818 -> 0 | AF35: ='UI & Overgenomen Netten'!AF$818 -> 0 | AG35: ='UI & Overgenomen Netten'!AG$818 -> 0 | AH35: ='UI & Overgenomen Netten'!AH$818 -> 0 | AI35: ='UI & Overgenomen Netten'!AI$818 -> 0 | AJ35: ='UI & Overgenomen Netten'!AJ$818 -> 0 | AK35: ='UI & Overgenomen Netten'!AK$818 -> 0 | AL35: ='UI & Overgenomen Netten'!AL$818 -> 0 | AM35: ='UI & Overgenomen Netten'!AM$818 -> 0 | AN35: ='UI & Overgenomen Netten'!AN$818 -> 0 | AO35: ='UI & Overgenomen Netten'!AO$818 -> 0 | AP35: ='UI & Overgenomen Netten'!AP$818 -> 0 | AQ35: ='UI & Overgenomen Netten'!AQ$818 -> 0 | AR35: ='UI & Overgenomen Netten'!AR$818 -> 0 | AS35: ='UI & Overgenomen Netten'!AS$818 -> 0 | AT35: ='UI & Overgenomen Netten'!AT$818 -> 0 | AU35: ='UI & Overgenomen Netten'!AU$818 -> 0 | AV35: ='UI & Overgenomen Netten'!AV$818 -> 0 | AW35: ='UI & Overgenomen Netten'!AW$818 -> 0 | AX35: ='UI & Overgenomen Netten'!AX$818 -> 0 | AY35: ='UI & Overgenomen Netten'!AY$818 -> 0 | AZ35: ='UI & Overgenomen Netten'!AZ$818 -> 0 | BA35: ='UI & Overgenomen Netten'!BA$818 -> 0 | BB35: ='UI & Overgenomen Netten'!BB$818 -> 0 | BC35: ='UI & Overgenomen Netten'!BC$818 -> 0 | BD35: ='UI & Overgenomen Netten'!BD$818 -> 0 | BE35: ='UI & Overgenomen Netten'!BE$818 -> 0 | BF35: ='UI & Overgenomen Netten'!BF$818 -> 0 | BG35: ='UI & Overgenomen Netten'!BG$818 -> 0 | BH35: ='UI & Overgenomen Netten'!BH$818 -> 0 | BI35: ='UI & Overgenomen Netten'!BI$818 -> 0 | BJ35: ='UI & Overgenomen Netten'!BJ$818 -> 0 | BK35: ='UI & Overgenomen Netten'!BK$818 -> 0 | BL35: ='UI & Overgenomen Netten'!BL$818 -> 0 | BM35: ='UI & Overgenomen Netten'!BM$818 -> 0 | BN35: ='UI & Overgenomen Netten'!BN$818 -> 0 | BO35: ='UI & Overgenomen Netten'!BO$818 -> 0 | BP35: ='UI & Overgenomen Netten'!BP$818 -> 0 | BQ35: ='UI & Overgenomen Netten'!BQ$818 -> 0 | BR35: ='UI & Overgenomen Netten'!BR$818 -> 0 | BS35: ='UI & Overgenomen Netten'!BS$818 -> 0 | BT35: ='UI & Overgenomen Netten'!BT$818 -> 0 | BU35: ='UI & Overgenomen Netten'!BU$818 -> 0 | BV35: ='UI & Overgenomen Netten'!BV$818 -> 0 | BW35: ='UI & Overgenomen Netten'!BW$818 -> 0 | BX35: ='UI & Overgenomen Netten'!BX$818 -> 0 | BY35: ='UI & Overgenomen Netten'!BY$818 -> 0 | BZ35: ='UI & Overgenomen Netten'!BZ$818 -> 0 | CA35: ='UI & Overgenomen Netten'!CA$818 -> 0 | CB35: ='UI & Overgenomen Netten'!CB$818 -> 0 | CC35: ='UI & Overgenomen Netten'!CC$818 -> 0 | CD35: ='UI & Overgenomen Netten'!CD$818 -> 0 | CE35: ='UI & Overgenomen Netten'!CE$818 -> 0 | CF35: ='UI & Overgenomen Netten'!CF$818 -> 0 | CG35: ='UI & Overgenomen Netten'!CG$818 -> 0 | CH35: ='UI & Overgenomen Netten'!CH$818 -> 0 | CI35: ='UI & Overgenomen Netten'!CI$818 -> 0 | CJ35: ='UI & Overgenomen Netten'!CJ$818 -> 0 | CK35: ='UI & Overgenomen Netten'!CK$818 -> 0 | CL35: ='UI & Overgenomen Netten'!CL$818 -> 0
E37: Totalen
E38: Investeringsbedrag boekjaar | H38: € | K38: =SUM( K33, K28, K23, K18, K13 ) -> 49112420.83 | L38: =SUM( L33, L28, L23, L18, L13 ) -> 4068000 | M38: 3263000 | N38: 1676000 | O38: 625000 | P38: 1075000 | Q38: 266000 | R38: 2205000 | S38: 2383000 | T38: 3384000 | U38: 2782000 | V38: 4705325.57 | W38: 3879809 | X38: 0 | Y38: 0 | Z38: 0 | AA38: 0 | AB38: 0 | AC38: 0 | AD38: 0 | AE38: 0 | AF38: 0 | AG38: 0 | AH38: 0 | AI38: 0 | AJ38: 0 | AK38: 0 | AL38: 0 | AM38: 0 | AN38: 0 | AO38: 0 | AP38: 0 | AQ38: 0 | AR38: 0 | AS38: 0 | AT38: 0 | AU38: 0 | AV38: 0 | AW38: 0 | AX38: 0 | AY38: 0 | AZ38: 0 | BA38: 0 | BB38: 0 | BC38: 0 | BD38: 0 | BE38: 0 | BF38: 0 | BG38: 0 | BH38: 0 | BI38: 0 | BJ38: 0 | BK38: 0 | BL38: 0 | BM38: 0 | BN38: 0 | BO38: 0 | BP38: 0 | BQ38: 0 | BR38: 0 | BS38: 0 | BT38: 0 | BU38: 0 | BV38: 0 | BW38: 0 | BX38: =SUM( BX33, BX28, BX23, BX18, BX13 ) -> 0 | BY38: 0 | BZ38: 0 | CA38: 0 | CB38: 0 | CC38: 0 | CD38: 0 | CE38: 0 | CF38: 0 | CG38: 0 | CH38: 0 | CI38: 0 | CJ38: 0 | CK38: 0 | CL38: 0
E39: Afschrijvingen | H39: € | K39: =SUM( K34, K29, K24, K19, K14 ) -> 0 | L39: 2707158.878 | M39: 2908421.466 | N39: 3065273.064 | O39: 3154080.058 | P39: 3205829.021 | Q39: 3277334.994 | R39: 3350368.014 | S39: 3435764.407 | T39: 3607233.681 | U39: 3684890.397 | V39: 2847581.777 | W39: 3016530.903 | X39: 3128814.716 | Y39: 3128814.716 | Z39: 3128814.716 | AA39: 3128814.716 | AB39: 3128814.716 | AC39: 3128814.716 | AD39: 3128814.716 | AE39: 3128814.716 | AF39: 3128814.716 | AG39: 3128814.716 | AH39: 2418880.58 | AI39: 731127.9086 | AJ39: 731127.9086 | AK39: 731127.9086 | AL39: 731127.9086 | AM39: 731127.9086 | AN39: 731127.9086 | AO39: 731127.9086 | AP39: 731127.9086 | AQ39: 731127.9086 | AR39: 731127.9086 | AS39: 731127.9086 | AT39: 731127.9086 | AU39: 731127.9086 | AV39: 731127.9086 | AW39: 731127.9086 | AX39: 730451.1678 | AY39: 726613.9126 | AZ39: 698031.6875 | BA39: 641843.5001 | BB39: 635666.3693 | BC39: 627816.7407 | BD39: 626978.5857 | BE39: 625113.9331 | BF39: 614583.0373 | BG39: 600906.6616 | BH39: 584510.3735 | BI39: 563931.0295 | BJ39: 455201.6105 | BK39: 373470.9044 | BL39: 322042.5204 | BM39: 304612.5204 | BN39: 288342.5204 | BO39: 276392.5204 | BP39: 259272.5204 | BQ39: 223312.5204 | BR39: 178392.5204 | BS39: 134552.5204 | BT39: 83581.4402 | BU39: 25560.18 | BV39: 0 | BW39: 0 | BX39: 0 | BY39: 0 | BZ39: 0 | CA39: 0 | CB39: 0 | CC39: 0 | CD39: 0 | CE39: 0 | CF39: 0 | CG39: 0 | CH39: 0 | CI39: 0 | CJ39: 0 | CK39: 0 | CL39: 0
E40: Boekwaarde | H40: € | K40: 49112420.83 | L40: =SUM( L35, L30, L25, L20, L15 ) -> 51701072.47 | M40: 54485601.41 | N40: 54894353.2 | O40: 53518054.56 | P40: 51975924.13 | Q40: 49900155.77 | R40: 49453389.94 | S40: 48944612.82 | T40: 50287606.75 | U40: 49535579.18 | V40: 52136356.66 | W40: 54355180.03 | X40: 52476534.45 | Y40: 49347719.74 | Z40: 46218905.02 | AA40: 43090090.3 | AB40: 39961275.59 | AC40: 36832460.87 | AD40: 33703646.16 | AE40: 30574831.44 | AF40: 27446016.73 | AG40: 24317202.01 | AH40: 21898321.43 | AI40: 21167193.52 | AJ40: 20436065.61 | AK40: 19704937.7 | AL40: 18973809.8 | AM40: 18242681.89 | AN40: 17511553.98 | AO40: 16780426.07 | AP40: 16049298.16 | AQ40: 15318170.25 | AR40: 14587042.34 | AS40: 13855914.44 | AT40: 13124786.53 | AU40: 12393658.62 | AV40: 11662530.71 | AW40: 10931402.8 | AX40: 10200951.63 | AY40: 9474337.721 | AZ40: 8776306.033 | BA40: 8134462.533 | BB40: 7498796.164 | BC40: 6870979.423 | BD40: 6244000.837 | BE40: 5618886.904 | BF40: 5004303.867 | BG40: 4403397.205 | BH40: 3818886.832 | BI40: 3254955.802 | BJ40: 2572017.688 | BK40: 2198546.783 | BL40: 1876504.263 | BM40: 1571891.743 | BN40: 1283549.222 | BO40: 1007156.702 | BP40: 747884.1814 | BQ40: 524571.661 | BR40: 346179.1406 | BS40: 211626.6202 | BT40: 128045.18 | BU40: 102485 | BV40: 102485 | BW40: 102485 | BX40: 102485 | BY40: 102485 | BZ40: 102485 | CA40: 102485 | CB40: 102485 | CC40: 102485 | CD40: 102485 | CE40: 102485 | CF40: 102485 | CG40: 102485 | CH40: 102485 | CI40: 102485 | CJ40: 102485 | CK40: 102485 | CL40: 102485
D62: * | E62: ="Waardes vanaf " & InpC!G72 & " zijn niet geïndexeerd." -> Waardes vanaf 2050 zijn niet geïndexeerd.
E63: Alle bedragen in dit dashboard zijn in het prijspeil van de genoemde jaren en boekwaardes per ultimo boekjaar.
E64: ="Desinvesteringen en waardeverminderingen worden bovenstaand niet gerapporteerd, maar zijn wel meegenomen in de berekening t/m " & InpC!G45 & "." -> Desinvesteringen en waardeverminderingen worden bovenstaand niet gerapporteerd, maar zijn wel meegenomen in de berekening t/m 2009.

Sheet Dashboard Boekjaar
L2: Kapitaalkosten Regionale Netbeheerders Elektriciteit
L5: Boekjaar: | N5: 2012
B9: Overzicht Activa Waarde Netbeheerders Voor Geselecteerd Boekjaar*
E11: Boekjaar: 2012 | K11: Sector Totaal | L11: Cogas | M11: Delta Excl HS | N11: Endinet | O11: Enexis Excl HS | P11: Liander Excl HS | Q11: Rendo | R11: Stedin | S11: Westland
E12: Start-GAW (excl. bijzonderheden)
E13: =GAW!E$90 -> Investeringsbedrag boekjaar Start-GAW | J13: € | K13: =SUM( L13:BI13 ) -> 0 | L13: 0 | M13: 0 | N13: 0 | O13: 0 | P13: 0 | Q13: 0 | R13: 0 | S13: 0
E14: =Indexatie!E$17 -> Afschrijvingen Start-GAW | J14: € | K14: 373418686 | L14: 2343779.87 | M14: 9777971.35 | N14: 5882972.818 | O14: 133029424.8 | P14: 116163722.9 | Q14: 1847261.432 | R14: 100536272.7 | S14: 3837280.155
E15: =Indexatie!E$13 -> Boekwaarde Start-GAW | J15: € | K15: 6337193479 | L15: 25087605.81 | M15: 112495282 | N15: 60144440.47 | O15: 2152489833 | P15: 2295122303 | Q15: 12573886.94 | R15: 1602297168 | S15: 76982958.73
E17: Nieuwe Investeringen (excl. bijzonderheden)
E18: =Indexatie!E$388 -> Investeringsbedrag boekjaar | J18: € | K18: 649878194.7 | L18: 3879809 | M18: 21683458.13 | N18: 7186733.563 | O18: 224287714.2 | P18: 191852407.9 | Q18: 1513958.19 | R18: 192162981.7 | S18: 7311132.089
E19: =Indexatie!E$341 -> Afschrijvingen | J19: € | K19: 130120461.8 | L19: 672751.0327 | M19: 4331475.112 | N19: 1568936.75 | O19: 55916397.08 | P19: 28273401.34 | Q19: 883125.7675 | R19: 33771679.39 | S19: 4702695.356
E20: =Indexatie!E$301 -> Boekwaarde | J20: € | K20: 4096444228 | L20: 29267574.22 | M20: 138466795.7 | N20: 39207581.39 | O20: 1313687836 | P20: 1134328787 | Q20: 20719545.4 | R20: 1253585457 | S20: 167180651.7
E22: Bijzonderheid: precario
E23: =GAW!E$94 -> Investeringsbedrag boekjaar precario | J23: € | K23: =SUM( L23:BI23 ) -> 0 | L23: 0 | M23: 0 | N23: 0 | O23: 0 | P23: 0 | Q23: 0 | R23: 0 | S23: 0
E24: =Indexatie!E$25 -> Afschrijvingen precario | J24: € | K24: =SUM( L24:BI24 ) -> 658970.5759 | L24: 0 | M24: 0 | N24: 0 | O24: 0 | P24: 0 | Q24: 658970.5759 | R24: 0 | S24: 0
E25: =Indexatie!E$21 -> Boekwaarde precario | J25: € | K25: =SUM( L25:BI25 ) -> 3953823.456 | L25: -3.147082486e-09 | M25: 0 | N25: 0 | O25: 0 | P25: 0 | Q25: 3953823.456 | R25: 0 | S25: 0
E27: Bijzonderheid: UI's
E28: ='UI & Overgenomen Netten'!E$836 -> Investeringsbedrag UI's | J28: € | K28: =SUM( L28:BI28 ) -> 0 | L28: 0 | M28: 0 | N28: 0 | O28: 0 | P28: 0 | Q28: 0 | R28: 0 | S28: 0
E29: ='UI & Overgenomen Netten'!E$823 -> Afschrijvingen UI's | J29: € | K29: =SUM( L29:BI29 ) -> 237357.4561 | L29: 0 | M29: 237357.4561 | N29: 0 | O29: 0 | P29: 0 | Q29: 0 | R29: 0 | S29: 0
E30: ='UI & Overgenomen Netten'!E$810 -> Boekwaarde UI's | J30: € | K30: =SUM( L30:BI30 ) -> 9575662.629 | L30: 0 | M30: 9575662.629 | N30: 0 | O30: 0 | P30: 0 | Q30: 0 | R30: 0 | S30: 0
E32: Bijzonderheid: overgenomen netten
E33: ='UI & Overgenomen Netten'!E$844 -> Investeringsbedrag overgenomen netten | J33: € | K33: =SUM( L33:BI33 ) -> 6392086.8 | L33: 0 | M33: 1030000 | N33: 0 | O33: 279304.8 | P33: 5082782 | Q33: 0 | R33: 0 | S33: 0
E34: ='UI & Overgenomen Netten'!E$831 -> Afschrijvingen overgenomen netten | J34: € | K34: =SUM( L34:BI34 ) -> 1582403.521 | L34: 0 | M34: 51500 | N34: 0 | O34: 4706.096 | P34: 206283.2111 | Q34: 0 | R34: 1319914.214 | S34: 0
E35: ='UI & Overgenomen Netten'!E$818 -> Boekwaarde overgenomen netten | J35: € | K35: =SUM( L35:BI35 ) -> 26208726.17 | L35: 0 | M35: 978500 | N35: 0 | O35: 274598.704 | P35: 4876498.789 | Q35: 0 | R35: 20079128.68 | S35: 0
E37: Totalen
E38: Investeringsbedrag boekjaar | J38: € | K38: =SUM( K13, K18, K23, K28, K33) -> 656270281.5 | L38: 3879809 | M38: 22713458.13 | N38: 7186733.563 | O38: 224567019 | P38: 196935189.9 | Q38: 1513958.19 | R38: 192162981.7 | S38: 7311132.089
E39: Afschrijvingen | J39: € | K39: =SUM( K14, K19, K24, K29, K34) -> 506017879.4 | L39: 3016530.903 | M39: 14398303.92 | N39: 7451909.568 | O39: 188950527.9 | P39: 144643407.4 | Q39: 3389357.776 | R39: 135627866.3 | S39: 8539975.511
E40: Boekwaarde | J40: € | K40: =SUM( K15, K20, K25, K30, K35) -> 1.047337592e+10 | L40: 54355180.03 | M40: 261516240.3 | N40: 99352021.86 | O40: 3466452268 | P40: 3434327588 | Q40: 37247255.8 | R40: 2875961754 | S40: 244163610.4
D43: * | E43: ="Waardes vanaf " & InpC!G72 & " zijn niet geïndexeerd." -> Waardes vanaf 2050 zijn niet geïndexeerd.
E44: Alle bedragen in dit dashboard zijn in het prijspeil van het genoemde jaar en boekwaardes per ultimo boekjaar.
E45: ="Desinvesteringen en waardeverminderingen worden bovenstaand niet gerapporteerd, maar zijn wel meegenomen in berekeningen t/m " & InpC!G45 & "." -> Desinvesteringen en waardeverminderingen worden bovenstaand niet gerapporteerd, maar zijn wel meegenomen in berekeningen t/m 2009.

Sheet InpC
A1: =RIGHT(CELL("filename", A1), LEN(CELL("filename", A1)) - SEARCH("]", CELL("filename", A1))) -> InpC
E2: =Tijd!E$2 -> Actieve netbeheerder | G2: =Tijd!G$2 -> Cogas
E3: =Tijd!E$3 -> Actieve inputsheet | G3: =Tijd!G$3 -> InpCogas
E4: =Tijd!E$4 -> Modelperiode | G4: =Check!G4 -> 0 | H4: =Check!H4 -> errors
E5: =Tijd!E$5 -> Looptijd vs Uitlooptijd | G5: =Check!G5 -> 0 | H5: =Check!H5 -> waarschuwingen
E6: =Tijd!E$10 -> Model kolom teller | F6: Bron | G6: Constante | H6: Eenheid | I6: Totaal
A8: ALGEMEEN
E9: Actieve netbeheerder | G9: ='Dashboard Netbeheerder'!O4 -> Cogas | H9: beheerder
E10: Indirect column key (language switch) | F10: macro | G10: K | H10: letter
A12: TIMING
E13: Start datum | G13: 2000 | H13: jaartal
E14: Jaren per periode | G14: 1 | H14: jaren
E15: Looptijd | G15: 50 | H15: jaar
E17: [Rij niet verwijderen]
E18: Beginjaar investeringen 2000 - Start GAW | G18: 2000 | H18: jaartal
E19: Beginjaar investeringen 2001 | G19: 2001 | H19: jaartal
E20: Beginjaar investeringen 2002 | G20: 2002 | H20: jaartal
E21: Beginjaar investeringen 2003 | G21: 2003 | H21: jaartal
E22: Beginjaar investeringen 2004 | G22: 2004 | H22: jaartal
E23: Beginjaar investeringen 2005 | G23: 2005 | H23: jaartal
E24: Beginjaar investeringen 2006 | G24: 2006 | H24: jaartal
E25: Beginjaar investeringen 2007 | G25: 2007 | H25: jaartal
E26: Beginjaar investeringen 2008 | G26: 2008 | H26: jaartal
E27: Beginjaar investeringen 2009 | G27: 2009 | H27: jaartal
E28: Beginjaar investeringen 2010 | G28: 2010 | H28: jaartal
E29: Beginjaar investeringen 2011 | G29: 2011 | H29: jaartal
E30: Beginjaar investeringen 2012 | G30: 2012 | H30: jaartal
E31: Beginjaar investeringen 2013 | G31: 2013 | H31: jaartal
E32: Beginjaar investeringen 2014 | G32: 2014 | H32: jaartal
E33: Beginjaar investeringen 2015 | G33: 2015 | H33: jaartal
E34: Beginjaar investeringen 2016 | G34: 2016 | H34: jaartal
E35: Beginjaar investeringen 2017 | G35: 2017 | H35: jaartal
E36: Beginjaar investeringen 2018 | G36: 2018 | H36: jaartal
E37: Beginjaar investeringen 2019 | G37: 2019 | H37: jaartal
E38: Beginjaar investeringen 2020 | G38: 2020 | H38: jaartal
E39: [Rij niet verwijderen]
A42: AFSCHRIJVINGSTERMIJNEN
C43: Algemeen
E44: Handmatig afschrijven t/m | G44: 2006 | H44: jaartal
E45: Bijz. waardeverminderingen en desinvesteringen t/m | G45: 2009 | H45: jaartal
C47: Investeringsjaren 2001-2050
E48: Afschrijvingsduur 50 jaar | G48: 50 | H48: jaar
E49: Afschrijvingsduur 40 jaar | G49: 40 | H49: jaar
E50: Afschrijvingsduur 30 jaar | G50: 30 | H50: jaar
E51: Afschrijvingsduur 25 jaar | G51: 25 | H51: jaar
E52: Afschrijvingsduur 20 jaar | G52: 20 | H52: jaar
E53: Afschrijvingsduur 10 jaar | G53: 10 | H53: jaar
E54: Afschrijvingsduur 5 jaar | G54: 5 | H54: jaar
E55: Afschrijvingsduur 3 jaar | G55: 3 | H55: jaar
A58: NETBEHEERDERS
E59: [Rij niet verwijderen]
E60: Netbeheerder 1 | G60: Cogas | H60: beheerder
E61: Netbeheerder 2 | G61: Delta Excl HS | H61: beheerder
E62: Netbeheerder 3 | G62: Endinet | H62: beheerder
E63: Netbeheerder 4 | G63: Enexis Excl HS | H63: beheerder
E64: Netbeheerder 5 | G64: Liander Excl HS | H64: beheerder
E65: Netbeheerder 6 | G65: Rendo | H65: beheerder
E66: Netbeheerder 7 | G66: Stedin | H66: beheerder
E67: Netbeheerder 8 | G67: Westland | H67: beheerder
E68: [Rij niet verwijderen]
A71: CPI
E72: Indexeren t/m | G72: 2050 | H72: jaartal
E74: CPI 2001 | F74: CBS | G74: 0.025 | H74: %
E75: CPI 2002 | F75: CBS | G75: 0.047 | H75: %
E76: CPI 2003 | F76: CBS | G76: 0.033 | H76: %
E77: CPI 2004 | F77: CBS | G77: 0.021 | H77: %
E78: CPI 2005 | F78: CBS | G78: 0.011 | H78: %
E79: CPI 2006 | F79: CBS | G79: 0.018 | H79: %
E80: CPI 2007 | F80: CBS | G80: 0.014 | H80: %
E81: CPI 2008 | F81: CBS | G81: 0.011 | H81: %
E82: CPI 2009 | F82: CBS | G82: 0.032 | H82: %
E83: CPI 2010 | F83: CBS | G83: 0.003 | H83: %
E84: CPI 2011 | F84: CBS | G84: 0.015 | H84: %
E85: CPI 2012 | F85: CBS | G85: 0.026 | H85: %
E86: CPI 2013 | F86: CBS | G86: 0.023 | H86: %
E87: CPI 2014 | F87: CBS | H87: %
E88: CPI 2015 | F88: CBS | H88: %
E89: CPI 2016 | F89: CBS | H89: %
E90: CPI 2017 | F90: CBS | H90: %
E91: CPI 2018 | F91: CBS | H91: %
E92: CPI 2019 | F92: CBS | H92: %
E93: CPI 2020 | F93: CBS | H93: %
A96: MODELMATIG
E97: Check Tolerance | G97: 0.0001 | H97: €

Sheet InpCogas
A1: =RIGHT(CELL("filename", A1), LEN(CELL("filename", A1)) - SEARCH("]", CELL("filename", A1))) -> InpCogas
E2: =Tijd!E$2 -> Actieve netbeheerder | G2: =Tijd!G$2 -> Cogas
E3: =Tijd!E$3 -> Actieve inputsheet | G3: =Tijd!G$3 -> InpCogas
E4: =Tijd!E$4 -> Modelperiode | G4: =Check!G4 -> 0 | H4: =Check!H4 -> errors | K4: =Tijd!K$4 -> 2000 | L4: =Tijd!L$4 -> 2001 | M4: =Tijd!M$4 -> 2002 | N4: =Tijd!N$4 -> 2003 | O4: =Tijd!O$4 -> 2004 | P4: =Tijd!P$4 -> 2005 | Q4: =Tijd!Q$4 -> 2006 | R4: =Tijd!R$4 -> 2007 | S4: =Tijd!S$4 -> 2008 | T4: =Tijd!T$4 -> 2009 | U4: =Tijd!U$4 -> 2010 | V4: =Tijd!V$4 -> 2011 | W4: =Tijd!W$4 -> 2012 | X4: =Tijd!X$4 -> 2013 | Y4: =Tijd!Y$4 -> 2014 | Z4: =Tijd!Z$4 -> 2015 | AA4: =Tijd!AA$4 -> 2016 | AB4: =Tijd!AB$4 -> 2017 | AC4: =Tijd!AC$4 -> 2018 | AD4: =Tijd!AD$4 -> 2019 | AE4: =Tijd!AE$4 -> 2020 | AF4: =Tijd!AF$4 -> 2021 | AG4: =Tijd!AG$4 -> 2022 | AH4: =Tijd!AH$4 -> 2023 | AI4: =Tijd!AI$4 -> 2024 | AJ4: =Tijd!AJ$4 -> 2025 | AK4: =Tijd!AK$4 -> 2026 | AL4: =Tijd!AL$4 -> 2027 | AM4: =Tijd!AM$4 -> 2028 | AN4: =Tijd!AN$4 -> 2029 | AO4: =Tijd!AO$4 -> 2030 | AP4: =Tijd!AP$4 -> 2031 | AQ4: =Tijd!AQ$4 -> 2032 | AR4: =Tijd!AR$4 -> 2033 | AS4: =Tijd!AS$4 -> 2034 | AT4: =Tijd!AT$4 -> 2035 | AU4: =Tijd!AU$4 -> 2036 | AV4: =Tijd!AV$4 -> 2037 | AW4: =Tijd!AW$4 -> 2038 | AX4: =Tijd!AX$4 -> 2039 | AY4: =Tijd!AY$4 -> 2040 | AZ4: =Tijd!AZ$4 -> 2041 | BA4: =Tijd!BA$4 -> 2042 | BB4: =Tijd!BB$4 -> 2043 | BC4: =Tijd!BC$4 -> 2044 | BD4: =Tijd!BD$4 -> 2045 | BE4: =Tijd!BE$4 -> 2046 | BF4: =Tijd!BF$4 -> 2047 | BG4: =Tijd!BG$4 -> 2048 | BH4: =Tijd!BH$4 -> 2049 | BI4: =Tijd!BI$4 -> 2050 | BJ4: =Tijd!BJ$4 -> 2051 | BK4: =Tijd!BK$4 -> 2052 | BL4: =Tijd!BL$4 -> 2053 | BM4: =Tijd!BM$4 -> 2054 | BN4: =Tijd!BN$4 -> 2055 | BO4: =Tijd!BO$4 -> 2056 | BP4: =Tijd!BP$4 -> 2057 | BQ4: =Tijd!BQ$4 -> 2058 | BR4: =Tijd!BR$4 -> 2059 | BS4: =Tijd!BS$4 -> 2060 | BT4: =Tijd!BT$4 -> 2061 | BU4: =Tijd!BU$4 -> 2062 | BV4: =Tijd!BV$4 -> 2063 | BW4: =Tijd!BW$4 -> 2064 | BX4: =Tijd!BX$4 -> 2065 | BY4: =Tijd!BY$4 -> 2066 | BZ4: =Tijd!BZ$4 -> 2067 | CA4: =Tijd!CA$4 -> 2068 | CB4: =Tijd!CB$4 -> 2069 | CC4: =Tijd!CC$4 -> 2070 | CD4: =Tijd!CD$4 -> 2071 | CE4: =Tijd!CE$4 -> 2072 | CF4: =Tijd!CF$4 -> 2073 | CG4: =Tijd!CG$4 -> 2074 | CH4: =Tijd!CH$4 -> 2075 | CI4: =Tijd!CI$4 -> 2076 | CJ4: =Tijd!CJ$4 -> 2077 | CK4: =Tijd!CK$4 -> 2078 | CL4: =Tijd!CL$4 -> 2079 | CM4: =Tijd!CM$4 -> 2080 | CN4: =Tijd!CN$4 -> 2081 | CO4: =Tijd!CO$4 -> 2082 | CP4: =Tijd!CP$4 -> 2083 | CQ4: =Tijd!CQ$4 -> 2084 | CR4: =Tijd!CR$4 -> 2085 | CS4: =Tijd!CS$4 -> 2086 | CT4: =Tijd!CT$4 -> 2087 | CU4: =Tijd!CU$4 -> 2088 | CV4: =Tijd!CV$4 -> 2089 | CW4: =Tijd!CW$4 -> 2090 | CX4: =Tijd!CX$4 -> 2091 | CY4: =Tijd!CY$4 -> 2092 | CZ4: =Tijd!CZ$4 -> 2093 | DA4: =Tijd!DA$4 -> 2094 | DB4: =Tijd!DB$4 -> 2095 | DC4: =Tijd!DC$4 -> 2096 | DD4: =Tijd!DD$4 -> 2097 | DE4: =Tijd!DE$4 -> 2098 | DF4: =Tijd!DF$4 -> 2099
E5: =Tijd!E$5 -> Looptijd vs Uitlooptijd | G5: =Check!G5 -> 0 | H5: =Check!H5 -> waarschuwingen | K5: =Tijd!K$5 -> Looptijd | L5: =Tijd!L$5 -> Looptijd | M5: =Tijd!M$5 -> Looptijd | N5: =Tijd!N$5 -> Looptijd | O5: =Tijd!O$5 -> Looptijd | P5: =Tijd!P$5 -> Looptijd | Q5: =Tijd!Q$5 -> Looptijd | R5: =Tijd!R$5 -> Looptijd | S5: =Tijd!S$5 -> Looptijd | T5: =Tijd!T$5 -> Looptijd | U5: =Tijd!U$5 -> Looptijd | V5: =Tijd!V$5 -> Looptijd | W5: =Tijd!W$5 -> Looptijd | X5: =Tijd!X$5 -> Looptijd | Y5: =Tijd!Y$5 -> Looptijd | Z5: =Tijd!Z$5 -> Looptijd | AA5: =Tijd!AA$5 -> Looptijd | AB5: =Tijd!AB$5 -> Looptijd | AC5: =Tijd!AC$5 -> Looptijd | AD5: =Tijd!AD$5 -> Looptijd | AE5: =Tijd!AE$5 -> Looptijd | AF5: =Tijd!AF$5 -> Looptijd | AG5: =Tijd!AG$5 -> Looptijd | AH5: =Tijd!AH$5 -> Looptijd | AI5: =Tijd!AI$5 -> Looptijd | AJ5: =Tijd!AJ$5 -> Looptijd | AK5: =Tijd!AK$5 -> Looptijd | AL5: =Tijd!AL$5 -> Looptijd | AM5: =Tijd!AM$5 -> Looptijd | AN5: =Tijd!AN$5 -> Looptijd | AO5: =Tijd!AO$5 -> Looptijd | AP5: =Tijd!AP$5 -> Looptijd | AQ5: =Tijd!AQ$5 -> Looptijd | AR5: =Tijd!AR$5 -> Looptijd | AS5: =Tijd!AS$5 -> Looptijd | AT5: =Tijd!AT$5 -> Looptijd | AU5: =Tijd!AU$5 -> Looptijd | AV5: =Tijd!AV$5 -> Looptijd | AW5: =Tijd!AW$5 -> Looptijd | AX5: =Tijd!AX$5 -> Looptijd | AY5: =Tijd!AY$5 -> Looptijd | AZ5: =Tijd!AZ$5 -> Looptijd | BA5: =Tijd!BA$5 -> Looptijd | BB5: =Tijd!BB$5 -> Looptijd | BC5: =Tijd!BC$5 -> Looptijd | BD5: =Tijd!BD$5 -> Looptijd | BE5: =Tijd!BE$5 -> Looptijd | BF5: =Tijd!BF$5 -> Looptijd | BG5: =Tijd!BG$5 -> Looptijd | BH5: =Tijd!BH$5 -> Looptijd | BI5: =Tijd!BI$5 -> Looptijd | BJ5: =Tijd!BJ$5 -> Uitlooptijd | BK5: =Tijd!BK$5 -> Uitlooptijd | BL5: =Tijd!BL$5 -> Uitlooptijd | BM5: =Tijd!BM$5 -> Uitlooptijd | BN5: =Tijd!BN$5 -> Uitlooptijd | BO5: =Tijd!BO$5 -> Uitlooptijd | BP5: =Tijd!BP$5 -> Uitlooptijd | BQ5: =Tijd!BQ$5 -> Uitlooptijd | BR5: =Tijd!BR$5 -> Uitlooptijd | BS5: =Tijd!BS$5 -> Uitlooptijd | BT5: =Tijd!BT$5 -> Uitlooptijd | BU5: =Tijd!BU$5 -> Uitlooptijd | BV5: =Tijd!BV$5 -> Uitlooptijd | BW5: =Tijd!BW$5 -> Uitlooptijd | BX5: =Tijd!BX$5 -> Uitlooptijd | BY5: =Tijd!BY$5 -> Uitlooptijd | BZ5: =Tijd!BZ$5 -> Uitlooptijd | CA5: =Tijd!CA$5 -> Uitlooptijd | CB5: =Tijd!CB$5 -> Uitlooptijd | CC5: =Tijd!CC$5 -> Uitlooptijd | CD5: =Tijd!CD$5 -> Uitlooptijd | CE5: =Tijd!CE$5 -> Uitlooptijd | CF5: =Tijd!CF$5 -> Uitlooptijd | CG5: =Tijd!CG$5 -> Uitlooptijd | CH5: =Tijd!CH$5 -> Uitlooptijd | CI5: =Tijd!CI$5 -> Uitlooptijd | CJ5: =Tijd!CJ$5 -> Uitlooptijd | CK5: =Tijd!CK$5 -> Uitlooptijd | CL5: =Tijd!CL$5 -> Uitlooptijd | CM5: =Tijd!CM$5 -> Uitlooptijd | CN5: =Tijd!CN$5 -> Uitlooptijd | CO5: =Tijd!CO$5 -> Uitlooptijd | CP5: =Tijd!CP$5 -> Uitlooptijd | CQ5: =Tijd!CQ$5 -> Uitlooptijd | CR5: =Tijd!CR$5 -> Uitlooptijd | CS5: =Tijd!CS$5 -> Uitlooptijd | CT5: =Tijd!CT$5 -> Uitlooptijd | CU5: =Tijd!CU$5 -> Uitlooptijd | CV5: =Tijd!CV$5 -> Uitlooptijd | CW5: =Tijd!CW$5 -> Uitlooptijd | CX5: =Tijd!CX$5 -> Uitlooptijd | CY5: =Tijd!CY$5 -> Uitlooptijd | CZ5: =Tijd!CZ$5 -> Uitlooptijd | DA5: =Tijd!DA$5 -> Uitlooptijd | DB5: =Tijd!DB$5 -> Uitlooptijd | DC5: =Tijd!DC$5 -> Uitlooptijd | DD5: =Tijd!DD$5 -> Uitlooptijd | DE5: =Tijd!DE$5 -> Uitlooptijd | DF5: =Tijd!DF$5 -> Uitlooptijd
E6: =Tijd!E$10 -> Model kolom teller | F6: Bron | G6: Constante | H6: Eenheid | I6: Totaal | K6: =Tijd!K$10 -> 1 | L6: =Tijd!L$10 -> 2 | M6: =Tijd!M$10 -> 3 | N6: =Tijd!N$10 -> 4 | O6: =Tijd!O$10 -> 5 | P6: =Tijd!P$10 -> 6 | Q6: =Tijd!Q$10 -> 7 | R6: =Tijd!R$10 -> 8 | S6: =Tijd!S$10 -> 9 | T6: =Tijd!T$10 -> 10 | U6: =Tijd!U$10 -> 11 | V6: =Tijd!V$10 -> 12 | W6: =Tijd!W$10 -> 13 | X6: =Tijd!X$10 -> 14 | Y6: =Tijd!Y$10 -> 15 | Z6: =Tijd!Z$10 -> 16 | AA6: =Tijd!AA$10 -> 17 | AB6: =Tijd!AB$10 -> 18 | AC6: =Tijd!AC$10 -> 19 | AD6: =Tijd!AD$10 -> 20 | AE6: =Tijd!AE$10 -> 21 | AF6: =Tijd!AF$10 -> 22 | AG6: =Tijd!AG$10 -> 23 | AH6: =Tijd!AH$10 -> 24 | AI6: =Tijd!AI$10 -> 25 | AJ6: =Tijd!AJ$10 -> 26 | AK6: =Tijd!AK$10 -> 27 | AL6: =Tijd!AL$10 -> 28 | AM6: =Tijd!AM$10 -> 29 | AN6: =Tijd!AN$10 -> 30 | AO6: =Tijd!AO$10 -> 31 | AP6: =Tijd!AP$10 -> 32 | AQ6: =Tijd!AQ$10 -> 33 | AR6: =Tijd!AR$10 -> 34 | AS6: =Tijd!AS$10 -> 35 | AT6: =Tijd!AT$10 -> 36 | AU6: =Tijd!AU$10 -> 37 | AV6: =Tijd!AV$10 -> 38 | AW6: =Tijd!AW$10 -> 39 | AX6: =Tijd!AX$10 -> 40 | AY6: =Tijd!AY$10 -> 41 | AZ6: =Tijd!AZ$10 -> 42 | BA6: =Tijd!BA$10 -> 43 | BB6: =Tijd!BB$10 -> 44 | BC6: =Tijd!BC$10 -> 45 | BD6: =Tijd!BD$10 -> 46 | BE6: =Tijd!BE$10 -> 47 | BF6: =Tijd!BF$10 -> 48 | BG6: =Tijd!BG$10 -> 49 | BH6: =Tijd!BH$10 -> 50 | BI6: =Tijd!BI$10 -> 51 | BJ6: =Tijd!BJ$10 -> 52 | BK6: =Tijd!BK$10 -> 53 | BL6: =Tijd!BL$10 -> 54 | BM6: =Tijd!BM$10 -> 55 | BN6: =Tijd!BN$10 -> 56 | BO6: =Tijd!BO$10 -> 57 | BP6: =Tijd!BP$10 -> 58 | BQ6: =Tijd!BQ$10 -> 59 | BR6: =Tijd!BR$10 -> 60 | BS6: =Tijd!BS$10 -> 61 | BT6: =Tijd!BT$10 -> 62 | BU6: =Tijd!BU$10 -> 63 | BV6: =Tijd!BV$10 -> 64 | BW6: =Tijd!BW$10 -> 65 | BX6: =Tijd!BX$10 -> 66 | BY6: =Tijd!BY$10 -> 67 | BZ6: =Tijd!BZ$10 -> 68 | CA6: =Tijd!CA$10 -> 69 | CB6: =Tijd!CB$10 -> 70 | CC6: =Tijd!CC$10 -> 71 | CD6: =Tijd!CD$10 -> 72 | CE6: =Tijd!CE$10 -> 73 | CF6: =Tijd!CF$10 -> 74 | CG6: =Tijd!CG$10 -> 75 | CH6: =Tijd!CH$10 -> 76 | CI6: =Tijd!CI$10 -> 77 | CJ6: =Tijd!CJ$10 -> 78 | CK6: =Tijd!CK$10 -> 79 | CL6: =Tijd!CL$10 -> 80 | CM6: =Tijd!CM$10 -> 81 | CN6: =Tijd!CN$10 -> 82 | CO6: =Tijd!CO$10 -> 83 | CP6: =Tijd!CP$10 -> 84 | CQ6: =Tijd!CQ$10 -> 85 | CR6: =Tijd!CR$10 -> 86 | CS6: =Tijd!CS$10 -> 87 | CT6: =Tijd!CT$10 -> 88 | CU6: =Tijd!CU$10 -> 89 | CV6: =Tijd!CV$10 -> 90 | CW6: =Tijd!CW$10 -> 91 | CX6: =Tijd!CX$10 -> 92 | CY6: =Tijd!CY$10 -> 93 | CZ6: =Tijd!CZ$10 -> 94 | DA6: =Tijd!DA$10 -> 95 | DB6: =Tijd!DB$10 -> 96 | DC6: =Tijd!DC$10 -> 97 | DD6: =Tijd!DD$10 -> 98 | DE6: =Tijd!DE$10 -> 99 | DF6: =Tijd!DF$10 -> 100
A9: INVESTERINGSJAAR 2000 - START GAW
E10: Startwaarde GAW incl. afgekochte precario (31-12-2000) | G10: 49112420.83 | H10: €
E11: Afschrijvingen Start GAW | G11: 2163170.29 | H11: €
E12: Afgekochte precario in Start GAW (31-12-2000) | G12: 7775439 | H12: €
E13: Afschrijvingsbedrag afgekochte precario | G13: 777543.9 | H13: €
A15: INVESTERINGSJAAR 2001
B17: Investeringen 2001
E18: Aanschafwaarde investeringen 2001 met afschrijvingstermijn 50 | G18: 2721000 | H18: € | I18: =SUM(K18:DF18) -> 0
E19: Aanschafwaarde investeringen 2001 met afschrijvingstermijn 40 | G19: 1340000 | H19: € | I19: 0
E20: Aanschafwaarde investeringen 2001 met afschrijvingstermijn 30 | H20: € | I20: 0
E21: Aanschafwaarde investeringen 2001 met afschrijvingstermijn 25 | H21: € | I21: 0
E22: Aanschafwaarde investeringen 2001 met afschrijvingstermijn 20 | H22: € | I22: 0
E23: Aanschafwaarde investeringen 2001 met afschrijvingstermijn 10 | H23: € | I23: 0
E24: Aanschafwaarde investeringen 2001 met afschrijvingstermijn 5 | H24: € | I24: 0
E25: Aanschafwaarde investeringen 2001 met afschrijvingstermijn 3 | H25: € | I25: 0
E26: Aanschafwaarde investeringen 2001 zonder afschrijvingstermijn | G26: 7000 | H26: € | I26: 0
B28: Desinvesteringen 2001
E29: Desinvesteringen 2001 met afschrijvingstermijn 50 | H29: € | I29: =SUM(K29:DF29) -> 0
E30: Desinvesteringen 2001 met afschrijvingstermijn 40 | H30: € | I30: 0
E31: Desinvesteringen 2001 met afschrijvingstermijn 30 | H31: € | I31: 0
E32: Desinvesteringen 2001 met afschrijvingstermijn 25 | H32: € | I32: 0
E33: Desinvesteringen 2001 met afschrijvingstermijn 20 | H33: € | I33: 0
E34: Desinvesteringen 2001 met afschrijvingstermijn 10 | H34: € | I34: 0
E35: Desinvesteringen 2001 met afschrijvingstermijn 5 | H35: € | I35: 0
E36: Desinvesteringen 2001 met afschrijvingstermijn 3 | H36: € | I36: 0
E37: Desinvesteringen 2001 zonder afschrijvingstermijn | H37: € | I37: 0
B39: Opgegeven Afschrijvingen 2001
E40: Opgegeven afschrijvingen 2001 met afschrijvingstermijn 50 | H40: € | I40: =SUM(K40:DF40) -> 299310 | L40: 27210 | M40: 54420 | N40: 54420 | O40: 54420 | P40: 54420 | Q40: 54420
E41: Opgegeven afschrijvingen 2001 met afschrijvingstermijn 40 | H41: € | I41: 184250 | L41: 16750 | M41: 33500 | N41: 33500 | O41: 33500 | P41: 33500 | Q41: 33500
E42: Opgegeven afschrijvingen 2001 met afschrijvingstermijn 30 | H42: € | I42: 0
E43: Opgegeven afschrijvingen 2001 met afschrijvingstermijn 25 | H43: € | I43: 0
E44: Opgegeven afschrijvingen 2001 met afschrijvingstermijn 20 | H44: € | I44: 0
E45: Opgegeven afschrijvingen 2001 met afschrijvingstermijn 10 | H45: € | I45: 0
E46: Opgegeven afschrijvingen 2001 met afschrijvingstermijn 5 | H46: € | I46: 0
E47: Opgegeven afschrijvingen 2001 met afschrijvingstermijn 3 | H47: € | I47: 0
E48: Opgegeven afschrijvingen 2001 zonder afschrijvingstermijn | H48: € | I48: 0
B50: Opgegeven Cumulatieve Afschrijvingen Bij Desinvesteringen 2001
E51: Opgegeven c.a.d. 2001 met afschrijvingstermijn 50 | H51: € | I51: =SUM(K51:DF51) -> 0
E52: Opgegeven c.a.d. 2001 met afschrijvingstermijn 40 | H52: € | I52: 0
E53: Opgegeven c.a.d. 2001 met afschrijvingstermijn 30 | H53: € | I53: 0
E54: Opgegeven c.a.d. 2001 met afschrijvingstermijn 25 | H54: € | I54: 0
E55: Opgegeven c.a.d. 2001 met afschrijvingstermijn 20 | H55: € | I55: 0
E56: Opgegeven c.a.d. 2001 met afschrijvingstermijn 10 | H56: € | I56: 0
E57: Opgegeven c.a.d. 2001 met afschrijvingstermijn 5 | H57: € | I57: 0
E58: Opgegeven c.a.d. 2001 met afschrijvingstermijn 3 | H58: € | I58: 0
E59: Opgegeven c.a.d. 2001 zonder afschrijvingstermijn | H59: € | I59: 0
B61: Bijzondere Waardeverminderingen Op Activa 2001
E62: Bijzondere waardeverminderingen op activa 2001 met afschrijvingstermijn 50 | H62: € | I62: =SUM(K62:DF62) -> 0
E63: Bijzondere waardeverminderingen op activa 2001 met afschrijvingstermijn 40 | H63: € | I63: 0
E64: Bijzondere waardeverminderingen op activa 2001 met afschrijvingstermijn 30 | H64: € | I64: 0
E65: Bijzondere waardeverminderingen op activa 2001 met afschrijvingstermijn 25 | H65: € | I65: 0
E66: Bijzondere waardeverminderingen op activa 2001 met afschrijvingstermijn 20 | H66: € | I66: 0
E67: Bijzondere waardeverminderingen op activa 2001 met afschrijvingstermijn 10 | H67: € | I67: 0
E68: Bijzondere waardeverminderingen op activa 2001 met afschrijvingstermijn 5 | H68: € | I68: 0
E69: Bijzondere waardeverminderingen op activa 2001 met afschrijvingstermijn 3 | H69: € | I69: 0
E70: Bijzondere waardeverminderingen op activa 2001 zonder afschrijvingstermijn | H70: € | I70: 0
B72: Input Alert
E73: Dummy Beginjaar investeringen
E74: Dummy Modelperiode
E75: Dummy Aantal cellen met onterechte input 2001
E76: Dummy Waarschuwing onterecht ingevulde cellen 2001
A78: INVESTERINGSJAAR 2002
B80: Investeringen 2002
E81: Aanschafwaarde investeringen 2002 met afschrijvingstermijn 50 | G81: 2264000 | H81: € | I81: =SUM(K81:DF81) -> 0
E82: Aanschafwaarde investeringen 2002 met afschrijvingstermijn 40 | G82: 986000 | H82: € | I82: 0
E83: Aanschafwaarde investeringen 2002 met afschrijvingstermijn 30 | H83: € | I83: 0
E84: Aanschafwaarde investeringen 2002 met afschrijvingstermijn 25 | H84: € | I84: 0
E85: Aanschafwaarde investeringen 2002 met afschrijvingstermijn 20 | H85: € | I85: 0
E86: Aanschafwaarde investeringen 2002 met afschrijvingstermijn 10 | H86: € | I86: 0
E87: Aanschafwaarde investeringen 2002 met afschrijvingstermijn 5 | H87: € | I87: 0
E88: Aanschafwaarde investeringen 2002 met afschrijvingstermijn 3 | H88: € | I88: 0
E89: Aanschafwaarde investeringen 2002 zonder afschrijvingstermijn | G89: 13000 | H89: € | I89: 0
B91: Desinvesteringen 2002
E92: Desinvesteringen 2002 met afschrijvingstermijn 50 | H92: € | I92: =SUM(K92:DF92) -> 0
E93: Desinvesteringen 2002 met afschrijvingstermijn 40 | H93: € | I93: 0
E94: Desinvesteringen 2002 met afschrijvingstermijn 30 | H94: € | I94: 0
E95: Desinvesteringen 2002 met afschrijvingstermijn 25 | H95: € | I95: 0
E96: Desinvesteringen 2002 met afschrijvingstermijn 20 | H96: € | I96: 0
E97: Desinvesteringen 2002 met afschrijvingstermijn 10 | H97: € | I97: 0
E98: Desinvesteringen 2002 met afschrijvingstermijn 5 | H98: € | I98: 0
E99: Desinvesteringen 2002 met afschrijvingstermijn 3 | H99: € | I99: 0
E100: Desinvesteringen 2002 zonder afschrijvingstermijn | H100: € | I100: 0
B102: Opgegeven Afschrijvingen 2002
E103: Opgegeven afschrijvingen 2002 met afschrijvingstermijn 50 | H103: € | I103: =SUM(K103:DF103) -> 199250.1301 | M103: 18130.13013 | N103: 45280 | O103: 45280 | P103: 45280 | Q103: 45280
E104: Opgegeven afschrijvingen 2002 met afschrijvingstermijn 40 | H104: € | I104: 108469.8699 | M104: 9869.86987 | N104: 24650 | O104: 24650 | P104: 24650 | Q104: 24650
E105: Opgegeven afschrijvingen 2002 met afschrijvingstermijn 30 | H105: € | I105: 0
E106: Opgegeven afschrijvingen 2002 met afschrijvingstermijn 25 | H106: € | I106: 0
E107: Opgegeven afschrijvingen 2002 met afschrijvingstermijn 20 | H107: € | I107: 0
E108: Opgegeven afschrijvingen 2002 met afschrijvingstermijn 10 | H108: € | I108: 0
E109: Opgegeven afschrijvingen 2002 met afschrijvingstermijn 5 | H109: € | I109: 0
E110: Opgegeven afschrijvingen 2002 met afschrijvingstermijn 3 | H110: € | I110: 0
E111: Opgegeven afschrijvingen 2002 zonder afschrijvingstermijn | H111: € | I111: 0
B113: Opgegeven Cumulatieve Afschrijvingen Bij Desinvesteringen 2002
E114: Opgegeven c.a.d. 2002 met afschrijvingstermijn 50 | H114: € | I114: =SUM(K114:DF114) -> 0
E115: Opgegeven c.a.d. 2002 met afschrijvingstermijn 40 | H115: € | I115: 0
E116: Opgegeven c.a.d. 2002 met afschrijvingstermijn 30 | H116: € | I116: 0
E117: Opgegeven c.a.d. 2002 met afschrijvingstermijn 25 | H117: € | I117: 0
E118: Opgegeven c.a.d. 2002 met afschrijvingstermijn 20 | H118: € | I118: 0
E119: Opgegeven c.a.d. 2002 met afschrijvingstermijn 10 | H119: € | I119: 0
E120: Opgegeven c.a.d. 2002 met afschrijvingstermijn 5 | H120: € | I120: 0
E121: Opgegeven c.a.d. 2002 met afschrijvingstermijn 3 | H121: € | I121: 0
E122: Opgegeven c.a.d. 2002 zonder afschrijvingstermijn | H122: € | I122: 0
B124: Bijzondere Waardeverminderingen Op Activa 2002
E125: Bijzondere waardeverminderingen op activa 2002 met afschrijvingstermijn 50 | H125: € | I125: =SUM(K125:DF125) -> 0
E126: Bijzondere waardeverminderingen op activa 2002 met afschrijvingstermijn 40 | H126: € | I126: 0
E127: Bijzondere waardeverminderingen op activa 2002 met afschrijvingstermijn 30 | H127: € | I127: 0
E128: Bijzondere waardeverminderingen op activa 2002 met afschrijvingstermijn 25 | H128: € | I128: 0
E129: Bijzondere waardeverminderingen op activa 2002 met afschrijvingstermijn 20 | H129: € | I129: 0
E130: Bijzondere waardeverminderingen op activa 2002 met afschrijvingstermijn 10 | H130: € | I130: 0
E131: Bijzondere waardeverminderingen op activa 2002 met afschrijvingstermijn 5 | H131: € | I131: 0
E132: Bijzondere waardeverminderingen op activa 2002 met afschrijvingstermijn 3 | H132: € | I132: 0
E133: Bijzondere waardeverminderingen op activa 2002 zonder afschrijvingstermijn | H133: € | I133: 0
B135: Input Alert
E136: Dummy Beginjaar investeringen
E137: Dummy Modelperiode
E138: Dummy Aantal cellen met onterechte input 2002
E139: Dummy Waarschuwing onterecht ingevulde cellen 2002
A141: INVESTERINGSJAAR 2003
B143: Investeringen 2003
E144: Aanschafwaarde investeringen 2003 met afschrijvingstermijn 50 | G144: 1236000 | H144: € | I144: =SUM(K144:DF144) -> 0
E145: Aanschafwaarde investeringen 2003 met afschrijvingstermijn 40 | G145: 416000 | H145: € | I145: 0
E146: Aanschafwaarde investeringen 2003 met afschrijvingstermijn 30 | H146: € | I146: 0
E147: Aanschafwaarde investeringen 2003 met afschrijvingstermijn 25 | H147: € | I147: 0
E148: Aanschafwaarde investeringen 2003 met afschrijvingstermijn 20 | H148: € | I148: 0
E149: Aanschafwaarde investeringen 2003 met afschrijvingstermijn 10 | H149: € | I149: 0
E150: Aanschafwaarde investeringen 2003 met afschrijvingstermijn 5 | H150: € | I150: 0
E151: Aanschafwaarde investeringen 2003 met afschrijvingstermijn 3 | H151: € | I151: 0
E152: Aanschafwaarde investeringen 2003 zonder afschrijvingstermijn | G152: 24000 | H152: € | I152: 0
B154: Desinvesteringen 2003
E155: Desinvesteringen 2003 met afschrijvingstermijn 50 | H155: € | I155: =SUM(K155:DF155) -> 0
E156: Desinvesteringen 2003 met afschrijvingstermijn 40 | H156: € | I156: 0
E157: Desinvesteringen 2003 met afschrijvingstermijn 30 | H157: € | I157: 0
E158: Desinvesteringen 2003 met afschrijvingstermijn 25 | H158: € | I158: 0
E159: Desinvesteringen 2003 met afschrijvingstermijn 20 | H159: € | I159: 0
E160: Desinvesteringen 2003 met afschrijvingstermijn 10 | H160: € | I160: 0
E161: Desinvesteringen 2003 met afschrijvingstermijn 5 | H161: € | I161: 0
E162: Desinvesteringen 2003 met afschrijvingstermijn 3 | H162: € | I162: 0
E163: Desinvesteringen 2003 zonder afschrijvingstermijn | H163: € | I163: 0
B165: Opgegeven Afschrijvingen 2003
E166: Opgegeven afschrijvingen 2003 met afschrijvingstermijn 50 | H166: € | I166: =SUM(K166:DF166) -> 86520 | N166: 12360 | O166: 24720 | P166: 24720 | Q166: 24720
E167: Opgegeven afschrijvingen 2003 met afschrijvingstermijn 40 | H167: € | I167: 36400 | N167: 5200 | O167: 10400 | P167: 10400 | Q167: 10400
E168: Opgegeven afschrijvingen 2003 met afschrijvingstermijn 30 | H168: € | I168: 0
E169: Opgegeven afschrijvingen 2003 met afschrijvingstermijn 25 | H169: € | I169: 0
E170: Opgegeven afschrijvingen 2003 met afschrijvingstermijn 20 | H170: € | I170: 0
E171: Opgegeven afschrijvingen 2003 met afschrijvingstermijn 10 | H171: € | I171: 0
E172: Opgegeven afschrijvingen 2003 met afschrijvingstermijn 5 | H172: € | I172: 0
E173: Opgegeven afschrijvingen 2003 met afschrijvingstermijn 3 | H173: € | I173: 0
E174: Opgegeven afschrijvingen 2003 zonder afschrijvingstermijn | H174: € | I174: 0
B176: Opgegeven Cumulatieve Afschrijvingen Bij Desinvesteringen 2003
E177: Opgegeven c.a.d. 2003 met afschrijvingstermijn 50 | H177: € | I177: =SUM(K177:DF177) -> 0
E178: Opgegeven c.a.d. 2003 met afschrijvingstermijn 40 | H178: € | I178: 0
E179: Opgegeven c.a.d. 2003 met afschrijvingstermijn 30 | H179: € | I179: 0
E180: Opgegeven c.a.d. 2003 met afschrijvingstermijn 25 | H180: € | I180: 0
E181: Opgegeven c.a.d. 2003 met afschrijvingstermijn 20 | H181: € | I181: 0
E182: Opgegeven c.a.d. 2003 met afschrijvingstermijn 10 | H182: € | I182: 0
E183: Opgegeven c.a.d. 2003 met afschrijvingstermijn 5 | H183: € | I183: 0
E184: Opgegeven c.a.d. 2003 met afschrijvingstermijn 3 | H184: € | I184: 0
E185: Opgegeven c.a.d. 2003 zonder afschrijvingstermijn | H185: € | I185: 0
B187: Bijzondere Waardeverminderingen Op Activa 2003
E188: Bijzondere waardeverminderingen op activa 2003 met afschrijvingstermijn 50 | H188: € | I188: =SUM(K188:DF188) -> 0
E189: Bijzondere waardeverminderingen op activa 2003 met afschrijvingstermijn 40 | H189: € | I189: 0
E190: Bijzondere waardeverminderingen op activa 2003 met afschrijvingstermijn 30 | H190: € | I190: 0
E191: Bijzondere waardeverminderingen op activa 2003 met afschrijvingstermijn 25 | H191: € | I191: 0
E192: Bijzondere waardeverminderingen op activa 2003 met afschrijvingstermijn 20 | H192: € | I192: 0
E193: Bijzondere waardeverminderingen op activa 2003 met afschrijvingstermijn 10 | H193: € | I193: 0
E194: Bijzondere waardeverminderingen op activa 2003 met afschrijvingstermijn 5 | H194: € | I194: 0
E195: Bijzondere waardeverminderingen op activa 2003 met afschrijvingstermijn 3 | H195: € | I195: 0
E196: Bijzondere waardeverminderingen op activa 2003 zonder afschrijvingstermijn | H196: € | I196: 0
B198: Input Alert
E199: Dummy Beginjaar investeringen
E200: Dummy Modelperiode
E201: Dummy Aantal cellen met onterechte input 2003
E202: Dummy Waarschuwing onterecht ingevulde cellen 2003
A204: INVESTERINGSJAAR 2004
B206: Investeringen 2004
E207: Aanschafwaarde investeringen 2004 met afschrijvingstermijn 50 | G207: 507000 | H207: € | I207: =SUM(K207:DF207) -> 0
E208: Aanschafwaarde investeringen 2004 met afschrijvingstermijn 40 | G208: 115000 | H208: € | I208: 0
E209: Aanschafwaarde investeringen 2004 met afschrijvingstermijn 30 | H209: € | I209: 0
E210: Aanschafwaarde investeringen 2004 met afschrijvingstermijn 25 | H210: € | I210: 0
E211: Aanschafwaarde investeringen 2004 met afschrijvingstermijn 20 | H211: € | I211: 0
E212: Aanschafwaarde investeringen 2004 met afschrijvingstermijn 10 | H212: € | I212: 0
E213: Aanschafwaarde investeringen 2004 met afschrijvingstermijn 5 | H213: € | I213: 0
E214: Aanschafwaarde investeringen 2004 met afschrijvingstermijn 3 | H214: € | I214: 0
E215: Aanschafwaarde investeringen 2004 zonder afschrijvingstermijn | G215: 3000 | H215: € | I215: 0
B217: Desinvesteringen 2004
E218: Desinvesteringen 2004 met afschrijvingstermijn 50 | H218: € | I218: =SUM(K218:DF218) -> 0
E219: Desinvesteringen 2004 met afschrijvingstermijn 40 | H219: € | I219: 0
E220: Desinvesteringen 2004 met afschrijvingstermijn 30 | H220: € | I220: 0
E221: Desinvesteringen 2004 met afschrijvingstermijn 25 | H221: € | I221: 0
E222: Desinvesteringen 2004 met afschrijvingstermijn 20 | H222: € | I222: 0
E223: Desinvesteringen 2004 met afschrijvingstermijn 10 | H223: € | I223: 0
E224: Desinvesteringen 2004 met afschrijvingstermijn 5 | H224: € | I224: 0
E225: Desinvesteringen 2004 met afschrijvingstermijn 3 | H225: € | I225: 0
E226: Desinvesteringen 2004 zonder afschrijvingstermijn | H226: € | I226: 0
... 707 more rows

Sheet InpDelta Excl HS
A1: =RIGHT(CELL("filename", A1), LEN(CELL("filename", A1)) - SEARCH("]", CELL("filename", A1))) -> InpDelta Excl HS
E2: =Tijd!E$2 -> Actieve netbeheerder | G2: =Tijd!G$2 -> Cogas
E3: =Tijd!E$3 -> Actieve inputsheet | G3: =Tijd!G$3 -> InpCogas
E4: =Tijd!E$4 -> Modelperiode | G4: =Check!G4 -> 0 | H4: =Check!H4 -> errors | K4: =Tijd!K$4 -> 2000 | L4: =Tijd!L$4 -> 2001 | M4: =Tijd!M$4 -> 2002 | N4: =Tijd!N$4 -> 2003 | O4: =Tijd!O$4 -> 2004 | P4: =Tijd!P$4 -> 2005 | Q4: =Tijd!Q$4 -> 2006 | R4: =Tijd!R$4 -> 2007 | S4: =Tijd!S$4 -> 2008 | T4: =Tijd!T$4 -> 2009 | U4: =Tijd!U$4 -> 2010 | V4: =Tijd!V$4 -> 2011 | W4: =Tijd!W$4 -> 2012 | X4: =Tijd!X$4 -> 2013 | Y4: =Tijd!Y$4 -> 2014 | Z4: =Tijd!Z$4 -> 2015 | AA4: =Tijd!AA$4 -> 2016 | AB4: =Tijd!AB$4 -> 2017 | AC4: =Tijd!AC$4 -> 2018 | AD4: =Tijd!AD$4 -> 2019 | AE4: =Tijd!AE$4 -> 2020 | AF4: =Tijd!AF$4 -> 2021 | AG4: =Tijd!AG$4 -> 2022 | AH4: =Tijd!AH$4 -> 2023 | AI4: =Tijd!AI$4 -> 2024 | AJ4: =Tijd!AJ$4 -> 2025 | AK4: =Tijd!AK$4 -> 2026 | AL4: =Tijd!AL$4 -> 2027 | AM4: =Tijd!AM$4 -> 2028 | AN4: =Tijd!AN$4 -> 2029 | AO4: =Tijd!AO$4 -> 2030 | AP4: =Tijd!AP$4 -> 2031 | AQ4: =Tijd!AQ$4 -> 2032 | AR4: =Tijd!AR$4 -> 2033 | AS4: =Tijd!AS$4 -> 2034 | AT4: =Tijd!AT$4 -> 2035 | AU4: =Tijd!AU$4 -> 2036 | AV4: =Tijd!AV$4 -> 2037 | AW4: =Tijd!AW$4 -> 2038 | AX4: =Tijd!AX$4 -> 2039 | AY4: =Tijd!AY$4 -> 2040 | AZ4: =Tijd!AZ$4 -> 2041 | BA4: =Tijd!BA$4 -> 2042 | BB4: =Tijd!BB$4 -> 2043 | BC4: =Tijd!BC$4 -> 2044 | BD4: =Tijd!BD$4 -> 2045 | BE4: =Tijd!BE$4 -> 2046 | BF4: =Tijd!BF$4 -> 2047 | BG4: =Tijd!BG$4 -> 2048 | BH4: =Tijd!BH$4 -> 2049 | BI4: =Tijd!BI$4 -> 2050 | BJ4: =Tijd!BJ$4 -> 2051 | BK4: =Tijd!BK$4 -> 2052 | BL4: =Tijd!BL$4 -> 2053 | BM4: =Tijd!BM$4 -> 2054 | BN4: =Tijd!BN$4 -> 2055 | BO4: =Tijd!BO$4 -> 2056 | BP4: =Tijd!BP$4 -> 2057 | BQ4: =Tijd!BQ$4 -> 2058 | BR4: =Tijd!BR$4 -> 2059 | BS4: =Tijd!BS$4 -> 2060 | BT4: =Tijd!BT$4 -> 2061 | BU4: =Tijd!BU$4 -> 2062 | BV4: =Tijd!BV$4 -> 2063 | BW4: =Tijd!BW$4 -> 2064 | BX4: =Tijd!BX$4 -> 2065 | BY4: =Tijd!BY$4 -> 2066 | BZ4: =Tijd!BZ$4 -> 2067 | CA4: =Tijd!CA$4 -> 2068 | CB4: =Tijd!CB$4 -> 2069 | CC4: =Tijd!CC$4 -> 2070 | CD4: =Tijd!CD$4 -> 2071 | CE4: =Tijd!CE$4 -> 2072 | CF4: =Tijd!CF$4 -> 2073 | CG4: =Tijd!CG$4 -> 2074 | CH4: =Tijd!CH$4 -> 2075 | CI4: =Tijd!CI$4 -> 2076 | CJ4: =Tijd!CJ$4 -> 2077 | CK4: =Tijd!CK$4 -> 2078 | CL4: =Tijd!CL$4 -> 2079 | CM4: =Tijd!CM$4 -> 2080 | CN4: =Tijd!CN$4 -> 2081 | CO4: =Tijd!CO$4 -> 2082 | CP4: =Tijd!CP$4 -> 2083 | CQ4: =Tijd!CQ$4 -> 2084 | CR4: =Tijd!CR$4 -> 2085 | CS4: =Tijd!CS$4 -> 2086 | CT4: =Tijd!CT$4 -> 2087 | CU4: =Tijd!CU$4 -> 2088 | CV4: =Tijd!CV$4 -> 2089 | CW4: =Tijd!CW$4 -> 2090 | CX4: =Tijd!CX$4 -> 2091 | CY4: =Tijd!CY$4 -> 2092 | CZ4: =Tijd!CZ$4 -> 2093 | DA4: =Tijd!DA$4 -> 2094 | DB4: =Tijd!DB$4 -> 2095 | DC4: =Tijd!DC$4 -> 2096 | DD4: =Tijd!DD$4 -> 2097 | DE4: =Tijd!DE$4 -> 2098 | DF4: =Tijd!DF$4 -> 2099
E5: =Tijd!E$5 -> Looptijd vs Uitlooptijd | G5: =Check!G5 -> 0 | H5: =Check!H5 -> waarschuwingen | K5: =Tijd!K$5 -> Looptijd | L5: =Tijd!L$5 -> Looptijd | M5: =Tijd!M$5 -> Looptijd | N5: =Tijd!N$5 -> Looptijd | O5: =Tijd!O$5 -> Looptijd | P5: =Tijd!P$5 -> Looptijd | Q5: =Tijd!Q$5 -> Looptijd | R5: =Tijd!R$5 -> Looptijd | S5: =Tijd!S$5 -> Looptijd | T5: =Tijd!T$5 -> Looptijd | U5: =Tijd!U$5 -> Looptijd | V5: =Tijd!V$5 -> Looptijd | W5: =Tijd!W$5 -> Looptijd | X5: =Tijd!X$5 -> Looptijd | Y5: =Tijd!Y$5 -> Looptijd | Z5: =Tijd!Z$5 -> Looptijd | AA5: =Tijd!AA$5 -> Looptijd | AB5: =Tijd!AB$5 -> Looptijd | AC5: =Tijd!AC$5 -> Looptijd | AD5: =Tijd!AD$5 -> Looptijd | AE5: =Tijd!AE$5 -> Looptijd | AF5: =Tijd!AF$5 -> Looptijd | AG5: =Tijd!AG$5 -> Looptijd | AH5: =Tijd!AH$5 -> Looptijd | AI5: =Tijd!AI$5 -> Looptijd | AJ5: =Tijd!AJ$5 -> Looptijd | AK5: =Tijd!AK$5 -> Looptijd | AL5: =Tijd!AL$5 -> Looptijd | AM5: =Tijd!AM$5 -> Looptijd | AN5: =Tijd!AN$5 -> Looptijd | AO5: =Tijd!AO$5 -> Looptijd | AP5: =Tijd!AP$5 -> Looptijd | AQ5: =Tijd!AQ$5 -> Looptijd | AR5: =Tijd!AR$5 -> Looptijd | AS5: =Tijd!AS$5 -> Looptijd | AT5: =Tijd!AT$5 -> Looptijd | AU5: =Tijd!AU$5 -> Looptijd | AV5: =Tijd!AV$5 -> Looptijd | AW5: =Tijd!AW$5 -> Looptijd | AX5: =Tijd!AX$5 -> Looptijd | AY5: =Tijd!AY$5 -> Looptijd | AZ5: =Tijd!AZ$5 -> Looptijd | BA5: =Tijd!BA$5 -> Looptijd | BB5: =Tijd!BB$5 -> Looptijd | BC5: =Tijd!BC$5 -> Looptijd | BD5: =Tijd!BD$5 -> Looptijd | BE5: =Tijd!BE$5 -> Looptijd | BF5: =Tijd!BF$5 -> Looptijd | BG5: =Tijd!BG$5 -> Looptijd | BH5: =Tijd!BH$5 -> Looptijd | BI5: =Tijd!BI$5 -> Looptijd | BJ5: =Tijd!BJ$5 -> Uitlooptijd | BK5: =Tijd!BK$5 -> Uitlooptijd | BL5: =Tijd!BL$5 -> Uitlooptijd | BM5: =Tijd!BM$5 -> Uitlooptijd | BN5: =Tijd!BN$5 -> Uitlooptijd | BO5: =Tijd!BO$5 -> Uitlooptijd | BP5: =Tijd!BP$5 -> Uitlooptijd | BQ5: =Tijd!BQ$5 -> Uitlooptijd | BR5: =Tijd!BR$5 -> Uitlooptijd | BS5: =Tijd!BS$5 -> Uitlooptijd | BT5: =Tijd!BT$5 -> Uitlooptijd | BU5: =Tijd!BU$5 -> Uitlooptijd | BV5: =Tijd!BV$5 -> Uitlooptijd | BW5: =Tijd!BW$5 -> Uitlooptijd | BX5: =Tijd!BX$5 -> Uitlooptijd | BY5: =Tijd!BY$5 -> Uitlooptijd | BZ5: =Tijd!BZ$5 -> Uitlooptijd | CA5: =Tijd!CA$5 -> Uitlooptijd | CB5: =Tijd!CB$5 -> Uitlooptijd | CC5: =Tijd!CC$5 -> Uitlooptijd | CD5: =Tijd!CD$5 -> Uitlooptijd | CE5: =Tijd!CE$5 -> Uitlooptijd | CF5: =Tijd!CF$5 -> Uitlooptijd | CG5: =Tijd!CG$5 -> Uitlooptijd | CH5: =Tijd!CH$5 -> Uitlooptijd | CI5: =Tijd!CI$5 -> Uitlooptijd | CJ5: =Tijd!CJ$5 -> Uitlooptijd | CK5: =Tijd!CK$5 -> Uitlooptijd | CL5: =Tijd!CL$5 -> Uitlooptijd | CM5: =Tijd!CM$5 -> Uitlooptijd | CN5: =Tijd!CN$5 -> Uitlooptijd | CO5: =Tijd!CO$5 -> Uitlooptijd | CP5: =Tijd!CP$5 -> Uitlooptijd | CQ5: =Tijd!CQ$5 -> Uitlooptijd | CR5: =Tijd!CR$5 -> Uitlooptijd | CS5: =Tijd!CS$5 -> Uitlooptijd | CT5: =Tijd!CT$5 -> Uitlooptijd | CU5: =Tijd!CU$5 -> Uitlooptijd | CV5: =Tijd!CV$5 -> Uitlooptijd | CW5: =Tijd!CW$5 -> Uitlooptijd | CX5: =Tijd!CX$5 -> Uitlooptijd | CY5: =Tijd!CY$5 -> Uitlooptijd | CZ5: =Tijd!CZ$5 -> Uitlooptijd | DA5: =Tijd!DA$5 -> Uitlooptijd | DB5: =Tijd!DB$5 -> Uitlooptijd | DC5: =Tijd!DC$5 -> Uitlooptijd | DD5: =Tijd!DD$5 -> Uitlooptijd | DE5: =Tijd!DE$5 -> Uitlooptijd | DF5: =Tijd!DF$5 -> Uitlooptijd
E6: =Tijd!E$10 -> Model kolom teller | F6: Bron | G6: Constante | H6: Eenheid | I6: Totaal | K6: =Tijd!K$10 -> 1 | L6: =Tijd!L$10 -> 2 | M6: =Tijd!M$10 -> 3 | N6: =Tijd!N$10 -> 4 | O6: =Tijd!O$10 -> 5 | P6: =Tijd!P$10 -> 6 | Q6: =Tijd!Q$10 -> 7 | R6: =Tijd!R$10 -> 8 | S6: =Tijd!S$10 -> 9 | T6: =Tijd!T$10 -> 10 | U6: =Tijd!U$10 -> 11 | V6: =Tijd!V$10 -> 12 | W6: =Tijd!W$10 -> 13 | X6: =Tijd!X$10 -> 14 | Y6: =Tijd!Y$10 -> 15 | Z6: =Tijd!Z$10 -> 16 | AA6: =Tijd!AA$10 -> 17 | AB6: =Tijd!AB$10 -> 18 | AC6: =Tijd!AC$10 -> 19 | AD6: =Tijd!AD$10 -> 20 | AE6: =Tijd!AE$10 -> 21 | AF6: =Tijd!AF$10 -> 22 | AG6: =Tijd!AG$10 -> 23 | AH6: =Tijd!AH$10 -> 24 | AI6: =Tijd!AI$10 -> 25 | AJ6: =Tijd!AJ$10 -> 26 | AK6: =Tijd!AK$10 -> 27 | AL6: =Tijd!AL$10 -> 28 | AM6: =Tijd!AM$10 -> 29 | AN6: =Tijd!AN$10 -> 30 | AO6: =Tijd!AO$10 -> 31 | AP6: =Tijd!AP$10 -> 32 | AQ6: =Tijd!AQ$10 -> 33 | AR6: =Tijd!AR$10 -> 34 | AS6: =Tijd!AS$10 -> 35 | AT6: =Tijd!AT$10 -> 36 | AU6: =Tijd!AU$10 -> 37 | AV6: =Tijd!AV$10 -> 38 | AW6: =Tijd!AW$10 -> 39 | AX6: =Tijd!AX$10 -> 40 | AY6: =Tijd!AY$10 -> 41 | AZ6: =Tijd!AZ$10 -> 42 | BA6: =Tijd!BA$10 -> 43 | BB6: =Tijd!BB$10 -> 44 | BC6: =Tijd!BC$10 -> 45 | BD6: =Tijd!BD$10 -> 46 | BE6: =Tijd!BE$10 -> 47 | BF6: =Tijd!BF$10 -> 48 | BG6: =Tijd!BG$10 -> 49 | BH6: =Tijd!BH$10 -> 50 | BI6: =Tijd!BI$10 -> 51 | BJ6: =Tijd!BJ$10 -> 52 | BK6: =Tijd!BK$10 -> 53 | BL6: =Tijd!BL$10 -> 54 | BM6: =Tijd!BM$10 -> 55 | BN6: =Tijd!BN$10 -> 56 | BO6: =Tijd!BO$10 -> 57 | BP6: =Tijd!BP$10 -> 58 | BQ6: =Tijd!BQ$10 -> 59 | BR6: =Tijd!BR$10 -> 60 | BS6: =Tijd!BS$10 -> 61 | BT6: =Tijd!BT$10 -> 62 | BU6: =Tijd!BU$10 -> 63 | BV6: =Tijd!BV$10 -> 64 | BW6: =Tijd!BW$10 -> 65 | BX6: =Tijd!BX$10 -> 66 | BY6: =Tijd!BY$10 -> 67 | BZ6: =Tijd!BZ$10 -> 68 | CA6: =Tijd!CA$10 -> 69 | CB6: =Tijd!CB$10 -> 70 | CC6: =Tijd!CC$10 -> 71 | CD6: =Tijd!CD$10 -> 72 | CE6: =Tijd!CE$10 -> 73 | CF6: =Tijd!CF$10 -> 74 | CG6: =Tijd!CG$10 -> 75 | CH6: =Tijd!CH$10 -> 76 | CI6: =Tijd!CI$10 -> 77 | CJ6: =Tijd!CJ$10 -> 78 | CK6: =Tijd!CK$10 -> 79 | CL6: =Tijd!CL$10 -> 80 | CM6: =Tijd!CM$10 -> 81 | CN6: =Tijd!CN$10 -> 82 | CO6: =Tijd!CO$10 -> 83 | CP6: =Tijd!CP$10 -> 84 | CQ6: =Tijd!CQ$10 -> 85 | CR6: =Tijd!CR$10 -> 86 | CS6: =Tijd!CS$10 -> 87 | CT6: =Tijd!CT$10 -> 88 | CU6: =Tijd!CU$10 -> 89 | CV6: =Tijd!CV$10 -> 90 | CW6: =Tijd!CW$10 -> 91 | CX6: =Tijd!CX$10 -> 92 | CY6: =Tijd!CY$10 -> 93 | CZ6: =Tijd!CZ$10 -> 94 | DA6: =Tijd!DA$10 -> 95 | DB6: =Tijd!DB$10 -> 96 | DC6: =Tijd!DC$10 -> 97 | DD6: =Tijd!DD$10 -> 98 | DE6: =Tijd!DE$10 -> 99 | DF6: =Tijd!DF$10 -> 100
A9: INVESTERINGSJAAR 2000 - START GAW
E10: Startwaarde GAW incl. afgekochte precario (31-12-2000) | G10: 178537644.9 | H10: €
E11: Afschrijvingen Start GAW | G11: 7595739.679 | H11: €
E12: Afgekochte precario in Start GAW (31-12-2000) | H12: €
E13: Afschrijvingsbedrag afgekochte precario | H13: €
A15: INVESTERINGSJAAR 2001
B17: Investeringen 2001
E18: Aanschafwaarde investeringen 2001 met afschrijvingstermijn 50 | G18: 7088000 | H18: € | I18: =SUM(K18:DF18) -> 0
E19: Aanschafwaarde investeringen 2001 met afschrijvingstermijn 40 | G19: 799000 | H19: € | I19: 0
E20: Aanschafwaarde investeringen 2001 met afschrijvingstermijn 30 | G20: 0 | H20: € | I20: 0
E21: Aanschafwaarde investeringen 2001 met afschrijvingstermijn 25 | G21: 1210000 | H21: € | I21: 0
E22: Aanschafwaarde investeringen 2001 met afschrijvingstermijn 20 | H22: € | I22: 0
E23: Aanschafwaarde investeringen 2001 met afschrijvingstermijn 10 | H23: € | I23: 0
E24: Aanschafwaarde investeringen 2001 met afschrijvingstermijn 5 | H24: € | I24: 0
E25: Aanschafwaarde investeringen 2001 met afschrijvingstermijn 3 | H25: € | I25: 0
E26: Aanschafwaarde investeringen 2001 zonder afschrijvingstermijn | H26: € | I26: 0
B28: Desinvesteringen 2001
E29: Desinvesteringen 2001 met afschrijvingstermijn 50 | H29: € | I29: =SUM(K29:DF29) -> 0
E30: Desinvesteringen 2001 met afschrijvingstermijn 40 | H30: € | I30: 0
E31: Desinvesteringen 2001 met afschrijvingstermijn 30 | H31: € | I31: 0
E32: Desinvesteringen 2001 met afschrijvingstermijn 25 | H32: € | I32: 0
E33: Desinvesteringen 2001 met afschrijvingstermijn 20 | H33: € | I33: 0
E34: Desinvesteringen 2001 met afschrijvingstermijn 10 | H34: € | I34: 0
E35: Desinvesteringen 2001 met afschrijvingstermijn 5 | H35: € | I35: 0
E36: Desinvesteringen 2001 met afschrijvingstermijn 3 | H36: € | I36: 0
E37: Desinvesteringen 2001 zonder afschrijvingstermijn | H37: € | I37: 0
B39: Opgegeven Afschrijvingen 2001
E40: Opgegeven afschrijvingen 2001 met afschrijvingstermijn 50 | H40: € | I40: =SUM(K40:DF40) -> 779680 | L40: 70880 | M40: 141760 | N40: 141760 | O40: 141760 | P40: 141760 | Q40: 141760
E41: Opgegeven afschrijvingen 2001 met afschrijvingstermijn 40 | H41: € | I41: 109862.5 | L41: 9987.5 | M41: 19975 | N41: 19975 | O41: 19975 | P41: 19975 | Q41: 19975
E42: Opgegeven afschrijvingen 2001 met afschrijvingstermijn 30 | H42: € | I42: 0 | L42: 0 | M42: 0 | N42: 0 | O42: 0 | P42: 0 | Q42: 0
E43: Opgegeven afschrijvingen 2001 met afschrijvingstermijn 25 | H43: € | I43: 266200 | L43: 24200 | M43: 48400 | N43: 48400 | O43: 48400 | P43: 48400 | Q43: 48400
E44: Opgegeven afschrijvingen 2001 met afschrijvingstermijn 20 | H44: € | I44: 0
E45: Opgegeven afschrijvingen 2001 met afschrijvingstermijn 10 | H45: € | I45: 0
E46: Opgegeven afschrijvingen 2001 met afschrijvingstermijn 5 | H46: € | I46: 0
E47: Opgegeven afschrijvingen 2001 met afschrijvingstermijn 3 | H47: € | I47: 0
E48: Opgegeven afschrijvingen 2001 zonder afschrijvingstermijn | H48: € | I48: 0
B50: Opgegeven Cumulatieve Afschrijvingen Bij Desinvesteringen 2001
E51: Opgegeven c.a.d. 2001 met afschrijvingstermijn 50 | H51: € | I51: =SUM(K51:DF51) -> 0
E52: Opgegeven c.a.d. 2001 met afschrijvingstermijn 40 | H52: € | I52: 0
E53: Opgegeven c.a.d. 2001 met afschrijvingstermijn 30 | H53: € | I53: 0
E54: Opgegeven c.a.d. 2001 met afschrijvingstermijn 25 | H54: € | I54: 0
E55: Opgegeven c.a.d. 2001 met afschrijvingstermijn 20 | H55: € | I55: 0
E56: Opgegeven c.a.d. 2001 met afschrijvingstermijn 10 | H56: € | I56: 0
E57: Opgegeven c.a.d. 2001 met afschrijvingstermijn 5 | H57: € | I57: 0
E58: Opgegeven c.a.d. 2001 met afschrijvingstermijn 3 | H58: € | I58: 0
E59: Opgegeven c.a.d. 2001 zonder afschrijvingstermijn | H59: € | I59: 0
B61: Bijzondere Waardeverminderingen Op Activa 2001
E62: Bijzondere waardeverminderingen op activa 2001 met afschrijvingstermijn 50 | H62: € | I62: =SUM(K62:DF62) -> 0
E63: Bijzondere waardeverminderingen op activa 2001 met afschrijvingstermijn 40 | H63: € | I63: 0
E64: Bijzondere waardeverminderingen op activa 2001 met afschrijvingstermijn 30 | H64: € | I64: 0
E65: Bijzondere waardeverminderingen op activa 2001 met afschrijvingstermijn 25 | H65: € | I65: 0
E66: Bijzondere waardeverminderingen op activa 2001 met afschrijvingstermijn 20 | H66: € | I66: 0
E67: Bijzondere waardeverminderingen op activa 2001 met afschrijvingstermijn 10 | H67: € | I67: 0
E68: Bijzondere waardeverminderingen op activa 2001 met afschrijvingstermijn 5 | H68: € | I68: 0
E69: Bijzondere waardeverminderingen op activa 2001 met afschrijvingstermijn 3 | H69: € | I69: 0
E70: Bijzondere waardeverminderingen op activa 2001 zonder afschrijvingstermijn | H70: € | I70: 0
B72: Input Alert
E73: Dummy Beginjaar investeringen
E74: Dummy Modelperiode
E75: Dummy Aantal cellen met onterechte input 2001
E76: Dummy Waarschuwing onterecht ingevulde cellen 2001
A78: INVESTERINGSJAAR 2002
B80: Investeringen 2002
E81: Aanschafwaarde investeringen 2002 met afschrijvingstermijn 50 | G81: 2612000 | H81: € | I81: =SUM(K81:DF81) -> 0
E82: Aanschafwaarde investeringen 2002 met afschrijvingstermijn 40 | G82: 679000 | H82: € | I82: 0
E83: Aanschafwaarde investeringen 2002 met afschrijvingstermijn 30 | G83: 0 | H83: € | I83: 0
E84: Aanschafwaarde investeringen 2002 met afschrijvingstermijn 25 | G84: 202000 | H84: € | I84: 0
E85: Aanschafwaarde investeringen 2002 met afschrijvingstermijn 20 | H85: € | I85: 0
E86: Aanschafwaarde investeringen 2002 met afschrijvingstermijn 10 | G86: 77000 | H86: € | I86: 0
E87: Aanschafwaarde investeringen 2002 met afschrijvingstermijn 5 | H87: € | I87: 0
E88: Aanschafwaarde investeringen 2002 met afschrijvingstermijn 3 | H88: € | I88: 0
E89: Aanschafwaarde investeringen 2002 zonder afschrijvingstermijn | H89: € | I89: 0
B91: Desinvesteringen 2002
E92: Desinvesteringen 2002 met afschrijvingstermijn 50 | H92: € | I92: =SUM(K92:DF92) -> 0
E93: Desinvesteringen 2002 met afschrijvingstermijn 40 | H93: € | I93: 0
E94: Desinvesteringen 2002 met afschrijvingstermijn 30 | H94: € | I94: 0
E95: Desinvesteringen 2002 met afschrijvingstermijn 25 | H95: € | I95: 0
E96: Desinvesteringen 2002 met afschrijvingstermijn 20 | H96: € | I96: 0
E97: Desinvesteringen 2002 met afschrijvingstermijn 10 | H97: € | I97: 0
E98: Desinvesteringen 2002 met afschrijvingstermijn 5 | H98: € | I98: 0
E99: Desinvesteringen 2002 met afschrijvingstermijn 3 | H99: € | I99: 0
E100: Desinvesteringen 2002 zonder afschrijvingstermijn | H100: € | I100: 0
B102: Opgegeven Afschrijvingen 2002
E103: Opgegeven afschrijvingen 2002 met afschrijvingstermijn 50 | H103: € | I103: =SUM(K103:DF103) -> 232315.7268 | M103: 23355.72681 | N103: 52240 | O103: 52240 | P103: 52240 | Q103: 52240
E104: Opgegeven afschrijvingen 2002 met afschrijvingstermijn 40 | H104: € | I104: 75489.26996 | M104: 7589.269957 | N104: 16975 | O104: 16975 | P104: 16975 | Q104: 16975
E105: Opgegeven afschrijvingen 2002 met afschrijvingstermijn 30 | H105: € | I105: 0 | M105: 0 | N105: 0 | O105: 0 | P105: 0 | Q105: 0
E106: Opgegeven afschrijvingen 2002 met afschrijvingstermijn 25 | H106: € | I106: 35932.44779 | M106: 3612.447791 | N106: 8080 | O106: 8080 | P106: 8080 | Q106: 8080
E107: Opgegeven afschrijvingen 2002 met afschrijvingstermijn 20 | H107: € | I107: 0 | M107: 0
E108: Opgegeven afschrijvingen 2002 met afschrijvingstermijn 10 | H108: € | I108: 34242.55544 | M108: 3442.555444 | N108: 7700 | O108: 7700 | P108: 7700 | Q108: 7700
E109: Opgegeven afschrijvingen 2002 met afschrijvingstermijn 5 | H109: € | I109: 0
E110: Opgegeven afschrijvingen 2002 met afschrijvingstermijn 3 | H110: € | I110: 0
E111: Opgegeven afschrijvingen 2002 zonder afschrijvingstermijn | H111: € | I111: 0
B113: Opgegeven Cumulatieve Afschrijvingen Bij Desinvesteringen 2002
E114: Opgegeven c.a.d. 2002 met afschrijvingstermijn 50 | H114: € | I114: =SUM(K114:DF114) -> 0
E115: Opgegeven c.a.d. 2002 met afschrijvingstermijn 40 | H115: € | I115: 0
E116: Opgegeven c.a.d. 2002 met afschrijvingstermijn 30 | H116: € | I116: 0
E117: Opgegeven c.a.d. 2002 met afschrijvingstermijn 25 | H117: € | I117: 0
E118: Opgegeven c.a.d. 2002 met afschrijvingstermijn 20 | H118: € | I118: 0
E119: Opgegeven c.a.d. 2002 met afschrijvingstermijn 10 | H119: € | I119: 0
E120: Opgegeven c.a.d. 2002 met afschrijvingstermijn 5 | H120: € | I120: 0
E121: Opgegeven c.a.d. 2002 met afschrijvingstermijn 3 | H121: € | I121: 0
E122: Opgegeven c.a.d. 2002 zonder afschrijvingstermijn | H122: € | I122: 0
B124: Bijzondere Waardeverminderingen Op Activa 2002
E125: Bijzondere waardeverminderingen op activa 2002 met afschrijvingstermijn 50 | H125: € | I125: =SUM(K125:DF125) -> 0
E126: Bijzondere waardeverminderingen op activa 2002 met afschrijvingstermijn 40 | H126: € | I126: 0
E127: Bijzondere waardeverminderingen op activa 2002 met afschrijvingstermijn 30 | H127: € | I127: 0
E128: Bijzondere waardeverminderingen op activa 2002 met afschrijvingstermijn 25 | H128: € | I128: 0
E129: Bijzondere waardeverminderingen op activa 2002 met afschrijvingstermijn 20 | H129: € | I129: 0
E130: Bijzondere waardeverminderingen op activa 2002 met afschrijvingstermijn 10 | H130: € | I130: 0
E131: Bijzondere waardeverminderingen op activa 2002 met afschrijvingstermijn 5 | H131: € | I131: 0
E132: Bijzondere waardeverminderingen op activa 2002 met afschrijvingstermijn 3 | H132: € | I132: 0
E133: Bijzondere waardeverminderingen op activa 2002 zonder afschrijvingstermijn | H133: € | I133: 0
B135: Input Alert
E136: Dummy Beginjaar investeringen
E137: Dummy Modelperiode
E138: Dummy Aantal cellen met onterechte input 2002
E139: Dummy Waarschuwing onterecht ingevulde cellen 2002
A141: INVESTERINGSJAAR 2003
B143: Investeringen 2003
E144: Aanschafwaarde investeringen 2003 met afschrijvingstermijn 50 | G144: 4052000 | H144: € | I144: =SUM(K144:DF144) -> 0
E145: Aanschafwaarde investeringen 2003 met afschrijvingstermijn 40 | G145: 3093000 | H145: € | I145: 0
E146: Aanschafwaarde investeringen 2003 met afschrijvingstermijn 30 | G146: 24000 | H146: € | I146: 0
E147: Aanschafwaarde investeringen 2003 met afschrijvingstermijn 25 | G147: 63000 | H147: € | I147: 0
E148: Aanschafwaarde investeringen 2003 met afschrijvingstermijn 20 | H148: € | I148: 0
E149: Aanschafwaarde investeringen 2003 met afschrijvingstermijn 10 | H149: € | I149: 0
E150: Aanschafwaarde investeringen 2003 met afschrijvingstermijn 5 | H150: € | I150: 0
E151: Aanschafwaarde investeringen 2003 met afschrijvingstermijn 3 | H151: € | I151: 0
E152: Aanschafwaarde investeringen 2003 zonder afschrijvingstermijn | G152: 2000 | H152: € | I152: 0
B154: Desinvesteringen 2003
E155: Desinvesteringen 2003 met afschrijvingstermijn 50 | H155: € | I155: =SUM(K155:DF155) -> 0
E156: Desinvesteringen 2003 met afschrijvingstermijn 40 | H156: € | I156: 0
E157: Desinvesteringen 2003 met afschrijvingstermijn 30 | H157: € | I157: 0
E158: Desinvesteringen 2003 met afschrijvingstermijn 25 | H158: € | I158: 0
E159: Desinvesteringen 2003 met afschrijvingstermijn 20 | H159: € | I159: 0
E160: Desinvesteringen 2003 met afschrijvingstermijn 10 | H160: € | I160: 0
E161: Desinvesteringen 2003 met afschrijvingstermijn 5 | H161: € | I161: 0
E162: Desinvesteringen 2003 met afschrijvingstermijn 3 | H162: € | I162: 0
E163: Desinvesteringen 2003 zonder afschrijvingstermijn | H163: € | I163: 0
B165: Opgegeven Afschrijvingen 2003
E166: Opgegeven afschrijvingen 2003 met afschrijvingstermijn 50 | H166: € | I166: =SUM(K166:DF166) -> 283640 | N166: 40520 | O166: 81040 | P166: 81040 | Q166: 81040
E167: Opgegeven afschrijvingen 2003 met afschrijvingstermijn 40 | H167: € | I167: 270637.5 | N167: 38662.5 | O167: 77325 | P167: 77325 | Q167: 77325
E168: Opgegeven afschrijvingen 2003 met afschrijvingstermijn 30 | H168: € | I168: 2800 | N168: 400 | O168: 800 | P168: 800 | Q168: 800
E169: Opgegeven afschrijvingen 2003 met afschrijvingstermijn 25 | H169: € | I169: 8820 | N169: 1260 | O169: 2520 | P169: 2520 | Q169: 2520
E170: Opgegeven afschrijvingen 2003 met afschrijvingstermijn 20 | H170: € | I170: 0
E171: Opgegeven afschrijvingen 2003 met afschrijvingstermijn 10 | H171: € | I171: 0
E172: Opgegeven afschrijvingen 2003 met afschrijvingstermijn 5 | H172: € | I172: 0
E173: Opgegeven afschrijvingen 2003 met afschrijvingstermijn 3 | H173: € | I173: 0
E174: Opgegeven afschrijvingen 2003 zonder afschrijvingstermijn | H174: € | I174: 0
B176: Opgegeven Cumulatieve Afschrijvingen Bij Desinvesteringen 2003
E177: Opgegeven c.a.d. 2003 met afschrijvingstermijn 50 | H177: € | I177: =SUM(K177:DF177) -> 0
E178: Opgegeven c.a.d. 2003 met afschrijvingstermijn 40 | H178: € | I178: 0
E179: Opgegeven c.a.d. 2003 met afschrijvingstermijn 30 | H179: € | I179: 0
E180: Opgegeven c.a.d. 2003 met afschrijvingstermijn 25 | H180: € | I180: 0
E181: Opgegeven c.a.d. 2003 met afschrijvingstermijn 20 | H181: € | I181: 0
E182: Opgegeven c.a.d. 2003 met afschrijvingstermijn 10 | H182: € | I182: 0
E183: Opgegeven c.a.d. 2003 met afschrijvingstermijn 5 | H183: € | I183: 0
E184: Opgegeven c.a.d. 2003 met afschrijvingstermijn 3 | H184: € | I184: 0
E185: Opgegeven c.a.d. 2003 zonder afschrijvingstermijn | H185: € | I185: 0
B187: Bijzondere Waardeverminderingen Op Activa 2003
E188: Bijzondere waardeverminderingen op activa 2003 met afschrijvingstermijn 50 | H188: € | I188: =SUM(K188:DF188) -> 0
E189: Bijzondere waardeverminderingen op activa 2003 met afschrijvingstermijn 40 | H189: € | I189: 0
E190: Bijzondere waardeverminderingen op activa 2003 met afschrijvingstermijn 30 | H190: € | I190: 0
E191: Bijzondere waardeverminderingen op activa 2003 met afschrijvingstermijn 25 | H191: € | I191: 0
E192: Bijzondere waardeverminderingen op activa 2003 met afschrijvingstermijn 20 | H192: € | I192: 0
E193: Bijzondere waardeverminderingen op activa 2003 met afschrijvingstermijn 10 | H193: € | I193: 0
E194: Bijzondere waardeverminderingen op activa 2003 met afschrijvingstermijn 5 | H194: € | I194: 0
E195: Bijzondere waardeverminderingen op activa 2003 met afschrijvingstermijn 3 | H195: € | I195: 0
E196: Bijzondere waardeverminderingen op activa 2003 zonder afschrijvingstermijn | H196: € | I196: 0
B198: Input Alert
E199: Dummy Beginjaar investeringen
E200: Dummy Modelperiode
E201: Dummy Aantal cellen met onterechte input 2003
E202: Dummy Waarschuwing onterecht ingevulde cellen 2003
A204: INVESTERINGSJAAR 2004
B206: Investeringen 2004
E207: Aanschafwaarde investeringen 2004 met afschrijvingstermijn 50 | G207: 4095000 | H207: € | I207: =SUM(K207:DF207) -> 0
E208: Aanschafwaarde investeringen 2004 met afschrijvingstermijn 40 | G208: 2502000 | H208: € | I208: 0
E209: Aanschafwaarde investeringen 2004 met afschrijvingstermijn 30 | G209: 394000 | H209: € | I209: 0
E210: Aanschafwaarde investeringen 2004 met afschrijvingstermijn 25 | G210: -173000 | H210: € | I210: 0
E211: Aanschafwaarde investeringen 2004 met afschrijvingstermijn 20 | H211: € | I211: 0
E212: Aanschafwaarde investeringen 2004 met afschrijvingstermijn 10 | H212: € | I212: 0
E213: Aanschafwaarde investeringen 2004 met afschrijvingstermijn 5 | H213: € | I213: 0
E214: Aanschafwaarde investeringen 2004 met afschrijvingstermijn 3 | H214: € | I214: 0
E215: Aanschafwaarde investeringen 2004 zonder afschrijvingstermijn | H215: € | I215: 0
B217: Desinvesteringen 2004
E218: Desinvesteringen 2004 met afschrijvingstermijn 50 | H218: € | I218: =SUM(K218:DF218) -> 0
E219: Desinvesteringen 2004 met afschrijvingstermijn 40 | H219: € | I219: 0
E220: Desinvesteringen 2004 met afschrijvingstermijn 30 | H220: € | I220: 0
E221: Desinvesteringen 2004 met afschrijvingstermijn 25 | H221: € | I221: 0
E222: Desinvesteringen 2004 met afschrijvingstermijn 20 | H222: € | I222: 0
E223: Desinvesteringen 2004 met afschrijvingstermijn 10 | H223: € | I223: 0
E224: Desinvesteringen 2004 met afschrijvingstermijn 5 | H224: € | I224: 0
E225: Desinvesteringen 2004 met afschrijvingstermijn 3 | H225: € | I225: 0
E226: Desinvesteringen 2004 zonder afschrijvingstermijn | H226: € | I226: 0
... 707 more rows

Sheet InpEndinet
A1: =RIGHT(CELL("filename", A1), LEN(CELL("filename", A1)) - SEARCH("]", CELL("filename", A1))) -> InpEndinet
E2: =Tijd!E$2 -> Actieve netbeheerder | G2: =Tijd!G$2 -> Cogas
E3: =Tijd!E$3 -> Actieve inputsheet | G3: =Tijd!G$3 -> InpCogas
E4: =Tijd!E$4 -> Modelperiode | G4: =Check!G4 -> 0 | H4: =Check!H4 -> errors | K4: =Tijd!K$4 -> 2000 | L4: =Tijd!L$4 -> 2001 | M4: =Tijd!M$4 -> 2002 | N4: =Tijd!N$4 -> 2003 | O4: =Tijd!O$4 -> 2004 | P4: =Tijd!P$4 -> 2005 | Q4: =Tijd!Q$4 -> 2006 | R4: =Tijd!R$4 -> 2007 | S4: =Tijd!S$4 -> 2008 | T4: =Tijd!T$4 -> 2009 | U4: =Tijd!U$4 -> 2010 | V4: =Tijd!V$4 -> 2011 | W4: =Tijd!W$4 -> 2012 | X4: =Tijd!X$4 -> 2013 | Y4: =Tijd!Y$4 -> 2014 | Z4: =Tijd!Z$4 -> 2015 | AA4: =Tijd!AA$4 -> 2016 | AB4: =Tijd!AB$4 -> 2017 | AC4: =Tijd!AC$4 -> 2018 | AD4: =Tijd!AD$4 -> 2019 | AE4: =Tijd!AE$4 -> 2020 | AF4: =Tijd!AF$4 -> 2021 | AG4: =Tijd!AG$4 -> 2022 | AH4: =Tijd!AH$4 -> 2023 | AI4: =Tijd!AI$4 -> 2024 | AJ4: =Tijd!AJ$4 -> 2025 | AK4: =Tijd!AK$4 -> 2026 | AL4: =Tijd!AL$4 -> 2027 | AM4: =Tijd!AM$4 -> 2028 | AN4: =Tijd!AN$4 -> 2029 | AO4: =Tijd!AO$4 -> 2030 | AP4: =Tijd!AP$4 -> 2031 | AQ4: =Tijd!AQ$4 -> 2032 | AR4: =Tijd!AR$4 -> 2033 | AS4: =Tijd!AS$4 -> 2034 | AT4: =Tijd!AT$4 -> 2035 | AU4: =Tijd!AU$4 -> 2036 | AV4: =Tijd!AV$4 -> 2037 | AW4: =Tijd!AW$4 -> 2038 | AX4: =Tijd!AX$4 -> 2039 | AY4: =Tijd!AY$4 -> 2040 | AZ4: =Tijd!AZ$4 -> 2041 | BA4: =Tijd!BA$4 -> 2042 | BB4: =Tijd!BB$4 -> 2043 | BC4: =Tijd!BC$4 -> 2044 | BD4: =Tijd!BD$4 -> 2045 | BE4: =Tijd!BE$4 -> 2046 | BF4: =Tijd!BF$4 -> 2047 | BG4: =Tijd!BG$4 -> 2048 | BH4: =Tijd!BH$4 -> 2049 | BI4: =Tijd!BI$4 -> 2050 | BJ4: =Tijd!BJ$4 -> 2051 | BK4: =Tijd!BK$4 -> 2052 | BL4: =Tijd!BL$4 -> 2053 | BM4: =Tijd!BM$4 -> 2054 | BN4: =Tijd!BN$4 -> 2055 | BO4: =Tijd!BO$4 -> 2056 | BP4: =Tijd!BP$4 -> 2057 | BQ4: =Tijd!BQ$4 -> 2058 | BR4: =Tijd!BR$4 -> 2059 | BS4: =Tijd!BS$4 -> 2060 | BT4: =Tijd!BT$4 -> 2061 | BU4: =Tijd!BU$4 -> 2062 | BV4: =Tijd!BV$4 -> 2063 | BW4: =Tijd!BW$4 -> 2064 | BX4: =Tijd!BX$4 -> 2065 | BY4: =Tijd!BY$4 -> 2066 | BZ4: =Tijd!BZ$4 -> 2067 | CA4: =Tijd!CA$4 -> 2068 | CB4: =Tijd!CB$4 -> 2069 | CC4: =Tijd!CC$4 -> 2070 | CD4: =Tijd!CD$4 -> 2071 | CE4: =Tijd!CE$4 -> 2072 | CF4: =Tijd!CF$4 -> 2073 | CG4: =Tijd!CG$4 -> 2074 | CH4: =Tijd!CH$4 -> 2075 | CI4: =Tijd!CI$4 -> 2076 | CJ4: =Tijd!CJ$4 -> 2077 | CK4: =Tijd!CK$4 -> 2078 | CL4: =Tijd!CL$4 -> 2079 | CM4: =Tijd!CM$4 -> 2080 | CN4: =Tijd!CN$4 -> 2081 | CO4: =Tijd!CO$4 -> 2082 | CP4: =Tijd!CP$4 -> 2083 | CQ4: =Tijd!CQ$4 -> 2084 | CR4: =Tijd!CR$4 -> 2085 | CS4: =Tijd!CS$4 -> 2086 | CT4: =Tijd!CT$4 -> 2087 | CU4: =Tijd!CU$4 -> 2088 | CV4: =Tijd!CV$4 -> 2089 | CW4: =Tijd!CW$4 -> 2090 | CX4: =Tijd!CX$4 -> 2091 | CY4: =Tijd!CY$4 -> 2092 | CZ4: =Tijd!CZ$4 -> 2093 | DA4: =Tijd!DA$4 -> 2094 | DB4: =Tijd!DB$4 -> 2095 | DC4: =Tijd!DC$4 -> 2096 | DD4: =Tijd!DD$4 -> 2097 | DE4: =Tijd!DE$4 -> 2098 | DF4: =Tijd!DF$4 -> 2099
E5: =Tijd!E$5 -> Looptijd vs Uitlooptijd | G5: =Check!G5 -> 0 | H5: =Check!H5 -> waarschuwingen | K5: =Tijd!K$5 -> Looptijd | L5: =Tijd!L$5 -> Looptijd | M5: =Tijd!M$5 -> Looptijd | N5: =Tijd!N$5 -> Looptijd | O5: =Tijd!O$5 -> Looptijd | P5: =Tijd!P$5 -> Looptijd | Q5: =Tijd!Q$5 -> Looptijd | R5: =Tijd!R$5 -> Looptijd | S5: =Tijd!S$5 -> Looptijd | T5: =Tijd!T$5 -> Looptijd | U5: =Tijd!U$5 -> Looptijd | V5: =Tijd!V$5 -> Looptijd | W5: =Tijd!W$5 -> Looptijd | X5: =Tijd!X$5 -> Looptijd | Y5: =Tijd!Y$5 -> Looptijd | Z5: =Tijd!Z$5 -> Looptijd | AA5: =Tijd!AA$5 -> Looptijd | AB5: =Tijd!AB$5 -> Looptijd | AC5: =Tijd!AC$5 -> Looptijd | AD5: =Tijd!AD$5 -> Looptijd | AE5: =Tijd!AE$5 -> Looptijd | AF5: =Tijd!AF$5 -> Looptijd | AG5: =Tijd!AG$5 -> Looptijd | AH5: =Tijd!AH$5 -> Looptijd | AI5: =Tijd!AI$5 -> Looptijd | AJ5: =Tijd!AJ$5 -> Looptijd | AK5: =Tijd!AK$5 -> Looptijd | AL5: =Tijd!AL$5 -> Looptijd | AM5: =Tijd!AM$5 -> Looptijd | AN5: =Tijd!AN$5 -> Looptijd | AO5: =Tijd!AO$5 -> Looptijd | AP5: =Tijd!AP$5 -> Looptijd | AQ5: =Tijd!AQ$5 -> Looptijd | AR5: =Tijd!AR$5 -> Looptijd | AS5: =Tijd!AS$5 -> Looptijd | AT5: =Tijd!AT$5 -> Looptijd | AU5: =Tijd!AU$5 -> Looptijd | AV5: =Tijd!AV$5 -> Looptijd | AW5: =Tijd!AW$5 -> Looptijd | AX5: =Tijd!AX$5 -> Looptijd | AY5: =Tijd!AY$5 -> Looptijd | AZ5: =Tijd!AZ$5 -> Looptijd | BA5: =Tijd!BA$5 -> Looptijd | BB5: =Tijd!BB$5 -> Looptijd | BC5: =Tijd!BC$5 -> Looptijd | BD5: =Tijd!BD$5 -> Looptijd | BE5: =Tijd!BE$5 -> Looptijd | BF5: =Tijd!BF$5 -> Looptijd | BG5: =Tijd!BG$5 -> Looptijd | BH5: =Tijd!BH$5 -> Looptijd | BI5: =Tijd!BI$5 -> Looptijd | BJ5: =Tijd!BJ$5 -> Uitlooptijd | BK5: =Tijd!BK$5 -> Uitlooptijd | BL5: =Tijd!BL$5 -> Uitlooptijd | BM5: =Tijd!BM$5 -> Uitlooptijd | BN5: =Tijd!BN$5 -> Uitlooptijd | BO5: =Tijd!BO$5 -> Uitlooptijd | BP5: =Tijd!BP$5 -> Uitlooptijd | BQ5: =Tijd!BQ$5 -> Uitlooptijd | BR5: =Tijd!BR$5 -> Uitlooptijd | BS5: =Tijd!BS$5 -> Uitlooptijd | BT5: =Tijd!BT$5 -> Uitlooptijd | BU5: =Tijd!BU$5 -> Uitlooptijd | BV5: =Tijd!BV$5 -> Uitlooptijd | BW5: =Tijd!BW$5 -> Uitlooptijd | BX5: =Tijd!BX$5 -> Uitlooptijd | BY5: =Tijd!BY$5 -> Uitlooptijd | BZ5: =Tijd!BZ$5 -> Uitlooptijd | CA5: =Tijd!CA$5 -> Uitlooptijd | CB5: =Tijd!CB$5 -> Uitlooptijd | CC5: =Tijd!CC$5 -> Uitlooptijd | CD5: =Tijd!CD$5 -> Uitlooptijd | CE5: =Tijd!CE$5 -> Uitlooptijd | CF5: =Tijd!CF$5 -> Uitlooptijd | CG5: =Tijd!CG$5 -> Uitlooptijd | CH5: =Tijd!CH$5 -> Uitlooptijd | CI5: =Tijd!CI$5 -> Uitlooptijd | CJ5: =Tijd!CJ$5 -> Uitlooptijd | CK5: =Tijd!CK$5 -> Uitlooptijd | CL5: =Tijd!CL$5 -> Uitlooptijd | CM5: =Tijd!CM$5 -> Uitlooptijd | CN5: =Tijd!CN$5 -> Uitlooptijd | CO5: =Tijd!CO$5 -> Uitlooptijd | CP5: =Tijd!CP$5 -> Uitlooptijd | CQ5: =Tijd!CQ$5 -> Uitlooptijd | CR5: =Tijd!CR$5 -> Uitlooptijd | CS5: =Tijd!CS$5 -> Uitlooptijd | CT5: =Tijd!CT$5 -> Uitlooptijd | CU5: =Tijd!CU$5 -> Uitlooptijd | CV5: =Tijd!CV$5 -> Uitlooptijd | CW5: =Tijd!CW$5 -> Uitlooptijd | CX5: =Tijd!CX$5 -> Uitlooptijd | CY5: =Tijd!CY$5 -> Uitlooptijd | CZ5: =Tijd!CZ$5 -> Uitlooptijd | DA5: =Tijd!DA$5 -> Uitlooptijd | DB5: =Tijd!DB$5 -> Uitlooptijd | DC5: =Tijd!DC$5 -> Uitlooptijd | DD5: =Tijd!DD$5 -> Uitlooptijd | DE5: =Tijd!DE$5 -> Uitlooptijd | DF5: =Tijd!DF$5 -> Uitlooptijd
E6: =Tijd!E$10 -> Model kolom teller | F6: Bron | G6: Constante | H6: Eenheid | I6: Totaal | K6: =Tijd!K$10 -> 1 | L6: =Tijd!L$10 -> 2 | M6: =Tijd!M$10 -> 3 | N6: =Tijd!N$10 -> 4 | O6: =Tijd!O$10 -> 5 | P6: =Tijd!P$10 -> 6 | Q6: =Tijd!Q$10 -> 7 | R6: =Tijd!R$10 -> 8 | S6: =Tijd!S$10 -> 9 | T6: =Tijd!T$10 -> 10 | U6: =Tijd!U$10 -> 11 | V6: =Tijd!V$10 -> 12 | W6: =Tijd!W$10 -> 13 | X6: =Tijd!X$10 -> 14 | Y6: =Tijd!Y$10 -> 15 | Z6: =Tijd!Z$10 -> 16 | AA6: =Tijd!AA$10 -> 17 | AB6: =Tijd!AB$10 -> 18 | AC6: =Tijd!AC$10 -> 19 | AD6: =Tijd!AD$10 -> 20 | AE6: =Tijd!AE$10 -> 21 | AF6: =Tijd!AF$10 -> 22 | AG6: =Tijd!AG$10 -> 23 | AH6: =Tijd!AH$10 -> 24 | AI6: =Tijd!AI$10 -> 25 | AJ6: =Tijd!AJ$10 -> 26 | AK6: =Tijd!AK$10 -> 27 | AL6: =Tijd!AL$10 -> 28 | AM6: =Tijd!AM$10 -> 29 | AN6: =Tijd!AN$10 -> 30 | AO6: =Tijd!AO$10 -> 31 | AP6: =Tijd!AP$10 -> 32 | AQ6: =Tijd!AQ$10 -> 33 | AR6: =Tijd!AR$10 -> 34 | AS6: =Tijd!AS$10 -> 35 | AT6: =Tijd!AT$10 -> 36 | AU6: =Tijd!AU$10 -> 37 | AV6: =Tijd!AV$10 -> 38 | AW6: =Tijd!AW$10 -> 39 | AX6: =Tijd!AX$10 -> 40 | AY6: =Tijd!AY$10 -> 41 | AZ6: =Tijd!AZ$10 -> 42 | BA6: =Tijd!BA$10 -> 43 | BB6: =Tijd!BB$10 -> 44 | BC6: =Tijd!BC$10 -> 45 | BD6: =Tijd!BD$10 -> 46 | BE6: =Tijd!BE$10 -> 47 | BF6: =Tijd!BF$10 -> 48 | BG6: =Tijd!BG$10 -> 49 | BH6: =Tijd!BH$10 -> 50 | BI6: =Tijd!BI$10 -> 51 | BJ6: =Tijd!BJ$10 -> 52 | BK6: =Tijd!BK$10 -> 53 | BL6: =Tijd!BL$10 -> 54 | BM6: =Tijd!BM$10 -> 55 | BN6: =Tijd!BN$10 -> 56 | BO6: =Tijd!BO$10 -> 57 | BP6: =Tijd!BP$10 -> 58 | BQ6: =Tijd!BQ$10 -> 59 | BR6: =Tijd!BR$10 -> 60 | BS6: =Tijd!BS$10 -> 61 | BT6: =Tijd!BT$10 -> 62 | BU6: =Tijd!BU$10 -> 63 | BV6: =Tijd!BV$10 -> 64 | BW6: =Tijd!BW$10 -> 65 | BX6: =Tijd!BX$10 -> 66 | BY6: =Tijd!BY$10 -> 67 | BZ6: =Tijd!BZ$10 -> 68 | CA6: =Tijd!CA$10 -> 69 | CB6: =Tijd!CB$10 -> 70 | CC6: =Tijd!CC$10 -> 71 | CD6: =Tijd!CD$10 -> 72 | CE6: =Tijd!CE$10 -> 73 | CF6: =Tijd!CF$10 -> 74 | CG6: =Tijd!CG$10 -> 75 | CH6: =Tijd!CH$10 -> 76 | CI6: =Tijd!CI$10 -> 77 | CJ6: =Tijd!CJ$10 -> 78 | CK6: =Tijd!CK$10 -> 79 | CL6: =Tijd!CL$10 -> 80 | CM6: =Tijd!CM$10 -> 81 | CN6: =Tijd!CN$10 -> 82 | CO6: =Tijd!CO$10 -> 83 | CP6: =Tijd!CP$10 -> 84 | CQ6: =Tijd!CQ$10 -> 85 | CR6: =Tijd!CR$10 -> 86 | CS6: =Tijd!CS$10 -> 87 | CT6: =Tijd!CT$10 -> 88 | CU6: =Tijd!CU$10 -> 89 | CV6: =Tijd!CV$10 -> 90 | CW6: =Tijd!CW$10 -> 91 | CX6: =Tijd!CX$10 -> 92 | CY6: =Tijd!CY$10 -> 93 | CZ6: =Tijd!CZ$10 -> 94 | DA6: =Tijd!DA$10 -> 95 | DB6: =Tijd!DB$10 -> 96 | DC6: =Tijd!DC$10 -> 97 | DD6: =Tijd!DD$10 -> 98 | DE6: =Tijd!DE$10 -> 99 | DF6: =Tijd!DF$10 -> 100
A9: INVESTERINGSJAAR 2000 - START GAW
E10: Startwaarde GAW incl. afgekochte precario (31-12-2000) | G10: 101561749.2 | H10: €
E11: Afschrijvingen Start GAW | G11: 4570020.556 | H11: €
E12: Afgekochte precario in Start GAW (31-12-2000) | H12: €
E13: Afschrijvingsbedrag afgekochte precario | H13: €
A15: INVESTERINGSJAAR 2001
B17: Investeringen 2001
E18: Aanschafwaarde investeringen 2001 met afschrijvingstermijn 50 | G18: 2186082.5 | H18: € | I18: =SUM(K18:DF18) -> 0
E19: Aanschafwaarde investeringen 2001 met afschrijvingstermijn 40 | G19: 951060.9 | H19: € | I19: 0
E20: Aanschafwaarde investeringen 2001 met afschrijvingstermijn 30 | G20: 0 | H20: € | I20: 0
E21: Aanschafwaarde investeringen 2001 met afschrijvingstermijn 25 | G21: 20829.1 | H21: € | I21: 0
E22: Aanschafwaarde investeringen 2001 met afschrijvingstermijn 20 | H22: € | I22: 0
E23: Aanschafwaarde investeringen 2001 met afschrijvingstermijn 10 | H23: € | I23: 0
E24: Aanschafwaarde investeringen 2001 met afschrijvingstermijn 5 | H24: € | I24: 0
E25: Aanschafwaarde investeringen 2001 met afschrijvingstermijn 3 | H25: € | I25: 0
E26: Aanschafwaarde investeringen 2001 zonder afschrijvingstermijn | H26: € | I26: 0
B28: Desinvesteringen 2001
E29: Desinvesteringen 2001 met afschrijvingstermijn 50 | H29: € | I29: =SUM(K29:DF29) -> 0
E30: Desinvesteringen 2001 met afschrijvingstermijn 40 | H30: € | I30: 0
E31: Desinvesteringen 2001 met afschrijvingstermijn 30 | H31: € | I31: 0
E32: Desinvesteringen 2001 met afschrijvingstermijn 25 | H32: € | I32: 0
E33: Desinvesteringen 2001 met afschrijvingstermijn 20 | H33: € | I33: 0
E34: Desinvesteringen 2001 met afschrijvingstermijn 10 | H34: € | I34: 0
E35: Desinvesteringen 2001 met afschrijvingstermijn 5 | H35: € | I35: 0
E36: Desinvesteringen 2001 met afschrijvingstermijn 3 | H36: € | I36: 0
E37: Desinvesteringen 2001 zonder afschrijvingstermijn | H37: € | I37: 0
B39: Opgegeven Afschrijvingen 2001
E40: Opgegeven afschrijvingen 2001 met afschrijvingstermijn 50 | H40: € | I40: =SUM(K40:DF40) -> 240469.075 | L40: 21860.825 | M40: 43721.65 | N40: 43721.65 | O40: 43721.65 | P40: 43721.65 | Q40: 43721.65
E41: Opgegeven afschrijvingen 2001 met afschrijvingstermijn 40 | H41: € | I41: 130770.8737 | L41: 11888.26125 | M41: 23776.5225 | N41: 23776.5225 | O41: 23776.5225 | P41: 23776.5225 | Q41: 23776.5225
E42: Opgegeven afschrijvingen 2001 met afschrijvingstermijn 30 | H42: € | I42: 0 | L42: 0 | M42: 0 | N42: 0 | O42: 0 | P42: 0 | Q42: 0
E43: Opgegeven afschrijvingen 2001 met afschrijvingstermijn 25 | H43: € | I43: 4582.402 | L43: 416.582 | M43: 833.164 | N43: 833.164 | O43: 833.164 | P43: 833.164 | Q43: 833.164
E44: Opgegeven afschrijvingen 2001 met afschrijvingstermijn 20 | H44: € | I44: 0
E45: Opgegeven afschrijvingen 2001 met afschrijvingstermijn 10 | H45: € | I45: 0
E46: Opgegeven afschrijvingen 2001 met afschrijvingstermijn 5 | H46: € | I46: 0
E47: Opgegeven afschrijvingen 2001 met afschrijvingstermijn 3 | H47: € | I47: 0
E48: Opgegeven afschrijvingen 2001 zonder afschrijvingstermijn | H48: € | I48: 0
B50: Opgegeven Cumulatieve Afschrijvingen Bij Desinvesteringen 2001
E51: Opgegeven c.a.d. 2001 met afschrijvingstermijn 50 | H51: € | I51: =SUM(K51:DF51) -> 0
E52: Opgegeven c.a.d. 2001 met afschrijvingstermijn 40 | H52: € | I52: 0
E53: Opgegeven c.a.d. 2001 met afschrijvingstermijn 30 | H53: € | I53: 0
E54: Opgegeven c.a.d. 2001 met afschrijvingstermijn 25 | H54: € | I54: 0
E55: Opgegeven c.a.d. 2001 met afschrijvingstermijn 20 | H55: € | I55: 0
E56: Opgegeven c.a.d. 2001 met afschrijvingstermijn 10 | H56: € | I56: 0
E57: Opgegeven c.a.d. 2001 met afschrijvingstermijn 5 | H57: € | I57: 0
E58: Opgegeven c.a.d. 2001 met afschrijvingstermijn 3 | H58: € | I58: 0
E59: Opgegeven c.a.d. 2001 zonder afschrijvingstermijn | H59: € | I59: 0
B61: Bijzondere Waardeverminderingen Op Activa 2001
E62: Bijzondere waardeverminderingen op activa 2001 met afschrijvingstermijn 50 | H62: € | I62: =SUM(K62:DF62) -> 0
E63: Bijzondere waardeverminderingen op activa 2001 met afschrijvingstermijn 40 | H63: € | I63: 0
E64: Bijzondere waardeverminderingen op activa 2001 met afschrijvingstermijn 30 | H64: € | I64: 0
E65: Bijzondere waardeverminderingen op activa 2001 met afschrijvingstermijn 25 | H65: € | I65: 0
E66: Bijzondere waardeverminderingen op activa 2001 met afschrijvingstermijn 20 | H66: € | I66: 0
E67: Bijzondere waardeverminderingen op activa 2001 met afschrijvingstermijn 10 | H67: € | I67: 0
E68: Bijzondere waardeverminderingen op activa 2001 met afschrijvingstermijn 5 | H68: € | I68: 0
E69: Bijzondere waardeverminderingen op activa 2001 met afschrijvingstermijn 3 | H69: € | I69: 0
E70: Bijzondere waardeverminderingen op activa 2001 zonder afschrijvingstermijn | H70: € | I70: 0
B72: Input Alert
E73: Dummy Beginjaar investeringen
E74: Dummy Modelperiode
E75: Dummy Aantal cellen met onterechte input 2001
E76: Dummy Waarschuwing onterecht ingevulde cellen 2001
A78: INVESTERINGSJAAR 2002
B80: Investeringen 2002
E81: Aanschafwaarde investeringen 2002 met afschrijvingstermijn 50 | G81: 1757098.9 | H81: € | I81: =SUM(K81:DF81) -> 0
E82: Aanschafwaarde investeringen 2002 met afschrijvingstermijn 40 | G82: 121888.1 | H82: € | I82: 0
E83: Aanschafwaarde investeringen 2002 met afschrijvingstermijn 30 | G83: 0 | H83: € | I83: 0
E84: Aanschafwaarde investeringen 2002 met afschrijvingstermijn 25 | G84: 7778.5 | H84: € | I84: 0
E85: Aanschafwaarde investeringen 2002 met afschrijvingstermijn 20 | H85: € | I85: 0
E86: Aanschafwaarde investeringen 2002 met afschrijvingstermijn 10 | H86: € | I86: 0
E87: Aanschafwaarde investeringen 2002 met afschrijvingstermijn 5 | H87: € | I87: 0
E88: Aanschafwaarde investeringen 2002 met afschrijvingstermijn 3 | H88: € | I88: 0
E89: Aanschafwaarde investeringen 2002 zonder afschrijvingstermijn | H89: € | I89: 0
B91: Desinvesteringen 2002
E92: Desinvesteringen 2002 met afschrijvingstermijn 50 | H92: € | I92: =SUM(K92:DF92) -> 0
E93: Desinvesteringen 2002 met afschrijvingstermijn 40 | H93: € | I93: 0
E94: Desinvesteringen 2002 met afschrijvingstermijn 30 | H94: € | I94: 0
E95: Desinvesteringen 2002 met afschrijvingstermijn 25 | H95: € | I95: 0
E96: Desinvesteringen 2002 met afschrijvingstermijn 20 | H96: € | I96: 0
E97: Desinvesteringen 2002 met afschrijvingstermijn 10 | H97: € | I97: 0
E98: Desinvesteringen 2002 met afschrijvingstermijn 5 | H98: € | I98: 0
E99: Desinvesteringen 2002 met afschrijvingstermijn 3 | H99: € | I99: 0
E100: Desinvesteringen 2002 zonder afschrijvingstermijn | H100: € | I100: 0
B102: Opgegeven Afschrijvingen 2002
E103: Opgegeven afschrijvingen 2002 met afschrijvingstermijn 50 | H103: € | I103: =SUM(K103:DF103) -> 158138.901 | M103: 17570.989 | N103: 35141.978 | O103: 35141.978 | P103: 35141.978 | Q103: 35141.978
E104: Opgegeven afschrijvingen 2002 met afschrijvingstermijn 40 | H104: € | I104: 13712.41125 | M104: 1523.60125 | N104: 3047.2025 | O104: 3047.2025 | P104: 3047.2025 | Q104: 3047.2025
E105: Opgegeven afschrijvingen 2002 met afschrijvingstermijn 30 | H105: € | I105: 0 | M105: 0 | N105: 0 | O105: 0 | P105: 0 | Q105: 0
E106: Opgegeven afschrijvingen 2002 met afschrijvingstermijn 25 | H106: € | I106: 1400.13 | M106: 155.57 | N106: 311.14 | O106: 311.14 | P106: 311.14 | Q106: 311.14
E107: Opgegeven afschrijvingen 2002 met afschrijvingstermijn 20 | H107: € | I107: 0
E108: Opgegeven afschrijvingen 2002 met afschrijvingstermijn 10 | H108: € | I108: 0
E109: Opgegeven afschrijvingen 2002 met afschrijvingstermijn 5 | H109: € | I109: 0
E110: Opgegeven afschrijvingen 2002 met afschrijvingstermijn 3 | H110: € | I110: 0
E111: Opgegeven afschrijvingen 2002 zonder afschrijvingstermijn | H111: € | I111: 0
B113: Opgegeven Cumulatieve Afschrijvingen Bij Desinvesteringen 2002
E114: Opgegeven c.a.d. 2002 met afschrijvingstermijn 50 | H114: € | I114: =SUM(K114:DF114) -> 0
E115: Opgegeven c.a.d. 2002 met afschrijvingstermijn 40 | H115: € | I115: 0
E116: Opgegeven c.a.d. 2002 met afschrijvingstermijn 30 | H116: € | I116: 0
E117: Opgegeven c.a.d. 2002 met afschrijvingstermijn 25 | H117: € | I117: 0
E118: Opgegeven c.a.d. 2002 met afschrijvingstermijn 20 | H118: € | I118: 0
E119: Opgegeven c.a.d. 2002 met afschrijvingstermijn 10 | H119: € | I119: 0
E120: Opgegeven c.a.d. 2002 met afschrijvingstermijn 5 | H120: € | I120: 0
E121: Opgegeven c.a.d. 2002 met afschrijvingstermijn 3 | H121: € | I121: 0
E122: Opgegeven c.a.d. 2002 zonder afschrijvingstermijn | H122: € | I122: 0
B124: Bijzondere Waardeverminderingen Op Activa 2002
E125: Bijzondere waardeverminderingen op activa 2002 met afschrijvingstermijn 50 | H125: € | I125: =SUM(K125:DF125) -> 0
E126: Bijzondere waardeverminderingen op activa 2002 met afschrijvingstermijn 40 | H126: € | I126: 0
E127: Bijzondere waardeverminderingen op activa 2002 met afschrijvingstermijn 30 | H127: € | I127: 0
E128: Bijzondere waardeverminderingen op activa 2002 met afschrijvingstermijn 25 | H128: € | I128: 0
E129: Bijzondere waardeverminderingen op activa 2002 met afschrijvingstermijn 20 | H129: € | I129: 0
E130: Bijzondere waardeverminderingen op activa 2002 met afschrijvingstermijn 10 | H130: € | I130: 0
E131: Bijzondere waardeverminderingen op activa 2002 met afschrijvingstermijn 5 | H131: € | I131: 0
E132: Bijzondere waardeverminderingen op activa 2002 met afschrijvingstermijn 3 | H132: € | I132: 0
E133: Bijzondere waardeverminderingen op activa 2002 zonder afschrijvingstermijn | H133: € | I133: 0
B135: Input Alert
E136: Dummy Beginjaar investeringen
E137: Dummy Modelperiode
E138: Dummy Aantal cellen met onterechte input 2002
E139: Dummy Waarschuwing onterecht ingevulde cellen 2002
A141: INVESTERINGSJAAR 2003
B143: Investeringen 2003
E144: Aanschafwaarde investeringen 2003 met afschrijvingstermijn 50 | G144: 3313000 | H144: € | I144: =SUM(K144:DF144) -> 0
E145: Aanschafwaarde investeringen 2003 met afschrijvingstermijn 40 | G145: 1040000 | H145: € | I145: 0
E146: Aanschafwaarde investeringen 2003 met afschrijvingstermijn 30 | G146: 0 | H146: € | I146: 0
E147: Aanschafwaarde investeringen 2003 met afschrijvingstermijn 25 | G147: 55000 | H147: € | I147: 0
E148: Aanschafwaarde investeringen 2003 met afschrijvingstermijn 20 | H148: € | I148: 0
E149: Aanschafwaarde investeringen 2003 met afschrijvingstermijn 10 | H149: € | I149: 0
E150: Aanschafwaarde investeringen 2003 met afschrijvingstermijn 5 | H150: € | I150: 0
E151: Aanschafwaarde investeringen 2003 met afschrijvingstermijn 3 | H151: € | I151: 0
E152: Aanschafwaarde investeringen 2003 zonder afschrijvingstermijn | H152: € | I152: 0
B154: Desinvesteringen 2003
E155: Desinvesteringen 2003 met afschrijvingstermijn 50 | H155: € | I155: =SUM(K155:DF155) -> 2493.215842 | V155: 2493.215842
E156: Desinvesteringen 2003 met afschrijvingstermijn 40 | H156: € | I156: 0
E157: Desinvesteringen 2003 met afschrijvingstermijn 30 | H157: € | I157: 0
E158: Desinvesteringen 2003 met afschrijvingstermijn 25 | H158: € | I158: 0
E159: Desinvesteringen 2003 met afschrijvingstermijn 20 | H159: € | I159: 0
E160: Desinvesteringen 2003 met afschrijvingstermijn 10 | H160: € | I160: 0
E161: Desinvesteringen 2003 met afschrijvingstermijn 5 | H161: € | I161: 0
E162: Desinvesteringen 2003 met afschrijvingstermijn 3 | H162: € | I162: 0
E163: Desinvesteringen 2003 zonder afschrijvingstermijn | H163: € | I163: 0
B165: Opgegeven Afschrijvingen 2003
E166: Opgegeven afschrijvingen 2003 met afschrijvingstermijn 50 | H166: € | I166: =SUM(K166:DF166) -> 231910 | N166: 33130 | O166: 66260 | P166: 66260 | Q166: 66260
E167: Opgegeven afschrijvingen 2003 met afschrijvingstermijn 40 | H167: € | I167: 91000 | N167: 13000 | O167: 26000 | P167: 26000 | Q167: 26000
E168: Opgegeven afschrijvingen 2003 met afschrijvingstermijn 30 | H168: € | I168: 0 | N168: 0 | O168: 0 | P168: 0 | Q168: 0
E169: Opgegeven afschrijvingen 2003 met afschrijvingstermijn 25 | H169: € | I169: 7700 | N169: 1100 | O169: 2200 | P169: 2200 | Q169: 2200
E170: Opgegeven afschrijvingen 2003 met afschrijvingstermijn 20 | H170: € | I170: 0
E171: Opgegeven afschrijvingen 2003 met afschrijvingstermijn 10 | H171: € | I171: 0
E172: Opgegeven afschrijvingen 2003 met afschrijvingstermijn 5 | H172: € | I172: 0
E173: Opgegeven afschrijvingen 2003 met afschrijvingstermijn 3 | H173: € | I173: 0
E174: Opgegeven afschrijvingen 2003 zonder afschrijvingstermijn | H174: € | I174: 0
B176: Opgegeven Cumulatieve Afschrijvingen Bij Desinvesteringen 2003
E177: Opgegeven c.a.d. 2003 met afschrijvingstermijn 50 | H177: € | I177: =SUM(K177:DF177) -> 0
E178: Opgegeven c.a.d. 2003 met afschrijvingstermijn 40 | H178: € | I178: 0
E179: Opgegeven c.a.d. 2003 met afschrijvingstermijn 30 | H179: € | I179: 0
E180: Opgegeven c.a.d. 2003 met afschrijvingstermijn 25 | H180: € | I180: 0
E181: Opgegeven c.a.d. 2003 met afschrijvingstermijn 20 | H181: € | I181: 0
E182: Opgegeven c.a.d. 2003 met afschrijvingstermijn 10 | H182: € | I182: 0
E183: Opgegeven c.a.d. 2003 met afschrijvingstermijn 5 | H183: € | I183: 0
E184: Opgegeven c.a.d. 2003 met afschrijvingstermijn 3 | H184: € | I184: 0
E185: Opgegeven c.a.d. 2003 zonder afschrijvingstermijn | H185: € | I185: 0
B187: Bijzondere Waardeverminderingen Op Activa 2003
E188: Bijzondere waardeverminderingen op activa 2003 met afschrijvingstermijn 50 | H188: € | I188: =SUM(K188:DF188) -> 0
E189: Bijzondere waardeverminderingen op activa 2003 met afschrijvingstermijn 40 | H189: € | I189: 0
E190: Bijzondere waardeverminderingen op activa 2003 met afschrijvingstermijn 30 | H190: € | I190: 0
E191: Bijzondere waardeverminderingen op activa 2003 met afschrijvingstermijn 25 | H191: € | I191: 0
E192: Bijzondere waardeverminderingen op activa 2003 met afschrijvingstermijn 20 | H192: € | I192: 0
E193: Bijzondere waardeverminderingen op activa 2003 met afschrijvingstermijn 10 | H193: € | I193: 0
E194: Bijzondere waardeverminderingen op activa 2003 met afschrijvingstermijn 5 | H194: € | I194: 0
E195: Bijzondere waardeverminderingen op activa 2003 met afschrijvingstermijn 3 | H195: € | I195: 0
E196: Bijzondere waardeverminderingen op activa 2003 zonder afschrijvingstermijn | H196: € | I196: 0
B198: Input Alert
E199: Dummy Beginjaar investeringen
E200: Dummy Modelperiode
E201: Dummy Aantal cellen met onterechte input 2003
E202: Dummy Waarschuwing onterecht ingevulde cellen 2003
A204: INVESTERINGSJAAR 2004
B206: Investeringen 2004
E207: Aanschafwaarde investeringen 2004 met afschrijvingstermijn 50 | G207: 1748158.755 | H207: € | I207: =SUM(K207:DF207) -> 0
E208: Aanschafwaarde investeringen 2004 met afschrijvingstermijn 40 | G208: 1213571.05 | H208: € | I208: 0
E209: Aanschafwaarde investeringen 2004 met afschrijvingstermijn 30 | G209: 0 | H209: € | I209: 0
E210: Aanschafwaarde investeringen 2004 met afschrijvingstermijn 25 | G210: 44581.565 | H210: € | I210: 0
E211: Aanschafwaarde investeringen 2004 met afschrijvingstermijn 20 | H211: € | I211: 0
E212: Aanschafwaarde investeringen 2004 met afschrijvingstermijn 10 | H212: € | I212: 0
E213: Aanschafwaarde investeringen 2004 met afschrijvingstermijn 5 | H213: € | I213: 0
E214: Aanschafwaarde investeringen 2004 met afschrijvingstermijn 3 | H214: € | I214: 0
E215: Aanschafwaarde investeringen 2004 zonder afschrijvingstermijn | H215: € | I215: 0
B217: Desinvesteringen 2004
E218: Desinvesteringen 2004 met afschrijvingstermijn 50 | H218: € | I218: =SUM(K218:DF218) -> 1762.274534 | V218: 1762.274534
E219: Desinvesteringen 2004 met afschrijvingstermijn 40 | H219: € | I219: 0
E220: Desinvesteringen 2004 met afschrijvingstermijn 30 | H220: € | I220: 0
E221: Desinvesteringen 2004 met afschrijvingstermijn 25 | H221: € | I221: 0
E222: Desinvesteringen 2004 met afschrijvingstermijn 20 | H222: € | I222: 0
E223: Desinvesteringen 2004 met afschrijvingstermijn 10 | H223: € | I223: 0
E224: Desinvesteringen 2004 met afschrijvingstermijn 5 | H224: € | I224: 0
E225: Desinvesteringen 2004 met afschrijvingstermijn 3 | H225: € | I225: 0
E226: Desinvesteringen 2004 zonder afschrijvingstermijn | H226: € | I226: 0
... 707 more rows

Sheet InpEnexis Excl HS
A1: =RIGHT(CELL("filename", A1), LEN(CELL("filename", A1)) - SEARCH("]", CELL("filename", A1))) -> InpEnexis Excl HS
E2: =Tijd!E$2 -> Actieve netbeheerder | G2: =Tijd!G$2 -> Cogas
E3: =Tijd!E$3 -> Actieve inputsheet | G3: =Tijd!G$3 -> InpCogas
E4: =Tijd!E$4 -> Modelperiode | G4: =Check!G4 -> 0 | H4: =Check!H4 -> errors | K4: =Tijd!K$4 -> 2000 | L4: =Tijd!L$4 -> 2001 | M4: =Tijd!M$4 -> 2002 | N4: =Tijd!N$4 -> 2003 | O4: =Tijd!O$4 -> 2004 | P4: =Tijd!P$4 -> 2005 | Q4: =Tijd!Q$4 -> 2006 | R4: =Tijd!R$4 -> 2007 | S4: =Tijd!S$4 -> 2008 | T4: =Tijd!T$4 -> 2009 | U4: =Tijd!U$4 -> 2010 | V4: =Tijd!V$4 -> 2011 | W4: =Tijd!W$4 -> 2012 | X4: =Tijd!X$4 -> 2013 | Y4: =Tijd!Y$4 -> 2014 | Z4: =Tijd!Z$4 -> 2015 | AA4: =Tijd!AA$4 -> 2016 | AB4: =Tijd!AB$4 -> 2017 | AC4: =Tijd!AC$4 -> 2018 | AD4: =Tijd!AD$4 -> 2019 | AE4: =Tijd!AE$4 -> 2020 | AF4: =Tijd!AF$4 -> 2021 | AG4: =Tijd!AG$4 -> 2022 | AH4: =Tijd!AH$4 -> 2023 | AI4: =Tijd!AI$4 -> 2024 | AJ4: =Tijd!AJ$4 -> 2025 | AK4: =Tijd!AK$4 -> 2026 | AL4: =Tijd!AL$4 -> 2027 | AM4: =Tijd!AM$4 -> 2028 | AN4: =Tijd!AN$4 -> 2029 | AO4: =Tijd!AO$4 -> 2030 | AP4: =Tijd!AP$4 -> 2031 | AQ4: =Tijd!AQ$4 -> 2032 | AR4: =Tijd!AR$4 -> 2033 | AS4: =Tijd!AS$4 -> 2034 | AT4: =Tijd!AT$4 -> 2035 | AU4: =Tijd!AU$4 -> 2036 | AV4: =Tijd!AV$4 -> 2037 | AW4: =Tijd!AW$4 -> 2038 | AX4: =Tijd!AX$4 -> 2039 | AY4: =Tijd!AY$4 -> 2040 | AZ4: =Tijd!AZ$4 -> 2041 | BA4: =Tijd!BA$4 -> 2042 | BB4: =Tijd!BB$4 -> 2043 | BC4: =Tijd!BC$4 -> 2044 | BD4: =Tijd!BD$4 -> 2045 | BE4: =Tijd!BE$4 -> 2046 | BF4: =Tijd!BF$4 -> 2047 | BG4: =Tijd!BG$4 -> 2048 | BH4: =Tijd!BH$4 -> 2049 | BI4: =Tijd!BI$4 -> 2050 | BJ4: =Tijd!BJ$4 -> 2051 | BK4: =Tijd!BK$4 -> 2052 | BL4: =Tijd!BL$4 -> 2053 | BM4: =Tijd!BM$4 -> 2054 | BN4: =Tijd!BN$4 -> 2055 | BO4: =Tijd!BO$4 -> 2056 | BP4: =Tijd!BP$4 -> 2057 | BQ4: =Tijd!BQ$4 -> 2058 | BR4: =Tijd!BR$4 -> 2059 | BS4: =Tijd!BS$4 -> 2060 | BT4: =Tijd!BT$4 -> 2061 | BU4: =Tijd!BU$4 -> 2062 | BV4: =Tijd!BV$4 -> 2063 | BW4: =Tijd!BW$4 -> 2064 | BX4: =Tijd!BX$4 -> 2065 | BY4: =Tijd!BY$4 -> 2066 | BZ4: =Tijd!BZ$4 -> 2067 | CA4: =Tijd!CA$4 -> 2068 | CB4: =Tijd!CB$4 -> 2069 | CC4: =Tijd!CC$4 -> 2070 | CD4: =Tijd!CD$4 -> 2071 | CE4: =Tijd!CE$4 -> 2072 | CF4: =Tijd!CF$4 -> 2073 | CG4: =Tijd!CG$4 -> 2074 | CH4: =Tijd!CH$4 -> 2075 | CI4: =Tijd!CI$4 -> 2076 | CJ4: =Tijd!CJ$4 -> 2077 | CK4: =Tijd!CK$4 -> 2078 | CL4: =Tijd!CL$4 -> 2079 | CM4: =Tijd!CM$4 -> 2080 | CN4: =Tijd!CN$4 -> 2081 | CO4: =Tijd!CO$4 -> 2082 | CP4: =Tijd!CP$4 -> 2083 | CQ4: =Tijd!CQ$4 -> 2084 | CR4: =Tijd!CR$4 -> 2085 | CS4: =Tijd!CS$4 -> 2086 | CT4: =Tijd!CT$4 -> 2087 | CU4: =Tijd!CU$4 -> 2088 | CV4: =Tijd!CV$4 -> 2089 | CW4: =Tijd!CW$4 -> 2090 | CX4: =Tijd!CX$4 -> 2091 | CY4: =Tijd!CY$4 -> 2092 | CZ4: =Tijd!CZ$4 -> 2093 | DA4: =Tijd!DA$4 -> 2094 | DB4: =Tijd!DB$4 -> 2095 | DC4: =Tijd!DC$4 -> 2096 | DD4: =Tijd!DD$4 -> 2097 | DE4: =Tijd!DE$4 -> 2098 | DF4: =Tijd!DF$4 -> 2099
E5: =Tijd!E$5 -> Looptijd vs Uitlooptijd | G5: =Check!G5 -> 0 | H5: =Check!H5 -> waarschuwingen | K5: =Tijd!K$5 -> Looptijd | L5: =Tijd!L$5 -> Looptijd | M5: =Tijd!M$5 -> Looptijd | N5: =Tijd!N$5 -> Looptijd | O5: =Tijd!O$5 -> Looptijd | P5: =Tijd!P$5 -> Looptijd | Q5: =Tijd!Q$5 -> Looptijd | R5: =Tijd!R$5 -> Looptijd | S5: =Tijd!S$5 -> Looptijd | T5: =Tijd!T$5 -> Looptijd | U5: =Tijd!U$5 -> Looptijd | V5: =Tijd!V$5 -> Looptijd | W5: =Tijd!W$5 -> Looptijd | X5: =Tijd!X$5 -> Looptijd | Y5: =Tijd!Y$5 -> Looptijd | Z5: =Tijd!Z$5 -> Looptijd | AA5: =Tijd!AA$5 -> Looptijd | AB5: =Tijd!AB$5 -> Looptijd | AC5: =Tijd!AC$5 -> Looptijd | AD5: =Tijd!AD$5 -> Looptijd | AE5: =Tijd!AE$5 -> Looptijd | AF5: =Tijd!AF$5 -> Looptijd | AG5: =Tijd!AG$5 -> Looptijd | AH5: =Tijd!AH$5 -> Looptijd | AI5: =Tijd!AI$5 -> Looptijd | AJ5: =Tijd!AJ$5 -> Looptijd | AK5: =Tijd!AK$5 -> Looptijd | AL5: =Tijd!AL$5 -> Looptijd | AM5: =Tijd!AM$5 -> Looptijd | AN5: =Tijd!AN$5 -> Looptijd | AO5: =Tijd!AO$5 -> Looptijd | AP5: =Tijd!AP$5 -> Looptijd | AQ5: =Tijd!AQ$5 -> Looptijd | AR5: =Tijd!AR$5 -> Looptijd | AS5: =Tijd!AS$5 -> Looptijd | AT5: =Tijd!AT$5 -> Looptijd | AU5: =Tijd!AU$5 -> Looptijd | AV5: =Tijd!AV$5 -> Looptijd | AW5: =Tijd!AW$5 -> Looptijd | AX5: =Tijd!AX$5 -> Looptijd | AY5: =Tijd!AY$5 -> Looptijd | AZ5: =Tijd!AZ$5 -> Looptijd | BA5: =Tijd!BA$5 -> Looptijd | BB5: =Tijd!BB$5 -> Looptijd | BC5: =Tijd!BC$5 -> Looptijd | BD5: =Tijd!BD$5 -> Looptijd | BE5: =Tijd!BE$5 -> Looptijd | BF5: =Tijd!BF$5 -> Looptijd | BG5: =Tijd!BG$5 -> Looptijd | BH5: =Tijd!BH$5 -> Looptijd | BI5: =Tijd!BI$5 -> Looptijd | BJ5: =Tijd!BJ$5 -> Uitlooptijd | BK5: =Tijd!BK$5 -> Uitlooptijd | BL5: =Tijd!BL$5 -> Uitlooptijd | BM5: =Tijd!BM$5 -> Uitlooptijd | BN5: =Tijd!BN$5 -> Uitlooptijd | BO5: =Tijd!BO$5 -> Uitlooptijd | BP5: =Tijd!BP$5 -> Uitlooptijd | BQ5: =Tijd!BQ$5 -> Uitlooptijd | BR5: =Tijd!BR$5 -> Uitlooptijd | BS5: =Tijd!BS$5 -> Uitlooptijd | BT5: =Tijd!BT$5 -> Uitlooptijd | BU5: =Tijd!BU$5 -> Uitlooptijd | BV5: =Tijd!BV$5 -> Uitlooptijd | BW5: =Tijd!BW$5 -> Uitlooptijd | BX5: =Tijd!BX$5 -> Uitlooptijd | BY5: =Tijd!BY$5 -> Uitlooptijd | BZ5: =Tijd!BZ$5 -> Uitlooptijd | CA5: =Tijd!CA$5 -> Uitlooptijd | CB5: =Tijd!CB$5 -> Uitlooptijd | CC5: =Tijd!CC$5 -> Uitlooptijd | CD5: =Tijd!CD$5 -> Uitlooptijd | CE5: =Tijd!CE$5 -> Uitlooptijd | CF5: =Tijd!CF$5 -> Uitlooptijd | CG5: =Tijd!CG$5 -> Uitlooptijd | CH5: =Tijd!CH$5 -> Uitlooptijd | CI5: =Tijd!CI$5 -> Uitlooptijd | CJ5: =Tijd!CJ$5 -> Uitlooptijd | CK5: =Tijd!CK$5 -> Uitlooptijd | CL5: =Tijd!CL$5 -> Uitlooptijd | CM5: =Tijd!CM$5 -> Uitlooptijd | CN5: =Tijd!CN$5 -> Uitlooptijd | CO5: =Tijd!CO$5 -> Uitlooptijd | CP5: =Tijd!CP$5 -> Uitlooptijd | CQ5: =Tijd!CQ$5 -> Uitlooptijd | CR5: =Tijd!CR$5 -> Uitlooptijd | CS5: =Tijd!CS$5 -> Uitlooptijd | CT5: =Tijd!CT$5 -> Uitlooptijd | CU5: =Tijd!CU$5 -> Uitlooptijd | CV5: =Tijd!CV$5 -> Uitlooptijd | CW5: =Tijd!CW$5 -> Uitlooptijd | CX5: =Tijd!CX$5 -> Uitlooptijd | CY5: =Tijd!CY$5 -> Uitlooptijd | CZ5: =Tijd!CZ$5 -> Uitlooptijd | DA5: =Tijd!DA$5 -> Uitlooptijd | DB5: =Tijd!DB$5 -> Uitlooptijd | DC5: =Tijd!DC$5 -> Uitlooptijd | DD5: =Tijd!DD$5 -> Uitlooptijd | DE5: =Tijd!DE$5 -> Uitlooptijd | DF5: =Tijd!DF$5 -> Uitlooptijd
E6: =Tijd!E$10 -> Model kolom teller | F6: Bron | G6: Constante | H6: Eenheid | I6: Totaal | K6: =Tijd!K$10 -> 1 | L6: =Tijd!L$10 -> 2 | M6: =Tijd!M$10 -> 3 | N6: =Tijd!N$10 -> 4 | O6: =Tijd!O$10 -> 5 | P6: =Tijd!P$10 -> 6 | Q6: =Tijd!Q$10 -> 7 | R6: =Tijd!R$10 -> 8 | S6: =Tijd!S$10 -> 9 | T6: =Tijd!T$10 -> 10 | U6: =Tijd!U$10 -> 11 | V6: =Tijd!V$10 -> 12 | W6: =Tijd!W$10 -> 13 | X6: =Tijd!X$10 -> 14 | Y6: =Tijd!Y$10 -> 15 | Z6: =Tijd!Z$10 -> 16 | AA6: =Tijd!AA$10 -> 17 | AB6: =Tijd!AB$10 -> 18 | AC6: =Tijd!AC$10 -> 19 | AD6: =Tijd!AD$10 -> 20 | AE6: =Tijd!AE$10 -> 21 | AF6: =Tijd!AF$10 -> 22 | AG6: =Tijd!AG$10 -> 23 | AH6: =Tijd!AH$10 -> 24 | AI6: =Tijd!AI$10 -> 25 | AJ6: =Tijd!AJ$10 -> 26 | AK6: =Tijd!AK$10 -> 27 | AL6: =Tijd!AL$10 -> 28 | AM6: =Tijd!AM$10 -> 29 | AN6: =Tijd!AN$10 -> 30 | AO6: =Tijd!AO$10 -> 31 | AP6: =Tijd!AP$10 -> 32 | AQ6: =Tijd!AQ$10 -> 33 | AR6: =Tijd!AR$10 -> 34 | AS6: =Tijd!AS$10 -> 35 | AT6: =Tijd!AT$10 -> 36 | AU6: =Tijd!AU$10 -> 37 | AV6: =Tijd!AV$10 -> 38 | AW6: =Tijd!AW$10 -> 39 | AX6: =Tijd!AX$10 -> 40 | AY6: =Tijd!AY$10 -> 41 | AZ6: =Tijd!AZ$10 -> 42 | BA6: =Tijd!BA$10 -> 43 | BB6: =Tijd!BB$10 -> 44 | BC6: =Tijd!BC$10 -> 45 | BD6: =Tijd!BD$10 -> 46 | BE6: =Tijd!BE$10 -> 47 | BF6: =Tijd!BF$10 -> 48 | BG6: =Tijd!BG$10 -> 49 | BH6: =Tijd!BH$10 -> 50 | BI6: =Tijd!BI$10 -> 51 | BJ6: =Tijd!BJ$10 -> 52 | BK6: =Tijd!BK$10 -> 53 | BL6: =Tijd!BL$10 -> 54 | BM6: =Tijd!BM$10 -> 55 | BN6: =Tijd!BN$10 -> 56 | BO6: =Tijd!BO$10 -> 57 | BP6: =Tijd!BP$10 -> 58 | BQ6: =Tijd!BQ$10 -> 59 | BR6: =Tijd!BR$10 -> 60 | BS6: =Tijd!BS$10 -> 61 | BT6: =Tijd!BT$10 -> 62 | BU6: =Tijd!BU$10 -> 63 | BV6: =Tijd!BV$10 -> 64 | BW6: =Tijd!BW$10 -> 65 | BX6: =Tijd!BX$10 -> 66 | BY6: =Tijd!BY$10 -> 67 | BZ6: =Tijd!BZ$10 -> 68 | CA6: =Tijd!CA$10 -> 69 | CB6: =Tijd!CB$10 -> 70 | CC6: =Tijd!CC$10 -> 71 | CD6: =Tijd!CD$10 -> 72 | CE6: =Tijd!CE$10 -> 73 | CF6: =Tijd!CF$10 -> 74 | CG6: =Tijd!CG$10 -> 75 | CH6: =Tijd!CH$10 -> 76 | CI6: =Tijd!CI$10 -> 77 | CJ6: =Tijd!CJ$10 -> 78 | CK6: =Tijd!CK$10 -> 79 | CL6: =Tijd!CL$10 -> 80 | CM6: =Tijd!CM$10 -> 81 | CN6: =Tijd!CN$10 -> 82 | CO6: =Tijd!CO$10 -> 83 | CP6: =Tijd!CP$10 -> 84 | CQ6: =Tijd!CQ$10 -> 85 | CR6: =Tijd!CR$10 -> 86 | CS6: =Tijd!CS$10 -> 87 | CT6: =Tijd!CT$10 -> 88 | CU6: =Tijd!CU$10 -> 89 | CV6: =Tijd!CV$10 -> 90 | CW6: =Tijd!CW$10 -> 91 | CX6: =Tijd!CX$10 -> 92 | CY6: =Tijd!CY$10 -> 93 | CZ6: =Tijd!CZ$10 -> 94 | DA6: =Tijd!DA$10 -> 95 | DB6: =Tijd!DB$10 -> 96 | DC6: =Tijd!DC$10 -> 97 | DD6: =Tijd!DD$10 -> 98 | DE6: =Tijd!DE$10 -> 99 | DF6: =Tijd!DF$10 -> 100
A9: INVESTERINGSJAAR 2000 - START GAW
E10: Startwaarde GAW incl. afgekochte precario (31-12-2000) | G10: 2912182290 | H10: €
E11: Afschrijvingen Start GAW | G11: 103340135.1 | H11: €
E12: Afgekochte precario in Start GAW (31-12-2000) | G12: 0 | H12: €
E13: Afschrijvingsbedrag afgekochte precario | G13: 0 | H13: €
A15: INVESTERINGSJAAR 2001
G16: 0
B17: Investeringen 2001 | G17: 0
E18: Aanschafwaarde investeringen 2001 met afschrijvingstermijn 50 | G18: 53504903.66 | H18: € | I18: =SUM(L18:DF18) -> 0
E19: Aanschafwaarde investeringen 2001 met afschrijvingstermijn 40 | G19: 18987479.52 | H19: € | I19: 0
E20: Aanschafwaarde investeringen 2001 met afschrijvingstermijn 30 | G20: 129000 | H20: € | I20: 0
E21: Aanschafwaarde investeringen 2001 met afschrijvingstermijn 25 | G21: 2448000 | H21: € | I21: 0
E22: Aanschafwaarde investeringen 2001 met afschrijvingstermijn 20 | G22: 0 | H22: € | I22: 0
E23: Aanschafwaarde investeringen 2001 met afschrijvingstermijn 10 | G23: 778950.3442 | H23: € | I23: 0
E24: Aanschafwaarde investeringen 2001 met afschrijvingstermijn 5 | G24: 12539130.48 | H24: € | I24: 0
E25: Aanschafwaarde investeringen 2001 met afschrijvingstermijn 3 | G25: 0 | H25: € | I25: 0
E26: Aanschafwaarde investeringen 2001 zonder afschrijvingstermijn | G26: 0 | H26: € | I26: 0
B28: Desinvesteringen 2001
E29: Desinvesteringen 2001 met afschrijvingstermijn 50 | H29: € | I29: 0 | L29: 0 | M29: 0 | N29: 0 | O29: 0 | P29: 0 | Q29: 0 | R29: 0 | S29: 0 | T29: 53000 | U29: 310000 | V29: 524594.77 | W29: 0
E30: Desinvesteringen 2001 met afschrijvingstermijn 40 | H30: € | I30: =SUM(K30:DF30) -> 277685.88 | R30: 221000 | T30: 14000 | V30: 42685.88
E31: Desinvesteringen 2001 met afschrijvingstermijn 30 | H31: € | I31: 18.97 | T31: 0 | V31: 18.97
E32: Desinvesteringen 2001 met afschrijvingstermijn 25 | H32: € | I32: 0 | L32: 0 | M32: 0 | N32: 0 | O32: 0 | P32: 0 | Q32: 0 | R32: 0 | S32: 0 | T32: 0 | U32: 0 | V32: 0 | W32: 0
E33: Desinvesteringen 2001 met afschrijvingstermijn 20 | H33: € | I33: 0
E34: Desinvesteringen 2001 met afschrijvingstermijn 10 | H34: € | I34: 273000 | P34: 195000 | T34: 78000
E35: Desinvesteringen 2001 met afschrijvingstermijn 5 | H35: € | I35: 2555000 | O35: 11000 | P35: 2544000
E36: Desinvesteringen 2001 met afschrijvingstermijn 3 | H36: € | I36: 0
E37: Desinvesteringen 2001 zonder afschrijvingstermijn | H37: € | I37: 0
B39: Opgegeven Afschrijvingen 2001
E40: Opgegeven afschrijvingen 2001 met afschrijvingstermijn 50 | H40: € | I40: =SUM(K40:DF40) -> 5888419.403 | L40: 535049.0366 | M40: 1070098.073 | N40: 1070098.073 | O40: 1070098.073 | P40: 1071538.073 | Q40: 1071538.073
E41: Opgegeven afschrijvingen 2001 met afschrijvingstermijn 40 | H41: € | I41: 2612228.433 | L41: 237343.494 | M41: 474686.9879 | N41: 474686.9879 | O41: 474686.9879 | P41: 475411.9879 | Q41: 475411.9879
E42: Opgegeven afschrijvingen 2001 met afschrijvingstermijn 30 | H42: € | I42: 20516.66667 | L42: 2150 | M42: 4300 | N42: 4300 | O42: 766.6666667 | P42: 0 | Q42: 9000
E43: Opgegeven afschrijvingen 2001 met afschrijvingstermijn 25 | H43: € | I43: 538560 | L43: 48960 | M43: 97920 | N43: 97920 | O43: 97920 | P43: 97920 | Q43: 97920
E44: Opgegeven afschrijvingen 2001 met afschrijvingstermijn 20 | H44: € | I44: 0
E45: Opgegeven afschrijvingen 2001 met afschrijvingstermijn 10 | H45: € | I45: 389027.6549 | L45: 38947.51721 | M45: 77895.03442 | N45: 77895.03442 | O45: 77895.03442 | P45: 77895.03442 | Q45: 38500
E46: Opgegeven afschrijvingen 2001 met afschrijvingstermijn 5 | H46: € | I46: 11898091.34 | L46: 1233013.048 | M46: 2466026.096 | N46: 2466026.096 | O46: 2466026.096 | P46: 2519000 | Q46: 748000
E47: Opgegeven afschrijvingen 2001 met afschrijvingstermijn 3 | H47: € | I47: 0 | L47: 0 | M47: 0 | N47: 0 | O47: 0 | P47: 0 | Q47: 0
E48: Opgegeven afschrijvingen 2001 zonder afschrijvingstermijn | H48: € | I48: 0
B50: Opgegeven Cumulatieve Afschrijvingen Bij Desinvesteringen 2001
E51: Opgegeven c.a.d. 2001 met afschrijvingstermijn 50 | H51: € | I51: =SUM(K51:DF51) -> 0
E52: Opgegeven c.a.d. 2001 met afschrijvingstermijn 40 | H52: € | I52: 0
E53: Opgegeven c.a.d. 2001 met afschrijvingstermijn 30 | H53: € | I53: 0
E54: Opgegeven c.a.d. 2001 met afschrijvingstermijn 25 | H54: € | I54: 0
E55: Opgegeven c.a.d. 2001 met afschrijvingstermijn 20 | H55: € | I55: 0
E56: Opgegeven c.a.d. 2001 met afschrijvingstermijn 10 | H56: € | I56: 87000 | P56: 87000
E57: Opgegeven c.a.d. 2001 met afschrijvingstermijn 5 | H57: € | I57: 2293850 | O57: 3850 | P57: 2290000
E58: Opgegeven c.a.d. 2001 met afschrijvingstermijn 3 | H58: € | I58: 0
E59: Opgegeven c.a.d. 2001 zonder afschrijvingstermijn | H59: € | I59: 0
B61: Bijzondere Waardeverminderingen Op Activa 2001
E62: Bijzondere waardeverminderingen op activa 2001 met afschrijvingstermijn 50 | H62: € | I62: =SUM(K62:DF62) -> 0
E63: Bijzondere waardeverminderingen op activa 2001 met afschrijvingstermijn 40 | H63: € | I63: 0
E64: Bijzondere waardeverminderingen op activa 2001 met afschrijvingstermijn 30 | H64: € | I64: 0
E65: Bijzondere waardeverminderingen op activa 2001 met afschrijvingstermijn 25 | H65: € | I65: 0
E66: Bijzondere waardeverminderingen op activa 2001 met afschrijvingstermijn 20 | H66: € | I66: 0
E67: Bijzondere waardeverminderingen op activa 2001 met afschrijvingstermijn 10 | H67: € | I67: 107000 | P67: 107000
E68: Bijzondere waardeverminderingen op activa 2001 met afschrijvingstermijn 5 | H68: € | I68: 189000 | P68: 189000
E69: Bijzondere waardeverminderingen op activa 2001 met afschrijvingstermijn 3 | H69: € | I69: 0
E70: Bijzondere waardeverminderingen op activa 2001 zonder afschrijvingstermijn | H70: € | I70: 0
B72: Input Alert
E73: Dummy Beginjaar investeringen
E74: Dummy Modelperiode
E75: Dummy Aantal cellen met onterechte input 2001
E76: Dummy Waarschuwing onterecht ingevulde cellen 2001
A78: INVESTERINGSJAAR 2002
B80: Investeringen 2002
E81: Aanschafwaarde investeringen 2002 met afschrijvingstermijn 50 | G81: 43937000 | H81: € | I81: =SUM(K81:DF81) -> 0
E82: Aanschafwaarde investeringen 2002 met afschrijvingstermijn 40 | G82: 18414000 | H82: € | I82: 0
E83: Aanschafwaarde investeringen 2002 met afschrijvingstermijn 30 | G83: 278000 | H83: € | I83: 0
E84: Aanschafwaarde investeringen 2002 met afschrijvingstermijn 25 | G84: 1407000 | H84: € | I84: 0
E85: Aanschafwaarde investeringen 2002 met afschrijvingstermijn 20 | G85: 0 | H85: € | I85: 0
E86: Aanschafwaarde investeringen 2002 met afschrijvingstermijn 10 | G86: 2431000 | H86: € | I86: 0
E87: Aanschafwaarde investeringen 2002 met afschrijvingstermijn 5 | G87: 18547000 | H87: € | I87: 0
E88: Aanschafwaarde investeringen 2002 met afschrijvingstermijn 3 | G88: 0 | H88: € | I88: 0
E89: Aanschafwaarde investeringen 2002 zonder afschrijvingstermijn | G89: 0 | H89: € | I89: 0
B91: Desinvesteringen 2002
E92: Desinvesteringen 2002 met afschrijvingstermijn 50 | H92: € | I92: =SUM(K92:DF92) -> 1472133.85 | T92: 263000 | U92: 684000 | V92: 525133.85
E93: Desinvesteringen 2002 met afschrijvingstermijn 40 | H93: € | I93: 474248.16 | R93: 229000 | T93: 64000 | V93: 181248.16
E94: Desinvesteringen 2002 met afschrijvingstermijn 30 | H94: € | I94: 11850.87 | V94: 11850.87
E95: Desinvesteringen 2002 met afschrijvingstermijn 25 | H95: € | I95: 0
E96: Desinvesteringen 2002 met afschrijvingstermijn 20 | H96: € | I96: 0
E97: Desinvesteringen 2002 met afschrijvingstermijn 10 | H97: € | I97: 122000 | P97: 20000 | T97: 102000
E98: Desinvesteringen 2002 met afschrijvingstermijn 5 | H98: € | I98: 7502000 | P98: 7502000
E99: Desinvesteringen 2002 met afschrijvingstermijn 3 | H99: € | I99: 0
E100: Desinvesteringen 2002 zonder afschrijvingstermijn | H100: € | I100: 1888.1 | U100: 1000 | V100: 888.1
B102: Opgegeven Afschrijvingen 2002
E103: Opgegeven afschrijvingen 2002 met afschrijvingstermijn 50 | H103: € | I103: =SUM(K103:DF103) -> 3666550 | M103: 448870 | N103: 804420 | O103: 804420 | P103: 804420 | Q103: 804420
E104: Opgegeven afschrijvingen 2002 met afschrijvingstermijn 40 | H104: € | I104: 2071575 | M104: 230175 | N104: 460350 | O104: 460350 | P104: 460350 | Q104: 460350
E105: Opgegeven afschrijvingen 2002 met afschrijvingstermijn 30 | H105: € | I105: 41700 | M105: 4633.333333 | N105: 9266.666667 | O105: 9266.666667 | P105: 9266.666667 | Q105: 9266.666667
E106: Opgegeven afschrijvingen 2002 met afschrijvingstermijn 25 | H106: € | I106: 874900 | M106: 28140 | N106: 149160 | O106: 149160 | P106: 149160 | Q106: 399280
E107: Opgegeven afschrijvingen 2002 met afschrijvingstermijn 20 | H107: € | I107: 0
E108: Opgegeven afschrijvingen 2002 met afschrijvingstermijn 10 | H108: € | I108: 1088450 | M108: 119050 | N108: 244300 | O108: 244300 | P108: 244300 | Q108: 236500
E109: Opgegeven afschrijvingen 2002 met afschrijvingstermijn 5 | H109: € | I109: 13414500 | M109: 1799300 | N109: 3598600 | O109: 3598600 | P109: 3709600 | Q109: 708400
E110: Opgegeven afschrijvingen 2002 met afschrijvingstermijn 3 | H110: € | I110: 0 | M110: 0 | N110: 0 | O110: 0 | P110: 0 | Q110: 0
E111: Opgegeven afschrijvingen 2002 zonder afschrijvingstermijn | H111: € | I111: 0
B113: Opgegeven Cumulatieve Afschrijvingen Bij Desinvesteringen 2002
E114: Opgegeven c.a.d. 2002 met afschrijvingstermijn 50 | H114: € | I114: =SUM(K114:DF114) -> 0
E115: Opgegeven c.a.d. 2002 met afschrijvingstermijn 40 | H115: € | I115: 0
E116: Opgegeven c.a.d. 2002 met afschrijvingstermijn 30 | H116: € | I116: 0
E117: Opgegeven c.a.d. 2002 met afschrijvingstermijn 25 | H117: € | I117: 0
E118: Opgegeven c.a.d. 2002 met afschrijvingstermijn 20 | H118: € | I118: 0
E119: Opgegeven c.a.d. 2002 met afschrijvingstermijn 10 | H119: € | I119: 7000 | P119: 7000
E120: Opgegeven c.a.d. 2002 met afschrijvingstermijn 5 | H120: € | I120: 5251000 | P120: 5251000
E121: Opgegeven c.a.d. 2002 met afschrijvingstermijn 3 | H121: € | I121: 0
E122: Opgegeven c.a.d. 2002 zonder afschrijvingstermijn | H122: € | I122: 0
B124: Bijzondere Waardeverminderingen Op Activa 2002
E125: Bijzondere waardeverminderingen op activa 2002 met afschrijvingstermijn 50 | H125: € | I125: =SUM(K125:DF125) -> 0
E126: Bijzondere waardeverminderingen op activa 2002 met afschrijvingstermijn 40 | H126: € | I126: 0
E127: Bijzondere waardeverminderingen op activa 2002 met afschrijvingstermijn 30 | H127: € | I127: 0
E128: Bijzondere waardeverminderingen op activa 2002 met afschrijvingstermijn 25 | H128: € | I128: 0
E129: Bijzondere waardeverminderingen op activa 2002 met afschrijvingstermijn 20 | H129: € | I129: 0
E130: Bijzondere waardeverminderingen op activa 2002 met afschrijvingstermijn 10 | H130: € | I130: 13000 | P130: 13000
E131: Bijzondere waardeverminderingen op activa 2002 met afschrijvingstermijn 5 | H131: € | I131: 2251000 | P131: 2251000
E132: Bijzondere waardeverminderingen op activa 2002 met afschrijvingstermijn 3 | H132: € | I132: 0
E133: Bijzondere waardeverminderingen op activa 2002 zonder afschrijvingstermijn | H133: € | I133: 0
B135: Input Alert
E136: Dummy Beginjaar investeringen
E137: Dummy Modelperiode
E138: Dummy Aantal cellen met onterechte input 2002
E139: Dummy Waarschuwing onterecht ingevulde cellen 2002
A141: INVESTERINGSJAAR 2003
B143: Investeringen 2003
E144: Aanschafwaarde investeringen 2003 met afschrijvingstermijn 50 | G144: 24355473 | H144: € | I144: =SUM(K144:DF144) -> 0
E145: Aanschafwaarde investeringen 2003 met afschrijvingstermijn 40 | G145: 16471074.88 | H145: € | I145: 0
E146: Aanschafwaarde investeringen 2003 met afschrijvingstermijn 30 | G146: 262000 | H146: € | I146: 0
E147: Aanschafwaarde investeringen 2003 met afschrijvingstermijn 25 | G147: 1532300 | H147: € | I147: 0
E148: Aanschafwaarde investeringen 2003 met afschrijvingstermijn 20 | H148: € | I148: 0
E149: Aanschafwaarde investeringen 2003 met afschrijvingstermijn 10 | G149: 1354403.281 | H149: € | I149: 0
E150: Aanschafwaarde investeringen 2003 met afschrijvingstermijn 5 | G150: 28365427.84 | H150: € | I150: 0
E151: Aanschafwaarde investeringen 2003 met afschrijvingstermijn 3 | G151: 0 | H151: € | I151: 0
E152: Aanschafwaarde investeringen 2003 zonder afschrijvingstermijn | G152: 403000 | H152: € | I152: 0
B154: Desinvesteringen 2003
E155: Desinvesteringen 2003 met afschrijvingstermijn 50 | H155: € | I155: =SUM(K155:DF155) -> 974392.13 | T155: 14000 | U155: 275000 | V155: 685392.13
E156: Desinvesteringen 2003 met afschrijvingstermijn 40 | H156: € | I156: 291525.73 | R156: 158000 | T156: 36000 | V156: 97525.73
E157: Desinvesteringen 2003 met afschrijvingstermijn 30 | H157: € | I157: 2080.11 | V157: 2080.11
E158: Desinvesteringen 2003 met afschrijvingstermijn 25 | H158: € | I158: 0
E159: Desinvesteringen 2003 met afschrijvingstermijn 20 | H159: € | I159: 0
E160: Desinvesteringen 2003 met afschrijvingstermijn 10 | H160: € | I160: 330000 | P160: 228000 | T160: 102000
E161: Desinvesteringen 2003 met afschrijvingstermijn 5 | H161: € | I161: 5252000 | P161: 5252000
E162: Desinvesteringen 2003 met afschrijvingstermijn 3 | H162: € | I162: 0
E163: Desinvesteringen 2003 zonder afschrijvingstermijn | H163: € | I163: 3210.93 | V163: 3210.93
B165: Opgegeven Afschrijvingen 2003
E166: Opgegeven afschrijvingen 2003 met afschrijvingstermijn 50 | H166: € | I166: =SUM(K166:DF166) -> 1685377.297 | N166: 243554.73 | O166: 487109.46 | P166: 477356.5534 | Q166: 477356.5534
E167: Opgegeven afschrijvingen 2003 met afschrijvingstermijn 40 | H167: € | I167: 1458415.308 | N167: 205888.436 | O167: 411776.8719 | P167: 420375 | Q167: 420375
E168: Opgegeven afschrijvingen 2003 met afschrijvingstermijn 30 | H168: € | I168: 30066.66667 | N168: 5866.666667 | O168: 8733.333333 | P168: 7733.333333 | Q168: 7733.333333
E169: Opgegeven afschrijvingen 2003 met afschrijvingstermijn 25 | H169: € | I169: 220978 | N169: 30646 | O169: 61292 | P169: 64520 | Q169: 64520
E170: Opgegeven afschrijvingen 2003 met afschrijvingstermijn 20 | H170: € | I170: 0
E171: Opgegeven afschrijvingen 2003 met afschrijvingstermijn 10 | H171: € | I171: 428500.8203 | N171: 67720.16405 | O171: 135440.3281 | P171: 135440.3281 | Q171: 89900
E172: Opgegeven afschrijvingen 2003 met afschrijvingstermijn 5 | H172: € | I172: 17618513.92 | N172: 2791342.784 | O172: 5582685.568 | P172: 5672685.568 | Q172: 3571800
E173: Opgegeven afschrijvingen 2003 met afschrijvingstermijn 3 | H173: € | I173: 0 | N173: 0 | O173: 0 | P173: 0 | Q173: 0
E174: Opgegeven afschrijvingen 2003 zonder afschrijvingstermijn | H174: € | I174: 0
B176: Opgegeven Cumulatieve Afschrijvingen Bij Desinvesteringen 2003
E177: Opgegeven c.a.d. 2003 met afschrijvingstermijn 50 | H177: € | I177: =SUM(K177:DF177) -> 0
E178: Opgegeven c.a.d. 2003 met afschrijvingstermijn 40 | H178: € | I178: 0
E179: Opgegeven c.a.d. 2003 met afschrijvingstermijn 30 | H179: € | I179: 0
E180: Opgegeven c.a.d. 2003 met afschrijvingstermijn 25 | H180: € | I180: 0
E181: Opgegeven c.a.d. 2003 met afschrijvingstermijn 20 | H181: € | I181: 0
E182: Opgegeven c.a.d. 2003 met afschrijvingstermijn 10 | H182: € | I182: 57000 | P182: 57000
E183: Opgegeven c.a.d. 2003 met afschrijvingstermijn 5 | H183: € | I183: 2626000 | P183: 2626000
E184: Opgegeven c.a.d. 2003 met afschrijvingstermijn 3 | H184: € | I184: 0
E185: Opgegeven c.a.d. 2003 zonder afschrijvingstermijn | H185: € | I185: 0
B187: Bijzondere Waardeverminderingen Op Activa 2003
E188: Bijzondere waardeverminderingen op activa 2003 met afschrijvingstermijn 50 | H188: € | I188: =SUM(K188:DF188) -> 0
E189: Bijzondere waardeverminderingen op activa 2003 met afschrijvingstermijn 40 | H189: € | I189: 0
E190: Bijzondere waardeverminderingen op activa 2003 met afschrijvingstermijn 30 | H190: € | I190: 0
E191: Bijzondere waardeverminderingen op activa 2003 met afschrijvingstermijn 25 | H191: € | I191: 0
E192: Bijzondere waardeverminderingen op activa 2003 met afschrijvingstermijn 20 | H192: € | I192: 0
E193: Bijzondere waardeverminderingen op activa 2003 met afschrijvingstermijn 10 | H193: € | I193: 171000 | P193: 171000
E194: Bijzondere waardeverminderingen op activa 2003 met afschrijvingstermijn 5 | H194: € | I194: 2626000 | P194: 2626000
E195: Bijzondere waardeverminderingen op activa 2003 met afschrijvingstermijn 3 | H195: € | I195: 0
E196: Bijzondere waardeverminderingen op activa 2003 zonder afschrijvingstermijn | H196: € | I196: 0
B198: Input Alert
E199: Dummy Beginjaar investeringen
E200: Dummy Modelperiode
E201: Dummy Aantal cellen met onterechte input 2003
E202: Dummy Waarschuwing onterecht ingevulde cellen 2003
A204: INVESTERINGSJAAR 2004
B206: Investeringen 2004
E207: Aanschafwaarde investeringen 2004 met afschrijvingstermijn 50 | G207: 30288074 | H207: € | I207: =SUM(K207:DF207) -> 0
E208: Aanschafwaarde investeringen 2004 met afschrijvingstermijn 40 | G208: 19110210 | H208: € | I208: 0
E209: Aanschafwaarde investeringen 2004 met afschrijvingstermijn 30 | G209: 2354221 | H209: € | I209: 0
E210: Aanschafwaarde investeringen 2004 met afschrijvingstermijn 25 | G210: 435090 | H210: € | I210: 0
E211: Aanschafwaarde investeringen 2004 met afschrijvingstermijn 20 | H211: € | I211: 0
E212: Aanschafwaarde investeringen 2004 met afschrijvingstermijn 10 | G212: 1342340 | H212: € | I212: 0
E213: Aanschafwaarde investeringen 2004 met afschrijvingstermijn 5 | G213: 17119460 | H213: € | I213: 0
E214: Aanschafwaarde investeringen 2004 met afschrijvingstermijn 3 | G214: 0 | H214: € | I214: 0
E215: Aanschafwaarde investeringen 2004 zonder afschrijvingstermijn | G215: 40160 | H215: € | I215: 0
B217: Desinvesteringen 2004
E218: Desinvesteringen 2004 met afschrijvingstermijn 50 | H218: € | I218: =SUM(K218:DF218) -> 595062.95 | T218: 22000 | U218: 325000 | V218: 248062.95
E219: Desinvesteringen 2004 met afschrijvingstermijn 40 | H219: € | I219: 189356.41 | R219: 147000 | T219: 12000 | V219: 30356.41
E220: Desinvesteringen 2004 met afschrijvingstermijn 30 | H220: € | I220: 0
E221: Desinvesteringen 2004 met afschrijvingstermijn 25 | H221: € | I221: 0
E222: Desinvesteringen 2004 met afschrijvingstermijn 20 | H222: € | I222: 0
E223: Desinvesteringen 2004 met afschrijvingstermijn 10 | H223: € | I223: 452979.95 | P223: 109000 | T223: 171000 | U223: 35000 | V223: 137979.95
E224: Desinvesteringen 2004 met afschrijvingstermijn 5 | H224: € | I224: 493000 | P224: 468000 | R224: 25000
E225: Desinvesteringen 2004 met afschrijvingstermijn 3 | H225: € | I225: 0
... 708 more rows

Sheet InpLiander Excl HS
A1: =RIGHT(CELL("filename", A1), LEN(CELL("filename", A1)) - SEARCH("]", CELL("filename", A1))) -> InpLiander Excl HS
E2: =Tijd!E$2 -> Actieve netbeheerder | G2: =Tijd!G$2 -> Cogas
E3: =Tijd!E$3 -> Actieve inputsheet | G3: =Tijd!G$3 -> InpCogas
E4: =Tijd!E$4 -> Modelperiode | G4: =Check!G4 -> 0 | H4: =Check!H4 -> errors | K4: =Tijd!K$4 -> 2000 | L4: =Tijd!L$4 -> 2001 | M4: =Tijd!M$4 -> 2002 | N4: =Tijd!N$4 -> 2003 | O4: =Tijd!O$4 -> 2004 | P4: =Tijd!P$4 -> 2005 | Q4: =Tijd!Q$4 -> 2006 | R4: =Tijd!R$4 -> 2007 | S4: =Tijd!S$4 -> 2008 | T4: =Tijd!T$4 -> 2009 | U4: =Tijd!U$4 -> 2010 | V4: =Tijd!V$4 -> 2011 | W4: =Tijd!W$4 -> 2012 | X4: =Tijd!X$4 -> 2013 | Y4: =Tijd!Y$4 -> 2014 | Z4: =Tijd!Z$4 -> 2015 | AA4: =Tijd!AA$4 -> 2016 | AB4: =Tijd!AB$4 -> 2017 | AC4: =Tijd!AC$4 -> 2018 | AD4: =Tijd!AD$4 -> 2019 | AE4: =Tijd!AE$4 -> 2020 | AF4: =Tijd!AF$4 -> 2021 | AG4: =Tijd!AG$4 -> 2022 | AH4: =Tijd!AH$4 -> 2023 | AI4: =Tijd!AI$4 -> 2024 | AJ4: =Tijd!AJ$4 -> 2025 | AK4: =Tijd!AK$4 -> 2026 | AL4: =Tijd!AL$4 -> 2027 | AM4: =Tijd!AM$4 -> 2028 | AN4: =Tijd!AN$4 -> 2029 | AO4: =Tijd!AO$4 -> 2030 | AP4: =Tijd!AP$4 -> 2031 | AQ4: =Tijd!AQ$4 -> 2032 | AR4: =Tijd!AR$4 -> 2033 | AS4: =Tijd!AS$4 -> 2034 | AT4: =Tijd!AT$4 -> 2035 | AU4: =Tijd!AU$4 -> 2036 | AV4: =Tijd!AV$4 -> 2037 | AW4: =Tijd!AW$4 -> 2038 | AX4: =Tijd!AX$4 -> 2039 | AY4: =Tijd!AY$4 -> 2040 | AZ4: =Tijd!AZ$4 -> 2041 | BA4: =Tijd!BA$4 -> 2042 | BB4: =Tijd!BB$4 -> 2043 | BC4: =Tijd!BC$4 -> 2044 | BD4: =Tijd!BD$4 -> 2045 | BE4: =Tijd!BE$4 -> 2046 | BF4: =Tijd!BF$4 -> 2047 | BG4: =Tijd!BG$4 -> 2048 | BH4: =Tijd!BH$4 -> 2049 | BI4: =Tijd!BI$4 -> 2050 | BJ4: =Tijd!BJ$4 -> 2051 | BK4: =Tijd!BK$4 -> 2052 | BL4: =Tijd!BL$4 -> 2053 | BM4: =Tijd!BM$4 -> 2054 | BN4: =Tijd!BN$4 -> 2055 | BO4: =Tijd!BO$4 -> 2056 | BP4: =Tijd!BP$4 -> 2057 | BQ4: =Tijd!BQ$4 -> 2058 | BR4: =Tijd!BR$4 -> 2059 | BS4: =Tijd!BS$4 -> 2060 | BT4: =Tijd!BT$4 -> 2061 | BU4: =Tijd!BU$4 -> 2062 | BV4: =Tijd!BV$4 -> 2063 | BW4: =Tijd!BW$4 -> 2064 | BX4: =Tijd!BX$4 -> 2065 | BY4: =Tijd!BY$4 -> 2066 | BZ4: =Tijd!BZ$4 -> 2067 | CA4: =Tijd!CA$4 -> 2068 | CB4: =Tijd!CB$4 -> 2069 | CC4: =Tijd!CC$4 -> 2070 | CD4: =Tijd!CD$4 -> 2071 | CE4: =Tijd!CE$4 -> 2072 | CF4: =Tijd!CF$4 -> 2073 | CG4: =Tijd!CG$4 -> 2074 | CH4: =Tijd!CH$4 -> 2075 | CI4: =Tijd!CI$4 -> 2076 | CJ4: =Tijd!CJ$4 -> 2077 | CK4: =Tijd!CK$4 -> 2078 | CL4: =Tijd!CL$4 -> 2079 | CM4: =Tijd!CM$4 -> 2080 | CN4: =Tijd!CN$4 -> 2081 | CO4: =Tijd!CO$4 -> 2082 | CP4: =Tijd!CP$4 -> 2083 | CQ4: =Tijd!CQ$4 -> 2084 | CR4: =Tijd!CR$4 -> 2085 | CS4: =Tijd!CS$4 -> 2086 | CT4: =Tijd!CT$4 -> 2087 | CU4: =Tijd!CU$4 -> 2088 | CV4: =Tijd!CV$4 -> 2089 | CW4: =Tijd!CW$4 -> 2090 | CX4: =Tijd!CX$4 -> 2091 | CY4: =Tijd!CY$4 -> 2092 | CZ4: =Tijd!CZ$4 -> 2093 | DA4: =Tijd!DA$4 -> 2094 | DB4: =Tijd!DB$4 -> 2095 | DC4: =Tijd!DC$4 -> 2096 | DD4: =Tijd!DD$4 -> 2097 | DE4: =Tijd!DE$4 -> 2098 | DF4: =Tijd!DF$4 -> 2099
E5: =Tijd!E$5 -> Looptijd vs Uitlooptijd | G5: =Check!G5 -> 0 | H5: =Check!H5 -> waarschuwingen | K5: =Tijd!K$5 -> Looptijd | L5: =Tijd!L$5 -> Looptijd | M5: =Tijd!M$5 -> Looptijd | N5: =Tijd!N$5 -> Looptijd | O5: =Tijd!O$5 -> Looptijd | P5: =Tijd!P$5 -> Looptijd | Q5: =Tijd!Q$5 -> Looptijd | R5: =Tijd!R$5 -> Looptijd | S5: =Tijd!S$5 -> Looptijd | T5: =Tijd!T$5 -> Looptijd | U5: =Tijd!U$5 -> Looptijd | V5: =Tijd!V$5 -> Looptijd | W5: =Tijd!W$5 -> Looptijd | X5: =Tijd!X$5 -> Looptijd | Y5: =Tijd!Y$5 -> Looptijd | Z5: =Tijd!Z$5 -> Looptijd | AA5: =Tijd!AA$5 -> Looptijd | AB5: =Tijd!AB$5 -> Looptijd | AC5: =Tijd!AC$5 -> Looptijd | AD5: =Tijd!AD$5 -> Looptijd | AE5: =Tijd!AE$5 -> Looptijd | AF5: =Tijd!AF$5 -> Looptijd | AG5: =Tijd!AG$5 -> Looptijd | AH5: =Tijd!AH$5 -> Looptijd | AI5: =Tijd!AI$5 -> Looptijd | AJ5: =Tijd!AJ$5 -> Looptijd | AK5: =Tijd!AK$5 -> Looptijd | AL5: =Tijd!AL$5 -> Looptijd | AM5: =Tijd!AM$5 -> Looptijd | AN5: =Tijd!AN$5 -> Looptijd | AO5: =Tijd!AO$5 -> Looptijd | AP5: =Tijd!AP$5 -> Looptijd | AQ5: =Tijd!AQ$5 -> Looptijd | AR5: =Tijd!AR$5 -> Looptijd | AS5: =Tijd!AS$5 -> Looptijd | AT5: =Tijd!AT$5 -> Looptijd | AU5: =Tijd!AU$5 -> Looptijd | AV5: =Tijd!AV$5 -> Looptijd | AW5: =Tijd!AW$5 -> Looptijd | AX5: =Tijd!AX$5 -> Looptijd | AY5: =Tijd!AY$5 -> Looptijd | AZ5: =Tijd!AZ$5 -> Looptijd | BA5: =Tijd!BA$5 -> Looptijd | BB5: =Tijd!BB$5 -> Looptijd | BC5: =Tijd!BC$5 -> Looptijd | BD5: =Tijd!BD$5 -> Looptijd | BE5: =Tijd!BE$5 -> Looptijd | BF5: =Tijd!BF$5 -> Looptijd | BG5: =Tijd!BG$5 -> Looptijd | BH5: =Tijd!BH$5 -> Looptijd | BI5: =Tijd!BI$5 -> Looptijd | BJ5: =Tijd!BJ$5 -> Uitlooptijd | BK5: =Tijd!BK$5 -> Uitlooptijd | BL5: =Tijd!BL$5 -> Uitlooptijd | BM5: =Tijd!BM$5 -> Uitlooptijd | BN5: =Tijd!BN$5 -> Uitlooptijd | BO5: =Tijd!BO$5 -> Uitlooptijd | BP5: =Tijd!BP$5 -> Uitlooptijd | BQ5: =Tijd!BQ$5 -> Uitlooptijd | BR5: =Tijd!BR$5 -> Uitlooptijd | BS5: =Tijd!BS$5 -> Uitlooptijd | BT5: =Tijd!BT$5 -> Uitlooptijd | BU5: =Tijd!BU$5 -> Uitlooptijd | BV5: =Tijd!BV$5 -> Uitlooptijd | BW5: =Tijd!BW$5 -> Uitlooptijd | BX5: =Tijd!BX$5 -> Uitlooptijd | BY5: =Tijd!BY$5 -> Uitlooptijd | BZ5: =Tijd!BZ$5 -> Uitlooptijd | CA5: =Tijd!CA$5 -> Uitlooptijd | CB5: =Tijd!CB$5 -> Uitlooptijd | CC5: =Tijd!CC$5 -> Uitlooptijd | CD5: =Tijd!CD$5 -> Uitlooptijd | CE5: =Tijd!CE$5 -> Uitlooptijd | CF5: =Tijd!CF$5 -> Uitlooptijd | CG5: =Tijd!CG$5 -> Uitlooptijd | CH5: =Tijd!CH$5 -> Uitlooptijd | CI5: =Tijd!CI$5 -> Uitlooptijd | CJ5: =Tijd!CJ$5 -> Uitlooptijd | CK5: =Tijd!CK$5 -> Uitlooptijd | CL5: =Tijd!CL$5 -> Uitlooptijd | CM5: =Tijd!CM$5 -> Uitlooptijd | CN5: =Tijd!CN$5 -> Uitlooptijd | CO5: =Tijd!CO$5 -> Uitlooptijd | CP5: =Tijd!CP$5 -> Uitlooptijd | CQ5: =Tijd!CQ$5 -> Uitlooptijd | CR5: =Tijd!CR$5 -> Uitlooptijd | CS5: =Tijd!CS$5 -> Uitlooptijd | CT5: =Tijd!CT$5 -> Uitlooptijd | CU5: =Tijd!CU$5 -> Uitlooptijd | CV5: =Tijd!CV$5 -> Uitlooptijd | CW5: =Tijd!CW$5 -> Uitlooptijd | CX5: =Tijd!CX$5 -> Uitlooptijd | CY5: =Tijd!CY$5 -> Uitlooptijd | CZ5: =Tijd!CZ$5 -> Uitlooptijd | DA5: =Tijd!DA$5 -> Uitlooptijd | DB5: =Tijd!DB$5 -> Uitlooptijd | DC5: =Tijd!DC$5 -> Uitlooptijd | DD5: =Tijd!DD$5 -> Uitlooptijd | DE5: =Tijd!DE$5 -> Uitlooptijd | DF5: =Tijd!DF$5 -> Uitlooptijd
E6: =Tijd!E$10 -> Model kolom teller | F6: Bron | G6: Constante | H6: Eenheid | I6: Totaal | K6: =Tijd!K$10 -> 1 | L6: =Tijd!L$10 -> 2 | M6: =Tijd!M$10 -> 3 | N6: =Tijd!N$10 -> 4 | O6: =Tijd!O$10 -> 5 | P6: =Tijd!P$10 -> 6 | Q6: =Tijd!Q$10 -> 7 | R6: =Tijd!R$10 -> 8 | S6: =Tijd!S$10 -> 9 | T6: =Tijd!T$10 -> 10 | U6: =Tijd!U$10 -> 11 | V6: =Tijd!V$10 -> 12 | W6: =Tijd!W$10 -> 13 | X6: =Tijd!X$10 -> 14 | Y6: =Tijd!Y$10 -> 15 | Z6: =Tijd!Z$10 -> 16 | AA6: =Tijd!AA$10 -> 17 | AB6: =Tijd!AB$10 -> 18 | AC6: =Tijd!AC$10 -> 19 | AD6: =Tijd!AD$10 -> 20 | AE6: =Tijd!AE$10 -> 21 | AF6: =Tijd!AF$10 -> 22 | AG6: =Tijd!AG$10 -> 23 | AH6: =Tijd!AH$10 -> 24 | AI6: =Tijd!AI$10 -> 25 | AJ6: =Tijd!AJ$10 -> 26 | AK6: =Tijd!AK$10 -> 27 | AL6: =Tijd!AL$10 -> 28 | AM6: =Tijd!AM$10 -> 29 | AN6: =Tijd!AN$10 -> 30 | AO6: =Tijd!AO$10 -> 31 | AP6: =Tijd!AP$10 -> 32 | AQ6: =Tijd!AQ$10 -> 33 | AR6: =Tijd!AR$10 -> 34 | AS6: =Tijd!AS$10 -> 35 | AT6: =Tijd!AT$10 -> 36 | AU6: =Tijd!AU$10 -> 37 | AV6: =Tijd!AV$10 -> 38 | AW6: =Tijd!AW$10 -> 39 | AX6: =Tijd!AX$10 -> 40 | AY6: =Tijd!AY$10 -> 41 | AZ6: =Tijd!AZ$10 -> 42 | BA6: =Tijd!BA$10 -> 43 | BB6: =Tijd!BB$10 -> 44 | BC6: =Tijd!BC$10 -> 45 | BD6: =Tijd!BD$10 -> 46 | BE6: =Tijd!BE$10 -> 47 | BF6: =Tijd!BF$10 -> 48 | BG6: =Tijd!BG$10 -> 49 | BH6: =Tijd!BH$10 -> 50 | BI6: =Tijd!BI$10 -> 51 | BJ6: =Tijd!BJ$10 -> 52 | BK6: =Tijd!BK$10 -> 53 | BL6: =Tijd!BL$10 -> 54 | BM6: =Tijd!BM$10 -> 55 | BN6: =Tijd!BN$10 -> 56 | BO6: =Tijd!BO$10 -> 57 | BP6: =Tijd!BP$10 -> 58 | BQ6: =Tijd!BQ$10 -> 59 | BR6: =Tijd!BR$10 -> 60 | BS6: =Tijd!BS$10 -> 61 | BT6: =Tijd!BT$10 -> 62 | BU6: =Tijd!BU$10 -> 63 | BV6: =Tijd!BV$10 -> 64 | BW6: =Tijd!BW$10 -> 65 | BX6: =Tijd!BX$10 -> 66 | BY6: =Tijd!BY$10 -> 67 | BZ6: =Tijd!BZ$10 -> 68 | CA6: =Tijd!CA$10 -> 69 | CB6: =Tijd!CB$10 -> 70 | CC6: =Tijd!CC$10 -> 71 | CD6: =Tijd!CD$10 -> 72 | CE6: =Tijd!CE$10 -> 73 | CF6: =Tijd!CF$10 -> 74 | CG6: =Tijd!CG$10 -> 75 | CH6: =Tijd!CH$10 -> 76 | CI6: =Tijd!CI$10 -> 77 | CJ6: =Tijd!CJ$10 -> 78 | CK6: =Tijd!CK$10 -> 79 | CL6: =Tijd!CL$10 -> 80 | CM6: =Tijd!CM$10 -> 81 | CN6: =Tijd!CN$10 -> 82 | CO6: =Tijd!CO$10 -> 83 | CP6: =Tijd!CP$10 -> 84 | CQ6: =Tijd!CQ$10 -> 85 | CR6: =Tijd!CR$10 -> 86 | CS6: =Tijd!CS$10 -> 87 | CT6: =Tijd!CT$10 -> 88 | CU6: =Tijd!CU$10 -> 89 | CV6: =Tijd!CV$10 -> 90 | CW6: =Tijd!CW$10 -> 91 | CX6: =Tijd!CX$10 -> 92 | CY6: =Tijd!CY$10 -> 93 | CZ6: =Tijd!CZ$10 -> 94 | DA6: =Tijd!DA$10 -> 95 | DB6: =Tijd!DB$10 -> 96 | DC6: =Tijd!DC$10 -> 97 | DD6: =Tijd!DD$10 -> 98 | DE6: =Tijd!DE$10 -> 99 | DF6: =Tijd!DF$10 -> 100
A9: INVESTERINGSJAAR 2000 - START GAW
E10: Startwaarde GAW incl. afgekochte precario (31-12-2000) | G10: 2865762573 | H10: €
E11: Afschrijvingen Start GAW | G11: 90238493.01 | H11: €
E12: Afgekochte precario in Start GAW (31-12-2000) | H12: €
E13: Afschrijvingsbedrag afgekochte precario | H13: €
A15: INVESTERINGSJAAR 2001
B17: Investeringen 2001
E18: Aanschafwaarde investeringen 2001 met afschrijvingstermijn 50 | G18: 70843552.07 | H18: € | I18: =SUM(K18:DF18) -> 0
E19: Aanschafwaarde investeringen 2001 met afschrijvingstermijn 40 | G19: 9151212.451 | H19: € | I19: 0
E20: Aanschafwaarde investeringen 2001 met afschrijvingstermijn 30 | H20: € | I20: 0
E21: Aanschafwaarde investeringen 2001 met afschrijvingstermijn 25 | H21: € | I21: 0
E22: Aanschafwaarde investeringen 2001 met afschrijvingstermijn 20 | H22: € | I22: 0
E23: Aanschafwaarde investeringen 2001 met afschrijvingstermijn 10 | G23: 37888000 | H23: € | I23: 0
E24: Aanschafwaarde investeringen 2001 met afschrijvingstermijn 5 | H24: € | I24: 0
E25: Aanschafwaarde investeringen 2001 met afschrijvingstermijn 3 | H25: € | I25: 0
E26: Aanschafwaarde investeringen 2001 zonder afschrijvingstermijn | G26: 767000 | H26: € | I26: 0
B28: Desinvesteringen 2001
E29: Desinvesteringen 2001 met afschrijvingstermijn 50 | H29: € | I29: =SUM(K29:DF29) -> 2103894 | Q29: 528708 | R29: 242000 | S29: 639035 | T29: 363151 | U29: 82000 | V29: 249000
E30: Desinvesteringen 2001 met afschrijvingstermijn 40 | H30: € | I30: 196384 | Q30: 8384 | R30: 103000 | U30: 26000 | V30: 59000
E31: Desinvesteringen 2001 met afschrijvingstermijn 30 | H31: € | I31: 0
E32: Desinvesteringen 2001 met afschrijvingstermijn 25 | H32: € | I32: 0
E33: Desinvesteringen 2001 met afschrijvingstermijn 20 | H33: € | I33: 0
E34: Desinvesteringen 2001 met afschrijvingstermijn 10 | H34: € | I34: 0
E35: Desinvesteringen 2001 met afschrijvingstermijn 5 | H35: € | I35: 0
E36: Desinvesteringen 2001 met afschrijvingstermijn 3 | H36: € | I36: 0
E37: Desinvesteringen 2001 zonder afschrijvingstermijn | H37: € | I37: 0
B39: Opgegeven Afschrijvingen 2001
E40: Opgegeven afschrijvingen 2001 met afschrijvingstermijn 50 | H40: € | I40: =SUM(K40:DF40) -> 7792790.728 | L40: 708435.5207 | M40: 1416871.041 | N40: 1416871.041 | O40: 1416871.041 | P40: 1416871.041 | Q40: 1416871.041
E41: Opgegeven afschrijvingen 2001 met afschrijvingstermijn 40 | H41: € | I41: 1258291.712 | L41: 114390.1556 | M41: 228780.3113 | N41: 228780.3113 | O41: 228780.3113 | P41: 228780.3113 | Q41: 228780.3113
E42: Opgegeven afschrijvingen 2001 met afschrijvingstermijn 30 | H42: € | I42: 0
E43: Opgegeven afschrijvingen 2001 met afschrijvingstermijn 25 | H43: € | I43: 0
E44: Opgegeven afschrijvingen 2001 met afschrijvingstermijn 20 | H44: € | I44: 0
E45: Opgegeven afschrijvingen 2001 met afschrijvingstermijn 10 | H45: € | I45: 20838400 | L45: 1894400 | M45: 3788800 | N45: 3788800 | O45: 3788800 | P45: 3788800 | Q45: 3788800
E46: Opgegeven afschrijvingen 2001 met afschrijvingstermijn 5 | H46: € | I46: 0
E47: Opgegeven afschrijvingen 2001 met afschrijvingstermijn 3 | H47: € | I47: 0
E48: Opgegeven afschrijvingen 2001 zonder afschrijvingstermijn | H48: € | I48: 0
B50: Opgegeven Cumulatieve Afschrijvingen Bij Desinvesteringen 2001
E51: Opgegeven c.a.d. 2001 met afschrijvingstermijn 50 | H51: € | I51: =SUM(K51:DF51) -> 52871 | Q51: 52871
E52: Opgegeven c.a.d. 2001 met afschrijvingstermijn 40 | H52: € | I52: 1048 | Q52: 1048
E53: Opgegeven c.a.d. 2001 met afschrijvingstermijn 30 | H53: € | I53: 0
E54: Opgegeven c.a.d. 2001 met afschrijvingstermijn 25 | H54: € | I54: 0
E55: Opgegeven c.a.d. 2001 met afschrijvingstermijn 20 | H55: € | I55: 0
E56: Opgegeven c.a.d. 2001 met afschrijvingstermijn 10 | H56: € | I56: 0
E57: Opgegeven c.a.d. 2001 met afschrijvingstermijn 5 | H57: € | I57: 0
E58: Opgegeven c.a.d. 2001 met afschrijvingstermijn 3 | H58: € | I58: 0
E59: Opgegeven c.a.d. 2001 zonder afschrijvingstermijn | H59: € | I59: 0
B61: Bijzondere Waardeverminderingen Op Activa 2001
E62: Bijzondere waardeverminderingen op activa 2001 met afschrijvingstermijn 50 | H62: € | I62: =SUM(K62:DF62) -> 0
E63: Bijzondere waardeverminderingen op activa 2001 met afschrijvingstermijn 40 | H63: € | I63: 0
E64: Bijzondere waardeverminderingen op activa 2001 met afschrijvingstermijn 30 | H64: € | I64: 0
E65: Bijzondere waardeverminderingen op activa 2001 met afschrijvingstermijn 25 | H65: € | I65: 0
E66: Bijzondere waardeverminderingen op activa 2001 met afschrijvingstermijn 20 | H66: € | I66: 0
E67: Bijzondere waardeverminderingen op activa 2001 met afschrijvingstermijn 10 | H67: € | I67: 0
E68: Bijzondere waardeverminderingen op activa 2001 met afschrijvingstermijn 5 | H68: € | I68: 0
E69: Bijzondere waardeverminderingen op activa 2001 met afschrijvingstermijn 3 | H69: € | I69: 0
E70: Bijzondere waardeverminderingen op activa 2001 zonder afschrijvingstermijn | H70: € | I70: 0
B72: Input Alert
E73: Dummy Beginjaar investeringen
E74: Dummy Modelperiode
E75: Dummy Aantal cellen met onterechte input 2001
E76: Dummy Waarschuwing onterecht ingevulde cellen 2001
A78: INVESTERINGSJAAR 2002
B80: Investeringen 2002
E81: Aanschafwaarde investeringen 2002 met afschrijvingstermijn 50 | G81: 48113521.59 | H81: € | I81: =SUM(K81:DF81) -> 0
E82: Aanschafwaarde investeringen 2002 met afschrijvingstermijn 40 | G82: 9688093.894 | H82: € | I82: 0
E83: Aanschafwaarde investeringen 2002 met afschrijvingstermijn 30 | H83: € | I83: 0
E84: Aanschafwaarde investeringen 2002 met afschrijvingstermijn 25 | H84: € | I84: 0
E85: Aanschafwaarde investeringen 2002 met afschrijvingstermijn 20 | H85: € | I85: 0
E86: Aanschafwaarde investeringen 2002 met afschrijvingstermijn 10 | G86: 29383000 | H86: € | I86: 0
E87: Aanschafwaarde investeringen 2002 met afschrijvingstermijn 5 | H87: € | I87: 0
E88: Aanschafwaarde investeringen 2002 met afschrijvingstermijn 3 | H88: € | I88: 0
E89: Aanschafwaarde investeringen 2002 zonder afschrijvingstermijn | G89: 314000 | H89: € | I89: 0
B91: Desinvesteringen 2002
E92: Desinvesteringen 2002 met afschrijvingstermijn 50 | H92: € | I92: =SUM(K92:DF92) -> 1857061 | Q92: 324360 | R92: 221000 | S92: 664982 | T92: 196719 | U92: 162000 | V92: 288000
E93: Desinvesteringen 2002 met afschrijvingstermijn 40 | H93: € | I93: 159481 | Q93: 5481 | R93: 94000 | U93: 10000 | V93: 50000
E94: Desinvesteringen 2002 met afschrijvingstermijn 30 | H94: € | I94: 0
E95: Desinvesteringen 2002 met afschrijvingstermijn 25 | H95: € | I95: 0
E96: Desinvesteringen 2002 met afschrijvingstermijn 20 | H96: € | I96: 0
E97: Desinvesteringen 2002 met afschrijvingstermijn 10 | H97: € | I97: 0
E98: Desinvesteringen 2002 met afschrijvingstermijn 5 | H98: € | I98: 0
E99: Desinvesteringen 2002 met afschrijvingstermijn 3 | H99: € | I99: 0
E100: Desinvesteringen 2002 zonder afschrijvingstermijn | H100: € | I100: 0
B102: Opgegeven Afschrijvingen 2002
E103: Opgegeven afschrijvingen 2002 met afschrijvingstermijn 50 | H103: € | I103: =SUM(K103:DF103) -> 4330216.943 | M103: 481135.2159 | N103: 962270.4319 | O103: 962270.4319 | P103: 962270.4319 | Q103: 962270.4319
E104: Opgegeven afschrijvingen 2002 met afschrijvingstermijn 40 | H104: € | I104: 1089910.563 | M104: 121101.1737 | N104: 242202.3473 | O104: 242202.3473 | P104: 242202.3473 | Q104: 242202.3473
E105: Opgegeven afschrijvingen 2002 met afschrijvingstermijn 30 | H105: € | I105: 0
E106: Opgegeven afschrijvingen 2002 met afschrijvingstermijn 25 | H106: € | I106: 0
E107: Opgegeven afschrijvingen 2002 met afschrijvingstermijn 20 | H107: € | I107: 0
E108: Opgegeven afschrijvingen 2002 met afschrijvingstermijn 10 | H108: € | I108: 13222350 | M108: 1469150 | N108: 2938300 | O108: 2938300 | P108: 2938300 | Q108: 2938300
E109: Opgegeven afschrijvingen 2002 met afschrijvingstermijn 5 | H109: € | I109: 0
E110: Opgegeven afschrijvingen 2002 met afschrijvingstermijn 3 | H110: € | I110: 0
E111: Opgegeven afschrijvingen 2002 zonder afschrijvingstermijn | H111: € | I111: 0
B113: Opgegeven Cumulatieve Afschrijvingen Bij Desinvesteringen 2002
E114: Opgegeven c.a.d. 2002 met afschrijvingstermijn 50 | H114: € | I114: =SUM(K114:DF114) -> 25949 | Q114: 25949
E115: Opgegeven c.a.d. 2002 met afschrijvingstermijn 40 | H115: € | I115: 548 | Q115: 548
E116: Opgegeven c.a.d. 2002 met afschrijvingstermijn 30 | H116: € | I116: 0
E117: Opgegeven c.a.d. 2002 met afschrijvingstermijn 25 | H117: € | I117: 0
E118: Opgegeven c.a.d. 2002 met afschrijvingstermijn 20 | H118: € | I118: 0
E119: Opgegeven c.a.d. 2002 met afschrijvingstermijn 10 | H119: € | I119: 0
E120: Opgegeven c.a.d. 2002 met afschrijvingstermijn 5 | H120: € | I120: 0
E121: Opgegeven c.a.d. 2002 met afschrijvingstermijn 3 | H121: € | I121: 0
E122: Opgegeven c.a.d. 2002 zonder afschrijvingstermijn | H122: € | I122: 0
B124: Bijzondere Waardeverminderingen Op Activa 2002
E125: Bijzondere waardeverminderingen op activa 2002 met afschrijvingstermijn 50 | H125: € | I125: =SUM(K125:DF125) -> 0
E126: Bijzondere waardeverminderingen op activa 2002 met afschrijvingstermijn 40 | H126: € | I126: 0
E127: Bijzondere waardeverminderingen op activa 2002 met afschrijvingstermijn 30 | H127: € | I127: 0
E128: Bijzondere waardeverminderingen op activa 2002 met afschrijvingstermijn 25 | H128: € | I128: 0
E129: Bijzondere waardeverminderingen op activa 2002 met afschrijvingstermijn 20 | H129: € | I129: 0
E130: Bijzondere waardeverminderingen op activa 2002 met afschrijvingstermijn 10 | H130: € | I130: 0
E131: Bijzondere waardeverminderingen op activa 2002 met afschrijvingstermijn 5 | H131: € | I131: 0
E132: Bijzondere waardeverminderingen op activa 2002 met afschrijvingstermijn 3 | H132: € | I132: 0
E133: Bijzondere waardeverminderingen op activa 2002 zonder afschrijvingstermijn | H133: € | I133: 0
B135: Input Alert
E136: Dummy Beginjaar investeringen
E137: Dummy Modelperiode
E138: Dummy Aantal cellen met onterechte input 2002
E139: Dummy Waarschuwing onterecht ingevulde cellen 2002
A141: INVESTERINGSJAAR 2003
B143: Investeringen 2003
E144: Aanschafwaarde investeringen 2003 met afschrijvingstermijn 50 | G144: 31023995.36 | H144: € | I144: =SUM(K144:DF144) -> 0
E145: Aanschafwaarde investeringen 2003 met afschrijvingstermijn 40 | G145: 37298094.28 | H145: € | I145: 0
E146: Aanschafwaarde investeringen 2003 met afschrijvingstermijn 30 | H146: € | I146: 0
E147: Aanschafwaarde investeringen 2003 met afschrijvingstermijn 25 | G147: 9000 | H147: € | I147: 0
E148: Aanschafwaarde investeringen 2003 met afschrijvingstermijn 20 | H148: € | I148: 0
E149: Aanschafwaarde investeringen 2003 met afschrijvingstermijn 10 | G149: 4502000 | H149: € | I149: 0
E150: Aanschafwaarde investeringen 2003 met afschrijvingstermijn 5 | H150: € | I150: 0
E151: Aanschafwaarde investeringen 2003 met afschrijvingstermijn 3 | H151: € | I151: 0
E152: Aanschafwaarde investeringen 2003 zonder afschrijvingstermijn | G152: 434000 | H152: € | I152: 0
B154: Desinvesteringen 2003
E155: Desinvesteringen 2003 met afschrijvingstermijn 50 | H155: € | I155: =SUM(K155:DF155) -> 2423522 | Q155: 278278 | R155: 318000 | S155: 962954 | T155: 205290 | U155: 86000 | V155: 573000
E156: Desinvesteringen 2003 met afschrijvingstermijn 40 | H156: € | I156: 1310460 | Q156: 191069 | R156: 715000 | S156: 71719 | T156: 102672 | U156: 154000 | V156: 76000
E157: Desinvesteringen 2003 met afschrijvingstermijn 30 | H157: € | I157: 0
E158: Desinvesteringen 2003 met afschrijvingstermijn 25 | H158: € | I158: 0
E159: Desinvesteringen 2003 met afschrijvingstermijn 20 | H159: € | I159: 0
E160: Desinvesteringen 2003 met afschrijvingstermijn 10 | H160: € | I160: 0
E161: Desinvesteringen 2003 met afschrijvingstermijn 5 | H161: € | I161: 0
E162: Desinvesteringen 2003 met afschrijvingstermijn 3 | H162: € | I162: 0
E163: Desinvesteringen 2003 zonder afschrijvingstermijn | H163: € | I163: 0
B165: Opgegeven Afschrijvingen 2003
E166: Opgegeven afschrijvingen 2003 met afschrijvingstermijn 50 | H166: € | I166: =SUM(K166:DF166) -> 2171679.675 | N166: 310239.9536 | O166: 620479.9071 | P166: 620479.9071 | Q166: 620479.9071
E167: Opgegeven afschrijvingen 2003 met afschrijvingstermijn 40 | H167: € | I167: 3263583.25 | N167: 466226.1785 | O167: 932452.357 | P167: 932452.357 | Q167: 932452.357
E168: Opgegeven afschrijvingen 2003 met afschrijvingstermijn 30 | H168: € | I168: 0 | N168: 0 | O168: 0 | P168: 0 | Q168: 0
E169: Opgegeven afschrijvingen 2003 met afschrijvingstermijn 25 | H169: € | I169: 1260 | N169: 180 | O169: 360 | P169: 360 | Q169: 360
E170: Opgegeven afschrijvingen 2003 met afschrijvingstermijn 20 | H170: € | I170: 0
E171: Opgegeven afschrijvingen 2003 met afschrijvingstermijn 10 | H171: € | I171: 1575700 | N171: 225100 | O171: 450200 | P171: 450200 | Q171: 450200
E172: Opgegeven afschrijvingen 2003 met afschrijvingstermijn 5 | H172: € | I172: 0
E173: Opgegeven afschrijvingen 2003 met afschrijvingstermijn 3 | H173: € | I173: 0
E174: Opgegeven afschrijvingen 2003 zonder afschrijvingstermijn | H174: € | I174: 0
B176: Opgegeven Cumulatieve Afschrijvingen Bij Desinvesteringen 2003
E177: Opgegeven c.a.d. 2003 met afschrijvingstermijn 50 | H177: € | I177: =SUM(K177:DF177) -> 16695 | Q177: 16695
E178: Opgegeven c.a.d. 2003 met afschrijvingstermijn 40 | H178: € | I178: 14330 | Q178: 14330
E179: Opgegeven c.a.d. 2003 met afschrijvingstermijn 30 | H179: € | I179: 0
E180: Opgegeven c.a.d. 2003 met afschrijvingstermijn 25 | H180: € | I180: 0
E181: Opgegeven c.a.d. 2003 met afschrijvingstermijn 20 | H181: € | I181: 0
E182: Opgegeven c.a.d. 2003 met afschrijvingstermijn 10 | H182: € | I182: 0
E183: Opgegeven c.a.d. 2003 met afschrijvingstermijn 5 | H183: € | I183: 0
E184: Opgegeven c.a.d. 2003 met afschrijvingstermijn 3 | H184: € | I184: 0
E185: Opgegeven c.a.d. 2003 zonder afschrijvingstermijn | H185: € | I185: 0
B187: Bijzondere Waardeverminderingen Op Activa 2003
E188: Bijzondere waardeverminderingen op activa 2003 met afschrijvingstermijn 50 | H188: € | I188: =SUM(K188:DF188) -> 0
E189: Bijzondere waardeverminderingen op activa 2003 met afschrijvingstermijn 40 | H189: € | I189: 0
E190: Bijzondere waardeverminderingen op activa 2003 met afschrijvingstermijn 30 | H190: € | I190: 0
E191: Bijzondere waardeverminderingen op activa 2003 met afschrijvingstermijn 25 | H191: € | I191: 0
E192: Bijzondere waardeverminderingen op activa 2003 met afschrijvingstermijn 20 | H192: € | I192: 0
E193: Bijzondere waardeverminderingen op activa 2003 met afschrijvingstermijn 10 | H193: € | I193: 0
E194: Bijzondere waardeverminderingen op activa 2003 met afschrijvingstermijn 5 | H194: € | I194: 0
E195: Bijzondere waardeverminderingen op activa 2003 met afschrijvingstermijn 3 | H195: € | I195: 0
E196: Bijzondere waardeverminderingen op activa 2003 zonder afschrijvingstermijn | H196: € | I196: 0
B198: Input Alert
E199: Dummy Beginjaar investeringen
E200: Dummy Modelperiode
E201: Dummy Aantal cellen met onterechte input 2003
E202: Dummy Waarschuwing onterecht ingevulde cellen 2003
A204: INVESTERINGSJAAR 2004
B206: Investeringen 2004
E207: Aanschafwaarde investeringen 2004 met afschrijvingstermijn 50 | G207: 47240090.77 | H207: € | I207: =SUM(K207:DF207) -> 0
E208: Aanschafwaarde investeringen 2004 met afschrijvingstermijn 40 | G208: 28286824.04 | H208: € | I208: 0
E209: Aanschafwaarde investeringen 2004 met afschrijvingstermijn 30 | H209: € | I209: 0
E210: Aanschafwaarde investeringen 2004 met afschrijvingstermijn 25 | H210: € | I210: 0
E211: Aanschafwaarde investeringen 2004 met afschrijvingstermijn 20 | H211: € | I211: 0
E212: Aanschafwaarde investeringen 2004 met afschrijvingstermijn 10 | H212: € | I212: 0
E213: Aanschafwaarde investeringen 2004 met afschrijvingstermijn 5 | H213: € | I213: 0
E214: Aanschafwaarde investeringen 2004 met afschrijvingstermijn 3 | H214: € | I214: 0
E215: Aanschafwaarde investeringen 2004 zonder afschrijvingstermijn | G215: 537000 | H215: € | I215: 0
B217: Desinvesteringen 2004
E218: Desinvesteringen 2004 met afschrijvingstermijn 50 | H218: € | I218: =SUM(K218:DF218) -> 2361538 | Q218: 394820 | R218: 265000 | S218: 600523 | T218: 372195 | U218: 382000 | V218: 347000
E219: Desinvesteringen 2004 met afschrijvingstermijn 40 | H219: € | I219: 873549 | Q219: 220781 | R219: 306000 | S219: 81917 | T219: 149851 | U219: 93000 | V219: 22000
E220: Desinvesteringen 2004 met afschrijvingstermijn 30 | H220: € | I220: 0
E221: Desinvesteringen 2004 met afschrijvingstermijn 25 | H221: € | I221: 0
E222: Desinvesteringen 2004 met afschrijvingstermijn 20 | H222: € | I222: 0
E223: Desinvesteringen 2004 met afschrijvingstermijn 10 | H223: € | I223: 0
E224: Desinvesteringen 2004 met afschrijvingstermijn 5 | H224: € | I224: 0
E225: Desinvesteringen 2004 met afschrijvingstermijn 3 | H225: € | I225: 0
E226: Desinvesteringen 2004 zonder afschrijvingstermijn | H226: € | I226: 0
... 707 more rows

Sheet InpRendo
A1: =RIGHT(CELL("filename", A1), LEN(CELL("filename", A1)) - SEARCH("]", CELL("filename", A1))) -> InpRendo
E2: =Tijd!E$2 -> Actieve netbeheerder | G2: =Tijd!G$2 -> Cogas
E3: =Tijd!E$3 -> Actieve inputsheet | G3: =Tijd!G$3 -> InpCogas
E4: =Tijd!E$4 -> Modelperiode | G4: =Check!G4 -> 0 | H4: =Check!H4 -> errors | K4: =Tijd!K$4 -> 2000 | L4: =Tijd!L$4 -> 2001 | M4: =Tijd!M$4 -> 2002 | N4: =Tijd!N$4 -> 2003 | O4: =Tijd!O$4 -> 2004 | P4: =Tijd!P$4 -> 2005 | Q4: =Tijd!Q$4 -> 2006 | R4: =Tijd!R$4 -> 2007 | S4: =Tijd!S$4 -> 2008 | T4: =Tijd!T$4 -> 2009 | U4: =Tijd!U$4 -> 2010 | V4: =Tijd!V$4 -> 2011 | W4: =Tijd!W$4 -> 2012 | X4: =Tijd!X$4 -> 2013 | Y4: =Tijd!Y$4 -> 2014 | Z4: =Tijd!Z$4 -> 2015 | AA4: =Tijd!AA$4 -> 2016 | AB4: =Tijd!AB$4 -> 2017 | AC4: =Tijd!AC$4 -> 2018 | AD4: =Tijd!AD$4 -> 2019 | AE4: =Tijd!AE$4 -> 2020 | AF4: =Tijd!AF$4 -> 2021 | AG4: =Tijd!AG$4 -> 2022 | AH4: =Tijd!AH$4 -> 2023 | AI4: =Tijd!AI$4 -> 2024 | AJ4: =Tijd!AJ$4 -> 2025 | AK4: =Tijd!AK$4 -> 2026 | AL4: =Tijd!AL$4 -> 2027 | AM4: =Tijd!AM$4 -> 2028 | AN4: =Tijd!AN$4 -> 2029 | AO4: =Tijd!AO$4 -> 2030 | AP4: =Tijd!AP$4 -> 2031 | AQ4: =Tijd!AQ$4 -> 2032 | AR4: =Tijd!AR$4 -> 2033 | AS4: =Tijd!AS$4 -> 2034 | AT4: =Tijd!AT$4 -> 2035 | AU4: =Tijd!AU$4 -> 2036 | AV4: =Tijd!AV$4 -> 2037 | AW4: =Tijd!AW$4 -> 2038 | AX4: =Tijd!AX$4 -> 2039 | AY4: =Tijd!AY$4 -> 2040 | AZ4: =Tijd!AZ$4 -> 2041 | BA4: =Tijd!BA$4 -> 2042 | BB4: =Tijd!BB$4 -> 2043 | BC4: =Tijd!BC$4 -> 2044 | BD4: =Tijd!BD$4 -> 2045 | BE4: =Tijd!BE$4 -> 2046 | BF4: =Tijd!BF$4 -> 2047 | BG4: =Tijd!BG$4 -> 2048 | BH4: =Tijd!BH$4 -> 2049 | BI4: =Tijd!BI$4 -> 2050 | BJ4: =Tijd!BJ$4 -> 2051 | BK4: =Tijd!BK$4 -> 2052 | BL4: =Tijd!BL$4 -> 2053 | BM4: =Tijd!BM$4 -> 2054 | BN4: =Tijd!BN$4 -> 2055 | BO4: =Tijd!BO$4 -> 2056 | BP4: =Tijd!BP$4 -> 2057 | BQ4: =Tijd!BQ$4 -> 2058 | BR4: =Tijd!BR$4 -> 2059 | BS4: =Tijd!BS$4 -> 2060 | BT4: =Tijd!BT$4 -> 2061 | BU4: =Tijd!BU$4 -> 2062 | BV4: =Tijd!BV$4 -> 2063 | BW4: =Tijd!BW$4 -> 2064 | BX4: =Tijd!BX$4 -> 2065 | BY4: =Tijd!BY$4 -> 2066 | BZ4: =Tijd!BZ$4 -> 2067 | CA4: =Tijd!CA$4 -> 2068 | CB4: =Tijd!CB$4 -> 2069 | CC4: =Tijd!CC$4 -> 2070 | CD4: =Tijd!CD$4 -> 2071 | CE4: =Tijd!CE$4 -> 2072 | CF4: =Tijd!CF$4 -> 2073 | CG4: =Tijd!CG$4 -> 2074 | CH4: =Tijd!CH$4 -> 2075 | CI4: =Tijd!CI$4 -> 2076 | CJ4: =Tijd!CJ$4 -> 2077 | CK4: =Tijd!CK$4 -> 2078 | CL4: =Tijd!CL$4 -> 2079 | CM4: =Tijd!CM$4 -> 2080 | CN4: =Tijd!CN$4 -> 2081 | CO4: =Tijd!CO$4 -> 2082 | CP4: =Tijd!CP$4 -> 2083 | CQ4: =Tijd!CQ$4 -> 2084 | CR4: =Tijd!CR$4 -> 2085 | CS4: =Tijd!CS$4 -> 2086 | CT4: =Tijd!CT$4 -> 2087 | CU4: =Tijd!CU$4 -> 2088 | CV4: =Tijd!CV$4 -> 2089 | CW4: =Tijd!CW$4 -> 2090 | CX4: =Tijd!CX$4 -> 2091 | CY4: =Tijd!CY$4 -> 2092 | CZ4: =Tijd!CZ$4 -> 2093 | DA4: =Tijd!DA$4 -> 2094 | DB4: =Tijd!DB$4 -> 2095 | DC4: =Tijd!DC$4 -> 2096 | DD4: =Tijd!DD$4 -> 2097 | DE4: =Tijd!DE$4 -> 2098 | DF4: =Tijd!DF$4 -> 2099
E5: =Tijd!E$5 -> Looptijd vs Uitlooptijd | G5: =Check!G5 -> 0 | H5: =Check!H5 -> waarschuwingen | K5: =Tijd!K$5 -> Looptijd | L5: =Tijd!L$5 -> Looptijd | M5: =Tijd!M$5 -> Looptijd | N5: =Tijd!N$5 -> Looptijd | O5: =Tijd!O$5 -> Looptijd | P5: =Tijd!P$5 -> Looptijd | Q5: =Tijd!Q$5 -> Looptijd | R5: =Tijd!R$5 -> Looptijd | S5: =Tijd!S$5 -> Looptijd | T5: =Tijd!T$5 -> Looptijd | U5: =Tijd!U$5 -> Looptijd | V5: =Tijd!V$5 -> Looptijd | W5: =Tijd!W$5 -> Looptijd | X5: =Tijd!X$5 -> Looptijd | Y5: =Tijd!Y$5 -> Looptijd | Z5: =Tijd!Z$5 -> Looptijd | AA5: =Tijd!AA$5 -> Looptijd | AB5: =Tijd!AB$5 -> Looptijd | AC5: =Tijd!AC$5 -> Looptijd | AD5: =Tijd!AD$5 -> Looptijd | AE5: =Tijd!AE$5 -> Looptijd | AF5: =Tijd!AF$5 -> Looptijd | AG5: =Tijd!AG$5 -> Looptijd | AH5: =Tijd!AH$5 -> Looptijd | AI5: =Tijd!AI$5 -> Looptijd | AJ5: =Tijd!AJ$5 -> Looptijd | AK5: =Tijd!AK$5 -> Looptijd | AL5: =Tijd!AL$5 -> Looptijd | AM5: =Tijd!AM$5 -> Looptijd | AN5: =Tijd!AN$5 -> Looptijd | AO5: =Tijd!AO$5 -> Looptijd | AP5: =Tijd!AP$5 -> Looptijd | AQ5: =Tijd!AQ$5 -> Looptijd | AR5: =Tijd!AR$5 -> Looptijd | AS5: =Tijd!AS$5 -> Looptijd | AT5: =Tijd!AT$5 -> Looptijd | AU5: =Tijd!AU$5 -> Looptijd | AV5: =Tijd!AV$5 -> Looptijd | AW5: =Tijd!AW$5 -> Looptijd | AX5: =Tijd!AX$5 -> Looptijd | AY5: =Tijd!AY$5 -> Looptijd | AZ5: =Tijd!AZ$5 -> Looptijd | BA5: =Tijd!BA$5 -> Looptijd | BB5: =Tijd!BB$5 -> Looptijd | BC5: =Tijd!BC$5 -> Looptijd | BD5: =Tijd!BD$5 -> Looptijd | BE5: =Tijd!BE$5 -> Looptijd | BF5: =Tijd!BF$5 -> Looptijd | BG5: =Tijd!BG$5 -> Looptijd | BH5: =Tijd!BH$5 -> Looptijd | BI5: =Tijd!BI$5 -> Looptijd | BJ5: =Tijd!BJ$5 -> Uitlooptijd | BK5: =Tijd!BK$5 -> Uitlooptijd | BL5: =Tijd!BL$5 -> Uitlooptijd | BM5: =Tijd!BM$5 -> Uitlooptijd | BN5: =Tijd!BN$5 -> Uitlooptijd | BO5: =Tijd!BO$5 -> Uitlooptijd | BP5: =Tijd!BP$5 -> Uitlooptijd | BQ5: =Tijd!BQ$5 -> Uitlooptijd | BR5: =Tijd!BR$5 -> Uitlooptijd | BS5: =Tijd!BS$5 -> Uitlooptijd | BT5: =Tijd!BT$5 -> Uitlooptijd | BU5: =Tijd!BU$5 -> Uitlooptijd | BV5: =Tijd!BV$5 -> Uitlooptijd | BW5: =Tijd!BW$5 -> Uitlooptijd | BX5: =Tijd!BX$5 -> Uitlooptijd | BY5: =Tijd!BY$5 -> Uitlooptijd | BZ5: =Tijd!BZ$5 -> Uitlooptijd | CA5: =Tijd!CA$5 -> Uitlooptijd | CB5: =Tijd!CB$5 -> Uitlooptijd | CC5: =Tijd!CC$5 -> Uitlooptijd | CD5: =Tijd!CD$5 -> Uitlooptijd | CE5: =Tijd!CE$5 -> Uitlooptijd | CF5: =Tijd!CF$5 -> Uitlooptijd | CG5: =Tijd!CG$5 -> Uitlooptijd | CH5: =Tijd!CH$5 -> Uitlooptijd | CI5: =Tijd!CI$5 -> Uitlooptijd | CJ5: =Tijd!CJ$5 -> Uitlooptijd | CK5: =Tijd!CK$5 -> Uitlooptijd | CL5: =Tijd!CL$5 -> Uitlooptijd | CM5: =Tijd!CM$5 -> Uitlooptijd | CN5: =Tijd!CN$5 -> Uitlooptijd | CO5: =Tijd!CO$5 -> Uitlooptijd | CP5: =Tijd!CP$5 -> Uitlooptijd | CQ5: =Tijd!CQ$5 -> Uitlooptijd | CR5: =Tijd!CR$5 -> Uitlooptijd | CS5: =Tijd!CS$5 -> Uitlooptijd | CT5: =Tijd!CT$5 -> Uitlooptijd | CU5: =Tijd!CU$5 -> Uitlooptijd | CV5: =Tijd!CV$5 -> Uitlooptijd | CW5: =Tijd!CW$5 -> Uitlooptijd | CX5: =Tijd!CX$5 -> Uitlooptijd | CY5: =Tijd!CY$5 -> Uitlooptijd | CZ5: =Tijd!CZ$5 -> Uitlooptijd | DA5: =Tijd!DA$5 -> Uitlooptijd | DB5: =Tijd!DB$5 -> Uitlooptijd | DC5: =Tijd!DC$5 -> Uitlooptijd | DD5: =Tijd!DD$5 -> Uitlooptijd | DE5: =Tijd!DE$5 -> Uitlooptijd | DF5: =Tijd!DF$5 -> Uitlooptijd
E6: =Tijd!E$10 -> Model kolom teller | F6: Bron | G6: Constante | H6: Eenheid | I6: Totaal | K6: =Tijd!K$10 -> 1 | L6: =Tijd!L$10 -> 2 | M6: =Tijd!M$10 -> 3 | N6: =Tijd!N$10 -> 4 | O6: =Tijd!O$10 -> 5 | P6: =Tijd!P$10 -> 6 | Q6: =Tijd!Q$10 -> 7 | R6: =Tijd!R$10 -> 8 | S6: =Tijd!S$10 -> 9 | T6: =Tijd!T$10 -> 10 | U6: =Tijd!U$10 -> 11 | V6: =Tijd!V$10 -> 12 | W6: =Tijd!W$10 -> 13 | X6: =Tijd!X$10 -> 14 | Y6: =Tijd!Y$10 -> 15 | Z6: =Tijd!Z$10 -> 16 | AA6: =Tijd!AA$10 -> 17 | AB6: =Tijd!AB$10 -> 18 | AC6: =Tijd!AC$10 -> 19 | AD6: =Tijd!AD$10 -> 20 | AE6: =Tijd!AE$10 -> 21 | AF6: =Tijd!AF$10 -> 22 | AG6: =Tijd!AG$10 -> 23 | AH6: =Tijd!AH$10 -> 24 | AI6: =Tijd!AI$10 -> 25 | AJ6: =Tijd!AJ$10 -> 26 | AK6: =Tijd!AK$10 -> 27 | AL6: =Tijd!AL$10 -> 28 | AM6: =Tijd!AM$10 -> 29 | AN6: =Tijd!AN$10 -> 30 | AO6: =Tijd!AO$10 -> 31 | AP6: =Tijd!AP$10 -> 32 | AQ6: =Tijd!AQ$10 -> 33 | AR6: =Tijd!AR$10 -> 34 | AS6: =Tijd!AS$10 -> 35 | AT6: =Tijd!AT$10 -> 36 | AU6: =Tijd!AU$10 -> 37 | AV6: =Tijd!AV$10 -> 38 | AW6: =Tijd!AW$10 -> 39 | AX6: =Tijd!AX$10 -> 40 | AY6: =Tijd!AY$10 -> 41 | AZ6: =Tijd!AZ$10 -> 42 | BA6: =Tijd!BA$10 -> 43 | BB6: =Tijd!BB$10 -> 44 | BC6: =Tijd!BC$10 -> 45 | BD6: =Tijd!BD$10 -> 46 | BE6: =Tijd!BE$10 -> 47 | BF6: =Tijd!BF$10 -> 48 | BG6: =Tijd!BG$10 -> 49 | BH6: =Tijd!BH$10 -> 50 | BI6: =Tijd!BI$10 -> 51 | BJ6: =Tijd!BJ$10 -> 52 | BK6: =Tijd!BK$10 -> 53 | BL6: =Tijd!BL$10 -> 54 | BM6: =Tijd!BM$10 -> 55 | BN6: =Tijd!BN$10 -> 56 | BO6: =Tijd!BO$10 -> 57 | BP6: =Tijd!BP$10 -> 58 | BQ6: =Tijd!BQ$10 -> 59 | BR6: =Tijd!BR$10 -> 60 | BS6: =Tijd!BS$10 -> 61 | BT6: =Tijd!BT$10 -> 62 | BU6: =Tijd!BU$10 -> 63 | BV6: =Tijd!BV$10 -> 64 | BW6: =Tijd!BW$10 -> 65 | BX6: =Tijd!BX$10 -> 66 | BY6: =Tijd!BY$10 -> 67 | BZ6: =Tijd!BZ$10 -> 68 | CA6: =Tijd!CA$10 -> 69 | CB6: =Tijd!CB$10 -> 70 | CC6: =Tijd!CC$10 -> 71 | CD6: =Tijd!CD$10 -> 72 | CE6: =Tijd!CE$10 -> 73 | CF6: =Tijd!CF$10 -> 74 | CG6: =Tijd!CG$10 -> 75 | CH6: =Tijd!CH$10 -> 76 | CI6: =Tijd!CI$10 -> 77 | CJ6: =Tijd!CJ$10 -> 78 | CK6: =Tijd!CK$10 -> 79 | CL6: =Tijd!CL$10 -> 80 | CM6: =Tijd!CM$10 -> 81 | CN6: =Tijd!CN$10 -> 82 | CO6: =Tijd!CO$10 -> 83 | CP6: =Tijd!CP$10 -> 84 | CQ6: =Tijd!CQ$10 -> 85 | CR6: =Tijd!CR$10 -> 86 | CS6: =Tijd!CS$10 -> 87 | CT6: =Tijd!CT$10 -> 88 | CU6: =Tijd!CU$10 -> 89 | CV6: =Tijd!CV$10 -> 90 | CW6: =Tijd!CW$10 -> 91 | CX6: =Tijd!CX$10 -> 92 | CY6: =Tijd!CY$10 -> 93 | CZ6: =Tijd!CZ$10 -> 94 | DA6: =Tijd!DA$10 -> 95 | DB6: =Tijd!DB$10 -> 96 | DC6: =Tijd!DC$10 -> 97 | DD6: =Tijd!DD$10 -> 98 | DE6: =Tijd!DE$10 -> 99 | DF6: =Tijd!DF$10 -> 100
A9: INVESTERINGSJAAR 2000 - START GAW
E10: Startwaarde GAW incl. afgekochte precario (31-12-2000) | G10: 36201825.92 | H10: €
E11: Afschrijvingen Start GAW | G11: 1924935.677 | H11: €
E12: Afgekochte precario in Start GAW (31-12-2000) | G12: 9214246.79 | H12: €
E13: Afschrijvingsbedrag afgekochte precario | G13: 511902.5994 | H13: €
A15: INVESTERINGSJAAR 2001
B17: Investeringen 2001
E18: Aanschafwaarde investeringen 2001 met afschrijvingstermijn 50 | G18: 979000 | H18: €
E19: Aanschafwaarde investeringen 2001 met afschrijvingstermijn 40 | G19: 250000 | H19: €
E20: Aanschafwaarde investeringen 2001 met afschrijvingstermijn 30 | G20: 0 | H20: €
E21: Aanschafwaarde investeringen 2001 met afschrijvingstermijn 25 | G21: 1000 | H21: €
E22: Aanschafwaarde investeringen 2001 met afschrijvingstermijn 20 | G22: 0 | H22: €
E23: Aanschafwaarde investeringen 2001 met afschrijvingstermijn 10 | G23: 693159.3575 | H23: €
E24: Aanschafwaarde investeringen 2001 met afschrijvingstermijn 5 | G24: 0 | H24: €
E25: Aanschafwaarde investeringen 2001 met afschrijvingstermijn 3 | G25: 0 | H25: €
E26: Aanschafwaarde investeringen 2001 zonder afschrijvingstermijn | G26: 0 | H26: €
B28: Desinvesteringen 2001
E29: Desinvesteringen 2001 met afschrijvingstermijn 50 | H29: € | I29: =SUM(K29:DF29) -> 0
E30: Desinvesteringen 2001 met afschrijvingstermijn 40 | H30: € | I30: 0
E31: Desinvesteringen 2001 met afschrijvingstermijn 30 | H31: € | I31: 0
E32: Desinvesteringen 2001 met afschrijvingstermijn 25 | H32: € | I32: 0
E33: Desinvesteringen 2001 met afschrijvingstermijn 20 | H33: € | I33: 0
E34: Desinvesteringen 2001 met afschrijvingstermijn 10 | H34: € | I34: 9735 | Q34: 9735
E35: Desinvesteringen 2001 met afschrijvingstermijn 5 | H35: € | I35: 0
E36: Desinvesteringen 2001 met afschrijvingstermijn 3 | H36: € | I36: 0
E37: Desinvesteringen 2001 zonder afschrijvingstermijn | H37: € | I37: 0
B39: Opgegeven Afschrijvingen 2001
E40: Opgegeven afschrijvingen 2001 met afschrijvingstermijn 50 | H40: € | I40: =SUM(K40:DF40) -> 97900 | L40: 0 | M40: 19580 | N40: 19580 | O40: 19580 | P40: 19580 | Q40: 19580
E41: Opgegeven afschrijvingen 2001 met afschrijvingstermijn 40 | H41: € | I41: 31250 | L41: 0 | M41: 6250 | N41: 6250 | O41: 6250 | P41: 6250 | Q41: 6250
E42: Opgegeven afschrijvingen 2001 met afschrijvingstermijn 30 | H42: € | I42: 0 | L42: 0 | M42: 0 | N42: 0 | O42: 0 | P42: 0 | Q42: 0
E43: Opgegeven afschrijvingen 2001 met afschrijvingstermijn 25 | H43: € | I43: 200 | L43: 0 | M43: 40 | N43: 40 | O43: 40 | P43: 40 | Q43: 40
E44: Opgegeven afschrijvingen 2001 met afschrijvingstermijn 20 | H44: € | I44: 0 | L44: 0
E45: Opgegeven afschrijvingen 2001 met afschrijvingstermijn 10 | H45: € | I45: 346579.6787 | L45: 0 | M45: 69315.93575 | N45: 69315.93575 | O45: 69315.93575 | P45: 69315.93575 | Q45: 69315.93575
E46: Opgegeven afschrijvingen 2001 met afschrijvingstermijn 5 | H46: € | I46: 0 | L46: 0 | M46: 0 | N46: 0 | O46: 0 | P46: 0 | Q46: 0
E47: Opgegeven afschrijvingen 2001 met afschrijvingstermijn 3 | H47: € | I47: 0 | L47: 0 | M47: 0 | N47: 0 | O47: 0 | P47: 0 | Q47: 0
E48: Opgegeven afschrijvingen 2001 zonder afschrijvingstermijn | H48: € | I48: 0 | L48: 0
B50: Opgegeven Cumulatieve Afschrijvingen Bij Desinvesteringen 2001
E51: Opgegeven c.a.d. 2001 met afschrijvingstermijn 50 | H51: € | I51: =SUM(K51:DF51) -> 0
E52: Opgegeven c.a.d. 2001 met afschrijvingstermijn 40 | H52: € | I52: 0
E53: Opgegeven c.a.d. 2001 met afschrijvingstermijn 30 | H53: € | I53: 0
E54: Opgegeven c.a.d. 2001 met afschrijvingstermijn 25 | H54: € | I54: 0
E55: Opgegeven c.a.d. 2001 met afschrijvingstermijn 20 | H55: € | I55: 0
E56: Opgegeven c.a.d. 2001 met afschrijvingstermijn 10 | H56: € | I56: 5354 | Q56: 5354
E57: Opgegeven c.a.d. 2001 met afschrijvingstermijn 5 | H57: € | I57: 0
E58: Opgegeven c.a.d. 2001 met afschrijvingstermijn 3 | H58: € | I58: 0
E59: Opgegeven c.a.d. 2001 zonder afschrijvingstermijn | H59: € | I59: 0
B61: Bijzondere Waardeverminderingen Op Activa 2001
E62: Bijzondere waardeverminderingen op activa 2001 met afschrijvingstermijn 50 | H62: € | I62: =SUM(K62:DF62) -> 0
E63: Bijzondere waardeverminderingen op activa 2001 met afschrijvingstermijn 40 | H63: € | I63: 0
E64: Bijzondere waardeverminderingen op activa 2001 met afschrijvingstermijn 30 | H64: € | I64: 0
E65: Bijzondere waardeverminderingen op activa 2001 met afschrijvingstermijn 25 | H65: € | I65: 0
E66: Bijzondere waardeverminderingen op activa 2001 met afschrijvingstermijn 20 | H66: € | I66: 0
E67: Bijzondere waardeverminderingen op activa 2001 met afschrijvingstermijn 10 | H67: € | I67: 0
E68: Bijzondere waardeverminderingen op activa 2001 met afschrijvingstermijn 5 | H68: € | I68: 0
E69: Bijzondere waardeverminderingen op activa 2001 met afschrijvingstermijn 3 | H69: € | I69: 0
E70: Bijzondere waardeverminderingen op activa 2001 zonder afschrijvingstermijn | H70: € | I70: 0
B72: Input Alert
E73: Dummy Beginjaar investeringen
E74: Dummy Modelperiode
E75: Dummy Aantal cellen met onterechte input 2001
E76: Dummy Waarschuwing onterecht ingevulde cellen 2001
A78: INVESTERINGSJAAR 2002
B80: Investeringen 2002
E81: Aanschafwaarde investeringen 2002 met afschrijvingstermijn 50 | G81: 986000 | H81: € | I81: =SUM(K81:DF81) -> 0
E82: Aanschafwaarde investeringen 2002 met afschrijvingstermijn 40 | G82: 315000 | H82: € | I82: 0
E83: Aanschafwaarde investeringen 2002 met afschrijvingstermijn 30 | G83: 0 | H83: € | I83: 0
E84: Aanschafwaarde investeringen 2002 met afschrijvingstermijn 25 | G84: 0 | H84: € | I84: 0
E85: Aanschafwaarde investeringen 2002 met afschrijvingstermijn 20 | G85: 0 | H85: € | I85: 0
E86: Aanschafwaarde investeringen 2002 met afschrijvingstermijn 10 | G86: 667000 | H86: € | I86: 0
E87: Aanschafwaarde investeringen 2002 met afschrijvingstermijn 5 | H87: € | I87: 0
E88: Aanschafwaarde investeringen 2002 met afschrijvingstermijn 3 | H88: € | I88: 0
E89: Aanschafwaarde investeringen 2002 zonder afschrijvingstermijn | H89: € | I89: 0
B91: Desinvesteringen 2002
E92: Desinvesteringen 2002 met afschrijvingstermijn 50 | H92: € | I92: =SUM(K92:DF92) -> 0
E93: Desinvesteringen 2002 met afschrijvingstermijn 40 | H93: € | I93: 0
E94: Desinvesteringen 2002 met afschrijvingstermijn 30 | H94: € | I94: 0
E95: Desinvesteringen 2002 met afschrijvingstermijn 25 | H95: € | I95: 0
E96: Desinvesteringen 2002 met afschrijvingstermijn 20 | H96: € | I96: 0
E97: Desinvesteringen 2002 met afschrijvingstermijn 10 | H97: € | I97: 525189.16 | Q97: 11867 | R97: 499416.46 | S97: 5143.51 | T97: 2016.11 | U97: 6746.08
E98: Desinvesteringen 2002 met afschrijvingstermijn 5 | H98: € | I98: 0
E99: Desinvesteringen 2002 met afschrijvingstermijn 3 | H99: € | I99: 0
E100: Desinvesteringen 2002 zonder afschrijvingstermijn | H100: € | I100: 0
B102: Opgegeven Afschrijvingen 2002
E103: Opgegeven afschrijvingen 2002 met afschrijvingstermijn 50 | H103: € | I103: =SUM(K103:DF103) -> 78880 | M103: 0 | N103: 19720 | O103: 19720 | P103: 19720 | Q103: 19720
E104: Opgegeven afschrijvingen 2002 met afschrijvingstermijn 40 | H104: € | I104: 31500 | M104: 0 | N104: 7875 | O104: 7875 | P104: 7875 | Q104: 7875
E105: Opgegeven afschrijvingen 2002 met afschrijvingstermijn 30 | H105: € | I105: 0 | M105: 0 | N105: 0 | O105: 0 | P105: 0 | Q105: 0
E106: Opgegeven afschrijvingen 2002 met afschrijvingstermijn 25 | H106: € | I106: 0 | M106: 0 | N106: 0 | O106: 0 | P106: 0 | Q106: 0
E107: Opgegeven afschrijvingen 2002 met afschrijvingstermijn 20 | H107: € | I107: 0
E108: Opgegeven afschrijvingen 2002 met afschrijvingstermijn 10 | H108: € | I108: 266800 | M108: 0 | N108: 66700 | O108: 66700 | P108: 66700 | Q108: 66700
E109: Opgegeven afschrijvingen 2002 met afschrijvingstermijn 5 | H109: € | I109: 0 | M109: 0 | N109: 0 | O109: 0 | P109: 0 | Q109: 0
E110: Opgegeven afschrijvingen 2002 met afschrijvingstermijn 3 | H110: € | I110: 0 | M110: 0 | N110: 0 | O110: 0 | P110: 0 | Q110: 0
E111: Opgegeven afschrijvingen 2002 zonder afschrijvingstermijn | H111: € | I111: 0
B113: Opgegeven Cumulatieve Afschrijvingen Bij Desinvesteringen 2002
E114: Opgegeven c.a.d. 2002 met afschrijvingstermijn 50 | H114: € | I114: =SUM(K114:DF114) -> 0
E115: Opgegeven c.a.d. 2002 met afschrijvingstermijn 40 | H115: € | I115: 0
E116: Opgegeven c.a.d. 2002 met afschrijvingstermijn 30 | H116: € | I116: 0
E117: Opgegeven c.a.d. 2002 met afschrijvingstermijn 25 | H117: € | I117: 0
E118: Opgegeven c.a.d. 2002 met afschrijvingstermijn 20 | H118: € | I118: 0
E119: Opgegeven c.a.d. 2002 met afschrijvingstermijn 10 | H119: € | I119: 5340 | Q119: 5340
E120: Opgegeven c.a.d. 2002 met afschrijvingstermijn 5 | H120: € | I120: 0
E121: Opgegeven c.a.d. 2002 met afschrijvingstermijn 3 | H121: € | I121: 0
E122: Opgegeven c.a.d. 2002 zonder afschrijvingstermijn | H122: € | I122: 0
B124: Bijzondere Waardeverminderingen Op Activa 2002
E125: Bijzondere waardeverminderingen op activa 2002 met afschrijvingstermijn 50 | H125: € | I125: =SUM(K125:DF125) -> 0
E126: Bijzondere waardeverminderingen op activa 2002 met afschrijvingstermijn 40 | H126: € | I126: 0
E127: Bijzondere waardeverminderingen op activa 2002 met afschrijvingstermijn 30 | H127: € | I127: 0
E128: Bijzondere waardeverminderingen op activa 2002 met afschrijvingstermijn 25 | H128: € | I128: 0
E129: Bijzondere waardeverminderingen op activa 2002 met afschrijvingstermijn 20 | H129: € | I129: 0
E130: Bijzondere waardeverminderingen op activa 2002 met afschrijvingstermijn 10 | H130: € | I130: 0
E131: Bijzondere waardeverminderingen op activa 2002 met afschrijvingstermijn 5 | H131: € | I131: 0
E132: Bijzondere waardeverminderingen op activa 2002 met afschrijvingstermijn 3 | H132: € | I132: 0
E133: Bijzondere waardeverminderingen op activa 2002 zonder afschrijvingstermijn | H133: € | I133: 0
B135: Input Alert
E136: Dummy Beginjaar investeringen
E137: Dummy Modelperiode
E138: Dummy Aantal cellen met onterechte input 2002
E139: Dummy Waarschuwing onterecht ingevulde cellen 2002
A141: INVESTERINGSJAAR 2003
B143: Investeringen 2003
E144: Aanschafwaarde investeringen 2003 met afschrijvingstermijn 50 | G144: 733500 | H144: € | I144: =SUM(K144:DF144) -> 0
E145: Aanschafwaarde investeringen 2003 met afschrijvingstermijn 40 | G145: 237000 | H145: € | I145: 0
E146: Aanschafwaarde investeringen 2003 met afschrijvingstermijn 30 | G146: 1340000 | H146: € | I146: 0
E147: Aanschafwaarde investeringen 2003 met afschrijvingstermijn 25 | G147: 0 | H147: € | I147: 0
E148: Aanschafwaarde investeringen 2003 met afschrijvingstermijn 20 | H148: € | I148: 0
E149: Aanschafwaarde investeringen 2003 met afschrijvingstermijn 10 | G149: 561000 | H149: € | I149: 0
E150: Aanschafwaarde investeringen 2003 met afschrijvingstermijn 5 | H150: € | I150: 0
E151: Aanschafwaarde investeringen 2003 met afschrijvingstermijn 3 | H151: € | I151: 0
E152: Aanschafwaarde investeringen 2003 zonder afschrijvingstermijn | H152: € | I152: 0
B154: Desinvesteringen 2003
E155: Desinvesteringen 2003 met afschrijvingstermijn 50 | H155: € | I155: =SUM(K155:DF155) -> 0
E156: Desinvesteringen 2003 met afschrijvingstermijn 40 | H156: € | I156: 0
E157: Desinvesteringen 2003 met afschrijvingstermijn 30 | H157: € | I157: 1339510.86 | Q157: 18845 | R157: 1320665.86
E158: Desinvesteringen 2003 met afschrijvingstermijn 25 | H158: € | I158: 0
E159: Desinvesteringen 2003 met afschrijvingstermijn 20 | H159: € | I159: 0
E160: Desinvesteringen 2003 met afschrijvingstermijn 10 | H160: € | I160: 67244.22 | Q160: 51154 | T160: 8589.02 | U160: 7501.2
E161: Desinvesteringen 2003 met afschrijvingstermijn 5 | H161: € | I161: 0
E162: Desinvesteringen 2003 met afschrijvingstermijn 3 | H162: € | I162: 0
E163: Desinvesteringen 2003 zonder afschrijvingstermijn | H163: € | I163: 0
B165: Opgegeven Afschrijvingen 2003
E166: Opgegeven afschrijvingen 2003 met afschrijvingstermijn 50 | H166: € | I166: =SUM(K166:DF166) -> 54345 | N166: 10335 | O166: 14670 | P166: 14670 | Q166: 14670
E167: Opgegeven afschrijvingen 2003 met afschrijvingstermijn 40 | H167: € | I167: 20737.5 | N167: 2962.5 | O167: 5925 | P167: 5925 | Q167: 5925
E168: Opgegeven afschrijvingen 2003 met afschrijvingstermijn 30 | H168: € | I168: 156333.3333 | N168: 22333.33333 | O168: 44666.66667 | P168: 44666.66667 | Q168: 44666.66667
E169: Opgegeven afschrijvingen 2003 met afschrijvingstermijn 25 | H169: € | I169: 0 | N169: 0 | O169: 0 | P169: 0 | Q169: 0
E170: Opgegeven afschrijvingen 2003 met afschrijvingstermijn 20 | H170: € | I170: 0
E171: Opgegeven afschrijvingen 2003 met afschrijvingstermijn 10 | H171: € | I171: 196350 | N171: 28050 | O171: 56100 | P171: 56100 | Q171: 56100
E172: Opgegeven afschrijvingen 2003 met afschrijvingstermijn 5 | H172: € | I172: 0
E173: Opgegeven afschrijvingen 2003 met afschrijvingstermijn 3 | H173: € | I173: 0
E174: Opgegeven afschrijvingen 2003 zonder afschrijvingstermijn | H174: € | I174: 0
B176: Opgegeven Cumulatieve Afschrijvingen Bij Desinvesteringen 2003
E177: Opgegeven c.a.d. 2003 met afschrijvingstermijn 50 | H177: € | I177: =SUM(K177:DF177) -> 0
E178: Opgegeven c.a.d. 2003 met afschrijvingstermijn 40 | H178: € | I178: 0
E179: Opgegeven c.a.d. 2003 met afschrijvingstermijn 30 | H179: € | I179: 2199 | Q179: 2199
E180: Opgegeven c.a.d. 2003 met afschrijvingstermijn 25 | H180: € | I180: 0
E181: Opgegeven c.a.d. 2003 met afschrijvingstermijn 20 | H181: € | I181: 0
E182: Opgegeven c.a.d. 2003 met afschrijvingstermijn 10 | H182: € | I182: 17904 | Q182: 17904
E183: Opgegeven c.a.d. 2003 met afschrijvingstermijn 5 | H183: € | I183: 0
E184: Opgegeven c.a.d. 2003 met afschrijvingstermijn 3 | H184: € | I184: 0
E185: Opgegeven c.a.d. 2003 zonder afschrijvingstermijn | H185: € | I185: 0
B187: Bijzondere Waardeverminderingen Op Activa 2003
E188: Bijzondere waardeverminderingen op activa 2003 met afschrijvingstermijn 50 | H188: € | I188: =SUM(K188:DF188) -> 0
E189: Bijzondere waardeverminderingen op activa 2003 met afschrijvingstermijn 40 | H189: € | I189: 0
E190: Bijzondere waardeverminderingen op activa 2003 met afschrijvingstermijn 30 | H190: € | I190: 0
E191: Bijzondere waardeverminderingen op activa 2003 met afschrijvingstermijn 25 | H191: € | I191: 0
E192: Bijzondere waardeverminderingen op activa 2003 met afschrijvingstermijn 20 | H192: € | I192: 0
E193: Bijzondere waardeverminderingen op activa 2003 met afschrijvingstermijn 10 | H193: € | I193: 0
E194: Bijzondere waardeverminderingen op activa 2003 met afschrijvingstermijn 5 | H194: € | I194: 0
E195: Bijzondere waardeverminderingen op activa 2003 met afschrijvingstermijn 3 | H195: € | I195: 0
E196: Bijzondere waardeverminderingen op activa 2003 zonder afschrijvingstermijn | H196: € | I196: 0
B198: Input Alert
E199: Dummy Beginjaar investeringen
E200: Dummy Modelperiode
E201: Dummy Aantal cellen met onterechte input 2003
E202: Dummy Waarschuwing onterecht ingevulde cellen 2003
A204: INVESTERINGSJAAR 2004
B206: Investeringen 2004
E207: Aanschafwaarde investeringen 2004 met afschrijvingstermijn 50 | G207: 757000 | H207: € | I207: =SUM(K207:DF207) -> 0
E208: Aanschafwaarde investeringen 2004 met afschrijvingstermijn 40 | G208: 154200 | H208: € | I208: 0
E209: Aanschafwaarde investeringen 2004 met afschrijvingstermijn 30 | G209: 87700 | H209: € | I209: 0
E210: Aanschafwaarde investeringen 2004 met afschrijvingstermijn 25 | H210: € | I210: 0
E211: Aanschafwaarde investeringen 2004 met afschrijvingstermijn 20 | H211: € | I211: 0
E212: Aanschafwaarde investeringen 2004 met afschrijvingstermijn 10 | G212: 98750 | H212: € | I212: 0
E213: Aanschafwaarde investeringen 2004 met afschrijvingstermijn 5 | G213: 288300 | H213: € | I213: 0
E214: Aanschafwaarde investeringen 2004 met afschrijvingstermijn 3 | H214: € | I214: 0
E215: Aanschafwaarde investeringen 2004 zonder afschrijvingstermijn | H215: € | I215: 0
B217: Desinvesteringen 2004
E218: Desinvesteringen 2004 met afschrijvingstermijn 50 | H218: € | I218: =SUM(K218:DF218) -> 0
E219: Desinvesteringen 2004 met afschrijvingstermijn 40 | H219: € | I219: 0
E220: Desinvesteringen 2004 met afschrijvingstermijn 30 | H220: € | I220: 59077.49 | Q220: 37430 | R220: 21647.49
E221: Desinvesteringen 2004 met afschrijvingstermijn 25 | H221: € | I221: 0
E222: Desinvesteringen 2004 met afschrijvingstermijn 20 | H222: € | I222: 0
E223: Desinvesteringen 2004 met afschrijvingstermijn 10 | H223: € | I223: 22529 | Q223: 14850 | T223: 7679
E224: Desinvesteringen 2004 met afschrijvingstermijn 5 | H224: € | I224: 0
E225: Desinvesteringen 2004 met afschrijvingstermijn 3 | H225: € | I225: 0
E226: Desinvesteringen 2004 zonder afschrijvingstermijn | H226: € | I226: 0
... 707 more rows

Sheet InpStedin
A1: =RIGHT(CELL("filename", A1), LEN(CELL("filename", A1)) - SEARCH("]", CELL("filename", A1))) -> InpStedin
E2: =Tijd!E$2 -> Actieve netbeheerder | G2: =Tijd!G$2 -> Cogas
E3: =Tijd!E$3 -> Actieve inputsheet | G3: =Tijd!G$3 -> InpCogas
E4: =Tijd!E$4 -> Modelperiode | G4: =Check!G4 -> 0 | H4: =Check!H4 -> errors | K4: =Tijd!K$4 -> 2000 | L4: =Tijd!L$4 -> 2001 | M4: =Tijd!M$4 -> 2002 | N4: =Tijd!N$4 -> 2003 | O4: =Tijd!O$4 -> 2004 | P4: =Tijd!P$4 -> 2005 | Q4: =Tijd!Q$4 -> 2006 | R4: =Tijd!R$4 -> 2007 | S4: =Tijd!S$4 -> 2008 | T4: =Tijd!T$4 -> 2009 | U4: =Tijd!U$4 -> 2010 | V4: =Tijd!V$4 -> 2011 | W4: =Tijd!W$4 -> 2012 | X4: =Tijd!X$4 -> 2013 | Y4: =Tijd!Y$4 -> 2014 | Z4: =Tijd!Z$4 -> 2015 | AA4: =Tijd!AA$4 -> 2016 | AB4: =Tijd!AB$4 -> 2017 | AC4: =Tijd!AC$4 -> 2018 | AD4: =Tijd!AD$4 -> 2019 | AE4: =Tijd!AE$4 -> 2020 | AF4: =Tijd!AF$4 -> 2021 | AG4: =Tijd!AG$4 -> 2022 | AH4: =Tijd!AH$4 -> 2023 | AI4: =Tijd!AI$4 -> 2024 | AJ4: =Tijd!AJ$4 -> 2025 | AK4: =Tijd!AK$4 -> 2026 | AL4: =Tijd!AL$4 -> 2027 | AM4: =Tijd!AM$4 -> 2028 | AN4: =Tijd!AN$4 -> 2029 | AO4: =Tijd!AO$4 -> 2030 | AP4: =Tijd!AP$4 -> 2031 | AQ4: =Tijd!AQ$4 -> 2032 | AR4: =Tijd!AR$4 -> 2033 | AS4: =Tijd!AS$4 -> 2034 | AT4: =Tijd!AT$4 -> 2035 | AU4: =Tijd!AU$4 -> 2036 | AV4: =Tijd!AV$4 -> 2037 | AW4: =Tijd!AW$4 -> 2038 | AX4: =Tijd!AX$4 -> 2039 | AY4: =Tijd!AY$4 -> 2040 | AZ4: =Tijd!AZ$4 -> 2041 | BA4: =Tijd!BA$4 -> 2042 | BB4: =Tijd!BB$4 -> 2043 | BC4: =Tijd!BC$4 -> 2044 | BD4: =Tijd!BD$4 -> 2045 | BE4: =Tijd!BE$4 -> 2046 | BF4: =Tijd!BF$4 -> 2047 | BG4: =Tijd!BG$4 -> 2048 | BH4: =Tijd!BH$4 -> 2049 | BI4: =Tijd!BI$4 -> 2050 | BJ4: =Tijd!BJ$4 -> 2051 | BK4: =Tijd!BK$4 -> 2052 | BL4: =Tijd!BL$4 -> 2053 | BM4: =Tijd!BM$4 -> 2054 | BN4: =Tijd!BN$4 -> 2055 | BO4: =Tijd!BO$4 -> 2056 | BP4: =Tijd!BP$4 -> 2057 | BQ4: =Tijd!BQ$4 -> 2058 | BR4: =Tijd!BR$4 -> 2059 | BS4: =Tijd!BS$4 -> 2060 | BT4: =Tijd!BT$4 -> 2061 | BU4: =Tijd!BU$4 -> 2062 | BV4: =Tijd!BV$4 -> 2063 | BW4: =Tijd!BW$4 -> 2064 | BX4: =Tijd!BX$4 -> 2065 | BY4: =Tijd!BY$4 -> 2066 | BZ4: =Tijd!BZ$4 -> 2067 | CA4: =Tijd!CA$4 -> 2068 | CB4: =Tijd!CB$4 -> 2069 | CC4: =Tijd!CC$4 -> 2070 | CD4: =Tijd!CD$4 -> 2071 | CE4: =Tijd!CE$4 -> 2072 | CF4: =Tijd!CF$4 -> 2073 | CG4: =Tijd!CG$4 -> 2074 | CH4: =Tijd!CH$4 -> 2075 | CI4: =Tijd!CI$4 -> 2076 | CJ4: =Tijd!CJ$4 -> 2077 | CK4: =Tijd!CK$4 -> 2078 | CL4: =Tijd!CL$4 -> 2079 | CM4: =Tijd!CM$4 -> 2080 | CN4: =Tijd!CN$4 -> 2081 | CO4: =Tijd!CO$4 -> 2082 | CP4: =Tijd!CP$4 -> 2083 | CQ4: =Tijd!CQ$4 -> 2084 | CR4: =Tijd!CR$4 -> 2085 | CS4: =Tijd!CS$4 -> 2086 | CT4: =Tijd!CT$4 -> 2087 | CU4: =Tijd!CU$4 -> 2088 | CV4: =Tijd!CV$4 -> 2089 | CW4: =Tijd!CW$4 -> 2090 | CX4: =Tijd!CX$4 -> 2091 | CY4: =Tijd!CY$4 -> 2092 | CZ4: =Tijd!CZ$4 -> 2093 | DA4: =Tijd!DA$4 -> 2094 | DB4: =Tijd!DB$4 -> 2095 | DC4: =Tijd!DC$4 -> 2096 | DD4: =Tijd!DD$4 -> 2097 | DE4: =Tijd!DE$4 -> 2098 | DF4: =Tijd!DF$4 -> 2099
E5: =Tijd!E$5 -> Looptijd vs Uitlooptijd | G5: =Check!G5 -> 0 | H5: =Check!H5 -> waarschuwingen | K5: =Tijd!K$5 -> Looptijd | L5: =Tijd!L$5 -> Looptijd | M5: =Tijd!M$5 -> Looptijd | N5: =Tijd!N$5 -> Looptijd | O5: =Tijd!O$5 -> Looptijd | P5: =Tijd!P$5 -> Looptijd | Q5: =Tijd!Q$5 -> Looptijd | R5: =Tijd!R$5 -> Looptijd | S5: =Tijd!S$5 -> Looptijd | T5: =Tijd!T$5 -> Looptijd | U5: =Tijd!U$5 -> Looptijd | V5: =Tijd!V$5 -> Looptijd | W5: =Tijd!W$5 -> Looptijd | X5: =Tijd!X$5 -> Looptijd | Y5: =Tijd!Y$5 -> Looptijd | Z5: =Tijd!Z$5 -> Looptijd | AA5: =Tijd!AA$5 -> Looptijd | AB5: =Tijd!AB$5 -> Looptijd | AC5: =Tijd!AC$5 -> Looptijd | AD5: =Tijd!AD$5 -> Looptijd | AE5: =Tijd!AE$5 -> Looptijd | AF5: =Tijd!AF$5 -> Looptijd | AG5: =Tijd!AG$5 -> Looptijd | AH5: =Tijd!AH$5 -> Looptijd | AI5: =Tijd!AI$5 -> Looptijd | AJ5: =Tijd!AJ$5 -> Looptijd | AK5: =Tijd!AK$5 -> Looptijd | AL5: =Tijd!AL$5 -> Looptijd | AM5: =Tijd!AM$5 -> Looptijd | AN5: =Tijd!AN$5 -> Looptijd | AO5: =Tijd!AO$5 -> Looptijd | AP5: =Tijd!AP$5 -> Looptijd | AQ5: =Tijd!AQ$5 -> Looptijd | AR5: =Tijd!AR$5 -> Looptijd | AS5: =Tijd!AS$5 -> Looptijd | AT5: =Tijd!AT$5 -> Looptijd | AU5: =Tijd!AU$5 -> Looptijd | AV5: =Tijd!AV$5 -> Looptijd | AW5: =Tijd!AW$5 -> Looptijd | AX5: =Tijd!AX$5 -> Looptijd | AY5: =Tijd!AY$5 -> Looptijd | AZ5: =Tijd!AZ$5 -> Looptijd | BA5: =Tijd!BA$5 -> Looptijd | BB5: =Tijd!BB$5 -> Looptijd | BC5: =Tijd!BC$5 -> Looptijd | BD5: =Tijd!BD$5 -> Looptijd | BE5: =Tijd!BE$5 -> Looptijd | BF5: =Tijd!BF$5 -> Looptijd | BG5: =Tijd!BG$5 -> Looptijd | BH5: =Tijd!BH$5 -> Looptijd | BI5: =Tijd!BI$5 -> Looptijd | BJ5: =Tijd!BJ$5 -> Uitlooptijd | BK5: =Tijd!BK$5 -> Uitlooptijd | BL5: =Tijd!BL$5 -> Uitlooptijd | BM5: =Tijd!BM$5 -> Uitlooptijd | BN5: =Tijd!BN$5 -> Uitlooptijd | BO5: =Tijd!BO$5 -> Uitlooptijd | BP5: =Tijd!BP$5 -> Uitlooptijd | BQ5: =Tijd!BQ$5 -> Uitlooptijd | BR5: =Tijd!BR$5 -> Uitlooptijd | BS5: =Tijd!BS$5 -> Uitlooptijd | BT5: =Tijd!BT$5 -> Uitlooptijd | BU5: =Tijd!BU$5 -> Uitlooptijd | BV5: =Tijd!BV$5 -> Uitlooptijd | BW5: =Tijd!BW$5 -> Uitlooptijd | BX5: =Tijd!BX$5 -> Uitlooptijd | BY5: =Tijd!BY$5 -> Uitlooptijd | BZ5: =Tijd!BZ$5 -> Uitlooptijd | CA5: =Tijd!CA$5 -> Uitlooptijd | CB5: =Tijd!CB$5 -> Uitlooptijd | CC5: =Tijd!CC$5 -> Uitlooptijd | CD5: =Tijd!CD$5 -> Uitlooptijd | CE5: =Tijd!CE$5 -> Uitlooptijd | CF5: =Tijd!CF$5 -> Uitlooptijd | CG5: =Tijd!CG$5 -> Uitlooptijd | CH5: =Tijd!CH$5 -> Uitlooptijd | CI5: =Tijd!CI$5 -> Uitlooptijd | CJ5: =Tijd!CJ$5 -> Uitlooptijd | CK5: =Tijd!CK$5 -> Uitlooptijd | CL5: =Tijd!CL$5 -> Uitlooptijd | CM5: =Tijd!CM$5 -> Uitlooptijd | CN5: =Tijd!CN$5 -> Uitlooptijd | CO5: =Tijd!CO$5 -> Uitlooptijd | CP5: =Tijd!CP$5 -> Uitlooptijd | CQ5: =Tijd!CQ$5 -> Uitlooptijd | CR5: =Tijd!CR$5 -> Uitlooptijd | CS5: =Tijd!CS$5 -> Uitlooptijd | CT5: =Tijd!CT$5 -> Uitlooptijd | CU5: =Tijd!CU$5 -> Uitlooptijd | CV5: =Tijd!CV$5 -> Uitlooptijd | CW5: =Tijd!CW$5 -> Uitlooptijd | CX5: =Tijd!CX$5 -> Uitlooptijd | CY5: =Tijd!CY$5 -> Uitlooptijd | CZ5: =Tijd!CZ$5 -> Uitlooptijd | DA5: =Tijd!DA$5 -> Uitlooptijd | DB5: =Tijd!DB$5 -> Uitlooptijd | DC5: =Tijd!DC$5 -> Uitlooptijd | DD5: =Tijd!DD$5 -> Uitlooptijd | DE5: =Tijd!DE$5 -> Uitlooptijd | DF5: =Tijd!DF$5 -> Uitlooptijd
E6: =Tijd!E$10 -> Model kolom teller | F6: Bron | G6: Constante | H6: Eenheid | I6: Totaal | K6: =Tijd!K$10 -> 1 | L6: =Tijd!L$10 -> 2 | M6: =Tijd!M$10 -> 3 | N6: =Tijd!N$10 -> 4 | O6: =Tijd!O$10 -> 5 | P6: =Tijd!P$10 -> 6 | Q6: =Tijd!Q$10 -> 7 | R6: =Tijd!R$10 -> 8 | S6: =Tijd!S$10 -> 9 | T6: =Tijd!T$10 -> 10 | U6: =Tijd!U$10 -> 11 | V6: =Tijd!V$10 -> 12 | W6: =Tijd!W$10 -> 13 | X6: =Tijd!X$10 -> 14 | Y6: =Tijd!Y$10 -> 15 | Z6: =Tijd!Z$10 -> 16 | AA6: =Tijd!AA$10 -> 17 | AB6: =Tijd!AB$10 -> 18 | AC6: =Tijd!AC$10 -> 19 | AD6: =Tijd!AD$10 -> 20 | AE6: =Tijd!AE$10 -> 21 | AF6: =Tijd!AF$10 -> 22 | AG6: =Tijd!AG$10 -> 23 | AH6: =Tijd!AH$10 -> 24 | AI6: =Tijd!AI$10 -> 25 | AJ6: =Tijd!AJ$10 -> 26 | AK6: =Tijd!AK$10 -> 27 | AL6: =Tijd!AL$10 -> 28 | AM6: =Tijd!AM$10 -> 29 | AN6: =Tijd!AN$10 -> 30 | AO6: =Tijd!AO$10 -> 31 | AP6: =Tijd!AP$10 -> 32 | AQ6: =Tijd!AQ$10 -> 33 | AR6: =Tijd!AR$10 -> 34 | AS6: =Tijd!AS$10 -> 35 | AT6: =Tijd!AT$10 -> 36 | AU6: =Tijd!AU$10 -> 37 | AV6: =Tijd!AV$10 -> 38 | AW6: =Tijd!AW$10 -> 39 | AX6: =Tijd!AX$10 -> 40 | AY6: =Tijd!AY$10 -> 41 | AZ6: =Tijd!AZ$10 -> 42 | BA6: =Tijd!BA$10 -> 43 | BB6: =Tijd!BB$10 -> 44 | BC6: =Tijd!BC$10 -> 45 | BD6: =Tijd!BD$10 -> 46 | BE6: =Tijd!BE$10 -> 47 | BF6: =Tijd!BF$10 -> 48 | BG6: =Tijd!BG$10 -> 49 | BH6: =Tijd!BH$10 -> 50 | BI6: =Tijd!BI$10 -> 51 | BJ6: =Tijd!BJ$10 -> 52 | BK6: =Tijd!BK$10 -> 53 | BL6: =Tijd!BL$10 -> 54 | BM6: =Tijd!BM$10 -> 55 | BN6: =Tijd!BN$10 -> 56 | BO6: =Tijd!BO$10 -> 57 | BP6: =Tijd!BP$10 -> 58 | BQ6: =Tijd!BQ$10 -> 59 | BR6: =Tijd!BR$10 -> 60 | BS6: =Tijd!BS$10 -> 61 | BT6: =Tijd!BT$10 -> 62 | BU6: =Tijd!BU$10 -> 63 | BV6: =Tijd!BV$10 -> 64 | BW6: =Tijd!BW$10 -> 65 | BX6: =Tijd!BX$10 -> 66 | BY6: =Tijd!BY$10 -> 67 | BZ6: =Tijd!BZ$10 -> 68 | CA6: =Tijd!CA$10 -> 69 | CB6: =Tijd!CB$10 -> 70 | CC6: =Tijd!CC$10 -> 71 | CD6: =Tijd!CD$10 -> 72 | CE6: =Tijd!CE$10 -> 73 | CF6: =Tijd!CF$10 -> 74 | CG6: =Tijd!CG$10 -> 75 | CH6: =Tijd!CH$10 -> 76 | CI6: =Tijd!CI$10 -> 77 | CJ6: =Tijd!CJ$10 -> 78 | CK6: =Tijd!CK$10 -> 79 | CL6: =Tijd!CL$10 -> 80 | CM6: =Tijd!CM$10 -> 81 | CN6: =Tijd!CN$10 -> 82 | CO6: =Tijd!CO$10 -> 83 | CP6: =Tijd!CP$10 -> 84 | CQ6: =Tijd!CQ$10 -> 85 | CR6: =Tijd!CR$10 -> 86 | CS6: =Tijd!CS$10 -> 87 | CT6: =Tijd!CT$10 -> 88 | CU6: =Tijd!CU$10 -> 89 | CV6: =Tijd!CV$10 -> 90 | CW6: =Tijd!CW$10 -> 91 | CX6: =Tijd!CX$10 -> 92 | CY6: =Tijd!CY$10 -> 93 | CZ6: =Tijd!CZ$10 -> 94 | DA6: =Tijd!DA$10 -> 95 | DB6: =Tijd!DB$10 -> 96 | DC6: =Tijd!DC$10 -> 97 | DD6: =Tijd!DD$10 -> 98 | DE6: =Tijd!DE$10 -> 99 | DF6: =Tijd!DF$10 -> 100
A9: INVESTERINGSJAAR 2000 - START GAW
E10: Startwaarde GAW incl. afgekochte precario (31-12-2000) | G10: 2181884124 | H10: €
E11: Afschrijvingen Start GAW | G11: 78098751.65 | H11: €
E12: Afgekochte precario in Start GAW (31-12-2000) | H12: €
E13: Afschrijvingsbedrag afgekochte precario | H13: €
A15: INVESTERINGSJAAR 2001
B17: Investeringen 2001
E18: Aanschafwaarde investeringen 2001 met afschrijvingstermijn 50 | G18: 52254733.89 | H18: € | I18: =SUM(K18:DF18) -> 0
E19: Aanschafwaarde investeringen 2001 met afschrijvingstermijn 40 | G19: 30822237.72 | H19: € | I19: 0
E20: Aanschafwaarde investeringen 2001 met afschrijvingstermijn 30 | G20: 3408000 | H20: € | I20: 0
E21: Aanschafwaarde investeringen 2001 met afschrijvingstermijn 25 | G21: 1222922.613 | H21: € | I21: 0
E22: Aanschafwaarde investeringen 2001 met afschrijvingstermijn 20 | G22: 0 | H22: € | I22: 0
E23: Aanschafwaarde investeringen 2001 met afschrijvingstermijn 10 | G23: 102000 | H23: € | I23: 0
E24: Aanschafwaarde investeringen 2001 met afschrijvingstermijn 5 | G24: 387700 | H24: € | I24: 0
E25: Aanschafwaarde investeringen 2001 met afschrijvingstermijn 3 | G25: 0 | H25: € | I25: 0
E26: Aanschafwaarde investeringen 2001 zonder afschrijvingstermijn | G26: 118000 | H26: € | I26: 0
B28: Desinvesteringen 2001
E29: Desinvesteringen 2001 met afschrijvingstermijn 50 | H29: € | I29: =SUM(K29:DF29) -> 0
E30: Desinvesteringen 2001 met afschrijvingstermijn 40 | H30: € | I30: 0
E31: Desinvesteringen 2001 met afschrijvingstermijn 30 | H31: € | I31: 0
E32: Desinvesteringen 2001 met afschrijvingstermijn 25 | H32: € | I32: 0
E33: Desinvesteringen 2001 met afschrijvingstermijn 20 | H33: € | I33: 0
E34: Desinvesteringen 2001 met afschrijvingstermijn 10 | H34: € | I34: 0
E35: Desinvesteringen 2001 met afschrijvingstermijn 5 | H35: € | I35: 0
E36: Desinvesteringen 2001 met afschrijvingstermijn 3 | H36: € | I36: 0
E37: Desinvesteringen 2001 zonder afschrijvingstermijn | H37: € | I37: 0
B39: Opgegeven Afschrijvingen 2001
E40: Opgegeven afschrijvingen 2001 met afschrijvingstermijn 50 | H40: € | I40: =SUM(K40:DF40) -> 5576306.687 | L40: 433400.1441 | M40: 967894.072 | N40: 1042387.618 | O40: 1042387.618 | P40: 1045118.618 | Q40: 1045118.618 | R40: 0
E41: Opgegeven afschrijvingen 2001 met afschrijvingstermijn 40 | H41: € | I41: 4115308.237 | L41: 319549.0933 | M41: 713635.3722 | N41: 770530.9429 | O41: 770530.9429 | P41: 770530.9429 | Q41: 770530.9429 | R41: 0
E42: Opgegeven afschrijvingen 2001 met afschrijvingstermijn 30 | H42: € | I42: 606718.2792 | L42: 47109.85274 | M42: 105208.4265 | N42: 113600 | O42: 113600 | P42: 113600 | Q42: 113600 | R42: 0
E43: Opgegeven afschrijvingen 2001 met afschrijvingstermijn 25 | H43: € | I43: 260056.8674 | L43: 20285.81135 | M43: 45303.43797 | N43: 48916.90453 | O43: 48516.90453 | P43: 48516.90453 | Q43: 48516.90453 | R43: 0
E44: Opgegeven afschrijvingen 2001 met afschrijvingstermijn 20 | H44: € | I44: 0 | L44: =0 * 0.56 -> 0 | M44: =((-M440)*1000)*0.926130514876947 -> 0 | N44: 0 | O44: 0 | P44: 0 | Q44: 0 | R44: 0
E45: Opgegeven afschrijvingen 2001 met afschrijvingstermijn 10 | H45: € | I45: 54476.46521 | L45: 4229.933961 | M45: 9446.531252 | N45: 10200 | O45: 10200 | P45: 10200 | Q45: 10200 | R45: 0
E46: Opgegeven afschrijvingen 2001 met afschrijvingstermijn 5 | H46: € | I46: 433513.9522 | L46: 32155.79209 | M46: 71812.16012 | N46: 94156 | O46: 94156 | P46: 94156 | Q46: 47078 | R46: 0
E47: Opgegeven afschrijvingen 2001 met afschrijvingstermijn 3 | H47: € | I47: 0 | L47: =0 * 0.56 -> 0 | N47: 0 | O47: 0 | P47: 0 | Q47: 0 | R47: 0
E48: Opgegeven afschrijvingen 2001 zonder afschrijvingstermijn | H48: € | I48: 0
B50: Opgegeven Cumulatieve Afschrijvingen Bij Desinvesteringen 2001
E51: Opgegeven c.a.d. 2001 met afschrijvingstermijn 50 | H51: € | I51: =SUM(K51:DF51) -> 0
E52: Opgegeven c.a.d. 2001 met afschrijvingstermijn 40 | H52: € | I52: 0
E53: Opgegeven c.a.d. 2001 met afschrijvingstermijn 30 | H53: € | I53: 0
E54: Opgegeven c.a.d. 2001 met afschrijvingstermijn 25 | H54: € | I54: 0
E55: Opgegeven c.a.d. 2001 met afschrijvingstermijn 20 | H55: € | I55: 0
E56: Opgegeven c.a.d. 2001 met afschrijvingstermijn 10 | H56: € | I56: 0
E57: Opgegeven c.a.d. 2001 met afschrijvingstermijn 5 | H57: € | I57: 0
E58: Opgegeven c.a.d. 2001 met afschrijvingstermijn 3 | H58: € | I58: 0
E59: Opgegeven c.a.d. 2001 zonder afschrijvingstermijn | H59: € | I59: 0
B61: Bijzondere Waardeverminderingen Op Activa 2001
E62: Bijzondere waardeverminderingen op activa 2001 met afschrijvingstermijn 50 | H62: € | I62: =SUM(K62:DF62) -> 0
E63: Bijzondere waardeverminderingen op activa 2001 met afschrijvingstermijn 40 | H63: € | I63: 0
E64: Bijzondere waardeverminderingen op activa 2001 met afschrijvingstermijn 30 | H64: € | I64: 0
E65: Bijzondere waardeverminderingen op activa 2001 met afschrijvingstermijn 25 | H65: € | I65: 0
E66: Bijzondere waardeverminderingen op activa 2001 met afschrijvingstermijn 20 | H66: € | I66: 0
E67: Bijzondere waardeverminderingen op activa 2001 met afschrijvingstermijn 10 | H67: € | I67: 0
E68: Bijzondere waardeverminderingen op activa 2001 met afschrijvingstermijn 5 | H68: € | I68: 0
E69: Bijzondere waardeverminderingen op activa 2001 met afschrijvingstermijn 3 | H69: € | I69: 0
E70: Bijzondere waardeverminderingen op activa 2001 zonder afschrijvingstermijn | H70: € | I70: 0
B72: Input Alert
E73: Dummy Beginjaar investeringen
E74: Dummy Modelperiode
E75: Dummy Aantal cellen met onterechte input 2001
E76: Dummy Waarschuwing onterecht ingevulde cellen 2001
A78: INVESTERINGSJAAR 2002
B80: Investeringen 2002
E81: Aanschafwaarde investeringen 2002 met afschrijvingstermijn 50 | G81: 38215461 | H81: € | I81: =SUM(K81:DF81) -> 0
E82: Aanschafwaarde investeringen 2002 met afschrijvingstermijn 40 | G82: 26160655.2 | H82: € | I82: 0
E83: Aanschafwaarde investeringen 2002 met afschrijvingstermijn 30 | G83: 2901000 | H83: € | I83: 0
E84: Aanschafwaarde investeringen 2002 met afschrijvingstermijn 25 | G84: 979930 | H84: € | I84: 0
E85: Aanschafwaarde investeringen 2002 met afschrijvingstermijn 20 | G85: 0 | H85: € | I85: 0
E86: Aanschafwaarde investeringen 2002 met afschrijvingstermijn 10 | G86: 7482000 | H86: € | I86: 0
E87: Aanschafwaarde investeringen 2002 met afschrijvingstermijn 5 | G87: 810780 | H87: € | I87: 0
E88: Aanschafwaarde investeringen 2002 met afschrijvingstermijn 3 | G88: 0 | H88: € | I88: 0
E89: Aanschafwaarde investeringen 2002 zonder afschrijvingstermijn | G89: 110000 | H89: € | I89: 0
B91: Desinvesteringen 2002
E92: Desinvesteringen 2002 met afschrijvingstermijn 50 | H92: € | I92: =SUM(K92:DF92) -> 0
E93: Desinvesteringen 2002 met afschrijvingstermijn 40 | H93: € | I93: 0
E94: Desinvesteringen 2002 met afschrijvingstermijn 30 | H94: € | I94: 0
E95: Desinvesteringen 2002 met afschrijvingstermijn 25 | H95: € | I95: 0
E96: Desinvesteringen 2002 met afschrijvingstermijn 20 | H96: € | I96: 0
E97: Desinvesteringen 2002 met afschrijvingstermijn 10 | H97: € | I97: 0
E98: Desinvesteringen 2002 met afschrijvingstermijn 5 | H98: € | I98: 0
E99: Desinvesteringen 2002 met afschrijvingstermijn 3 | H99: € | I99: 0
E100: Desinvesteringen 2002 zonder afschrijvingstermijn | H100: € | I100: 0
B102: Opgegeven Afschrijvingen 2002
E103: Opgegeven afschrijvingen 2002 met afschrijvingstermijn 50 | H103: € | I103: =SUM(K103:DF103) -> 3411461.711 | L103: 0 | M103: 354224.8313 | N103: 764309.22 | O103: 764309.22 | P103: 764309.22 | Q103: 764309.22
E104: Opgegeven afschrijvingen 2002 met afschrijvingstermijn 40 | H104: € | I104: 2919174.309 | L104: 0 | M104: 303108.7887 | N104: 654016.38 | O104: 654016.38 | P104: 654016.38 | Q104: 654016.38
E105: Opgegeven afschrijvingen 2002 met afschrijvingstermijn 30 | H105: € | I105: 431616.3391 | L105: 0 | M105: 44816.3391 | N105: 96700 | O105: 96700 | P105: 96700 | Q105: 96700
E106: Opgegeven afschrijvingen 2002 met afschrijvingstermijn 25 | H106: € | I106: 174955.0359 | L106: 0 | M106: 18166.23585 | N106: 39197.2 | O106: 39197.2 | P106: 39197.2 | Q106: 39197.2
E107: Opgegeven afschrijvingen 2002 met afschrijvingstermijn 20 | H107: € | I107: 0 | L107: 0 | M107: 0 | N107: 0 | O107: 0 | P107: 0 | Q107: 0
E108: Opgegeven afschrijvingen 2002 met afschrijvingstermijn 10 | H108: € | I108: 3339558.893 | L108: 0 | M108: 346758.8926 | N108: 748200 | O108: 748200 | P108: 748200 | Q108: 748200
E109: Opgegeven afschrijvingen 2002 met afschrijvingstermijn 5 | H109: € | I109: 723776.4124 | L109: 0 | M109: 75152.41245 | N109: 162156 | O109: 162156 | P109: 162156 | Q109: 162156
E110: Opgegeven afschrijvingen 2002 met afschrijvingstermijn 3 | H110: € | I110: 0 | L110: 0 | M110: 0 | N110: 0 | O110: 0 | P110: 0 | Q110: 0
E111: Opgegeven afschrijvingen 2002 zonder afschrijvingstermijn | H111: € | I111: 0
B113: Opgegeven Cumulatieve Afschrijvingen Bij Desinvesteringen 2002
E114: Opgegeven c.a.d. 2002 met afschrijvingstermijn 50 | H114: € | I114: =SUM(K114:DF114) -> 0
E115: Opgegeven c.a.d. 2002 met afschrijvingstermijn 40 | H115: € | I115: 0
E116: Opgegeven c.a.d. 2002 met afschrijvingstermijn 30 | H116: € | I116: 0
E117: Opgegeven c.a.d. 2002 met afschrijvingstermijn 25 | H117: € | I117: 0
E118: Opgegeven c.a.d. 2002 met afschrijvingstermijn 20 | H118: € | I118: 0
E119: Opgegeven c.a.d. 2002 met afschrijvingstermijn 10 | H119: € | I119: 0
E120: Opgegeven c.a.d. 2002 met afschrijvingstermijn 5 | H120: € | I120: 0
E121: Opgegeven c.a.d. 2002 met afschrijvingstermijn 3 | H121: € | I121: 0
E122: Opgegeven c.a.d. 2002 zonder afschrijvingstermijn | H122: € | I122: 0
B124: Bijzondere Waardeverminderingen Op Activa 2002
E125: Bijzondere waardeverminderingen op activa 2002 met afschrijvingstermijn 50 | H125: € | I125: =SUM(K125:DF125) -> 0
E126: Bijzondere waardeverminderingen op activa 2002 met afschrijvingstermijn 40 | H126: € | I126: 0
E127: Bijzondere waardeverminderingen op activa 2002 met afschrijvingstermijn 30 | H127: € | I127: 0
E128: Bijzondere waardeverminderingen op activa 2002 met afschrijvingstermijn 25 | H128: € | I128: 0
E129: Bijzondere waardeverminderingen op activa 2002 met afschrijvingstermijn 20 | H129: € | I129: 0
E130: Bijzondere waardeverminderingen op activa 2002 met afschrijvingstermijn 10 | H130: € | I130: 0
E131: Bijzondere waardeverminderingen op activa 2002 met afschrijvingstermijn 5 | H131: € | I131: 0
E132: Bijzondere waardeverminderingen op activa 2002 met afschrijvingstermijn 3 | H132: € | I132: 0
E133: Bijzondere waardeverminderingen op activa 2002 zonder afschrijvingstermijn | H133: € | I133: 0
B135: Input Alert
E136: Dummy Beginjaar investeringen
E137: Dummy Modelperiode
E138: Dummy Aantal cellen met onterechte input 2002
E139: Dummy Waarschuwing onterecht ingevulde cellen 2002
A141: INVESTERINGSJAAR 2003
B143: Investeringen 2003
E144: Aanschafwaarde investeringen 2003 met afschrijvingstermijn 50 | G144: 36269747.12 | H144: € | I144: =SUM(K144:DF144) -> 0
E145: Aanschafwaarde investeringen 2003 met afschrijvingstermijn 40 | G145: 31306638.06 | H145: € | I145: 0
E146: Aanschafwaarde investeringen 2003 met afschrijvingstermijn 30 | G146: =2081335.36064-22177 -> 2059158.361 | H146: € | I146: 0
E147: Aanschafwaarde investeringen 2003 met afschrijvingstermijn 25 | G147: 2834816.892 | H147: € | I147: 0
E148: Aanschafwaarde investeringen 2003 met afschrijvingstermijn 20 | G148: 0 | H148: € | I148: 0
E149: Aanschafwaarde investeringen 2003 met afschrijvingstermijn 10 | G149: 532532.86 | H149: € | I149: 0
E150: Aanschafwaarde investeringen 2003 met afschrijvingstermijn 5 | G150: 1232893.084 | H150: € | I150: 0
E151: Aanschafwaarde investeringen 2003 met afschrijvingstermijn 3 | G151: 0 | H151: € | I151: 0
E152: Aanschafwaarde investeringen 2003 zonder afschrijvingstermijn | H152: € | I152: 0
B154: Desinvesteringen 2003
E155: Desinvesteringen 2003 met afschrijvingstermijn 50 | H155: € | I155: =SUM(K155:DF155) -> 0
E156: Desinvesteringen 2003 met afschrijvingstermijn 40 | H156: € | I156: 0
E157: Desinvesteringen 2003 met afschrijvingstermijn 30 | H157: € | I157: 0
E158: Desinvesteringen 2003 met afschrijvingstermijn 25 | H158: € | I158: 0
E159: Desinvesteringen 2003 met afschrijvingstermijn 20 | H159: € | I159: 0
E160: Desinvesteringen 2003 met afschrijvingstermijn 10 | H160: € | I160: 0
E161: Desinvesteringen 2003 met afschrijvingstermijn 5 | H161: € | I161: 0
E162: Desinvesteringen 2003 met afschrijvingstermijn 3 | H162: € | I162: 0
E163: Desinvesteringen 2003 zonder afschrijvingstermijn | H163: € | I163: 0
B165: Opgegeven Afschrijvingen 2003
E166: Opgegeven afschrijvingen 2003 met afschrijvingstermijn 50 | H166: € | I166: =SUM(K166:DF166) -> 2543501.918 | M166: 0 | N166: 362697.4712 | O166: 724761.4824 | P166: 728021.4824 | Q166: 728021.4824
E167: Opgegeven afschrijvingen 2003 met afschrijvingstermijn 40 | H167: € | I167: 2733200.755 | M167: 0 | N167: 391332.9757 | O167: 776555.9264 | P167: 782655.9264 | Q167: 782655.9264
E168: Opgegeven afschrijvingen 2003 met afschrijvingstermijn 30 | H168: € | I168: 242822.4587 | M168: 0 | N168: 34688.92268 | O168: 69377.84535 | P168: 69377.84535 | Q168: 69377.84535
E169: Opgegeven afschrijvingen 2003 met afschrijvingstermijn 25 | H169: € | I169: 396420.1649 | M169: 0 | N169: 56616.33785 | O169: 113321.2757 | P169: 113241.2757 | Q169: 113241.2757
E170: Opgegeven afschrijvingen 2003 met afschrijvingstermijn 20 | H170: € | I170: 0 | M170: 0 | N170: 0 | O170: 0 | P170: 0 | Q170: 0
E171: Opgegeven afschrijvingen 2003 met afschrijvingstermijn 10 | H171: € | I171: 186386.501 | M171: 0 | N171: 26626.643 | O171: 53253.286 | P171: 53253.286 | Q171: 53253.286
E172: Opgegeven afschrijvingen 2003 met afschrijvingstermijn 5 | H172: € | I172: 840913.1588 | M172: 0 | N172: 123289.3084 | O172: 224474.6168 | P172: 246574.6168 | Q172: 246574.6168
E173: Opgegeven afschrijvingen 2003 met afschrijvingstermijn 3 | H173: € | I173: 0 | M173: 0 | N173: 0 | O173: 0 | P173: 0 | Q173: 0
E174: Opgegeven afschrijvingen 2003 zonder afschrijvingstermijn | H174: € | I174: 0
B176: Opgegeven Cumulatieve Afschrijvingen Bij Desinvesteringen 2003
E177: Opgegeven c.a.d. 2003 met afschrijvingstermijn 50 | H177: € | I177: =SUM(K177:DF177) -> 0
E178: Opgegeven c.a.d. 2003 met afschrijvingstermijn 40 | H178: € | I178: 0
E179: Opgegeven c.a.d. 2003 met afschrijvingstermijn 30 | H179: € | I179: 0
E180: Opgegeven c.a.d. 2003 met afschrijvingstermijn 25 | H180: € | I180: 0
E181: Opgegeven c.a.d. 2003 met afschrijvingstermijn 20 | H181: € | I181: 0
E182: Opgegeven c.a.d. 2003 met afschrijvingstermijn 10 | H182: € | I182: 0
E183: Opgegeven c.a.d. 2003 met afschrijvingstermijn 5 | H183: € | I183: 0
E184: Opgegeven c.a.d. 2003 met afschrijvingstermijn 3 | H184: € | I184: 0
E185: Opgegeven c.a.d. 2003 zonder afschrijvingstermijn | H185: € | I185: 0
B187: Bijzondere Waardeverminderingen Op Activa 2003
E188: Bijzondere waardeverminderingen op activa 2003 met afschrijvingstermijn 50 | H188: € | I188: =SUM(K188:DF188) -> 0
E189: Bijzondere waardeverminderingen op activa 2003 met afschrijvingstermijn 40 | H189: € | I189: 0
E190: Bijzondere waardeverminderingen op activa 2003 met afschrijvingstermijn 30 | H190: € | I190: 0
E191: Bijzondere waardeverminderingen op activa 2003 met afschrijvingstermijn 25 | H191: € | I191: 0
E192: Bijzondere waardeverminderingen op activa 2003 met afschrijvingstermijn 20 | H192: € | I192: 0
E193: Bijzondere waardeverminderingen op activa 2003 met afschrijvingstermijn 10 | H193: € | I193: 0
E194: Bijzondere waardeverminderingen op activa 2003 met afschrijvingstermijn 5 | H194: € | I194: 0
E195: Bijzondere waardeverminderingen op activa 2003 met afschrijvingstermijn 3 | H195: € | I195: 0
E196: Bijzondere waardeverminderingen op activa 2003 zonder afschrijvingstermijn | H196: € | I196: 0
B198: Input Alert
E199: Dummy Beginjaar investeringen
E200: Dummy Modelperiode
E201: Dummy Aantal cellen met onterechte input 2003
E202: Dummy Waarschuwing onterecht ingevulde cellen 2003
A204: INVESTERINGSJAAR 2004
B206: Investeringen 2004
E207: Aanschafwaarde investeringen 2004 met afschrijvingstermijn 50 | G207: =53246740-18740 -> 53228000 | H207: € | I207: =SUM(K207:DF207) -> 0
E208: Aanschafwaarde investeringen 2004 met afschrijvingstermijn 40 | G208: 17857745 | H208: € | I208: 0
E209: Aanschafwaarde investeringen 2004 met afschrijvingstermijn 30 | G209: 10000 | H209: € | I209: 0
E210: Aanschafwaarde investeringen 2004 met afschrijvingstermijn 25 | G210: 6216340 | H210: € | I210: 0
E211: Aanschafwaarde investeringen 2004 met afschrijvingstermijn 20 | G211: 0 | H211: € | I211: 0
E212: Aanschafwaarde investeringen 2004 met afschrijvingstermijn 10 | G212: 316000 | H212: € | I212: 0
E213: Aanschafwaarde investeringen 2004 met afschrijvingstermijn 5 | G213: 2240790 | H213: € | I213: 0
E214: Aanschafwaarde investeringen 2004 met afschrijvingstermijn 3 | G214: 0 | H214: € | I214: 0
E215: Aanschafwaarde investeringen 2004 zonder afschrijvingstermijn | G215: 0 | H215: € | I215: 0
B217: Desinvesteringen 2004
E218: Desinvesteringen 2004 met afschrijvingstermijn 50 | H218: € | I218: =SUM(K218:DF218) -> 0
E219: Desinvesteringen 2004 met afschrijvingstermijn 40 | H219: € | I219: 0
E220: Desinvesteringen 2004 met afschrijvingstermijn 30 | H220: € | I220: 0
E221: Desinvesteringen 2004 met afschrijvingstermijn 25 | H221: € | I221: 0
E222: Desinvesteringen 2004 met afschrijvingstermijn 20 | H222: € | I222: 0
E223: Desinvesteringen 2004 met afschrijvingstermijn 10 | H223: € | I223: 0
E224: Desinvesteringen 2004 met afschrijvingstermijn 5 | H224: € | I224: 0
E225: Desinvesteringen 2004 met afschrijvingstermijn 3 | H225: € | I225: 0
E226: Desinvesteringen 2004 zonder afschrijvingstermijn | H226: € | I226: 0
... 707 more rows

Sheet InpWestland
A1: =RIGHT(CELL("filename", A1), LEN(CELL("filename", A1)) - SEARCH("]", CELL("filename", A1))) -> InpWestland
E2: =Tijd!E$2 -> Actieve netbeheerder | G2: =Tijd!G$2 -> Cogas
E3: =Tijd!E$3 -> Actieve inputsheet | G3: =Tijd!G$3 -> InpCogas
E4: =Tijd!E$4 -> Modelperiode | G4: =Check!G4 -> 0 | H4: =Check!H4 -> errors | K4: =Tijd!K$4 -> 2000 | L4: =Tijd!L$4 -> 2001 | M4: =Tijd!M$4 -> 2002 | N4: =Tijd!N$4 -> 2003 | O4: =Tijd!O$4 -> 2004 | P4: =Tijd!P$4 -> 2005 | Q4: =Tijd!Q$4 -> 2006 | R4: =Tijd!R$4 -> 2007 | S4: =Tijd!S$4 -> 2008 | T4: =Tijd!T$4 -> 2009 | U4: =Tijd!U$4 -> 2010 | V4: =Tijd!V$4 -> 2011 | W4: =Tijd!W$4 -> 2012 | X4: =Tijd!X$4 -> 2013 | Y4: =Tijd!Y$4 -> 2014 | Z4: =Tijd!Z$4 -> 2015 | AA4: =Tijd!AA$4 -> 2016 | AB4: =Tijd!AB$4 -> 2017 | AC4: =Tijd!AC$4 -> 2018 | AD4: =Tijd!AD$4 -> 2019 | AE4: =Tijd!AE$4 -> 2020 | AF4: =Tijd!AF$4 -> 2021 | AG4: =Tijd!AG$4 -> 2022 | AH4: =Tijd!AH$4 -> 2023 | AI4: =Tijd!AI$4 -> 2024 | AJ4: =Tijd!AJ$4 -> 2025 | AK4: =Tijd!AK$4 -> 2026 | AL4: =Tijd!AL$4 -> 2027 | AM4: =Tijd!AM$4 -> 2028 | AN4: =Tijd!AN$4 -> 2029 | AO4: =Tijd!AO$4 -> 2030 | AP4: =Tijd!AP$4 -> 2031 | AQ4: =Tijd!AQ$4 -> 2032 | AR4: =Tijd!AR$4 -> 2033 | AS4: =Tijd!AS$4 -> 2034 | AT4: =Tijd!AT$4 -> 2035 | AU4: =Tijd!AU$4 -> 2036 | AV4: =Tijd!AV$4 -> 2037 | AW4: =Tijd!AW$4 -> 2038 | AX4: =Tijd!AX$4 -> 2039 | AY4: =Tijd!AY$4 -> 2040 | AZ4: =Tijd!AZ$4 -> 2041 | BA4: =Tijd!BA$4 -> 2042 | BB4: =Tijd!BB$4 -> 2043 | BC4: =Tijd!BC$4 -> 2044 | BD4: =Tijd!BD$4 -> 2045 | BE4: =Tijd!BE$4 -> 2046 | BF4: =Tijd!BF$4 -> 2047 | BG4: =Tijd!BG$4 -> 2048 | BH4: =Tijd!BH$4 -> 2049 | BI4: =Tijd!BI$4 -> 2050 | BJ4: =Tijd!BJ$4 -> 2051 | BK4: =Tijd!BK$4 -> 2052 | BL4: =Tijd!BL$4 -> 2053 | BM4: =Tijd!BM$4 -> 2054 | BN4: =Tijd!BN$4 -> 2055 | BO4: =Tijd!BO$4 -> 2056 | BP4: =Tijd!BP$4 -> 2057 | BQ4: =Tijd!BQ$4 -> 2058 | BR4: =Tijd!BR$4 -> 2059 | BS4: =Tijd!BS$4 -> 2060 | BT4: =Tijd!BT$4 -> 2061 | BU4: =Tijd!BU$4 -> 2062 | BV4: =Tijd!BV$4 -> 2063 | BW4: =Tijd!BW$4 -> 2064 | BX4: =Tijd!BX$4 -> 2065 | BY4: =Tijd!BY$4 -> 2066 | BZ4: =Tijd!BZ$4 -> 2067 | CA4: =Tijd!CA$4 -> 2068 | CB4: =Tijd!CB$4 -> 2069 | CC4: =Tijd!CC$4 -> 2070 | CD4: =Tijd!CD$4 -> 2071 | CE4: =Tijd!CE$4 -> 2072 | CF4: =Tijd!CF$4 -> 2073 | CG4: =Tijd!CG$4 -> 2074 | CH4: =Tijd!CH$4 -> 2075 | CI4: =Tijd!CI$4 -> 2076 | CJ4: =Tijd!CJ$4 -> 2077 | CK4: =Tijd!CK$4 -> 2078 | CL4: =Tijd!CL$4 -> 2079 | CM4: =Tijd!CM$4 -> 2080 | CN4: =Tijd!CN$4 -> 2081 | CO4: =Tijd!CO$4 -> 2082 | CP4: =Tijd!CP$4 -> 2083 | CQ4: =Tijd!CQ$4 -> 2084 | CR4: =Tijd!CR$4 -> 2085 | CS4: =Tijd!CS$4 -> 2086 | CT4: =Tijd!CT$4 -> 2087 | CU4: =Tijd!CU$4 -> 2088 | CV4: =Tijd!CV$4 -> 2089 | CW4: =Tijd!CW$4 -> 2090 | CX4: =Tijd!CX$4 -> 2091 | CY4: =Tijd!CY$4 -> 2092 | CZ4: =Tijd!CZ$4 -> 2093 | DA4: =Tijd!DA$4 -> 2094 | DB4: =Tijd!DB$4 -> 2095 | DC4: =Tijd!DC$4 -> 2096 | DD4: =Tijd!DD$4 -> 2097 | DE4: =Tijd!DE$4 -> 2098 | DF4: =Tijd!DF$4 -> 2099
E5: =Tijd!E$5 -> Looptijd vs Uitlooptijd | G5: =Check!G5 -> 0 | H5: =Check!H5 -> waarschuwingen | K5: =Tijd!K$5 -> Looptijd | L5: =Tijd!L$5 -> Looptijd | M5: =Tijd!M$5 -> Looptijd | N5: =Tijd!N$5 -> Looptijd | O5: =Tijd!O$5 -> Looptijd | P5: =Tijd!P$5 -> Looptijd | Q5: =Tijd!Q$5 -> Looptijd | R5: =Tijd!R$5 -> Looptijd | S5: =Tijd!S$5 -> Looptijd | T5: =Tijd!T$5 -> Looptijd | U5: =Tijd!U$5 -> Looptijd | V5: =Tijd!V$5 -> Looptijd | W5: =Tijd!W$5 -> Looptijd | X5: =Tijd!X$5 -> Looptijd | Y5: =Tijd!Y$5 -> Looptijd | Z5: =Tijd!Z$5 -> Looptijd | AA5: =Tijd!AA$5 -> Looptijd | AB5: =Tijd!AB$5 -> Looptijd | AC5: =Tijd!AC$5 -> Looptijd | AD5: =Tijd!AD$5 -> Looptijd | AE5: =Tijd!AE$5 -> Looptijd | AF5: =Tijd!AF$5 -> Looptijd | AG5: =Tijd!AG$5 -> Looptijd | AH5: =Tijd!AH$5 -> Looptijd | AI5: =Tijd!AI$5 -> Looptijd | AJ5: =Tijd!AJ$5 -> Looptijd | AK5: =Tijd!AK$5 -> Looptijd | AL5: =Tijd!AL$5 -> Looptijd | AM5: =Tijd!AM$5 -> Looptijd | AN5: =Tijd!AN$5 -> Looptijd | AO5: =Tijd!AO$5 -> Looptijd | AP5: =Tijd!AP$5 -> Looptijd | AQ5: =Tijd!AQ$5 -> Looptijd | AR5: =Tijd!AR$5 -> Looptijd | AS5: =Tijd!AS$5 -> Looptijd | AT5: =Tijd!AT$5 -> Looptijd | AU5: =Tijd!AU$5 -> Looptijd | AV5: =Tijd!AV$5 -> Looptijd | AW5: =Tijd!AW$5 -> Looptijd | AX5: =Tijd!AX$5 -> Looptijd | AY5: =Tijd!AY$5 -> Looptijd | AZ5: =Tijd!AZ$5 -> Looptijd | BA5: =Tijd!BA$5 -> Looptijd | BB5: =Tijd!BB$5 -> Looptijd | BC5: =Tijd!BC$5 -> Looptijd | BD5: =Tijd!BD$5 -> Looptijd | BE5: =Tijd!BE$5 -> Looptijd | BF5: =Tijd!BF$5 -> Looptijd | BG5: =Tijd!BG$5 -> Looptijd | BH5: =Tijd!BH$5 -> Looptijd | BI5: =Tijd!BI$5 -> Looptijd | BJ5: =Tijd!BJ$5 -> Uitlooptijd | BK5: =Tijd!BK$5 -> Uitlooptijd | BL5: =Tijd!BL$5 -> Uitlooptijd | BM5: =Tijd!BM$5 -> Uitlooptijd | BN5: =Tijd!BN$5 -> Uitlooptijd | BO5: =Tijd!BO$5 -> Uitlooptijd | BP5: =Tijd!BP$5 -> Uitlooptijd | BQ5: =Tijd!BQ$5 -> Uitlooptijd | BR5: =Tijd!BR$5 -> Uitlooptijd | BS5: =Tijd!BS$5 -> Uitlooptijd | BT5: =Tijd!BT$5 -> Uitlooptijd | BU5: =Tijd!BU$5 -> Uitlooptijd | BV5: =Tijd!BV$5 -> Uitlooptijd | BW5: =Tijd!BW$5 -> Uitlooptijd | BX5: =Tijd!BX$5 -> Uitlooptijd | BY5: =Tijd!BY$5 -> Uitlooptijd | BZ5: =Tijd!BZ$5 -> Uitlooptijd | CA5: =Tijd!CA$5 -> Uitlooptijd | CB5: =Tijd!CB$5 -> Uitlooptijd | CC5: =Tijd!CC$5 -> Uitlooptijd | CD5: =Tijd!CD$5 -> Uitlooptijd | CE5: =Tijd!CE$5 -> Uitlooptijd | CF5: =Tijd!CF$5 -> Uitlooptijd | CG5: =Tijd!CG$5 -> Uitlooptijd | CH5: =Tijd!CH$5 -> Uitlooptijd | CI5: =Tijd!CI$5 -> Uitlooptijd | CJ5: =Tijd!CJ$5 -> Uitlooptijd | CK5: =Tijd!CK$5 -> Uitlooptijd | CL5: =Tijd!CL$5 -> Uitlooptijd | CM5: =Tijd!CM$5 -> Uitlooptijd | CN5: =Tijd!CN$5 -> Uitlooptijd | CO5: =Tijd!CO$5 -> Uitlooptijd | CP5: =Tijd!CP$5 -> Uitlooptijd | CQ5: =Tijd!CQ$5 -> Uitlooptijd | CR5: =Tijd!CR$5 -> Uitlooptijd | CS5: =Tijd!CS$5 -> Uitlooptijd | CT5: =Tijd!CT$5 -> Uitlooptijd | CU5: =Tijd!CU$5 -> Uitlooptijd | CV5: =Tijd!CV$5 -> Uitlooptijd | CW5: =Tijd!CW$5 -> Uitlooptijd | CX5: =Tijd!CX$5 -> Uitlooptijd | CY5: =Tijd!CY$5 -> Uitlooptijd | CZ5: =Tijd!CZ$5 -> Uitlooptijd | DA5: =Tijd!DA$5 -> Uitlooptijd | DB5: =Tijd!DB$5 -> Uitlooptijd | DC5: =Tijd!DC$5 -> Uitlooptijd | DD5: =Tijd!DD$5 -> Uitlooptijd | DE5: =Tijd!DE$5 -> Uitlooptijd | DF5: =Tijd!DF$5 -> Uitlooptijd
E6: =Tijd!E$10 -> Model kolom teller | F6: Bron | G6: Constante | H6: Eenheid | I6: Totaal | K6: =Tijd!K$10 -> 1 | L6: =Tijd!L$10 -> 2 | M6: =Tijd!M$10 -> 3 | N6: =Tijd!N$10 -> 4 | O6: =Tijd!O$10 -> 5 | P6: =Tijd!P$10 -> 6 | Q6: =Tijd!Q$10 -> 7 | R6: =Tijd!R$10 -> 8 | S6: =Tijd!S$10 -> 9 | T6: =Tijd!T$10 -> 10 | U6: =Tijd!U$10 -> 11 | V6: =Tijd!V$10 -> 12 | W6: =Tijd!W$10 -> 13 | X6: =Tijd!X$10 -> 14 | Y6: =Tijd!Y$10 -> 15 | Z6: =Tijd!Z$10 -> 16 | AA6: =Tijd!AA$10 -> 17 | AB6: =Tijd!AB$10 -> 18 | AC6: =Tijd!AC$10 -> 19 | AD6: =Tijd!AD$10 -> 20 | AE6: =Tijd!AE$10 -> 21 | AF6: =Tijd!AF$10 -> 22 | AG6: =Tijd!AG$10 -> 23 | AH6: =Tijd!AH$10 -> 24 | AI6: =Tijd!AI$10 -> 25 | AJ6: =Tijd!AJ$10 -> 26 | AK6: =Tijd!AK$10 -> 27 | AL6: =Tijd!AL$10 -> 28 | AM6: =Tijd!AM$10 -> 29 | AN6: =Tijd!AN$10 -> 30 | AO6: =Tijd!AO$10 -> 31 | AP6: =Tijd!AP$10 -> 32 | AQ6: =Tijd!AQ$10 -> 33 | AR6: =Tijd!AR$10 -> 34 | AS6: =Tijd!AS$10 -> 35 | AT6: =Tijd!AT$10 -> 36 | AU6: =Tijd!AU$10 -> 37 | AV6: =Tijd!AV$10 -> 38 | AW6: =Tijd!AW$10 -> 39 | AX6: =Tijd!AX$10 -> 40 | AY6: =Tijd!AY$10 -> 41 | AZ6: =Tijd!AZ$10 -> 42 | BA6: =Tijd!BA$10 -> 43 | BB6: =Tijd!BB$10 -> 44 | BC6: =Tijd!BC$10 -> 45 | BD6: =Tijd!BD$10 -> 46 | BE6: =Tijd!BE$10 -> 47 | BF6: =Tijd!BF$10 -> 48 | BG6: =Tijd!BG$10 -> 49 | BH6: =Tijd!BH$10 -> 50 | BI6: =Tijd!BI$10 -> 51 | BJ6: =Tijd!BJ$10 -> 52 | BK6: =Tijd!BK$10 -> 53 | BL6: =Tijd!BL$10 -> 54 | BM6: =Tijd!BM$10 -> 55 | BN6: =Tijd!BN$10 -> 56 | BO6: =Tijd!BO$10 -> 57 | BP6: =Tijd!BP$10 -> 58 | BQ6: =Tijd!BQ$10 -> 59 | BR6: =Tijd!BR$10 -> 60 | BS6: =Tijd!BS$10 -> 61 | BT6: =Tijd!BT$10 -> 62 | BU6: =Tijd!BU$10 -> 63 | BV6: =Tijd!BV$10 -> 64 | BW6: =Tijd!BW$10 -> 65 | BX6: =Tijd!BX$10 -> 66 | BY6: =Tijd!BY$10 -> 67 | BZ6: =Tijd!BZ$10 -> 68 | CA6: =Tijd!CA$10 -> 69 | CB6: =Tijd!CB$10 -> 70 | CC6: =Tijd!CC$10 -> 71 | CD6: =Tijd!CD$10 -> 72 | CE6: =Tijd!CE$10 -> 73 | CF6: =Tijd!CF$10 -> 74 | CG6: =Tijd!CG$10 -> 75 | CH6: =Tijd!CH$10 -> 76 | CI6: =Tijd!CI$10 -> 77 | CJ6: =Tijd!CJ$10 -> 78 | CK6: =Tijd!CK$10 -> 79 | CL6: =Tijd!CL$10 -> 80 | CM6: =Tijd!CM$10 -> 81 | CN6: =Tijd!CN$10 -> 82 | CO6: =Tijd!CO$10 -> 83 | CP6: =Tijd!CP$10 -> 84 | CQ6: =Tijd!CQ$10 -> 85 | CR6: =Tijd!CR$10 -> 86 | CS6: =Tijd!CS$10 -> 87 | CT6: =Tijd!CT$10 -> 88 | CU6: =Tijd!CU$10 -> 89 | CV6: =Tijd!CV$10 -> 90 | CW6: =Tijd!CW$10 -> 91 | CX6: =Tijd!CX$10 -> 92 | CY6: =Tijd!CY$10 -> 93 | CZ6: =Tijd!CZ$10 -> 94 | DA6: =Tijd!DA$10 -> 95 | DB6: =Tijd!DB$10 -> 96 | DC6: =Tijd!DC$10 -> 97 | DD6: =Tijd!DD$10 -> 98 | DE6: =Tijd!DE$10 -> 99 | DF6: =Tijd!DF$10 -> 100
A9: INVESTERINGSJAAR 2000 - START GAW
E10: Startwaarde GAW incl. afgekochte precario (31-12-2000) | G10: 95572614.66 | H10: €
E11: Afschrijvingen Start GAW | G11: 2980882.239 | H11: €
E12: Afgekochte precario in Start GAW (31-12-2000) | G12: 0 | H12: €
E13: Afschrijvingsbedrag afgekochte precario | G13: 0 | H13: €
A15: INVESTERINGSJAAR 2001
B17: Investeringen 2001
E18: Aanschafwaarde investeringen 2001 met afschrijvingstermijn 50 | G18: 5649568 | H18: € | I18: =SUM(K18:DF18) -> 0
E19: Aanschafwaarde investeringen 2001 met afschrijvingstermijn 40 | G19: 5078657 | H19: € | I19: 0
E20: Aanschafwaarde investeringen 2001 met afschrijvingstermijn 30 | G20: 75000 | H20: € | I20: 0
E21: Aanschafwaarde investeringen 2001 met afschrijvingstermijn 25 | G21: 16373 | H21: € | I21: 0
E22: Aanschafwaarde investeringen 2001 met afschrijvingstermijn 20 | H22: € | I22: 0
E23: Aanschafwaarde investeringen 2001 met afschrijvingstermijn 10 | G23: 48038 | H23: € | I23: 0
E24: Aanschafwaarde investeringen 2001 met afschrijvingstermijn 5 | G24: 0 | H24: € | I24: 0
E25: Aanschafwaarde investeringen 2001 met afschrijvingstermijn 3 | G25: 0 | H25: € | I25: 0
E26: Aanschafwaarde investeringen 2001 zonder afschrijvingstermijn | G26: 167894 | H26: € | I26: 0
B28: Desinvesteringen 2001
E29: Desinvesteringen 2001 met afschrijvingstermijn 50 | H29: € | I29: =SUM(K29:DF29) -> 143750 | U29: 143750
E30: Desinvesteringen 2001 met afschrijvingstermijn 40 | H30: € | I30: 0
E31: Desinvesteringen 2001 met afschrijvingstermijn 30 | H31: € | I31: 0
E32: Desinvesteringen 2001 met afschrijvingstermijn 25 | H32: € | I32: 0
E33: Desinvesteringen 2001 met afschrijvingstermijn 20 | H33: € | I33: 0
E34: Desinvesteringen 2001 met afschrijvingstermijn 10 | H34: € | I34: 0
E35: Desinvesteringen 2001 met afschrijvingstermijn 5 | H35: € | I35: 0
E36: Desinvesteringen 2001 met afschrijvingstermijn 3 | H36: € | I36: 0
E37: Desinvesteringen 2001 zonder afschrijvingstermijn | H37: € | I37: 0
B39: Opgegeven Afschrijvingen 2001
E40: Opgegeven afschrijvingen 2001 met afschrijvingstermijn 50 | H40: € | I40: =SUM(K40:DF40) -> 621452.48 | L40: 56495.68 | M40: 112991.36 | N40: 112991.36 | O40: 112991.36 | P40: 112991.36 | Q40: 112991.36
E41: Opgegeven afschrijvingen 2001 met afschrijvingstermijn 40 | H41: € | I41: 698315.3375 | L41: 63483.2125 | M41: 126966.425 | N41: 126966.425 | O41: 126966.425 | P41: 126966.425 | Q41: 126966.425
E42: Opgegeven afschrijvingen 2001 met afschrijvingstermijn 30 | H42: € | I42: 13750 | L42: 1250 | M42: 2500 | N42: 2500 | O42: 2500 | P42: 2500 | Q42: 2500
E43: Opgegeven afschrijvingen 2001 met afschrijvingstermijn 25 | H43: € | I43: 3602.06 | L43: 327.46 | M43: 654.92 | N43: 654.92 | O43: 654.92 | P43: 654.92 | Q43: 654.92
E44: Opgegeven afschrijvingen 2001 met afschrijvingstermijn 20 | H44: € | I44: 0
E45: Opgegeven afschrijvingen 2001 met afschrijvingstermijn 10 | H45: € | I45: 26420.9 | L45: 2401.9 | M45: 4803.8 | N45: 4803.8 | O45: 4803.8 | P45: 4803.8 | Q45: 4803.8
E46: Opgegeven afschrijvingen 2001 met afschrijvingstermijn 5 | H46: € | I46: 0 | L46: 0 | M46: 0 | N46: 0 | O46: 0 | P46: 0 | Q46: 0
E47: Opgegeven afschrijvingen 2001 met afschrijvingstermijn 3 | H47: € | I47: 0 | L47: 0 | M47: 0 | N47: 0 | O47: 0 | P47: 0 | Q47: 0
E48: Opgegeven afschrijvingen 2001 zonder afschrijvingstermijn | H48: € | I48: 0
B50: Opgegeven Cumulatieve Afschrijvingen Bij Desinvesteringen 2001
E51: Opgegeven c.a.d. 2001 met afschrijvingstermijn 50 | H51: € | I51: =SUM(K51:DF51) -> 0
E52: Opgegeven c.a.d. 2001 met afschrijvingstermijn 40 | H52: € | I52: 0
E53: Opgegeven c.a.d. 2001 met afschrijvingstermijn 30 | H53: € | I53: 0
E54: Opgegeven c.a.d. 2001 met afschrijvingstermijn 25 | H54: € | I54: 0
E55: Opgegeven c.a.d. 2001 met afschrijvingstermijn 20 | H55: € | I55: 0
E56: Opgegeven c.a.d. 2001 met afschrijvingstermijn 10 | H56: € | I56: 0
E57: Opgegeven c.a.d. 2001 met afschrijvingstermijn 5 | H57: € | I57: 0
E58: Opgegeven c.a.d. 2001 met afschrijvingstermijn 3 | H58: € | I58: 0
E59: Opgegeven c.a.d. 2001 zonder afschrijvingstermijn | H59: € | I59: 0
B61: Bijzondere Waardeverminderingen Op Activa 2001
E62: Bijzondere waardeverminderingen op activa 2001 met afschrijvingstermijn 50 | H62: € | I62: =SUM(K62:DF62) -> 21827 | U62: 21827
E63: Bijzondere waardeverminderingen op activa 2001 met afschrijvingstermijn 40 | H63: € | I63: 0
E64: Bijzondere waardeverminderingen op activa 2001 met afschrijvingstermijn 30 | H64: € | I64: 0
E65: Bijzondere waardeverminderingen op activa 2001 met afschrijvingstermijn 25 | H65: € | I65: 0
E66: Bijzondere waardeverminderingen op activa 2001 met afschrijvingstermijn 20 | H66: € | I66: 0
E67: Bijzondere waardeverminderingen op activa 2001 met afschrijvingstermijn 10 | H67: € | I67: 0
E68: Bijzondere waardeverminderingen op activa 2001 met afschrijvingstermijn 5 | H68: € | I68: 0
E69: Bijzondere waardeverminderingen op activa 2001 met afschrijvingstermijn 3 | H69: € | I69: 0
E70: Bijzondere waardeverminderingen op activa 2001 zonder afschrijvingstermijn | H70: € | I70: 0
B72: Input Alert
E73: Dummy Beginjaar investeringen
E74: Dummy Modelperiode
E75: Dummy Aantal cellen met onterechte input 2001
E76: Dummy Waarschuwing onterecht ingevulde cellen 2001
A78: INVESTERINGSJAAR 2002
B80: Investeringen 2002
E81: Aanschafwaarde investeringen 2002 met afschrijvingstermijn 50 | G81: 6484725 | H81: € | I81: =SUM(K81:DF81) -> 0
E82: Aanschafwaarde investeringen 2002 met afschrijvingstermijn 40 | G82: 5099227 | H82: € | I82: 0
E83: Aanschafwaarde investeringen 2002 met afschrijvingstermijn 30 | G83: 200679 | H83: € | I83: 0
E84: Aanschafwaarde investeringen 2002 met afschrijvingstermijn 25 | G84: 0 | H84: € | I84: 0
E85: Aanschafwaarde investeringen 2002 met afschrijvingstermijn 20 | H85: € | I85: 0
E86: Aanschafwaarde investeringen 2002 met afschrijvingstermijn 10 | G86: 94495 | H86: € | I86: 0
E87: Aanschafwaarde investeringen 2002 met afschrijvingstermijn 5 | H87: € | I87: 0
E88: Aanschafwaarde investeringen 2002 met afschrijvingstermijn 3 | H88: € | I88: 0
E89: Aanschafwaarde investeringen 2002 zonder afschrijvingstermijn | H89: € | I89: 0
B91: Desinvesteringen 2002
E92: Desinvesteringen 2002 met afschrijvingstermijn 50 | H92: € | I92: =SUM(K92:DF92) -> 0
E93: Desinvesteringen 2002 met afschrijvingstermijn 40 | H93: € | I93: 0
E94: Desinvesteringen 2002 met afschrijvingstermijn 30 | H94: € | I94: 0
E95: Desinvesteringen 2002 met afschrijvingstermijn 25 | H95: € | I95: 0
E96: Desinvesteringen 2002 met afschrijvingstermijn 20 | H96: € | I96: 0
E97: Desinvesteringen 2002 met afschrijvingstermijn 10 | H97: € | I97: 0
E98: Desinvesteringen 2002 met afschrijvingstermijn 5 | H98: € | I98: 0
E99: Desinvesteringen 2002 met afschrijvingstermijn 3 | H99: € | I99: 0
E100: Desinvesteringen 2002 zonder afschrijvingstermijn | H100: € | I100: 0
B102: Opgegeven Afschrijvingen 2002
E103: Opgegeven afschrijvingen 2002 met afschrijvingstermijn 50 | H103: € | I103: =SUM(K103:DF103) -> 583625.25 | M103: 64847.25 | N103: 129694.5 | O103: 129694.5 | P103: 129694.5 | Q103: 129694.5
E104: Opgegeven afschrijvingen 2002 met afschrijvingstermijn 40 | H104: € | I104: 573663.0375 | M104: 63740.3375 | N104: 127480.675 | O104: 127480.675 | P104: 127480.675 | Q104: 127480.675
E105: Opgegeven afschrijvingen 2002 met afschrijvingstermijn 30 | H105: € | I105: 30101.85 | M105: 3344.65 | N105: 6689.3 | O105: 6689.3 | P105: 6689.3 | Q105: 6689.3
E106: Opgegeven afschrijvingen 2002 met afschrijvingstermijn 25 | H106: € | I106: 0 | M106: 0 | N106: 0 | O106: 0 | P106: 0 | Q106: 0
E107: Opgegeven afschrijvingen 2002 met afschrijvingstermijn 20 | H107: € | I107: 0
E108: Opgegeven afschrijvingen 2002 met afschrijvingstermijn 10 | H108: € | I108: 42522.75 | M108: 4724.75 | N108: 9449.5 | O108: 9449.5 | P108: 9449.5 | Q108: 9449.5
E109: Opgegeven afschrijvingen 2002 met afschrijvingstermijn 5 | H109: € | I109: 0
E110: Opgegeven afschrijvingen 2002 met afschrijvingstermijn 3 | H110: € | I110: 0
E111: Opgegeven afschrijvingen 2002 zonder afschrijvingstermijn | H111: € | I111: 0
B113: Opgegeven Cumulatieve Afschrijvingen Bij Desinvesteringen 2002
E114: Opgegeven c.a.d. 2002 met afschrijvingstermijn 50 | H114: € | I114: =SUM(K114:DF114) -> 0
E115: Opgegeven c.a.d. 2002 met afschrijvingstermijn 40 | H115: € | I115: 0
E116: Opgegeven c.a.d. 2002 met afschrijvingstermijn 30 | H116: € | I116: 0
E117: Opgegeven c.a.d. 2002 met afschrijvingstermijn 25 | H117: € | I117: 0
E118: Opgegeven c.a.d. 2002 met afschrijvingstermijn 20 | H118: € | I118: 0
E119: Opgegeven c.a.d. 2002 met afschrijvingstermijn 10 | H119: € | I119: 0
E120: Opgegeven c.a.d. 2002 met afschrijvingstermijn 5 | H120: € | I120: 0
E121: Opgegeven c.a.d. 2002 met afschrijvingstermijn 3 | H121: € | I121: 0
E122: Opgegeven c.a.d. 2002 zonder afschrijvingstermijn | H122: € | I122: 0
B124: Bijzondere Waardeverminderingen Op Activa 2002
E125: Bijzondere waardeverminderingen op activa 2002 met afschrijvingstermijn 50 | H125: € | I125: =SUM(K125:DF125) -> 0
E126: Bijzondere waardeverminderingen op activa 2002 met afschrijvingstermijn 40 | H126: € | I126: 0
E127: Bijzondere waardeverminderingen op activa 2002 met afschrijvingstermijn 30 | H127: € | I127: 0
E128: Bijzondere waardeverminderingen op activa 2002 met afschrijvingstermijn 25 | H128: € | I128: 0
E129: Bijzondere waardeverminderingen op activa 2002 met afschrijvingstermijn 20 | H129: € | I129: 0
E130: Bijzondere waardeverminderingen op activa 2002 met afschrijvingstermijn 10 | H130: € | I130: 0
E131: Bijzondere waardeverminderingen op activa 2002 met afschrijvingstermijn 5 | H131: € | I131: 0
E132: Bijzondere waardeverminderingen op activa 2002 met afschrijvingstermijn 3 | H132: € | I132: 0
E133: Bijzondere waardeverminderingen op activa 2002 zonder afschrijvingstermijn | H133: € | I133: 0
B135: Input Alert
E136: Dummy Beginjaar investeringen
E137: Dummy Modelperiode
E138: Dummy Aantal cellen met onterechte input 2002
E139: Dummy Waarschuwing onterecht ingevulde cellen 2002
A141: INVESTERINGSJAAR 2003
B143: Investeringen 2003
E144: Aanschafwaarde investeringen 2003 met afschrijvingstermijn 50 | G144: 1368378 | H144: € | I144: =SUM(K144:DF144) -> 0
E145: Aanschafwaarde investeringen 2003 met afschrijvingstermijn 40 | G145: 667007 | H145: € | I145: 0
E146: Aanschafwaarde investeringen 2003 met afschrijvingstermijn 30 | H146: € | I146: 0
E147: Aanschafwaarde investeringen 2003 met afschrijvingstermijn 25 | H147: € | I147: 0
E148: Aanschafwaarde investeringen 2003 met afschrijvingstermijn 20 | H148: € | I148: 0
E149: Aanschafwaarde investeringen 2003 met afschrijvingstermijn 10 | H149: € | I149: 0
E150: Aanschafwaarde investeringen 2003 met afschrijvingstermijn 5 | H150: € | I150: 0
E151: Aanschafwaarde investeringen 2003 met afschrijvingstermijn 3 | H151: € | I151: 0
E152: Aanschafwaarde investeringen 2003 zonder afschrijvingstermijn | H152: € | I152: 0
B154: Desinvesteringen 2003
E155: Desinvesteringen 2003 met afschrijvingstermijn 50 | H155: € | I155: =SUM(K155:DF155) -> 8750 | U155: 8750
E156: Desinvesteringen 2003 met afschrijvingstermijn 40 | H156: € | I156: 0
E157: Desinvesteringen 2003 met afschrijvingstermijn 30 | H157: € | I157: 0
E158: Desinvesteringen 2003 met afschrijvingstermijn 25 | H158: € | I158: 0
E159: Desinvesteringen 2003 met afschrijvingstermijn 20 | H159: € | I159: 0
E160: Desinvesteringen 2003 met afschrijvingstermijn 10 | H160: € | I160: 0
E161: Desinvesteringen 2003 met afschrijvingstermijn 5 | H161: € | I161: 0
E162: Desinvesteringen 2003 met afschrijvingstermijn 3 | H162: € | I162: 0
E163: Desinvesteringen 2003 zonder afschrijvingstermijn | H163: € | I163: 0
B165: Opgegeven Afschrijvingen 2003
E166: Opgegeven afschrijvingen 2003 met afschrijvingstermijn 50 | H166: € | I166: =SUM(K166:DF166) -> 95786.46 | N166: 13683.78 | O166: 27367.56 | P166: 27367.56 | Q166: 27367.56
E167: Opgegeven afschrijvingen 2003 met afschrijvingstermijn 40 | H167: € | I167: 58363.1125 | N167: 8337.5875 | O167: 16675.175 | P167: 16675.175 | Q167: 16675.175
E168: Opgegeven afschrijvingen 2003 met afschrijvingstermijn 30 | H168: € | I168: 0
E169: Opgegeven afschrijvingen 2003 met afschrijvingstermijn 25 | H169: € | I169: 0
E170: Opgegeven afschrijvingen 2003 met afschrijvingstermijn 20 | H170: € | I170: 0
E171: Opgegeven afschrijvingen 2003 met afschrijvingstermijn 10 | H171: € | I171: 0
E172: Opgegeven afschrijvingen 2003 met afschrijvingstermijn 5 | H172: € | I172: 0
E173: Opgegeven afschrijvingen 2003 met afschrijvingstermijn 3 | H173: € | I173: 0
E174: Opgegeven afschrijvingen 2003 zonder afschrijvingstermijn | H174: € | I174: 0
B176: Opgegeven Cumulatieve Afschrijvingen Bij Desinvesteringen 2003
E177: Opgegeven c.a.d. 2003 met afschrijvingstermijn 50 | H177: € | I177: =SUM(K177:DF177) -> 0
E178: Opgegeven c.a.d. 2003 met afschrijvingstermijn 40 | H178: € | I178: 0
E179: Opgegeven c.a.d. 2003 met afschrijvingstermijn 30 | H179: € | I179: 0
E180: Opgegeven c.a.d. 2003 met afschrijvingstermijn 25 | H180: € | I180: 0
E181: Opgegeven c.a.d. 2003 met afschrijvingstermijn 20 | H181: € | I181: 0
E182: Opgegeven c.a.d. 2003 met afschrijvingstermijn 10 | H182: € | I182: 0
E183: Opgegeven c.a.d. 2003 met afschrijvingstermijn 5 | H183: € | I183: 0
E184: Opgegeven c.a.d. 2003 met afschrijvingstermijn 3 | H184: € | I184: 0
E185: Opgegeven c.a.d. 2003 zonder afschrijvingstermijn | H185: € | I185: 0
B187: Bijzondere Waardeverminderingen Op Activa 2003
E188: Bijzondere waardeverminderingen op activa 2003 met afschrijvingstermijn 50 | H188: € | I188: =SUM(K188:DF188) -> -2219 | U188: -2219
E189: Bijzondere waardeverminderingen op activa 2003 met afschrijvingstermijn 40 | H189: € | I189: 0
E190: Bijzondere waardeverminderingen op activa 2003 met afschrijvingstermijn 30 | H190: € | I190: 0
E191: Bijzondere waardeverminderingen op activa 2003 met afschrijvingstermijn 25 | H191: € | I191: 0
E192: Bijzondere waardeverminderingen op activa 2003 met afschrijvingstermijn 20 | H192: € | I192: 0
E193: Bijzondere waardeverminderingen op activa 2003 met afschrijvingstermijn 10 | H193: € | I193: 0
E194: Bijzondere waardeverminderingen op activa 2003 met afschrijvingstermijn 5 | H194: € | I194: 0
E195: Bijzondere waardeverminderingen op activa 2003 met afschrijvingstermijn 3 | H195: € | I195: 0
E196: Bijzondere waardeverminderingen op activa 2003 zonder afschrijvingstermijn | H196: € | I196: 0
B198: Input Alert
E199: Dummy Beginjaar investeringen
E200: Dummy Modelperiode
E201: Dummy Aantal cellen met onterechte input 2003
E202: Dummy Waarschuwing onterecht ingevulde cellen 2003
A204: INVESTERINGSJAAR 2004
B206: Investeringen 2004
E207: Aanschafwaarde investeringen 2004 met afschrijvingstermijn 50 | G207: 6998315 | H207: € | I207: =SUM(K207:DF207) -> 0
E208: Aanschafwaarde investeringen 2004 met afschrijvingstermijn 40 | G208: 9014417 | H208: € | I208: 0
E209: Aanschafwaarde investeringen 2004 met afschrijvingstermijn 30 | G209: 1019114 | H209: € | I209: 0
E210: Aanschafwaarde investeringen 2004 met afschrijvingstermijn 25 | G210: 0 | H210: € | I210: 0
E211: Aanschafwaarde investeringen 2004 met afschrijvingstermijn 20 | H211: € | I211: 0
E212: Aanschafwaarde investeringen 2004 met afschrijvingstermijn 10 | G212: 46939 | H212: € | I212: 0
E213: Aanschafwaarde investeringen 2004 met afschrijvingstermijn 5 | G213: 65173 | H213: € | I213: 0
E214: Aanschafwaarde investeringen 2004 met afschrijvingstermijn 3 | H214: € | I214: 0
E215: Aanschafwaarde investeringen 2004 zonder afschrijvingstermijn | H215: € | I215: 0
B217: Desinvesteringen 2004
E218: Desinvesteringen 2004 met afschrijvingstermijn 50 | H218: € | I218: =SUM(K218:DF218) -> 0
E219: Desinvesteringen 2004 met afschrijvingstermijn 40 | H219: € | I219: 52488 | T219: 52488
E220: Desinvesteringen 2004 met afschrijvingstermijn 30 | H220: € | I220: 0
E221: Desinvesteringen 2004 met afschrijvingstermijn 25 | H221: € | I221: 0
E222: Desinvesteringen 2004 met afschrijvingstermijn 20 | H222: € | I222: 0
E223: Desinvesteringen 2004 met afschrijvingstermijn 10 | H223: € | I223: 0
E224: Desinvesteringen 2004 met afschrijvingstermijn 5 | H224: € | I224: 0
E225: Desinvesteringen 2004 met afschrijvingstermijn 3 | H225: € | I225: 0
E226: Desinvesteringen 2004 zonder afschrijvingstermijn | H226: € | I226: 0
... 707 more rows

Sheet Tijd
A1: =RIGHT(CELL("filename", A1), LEN(CELL("filename", A1)) - SEARCH("]", CELL("filename", A1))) -> Tijd
E2: =InpC!E9 -> Actieve netbeheerder | G2: =InpC!G9 -> Cogas
E3: Actieve inputsheet | G3: =CONCATENATE("Inp", G2 ) -> InpCogas
E4: =E$19 -> Modelperiode | G4: =Check!G4 -> 0 | H4: =Check!H4 -> errors | K4: =K$19 -> 2000 | L4: 2001 | M4: 2002 | N4: 2003 | O4: 2004 | P4: 2005 | Q4: 2006 | R4: 2007 | S4: 2008 | T4: 2009 | U4: 2010 | V4: 2011 | W4: 2012 | X4: 2013 | Y4: 2014 | Z4: 2015 | AA4: 2016 | AB4: 2017 | AC4: 2018 | AD4: 2019 | AE4: 2020 | AF4: 2021 | AG4: 2022 | AH4: 2023 | AI4: 2024 | AJ4: 2025 | AK4: 2026 | AL4: 2027 | AM4: 2028 | AN4: 2029 | AO4: 2030 | AP4: 2031 | AQ4: 2032 | AR4: 2033 | AS4: 2034 | AT4: 2035 | AU4: 2036 | AV4: 2037 | AW4: 2038 | AX4: 2039 | AY4: 2040 | AZ4: 2041 | BA4: 2042 | BB4: 2043 | BC4: 2044 | BD4: 2045 | BE4: 2046 | BF4: 2047 | BG4: 2048 | BH4: 2049 | BI4: 2050 | BJ4: 2051 | BK4: 2052 | BL4: 2053 | BM4: 2054 | BN4: 2055 | BO4: 2056 | BP4: 2057 | BQ4: 2058 | BR4: =BR$19 -> 2059 | BS4: 2060 | BT4: 2061 | BU4: 2062 | BV4: 2063 | BW4: 2064 | BX4: 2065 | BY4: 2066 | BZ4: 2067 | CA4: 2068 | CB4: 2069 | CC4: 2070 | CD4: 2071 | CE4: 2072 | CF4: 2073 | CG4: 2074 | CH4: 2075 | CI4: 2076 | CJ4: 2077 | CK4: 2078 | CL4: 2079 | CM4: 2080 | CN4: 2081 | CO4: 2082 | CP4: 2083 | CQ4: 2084 | CR4: 2085 | CS4: 2086 | CT4: 2087 | CU4: 2088 | CV4: 2089 | CW4: 2090 | CX4: 2091 | CY4: 2092 | CZ4: 2093 | DA4: 2094 | DB4: 2095 | DC4: 2096 | DD4: 2097 | DE4: 2098 | DF4: 2099
E5: =E$37 -> Looptijd vs Uitlooptijd | G5: =Check!G5 -> 0 | H5: =Check!H5 -> waarschuwingen | K5: =K$37 -> Looptijd | L5: Looptijd | M5: Looptijd | N5: Looptijd | O5: Looptijd | P5: Looptijd | Q5: Looptijd | R5: Looptijd | S5: Looptijd | T5: Looptijd | U5: Looptijd | V5: Looptijd | W5: Looptijd | X5: Looptijd | Y5: Looptijd | Z5: Looptijd | AA5: Looptijd | AB5: Looptijd | AC5: Looptijd | AD5: Looptijd | AE5: Looptijd | AF5: Looptijd | AG5: Looptijd | AH5: Looptijd | AI5: Looptijd | AJ5: Looptijd | AK5: Looptijd | AL5: Looptijd | AM5: Looptijd | AN5: Looptijd | AO5: Looptijd | AP5: Looptijd | AQ5: Looptijd | AR5: Looptijd | AS5: Looptijd | AT5: Looptijd | AU5: Looptijd | AV5: Looptijd | AW5: Looptijd | AX5: Looptijd | AY5: Looptijd | AZ5: Looptijd | BA5: Looptijd | BB5: Looptijd | BC5: Looptijd | BD5: Looptijd | BE5: Looptijd | BF5: Looptijd | BG5: Looptijd | BH5: Looptijd | BI5: Looptijd | BJ5: Uitlooptijd | BK5: Uitlooptijd | BL5: Uitlooptijd | BM5: Uitlooptijd | BN5: Uitlooptijd | BO5: Uitlooptijd | BP5: Uitlooptijd | BQ5: Uitlooptijd | BR5: =BR$37 -> Uitlooptijd | BS5: Uitlooptijd | BT5: Uitlooptijd | BU5: Uitlooptijd | BV5: Uitlooptijd | BW5: Uitlooptijd | BX5: Uitlooptijd | BY5: Uitlooptijd | BZ5: Uitlooptijd | CA5: Uitlooptijd | CB5: Uitlooptijd | CC5: Uitlooptijd | CD5: Uitlooptijd | CE5: Uitlooptijd | CF5: Uitlooptijd | CG5: Uitlooptijd | CH5: Uitlooptijd | CI5: Uitlooptijd | CJ5: Uitlooptijd | CK5: Uitlooptijd | CL5: Uitlooptijd | CM5: Uitlooptijd | CN5: Uitlooptijd | CO5: Uitlooptijd | CP5: Uitlooptijd | CQ5: Uitlooptijd | CR5: Uitlooptijd | CS5: Uitlooptijd | CT5: Uitlooptijd | CU5: Uitlooptijd | CV5: Uitlooptijd | CW5: Uitlooptijd | CX5: Uitlooptijd | CY5: Uitlooptijd | CZ5: Uitlooptijd | DA5: Uitlooptijd | DB5: Uitlooptijd | DC5: Uitlooptijd | DD5: Uitlooptijd | DE5: Uitlooptijd | DF5: Uitlooptijd
E6: =E$10 -> Model kolom teller | F6: Bron | G6: Constante | H6: Eenheid | I6: Totaal | K6: =K$10 -> 1 | L6: =L$10 -> 2 | M6: 3 | N6: 4 | O6: 5 | P6: 6 | Q6: 7 | R6: 8 | S6: 9 | T6: 10 | U6: 11 | V6: 12 | W6: 13 | X6: 14 | Y6: 15 | Z6: 16 | AA6: 17 | AB6: 18 | AC6: 19 | AD6: 20 | AE6: 21 | AF6: 22 | AG6: 23 | AH6: 24 | AI6: 25 | AJ6: 26 | AK6: 27 | AL6: 28 | AM6: 29 | AN6: 30 | AO6: 31 | AP6: 32 | AQ6: 33 | AR6: 34 | AS6: 35 | AT6: 36 | AU6: 37 | AV6: 38 | AW6: 39 | AX6: 40 | AY6: 41 | AZ6: 42 | BA6: 43 | BB6: 44 | BC6: 45 | BD6: 46 | BE6: 47 | BF6: 48 | BG6: 49 | BH6: 50 | BI6: 51 | BJ6: 52 | BK6: 53 | BL6: 54 | BM6: 55 | BN6: 56 | BO6: 57 | BP6: 58 | BQ6: 59 | BR6: 60 | BS6: 61 | BT6: 62 | BU6: 63 | BV6: 64 | BW6: 65 | BX6: =BX$10 -> 66 | BY6: 67 | BZ6: 68 | CA6: 69 | CB6: 70 | CC6: 71 | CD6: 72 | CE6: 73 | CF6: 74 | CG6: 75 | CH6: 76 | CI6: 77 | CJ6: 78 | CK6: 79 | CL6: 80 | CM6: 81 | CN6: 82 | CO6: 83 | CP6: 84 | CQ6: 85 | CR6: 86 | CS6: 87 | CT6: 88 | CU6: 89 | CV6: 90 | CW6: 91 | CX6: 92 | CY6: 93 | CZ6: 94 | DA6: 95 | DB6: 96 | DC6: 97 | DD6: 98 | DE6: 99 | DF6: 100
A8: TIJDSLIJN
E10: Model kolom teller | H10: teller | K10: =J10 + 1 -> 1 | L10: =K10 + 1 -> 2 | M10: 3 | N10: 4 | O10: 5 | P10: 6 | Q10: 7 | R10: 8 | S10: 9 | T10: 10 | U10: 11 | V10: 12 | W10: 13 | X10: 14 | Y10: 15 | Z10: 16 | AA10: 17 | AB10: 18 | AC10: 19 | AD10: 20 | AE10: 21 | AF10: 22 | AG10: 23 | AH10: 24 | AI10: 25 | AJ10: 26 | AK10: 27 | AL10: 28 | AM10: 29 | AN10: 30 | AO10: 31 | AP10: 32 | AQ10: 33 | AR10: 34 | AS10: 35 | AT10: 36 | AU10: 37 | AV10: 38 | AW10: 39 | AX10: 40 | AY10: 41 | AZ10: 42 | BA10: 43 | BB10: 44 | BC10: 45 | BD10: 46 | BE10: 47 | BF10: 48 | BG10: 49 | BH10: 50 | BI10: 51 | BJ10: 52 | BK10: 53 | BL10: 54 | BM10: 55 | BN10: 56 | BO10: 57 | BP10: 58 | BQ10: 59 | BR10: 60 | BS10: 61 | BT10: 62 | BU10: 63 | BV10: 64 | BW10: 65 | BX10: =BW10 + 1 -> 66 | BY10: 67 | BZ10: 68 | CA10: 69 | CB10: 70 | CC10: 71 | CD10: 72 | CE10: 73 | CF10: 74 | CG10: 75 | CH10: 76 | CI10: 77 | CJ10: 78 | CK10: 79 | CL10: 80 | CM10: 81 | CN10: 82 | CO10: 83 | CP10: 84 | CQ10: 85 | CR10: 86 | CS10: 87 | CT10: 88 | CU10: 89 | CV10: 90 | CW10: 91 | CX10: 92 | CY10: 93 | CZ10: 94 | DA10: 95 | DB10: 96 | DC10: 97 | DD10: 98 | DE10: 99 | DF10: 100
E11: Model kolom totaal | G11: =MAX( K10:DF10 ) -> 100 | H11: kolommen
E13: =E$10 -> Model kolom teller | F13: =F$10 -> 0 | G13: 0 | H13: teller | I13: 0 | J13: 0 | K13: 1 | L13: 2 | M13: 3 | N13: 4 | O13: 5 | P13: 6 | Q13: 7 | R13: 8 | S13: 9 | T13: 10 | U13: 11 | V13: 12 | W13: 13 | X13: 14 | Y13: 15 | Z13: 16 | AA13: 17 | AB13: 18 | AC13: 19 | AD13: 20 | AE13: 21 | AF13: 22 | AG13: 23 | AH13: 24 | AI13: 25 | AJ13: 26 | AK13: 27 | AL13: 28 | AM13: 29 | AN13: 30 | AO13: 31 | AP13: 32 | AQ13: 33 | AR13: 34 | AS13: 35 | AT13: 36 | AU13: 37 | AV13: 38 | AW13: 39 | AX13: 40 | AY13: 41 | AZ13: 42 | BA13: 43 | BB13: 44 | BC13: 45 | BD13: 46 | BE13: 47 | BF13: 48 | BG13: 49 | BH13: 50 | BI13: 51 | BJ13: 52 | BK13: 53 | BL13: 54 | BM13: 55 | BN13: 56 | BO13: 57 | BP13: 58 | BQ13: 59 | BR13: =BR$10 -> 60 | BS13: 61 | BT13: 62 | BU13: 63 | BV13: 64 | BW13: 65 | BX13: 66 | BY13: 67 | BZ13: 68 | CA13: 69 | CB13: 70 | CC13: 71 | CD13: 72 | CE13: 73 | CF13: 74 | CG13: 75 | CH13: 76 | CI13: 77 | CJ13: 78 | CK13: 79 | CL13: 80 | CM13: 81 | CN13: 82 | CO13: 83 | CP13: 84 | CQ13: 85 | CR13: 86 | CS13: 87 | CT13: 88 | CU13: 89 | CV13: 90 | CW13: 91 | CX13: 92 | CY13: 93 | CZ13: 94 | DA13: 95 | DB13: 96 | DC13: 97 | DD13: 98 | DE13: 99 | DF13: 100
E14: Eerste modelkolom | H14: vlag | I14: =SUM(K14:DF14) -> 1 | K14: =IF( K13 = 1, 1, 0 ) -> 1 | L14: =IF( L13 = 1, 1, 0 ) -> 0 | M14: 0 | N14: 0 | O14: 0 | P14: 0 | Q14: 0 | R14: 0 | S14: 0 | T14: 0 | U14: 0 | V14: 0 | W14: 0 | X14: 0 | Y14: 0 | Z14: 0 | AA14: 0 | AB14: 0 | AC14: 0 | AD14: 0 | AE14: 0 | AF14: 0 | AG14: 0 | AH14: 0 | AI14: 0 | AJ14: 0 | AK14: 0 | AL14: 0 | AM14: 0 | AN14: 0 | AO14: 0 | AP14: 0 | AQ14: 0 | AR14: 0 | AS14: 0 | AT14: 0 | AU14: 0 | AV14: 0 | AW14: 0 | AX14: 0 | AY14: 0 | AZ14: 0 | BA14: 0 | BB14: 0 | BC14: 0 | BD14: 0 | BE14: 0 | BF14: 0 | BG14: 0 | BH14: 0 | BI14: 0 | BJ14: 0 | BK14: 0 | BL14: 0 | BM14: 0 | BN14: 0 | BO14: 0 | BP14: 0 | BQ14: 0 | BR14: 0 | BS14: 0 | BT14: 0 | BU14: 0 | BV14: 0 | BW14: 0 | BX14: =IF( BX13 = 1, 1, 0 ) -> 0 | BY14: 0 | BZ14: 0 | CA14: 0 | CB14: 0 | CC14: 0 | CD14: 0 | CE14: 0 | CF14: 0 | CG14: 0 | CH14: 0 | CI14: 0 | CJ14: 0 | CK14: 0 | CL14: 0 | CM14: 0 | CN14: 0 | CO14: 0 | CP14: 0 | CQ14: 0 | CR14: 0 | CS14: 0 | CT14: 0 | CU14: 0 | CV14: 0 | CW14: 0 | CX14: 0 | CY14: 0 | CZ14: 0 | DA14: 0 | DB14: 0 | DC14: 0 | DD14: 0 | DE14: 0 | DF14: 0
E16: =InpC!E$13 -> Start datum | F16: =InpC!F$13 -> 0 | G16: =InpC!G$13 -> 2000 | H16: =InpC!H$13 -> jaartal
E17: =InpC!E$14 -> Jaren per periode | F17: =InpC!F$14 -> 0 | G17: =InpC!G$14 -> 1 | H17: =InpC!H$14 -> jaren
E18: =E$14 -> Eerste modelkolom | F18: =F$14 -> 0 | G18: 0 | H18: vlag | I18: 1 | J18: 0 | K18: 1 | L18: 0 | M18: 0 | N18: 0 | O18: 0 | P18: 0 | Q18: 0 | R18: 0 | S18: 0 | T18: 0 | U18: 0 | V18: 0 | W18: 0 | X18: 0 | Y18: 0 | Z18: 0 | AA18: 0 | AB18: 0 | AC18: 0 | AD18: 0 | AE18: 0 | AF18: 0 | AG18: 0 | AH18: 0 | AI18: 0 | AJ18: 0 | AK18: 0 | AL18: 0 | AM18: 0 | AN18: 0 | AO18: 0 | AP18: 0 | AQ18: 0 | AR18: 0 | AS18: 0 | AT18: 0 | AU18: 0 | AV18: 0 | AW18: 0 | AX18: 0 | AY18: 0 | AZ18: 0 | BA18: 0 | BB18: 0 | BC18: 0 | BD18: 0 | BE18: 0 | BF18: 0 | BG18: 0 | BH18: 0 | BI18: 0 | BJ18: 0 | BK18: 0 | BL18: 0 | BM18: 0 | BN18: 0 | BO18: 0 | BP18: 0 | BQ18: 0 | BR18: =BR$14 -> 0 | BS18: 0 | BT18: 0 | BU18: 0 | BV18: 0 | BW18: 0 | BX18: 0 | BY18: 0 | BZ18: 0 | CA18: 0 | CB18: 0 | CC18: 0 | CD18: 0 | CE18: 0 | CF18: 0 | CG18: 0 | CH18: 0 | CI18: 0 | CJ18: 0 | CK18: 0 | CL18: 0 | CM18: 0 | CN18: 0 | CO18: 0 | CP18: 0 | CQ18: 0 | CR18: 0 | CS18: 0 | CT18: 0 | CU18: 0 | CV18: 0 | CW18: 0 | CX18: 0 | CY18: 0 | CZ18: 0 | DA18: 0 | DB18: 0 | DC18: 0 | DD18: 0 | DE18: 0 | DF18: 0
E19: Modelperiode | H19: jaartal | K19: =IF( K18 = 1, $G16, J19 + $G17 ) -> 2000 | L19: =IF( L18 = 1, $G16, K19 + $G17 ) -> 2001 | M19: 2002 | N19: 2003 | O19: 2004 | P19: 2005 | Q19: 2006 | R19: 2007 | S19: 2008 | T19: 2009 | U19: 2010 | V19: 2011 | W19: 2012 | X19: 2013 | Y19: 2014 | Z19: 2015 | AA19: 2016 | AB19: 2017 | AC19: 2018 | AD19: 2019 | AE19: 2020 | AF19: 2021 | AG19: 2022 | AH19: 2023 | AI19: 2024 | AJ19: 2025 | AK19: 2026 | AL19: 2027 | AM19: 2028 | AN19: 2029 | AO19: 2030 | AP19: 2031 | AQ19: 2032 | AR19: 2033 | AS19: 2034 | AT19: 2035 | AU19: 2036 | AV19: 2037 | AW19: 2038 | AX19: 2039 | AY19: 2040 | AZ19: 2041 | BA19: 2042 | BB19: 2043 | BC19: 2044 | BD19: 2045 | BE19: 2046 | BF19: 2047 | BG19: 2048 | BH19: 2049 | BI19: 2050 | BJ19: 2051 | BK19: 2052 | BL19: 2053 | BM19: 2054 | BN19: 2055 | BO19: 2056 | BP19: 2057 | BQ19: 2058 | BR19: 2059 | BS19: 2060 | BT19: 2061 | BU19: 2062 | BV19: 2063 | BW19: 2064 | BX19: =IF( BX18 = 1, $G16, BW19 + $G17 ) -> 2065 | BY19: 2066 | BZ19: 2067 | CA19: 2068 | CB19: 2069 | CC19: 2070 | CD19: 2071 | CE19: 2072 | CF19: 2073 | CG19: 2074 | CH19: 2075 | CI19: 2076 | CJ19: 2077 | CK19: 2078 | CL19: 2079 | CM19: 2080 | CN19: 2081 | CO19: 2082 | CP19: 2083 | CQ19: 2084 | CR19: 2085 | CS19: 2086 | CT19: 2087 | CU19: 2088 | CV19: 2089 | CW19: 2090 | CX19: 2091 | CY19: 2092 | CZ19: 2093 | DA19: 2094 | DB19: 2095 | DC19: 2096 | DD19: 2097 | DE19: 2098 | DF19: 2099
E21: =InpC!E$13 -> Start datum | F21: =InpC!F$13 -> 0 | G21: =InpC!G$13 -> 2000 | H21: =InpC!H$13 -> jaartal
E22: =InpC!E$15 -> Looptijd | F22: =InpC!F$15 -> 0 | G22: =InpC!G$15 -> 50 | H22: =InpC!H$15 -> jaar
E23: Einde looptijd | G23: =G21 + G22 -> 2050 | H23: jaartal
E25: =E$23 -> Einde looptijd | F25: =F$23 -> 0 | G25: =G$23 -> 2050 | H25: =H$23 -> jaartal
E26: =E$19 -> Modelperiode | F26: =F$19 -> 0 | G26: 0 | H26: jaartal | I26: 0 | J26: 0 | K26: 2000 | L26: 2001 | M26: 2002 | N26: 2003 | O26: 2004 | P26: 2005 | Q26: 2006 | R26: 2007 | S26: 2008 | T26: 2009 | U26: 2010 | V26: 2011 | W26: 2012 | X26: 2013 | Y26: 2014 | Z26: 2015 | AA26: 2016 | AB26: 2017 | AC26: 2018 | AD26: 2019 | AE26: 2020 | AF26: 2021 | AG26: 2022 | AH26: 2023 | AI26: 2024 | AJ26: 2025 | AK26: 2026 | AL26: 2027 | AM26: 2028 | AN26: 2029 | AO26: 2030 | AP26: 2031 | AQ26: 2032 | AR26: 2033 | AS26: 2034 | AT26: 2035 | AU26: 2036 | AV26: 2037 | AW26: 2038 | AX26: 2039 | AY26: 2040 | AZ26: 2041 | BA26: 2042 | BB26: 2043 | BC26: 2044 | BD26: 2045 | BE26: 2046 | BF26: 2047 | BG26: 2048 | BH26: 2049 | BI26: 2050 | BJ26: 2051 | BK26: 2052 | BL26: 2053 | BM26: 2054 | BN26: 2055 | BO26: 2056 | BP26: 2057 | BQ26: 2058 | BR26: =BR$19 -> 2059 | BS26: 2060 | BT26: 2061 | BU26: 2062 | BV26: 2063 | BW26: 2064 | BX26: 2065 | BY26: 2066 | BZ26: 2067 | CA26: 2068 | CB26: 2069 | CC26: 2070 | CD26: 2071 | CE26: 2072 | CF26: 2073 | CG26: 2074 | CH26: 2075 | CI26: 2076 | CJ26: 2077 | CK26: 2078 | CL26: 2079 | CM26: 2080 | CN26: 2081 | CO26: 2082 | CP26: 2083 | CQ26: 2084 | CR26: 2085 | CS26: 2086 | CT26: 2087 | CU26: 2088 | CV26: 2089 | CW26: 2090 | CX26: 2091 | CY26: 2092 | CZ26: 2093 | DA26: 2094 | DB26: 2095 | DC26: 2096 | DD26: 2097 | DE26: 2098 | DF26: 2099
E27: Looptijd vlag | H27: vlag | I27: =SUM(K27:DF27) -> 51 | K27: =IF( K26 <= $G25, 1, 0 ) -> 1 | L27: =IF( L26 <= $G25, 1, 0 ) -> 1 | M27: 1 | N27: 1 | O27: 1 | P27: 1 | Q27: 1 | R27: 1 | S27: 1 | T27: 1 | U27: 1 | V27: 1 | W27: 1 | X27: 1 | Y27: 1 | Z27: 1 | AA27: 1 | AB27: 1 | AC27: 1 | AD27: 1 | AE27: 1 | AF27: 1 | AG27: 1 | AH27: 1 | AI27: 1 | AJ27: 1 | AK27: 1 | AL27: 1 | AM27: 1 | AN27: 1 | AO27: 1 | AP27: 1 | AQ27: 1 | AR27: 1 | AS27: 1 | AT27: 1 | AU27: 1 | AV27: 1 | AW27: 1 | AX27: 1 | AY27: 1 | AZ27: 1 | BA27: 1 | BB27: 1 | BC27: 1 | BD27: 1 | BE27: 1 | BF27: 1 | BG27: 1 | BH27: 1 | BI27: 1 | BJ27: 0 | BK27: 0 | BL27: 0 | BM27: 0 | BN27: 0 | BO27: 0 | BP27: 0 | BQ27: 0 | BR27: 0 | BS27: 0 | BT27: 0 | BU27: 0 | BV27: 0 | BW27: 0 | BX27: =IF( BX26 <= $G25, 1, 0 ) -> 0 | BY27: 0 | BZ27: 0 | CA27: 0 | CB27: 0 | CC27: 0 | CD27: 0 | CE27: 0 | CF27: 0 | CG27: 0 | CH27: 0 | CI27: 0 | CJ27: 0 | CK27: 0 | CL27: 0 | CM27: 0 | CN27: 0 | CO27: 0 | CP27: 0 | CQ27: 0 | CR27: 0 | CS27: 0 | CT27: 0 | CU27: 0 | CV27: 0 | CW27: 0 | CX27: 0 | CY27: 0 | CZ27: 0 | DA27: 0 | DB27: 0 | DC27: 0 | DD27: 0 | DE27: 0 | DF27: 0
E28: Looptijd totaal | G28: =SUM( K27:DF27 ) -> 51 | H28: kolommen
E30: =E$23 -> Einde looptijd | F30: =F$23 -> 0 | G30: =G$23 -> 2050 | H30: =H$23 -> jaartal
E31: =E$19 -> Modelperiode | F31: =F$19 -> 0 | G31: 0 | H31: jaartal | I31: 0 | J31: 0 | K31: 2000 | L31: 2001 | M31: 2002 | N31: 2003 | O31: 2004 | P31: 2005 | Q31: 2006 | R31: 2007 | S31: 2008 | T31: 2009 | U31: 2010 | V31: 2011 | W31: 2012 | X31: 2013 | Y31: 2014 | Z31: 2015 | AA31: 2016 | AB31: 2017 | AC31: 2018 | AD31: 2019 | AE31: 2020 | AF31: 2021 | AG31: 2022 | AH31: 2023 | AI31: 2024 | AJ31: 2025 | AK31: 2026 | AL31: 2027 | AM31: 2028 | AN31: 2029 | AO31: 2030 | AP31: 2031 | AQ31: 2032 | AR31: 2033 | AS31: 2034 | AT31: 2035 | AU31: 2036 | AV31: 2037 | AW31: 2038 | AX31: 2039 | AY31: 2040 | AZ31: 2041 | BA31: 2042 | BB31: 2043 | BC31: 2044 | BD31: 2045 | BE31: 2046 | BF31: 2047 | BG31: 2048 | BH31: 2049 | BI31: 2050 | BJ31: 2051 | BK31: 2052 | BL31: 2053 | BM31: 2054 | BN31: 2055 | BO31: 2056 | BP31: 2057 | BQ31: 2058 | BR31: =BR$19 -> 2059 | BS31: 2060 | BT31: 2061 | BU31: 2062 | BV31: 2063 | BW31: 2064 | BX31: 2065 | BY31: 2066 | BZ31: 2067 | CA31: 2068 | CB31: 2069 | CC31: 2070 | CD31: 2071 | CE31: 2072 | CF31: 2073 | CG31: 2074 | CH31: 2075 | CI31: 2076 | CJ31: 2077 | CK31: 2078 | CL31: 2079 | CM31: 2080 | CN31: 2081 | CO31: 2082 | CP31: 2083 | CQ31: 2084 | CR31: 2085 | CS31: 2086 | CT31: 2087 | CU31: 2088 | CV31: 2089 | CW31: 2090 | CX31: 2091 | CY31: 2092 | CZ31: 2093 | DA31: 2094 | DB31: 2095 | DC31: 2096 | DD31: 2097 | DE31: 2098 | DF31: 2099
E32: Uitlooptijd vlag | H32: vlag | I32: =SUM(K32:DF32) -> 49 | K32: =IF( K31 <= $G30, 0, 1 ) -> 0 | L32: =IF( L31 <= $G30, 0, 1 ) -> 0 | M32: 0 | N32: 0 | O32: 0 | P32: 0 | Q32: 0 | R32: 0 | S32: 0 | T32: 0 | U32: 0 | V32: 0 | W32: 0 | X32: 0 | Y32: 0 | Z32: 0 | AA32: 0 | AB32: 0 | AC32: 0 | AD32: 0 | AE32: 0 | AF32: 0 | AG32: 0 | AH32: 0 | AI32: 0 | AJ32: 0 | AK32: 0 | AL32: 0 | AM32: 0 | AN32: 0 | AO32: 0 | AP32: 0 | AQ32: 0 | AR32: 0 | AS32: 0 | AT32: 0 | AU32: 0 | AV32: 0 | AW32: 0 | AX32: 0 | AY32: 0 | AZ32: 0 | BA32: 0 | BB32: 0 | BC32: 0 | BD32: 0 | BE32: 0 | BF32: 0 | BG32: 0 | BH32: 0 | BI32: 0 | BJ32: 1 | BK32: 1 | BL32: 1 | BM32: 1 | BN32: 1 | BO32: 1 | BP32: 1 | BQ32: 1 | BR32: 1 | BS32: 1 | BT32: 1 | BU32: 1 | BV32: 1 | BW32: 1 | BX32: =IF( BX31 <= $G30, 0, 1 ) -> 1 | BY32: 1 | BZ32: 1 | CA32: 1 | CB32: 1 | CC32: 1 | CD32: 1 | CE32: 1 | CF32: 1 | CG32: 1 | CH32: 1 | CI32: 1 | CJ32: 1 | CK32: 1 | CL32: 1 | CM32: 1 | CN32: 1 | CO32: 1 | CP32: 1 | CQ32: 1 | CR32: 1 | CS32: 1 | CT32: 1 | CU32: 1 | CV32: 1 | CW32: 1 | CX32: 1 | CY32: 1 | CZ32: 1 | DA32: 1 | DB32: 1 | DC32: 1 | DD32: 1 | DE32: 1 | DF32: 1
E33: Uitlooptijd totaal | G33: =SUM( K32:DF32 ) -> 49 | H33: kolommen
E35: =E$27 -> Looptijd vlag | F35: =F$27 -> 0 | G35: 0 | H35: vlag | I35: 51 | J35: 0 | K35: 1 | L35: 1 | M35: 1 | N35: 1 | O35: 1 | P35: 1 | Q35: 1 | R35: 1 | S35: 1 | T35: 1 | U35: 1 | V35: 1 | W35: 1 | X35: 1 | Y35: 1 | Z35: 1 | AA35: 1 | AB35: 1 | AC35: 1 | AD35: 1 | AE35: 1 | AF35: 1 | AG35: 1 | AH35: 1 | AI35: 1 | AJ35: 1 | AK35: 1 | AL35: 1 | AM35: 1 | AN35: 1 | AO35: 1 | AP35: 1 | AQ35: 1 | AR35: 1 | AS35: 1 | AT35: 1 | AU35: 1 | AV35: 1 | AW35: 1 | AX35: 1 | AY35: 1 | AZ35: 1 | BA35: 1 | BB35: 1 | BC35: 1 | BD35: 1 | BE35: 1 | BF35: 1 | BG35: 1 | BH35: 1 | BI35: 1 | BJ35: 0 | BK35: 0 | BL35: 0 | BM35: 0 | BN35: 0 | BO35: 0 | BP35: 0 | BQ35: 0 | BR35: =BR$27 -> 0 | BS35: 0 | BT35: 0 | BU35: 0 | BV35: 0 | BW35: 0 | BX35: 0 | BY35: 0 | BZ35: 0 | CA35: 0 | CB35: 0 | CC35: 0 | CD35: 0 | CE35: 0 | CF35: 0 | CG35: 0 | CH35: 0 | CI35: 0 | CJ35: 0 | CK35: 0 | CL35: 0 | CM35: 0 | CN35: 0 | CO35: 0 | CP35: 0 | CQ35: 0 | CR35: 0 | CS35: 0 | CT35: 0 | CU35: 0 | CV35: 0 | CW35: 0 | CX35: 0 | CY35: 0 | CZ35: 0 | DA35: 0 | DB35: 0 | DC35: 0 | DD35: 0 | DE35: 0 | DF35: 0
E36: =E$32 -> Uitlooptijd vlag | F36: =F$32 -> 0 | G36: 0 | H36: vlag | I36: 49 | J36: 0 | K36: 0 | L36: 0 | M36: 0 | N36: 0 | O36: 0 | P36: 0 | Q36: 0 | R36: 0 | S36: 0 | T36: 0 | U36: 0 | V36: 0 | W36: 0 | X36: 0 | Y36: 0 | Z36: 0 | AA36: 0 | AB36: 0 | AC36: 0 | AD36: 0 | AE36: 0 | AF36: 0 | AG36: 0 | AH36: 0 | AI36: 0 | AJ36: 0 | AK36: 0 | AL36: 0 | AM36: 0 | AN36: 0 | AO36: 0 | AP36: 0 | AQ36: 0 | AR36: 0 | AS36: 0 | AT36: 0 | AU36: 0 | AV36: 0 | AW36: 0 | AX36: 0 | AY36: 0 | AZ36: 0 | BA36: 0 | BB36: 0 | BC36: 0 | BD36: 0 | BE36: 0 | BF36: 0 | BG36: 0 | BH36: 0 | BI36: 0 | BJ36: 1 | BK36: 1 | BL36: 1 | BM36: 1 | BN36: 1 | BO36: 1 | BP36: 1 | BQ36: 1 | BR36: =BR$32 -> 1 | BS36: 1 | BT36: 1 | BU36: 1 | BV36: 1 | BW36: 1 | BX36: 1 | BY36: 1 | BZ36: 1 | CA36: 1 | CB36: 1 | CC36: 1 | CD36: 1 | CE36: 1 | CF36: 1 | CG36: 1 | CH36: 1 | CI36: 1 | CJ36: 1 | CK36: 1 | CL36: 1 | CM36: 1 | CN36: 1 | CO36: 1 | CP36: 1 | CQ36: 1 | CR36: 1 | CS36: 1 | CT36: 1 | CU36: 1 | CV36: 1 | CW36: 1 | CX36: 1 | CY36: 1 | CZ36: 1 | DA36: 1 | DB36: 1 | DC36: 1 | DD36: 1 | DE36: 1 | DF36: 1
E37: Looptijd vs Uitlooptijd | H37: label | K37: =IF( K35 = 1, "Looptijd", IF( K36 = 1, "Uitlooptijd", "" ) ) -> Looptijd | L37: =IF( L35 = 1, "Looptijd", IF( L36 = 1, "Uitlooptijd", "" ) ) -> Looptijd | M37: Looptijd | N37: Looptijd | O37: Looptijd | P37: Looptijd | Q37: Looptijd | R37: Looptijd | S37: Looptijd | T37: Looptijd | U37: Looptijd | V37: Looptijd | W37: Looptijd | X37: Looptijd | Y37: Looptijd | Z37: Looptijd | AA37: Looptijd | AB37: Looptijd | AC37: Looptijd | AD37: Looptijd | AE37: Looptijd | AF37: Looptijd | AG37: Looptijd | AH37: Looptijd | AI37: Looptijd | AJ37: Looptijd | AK37: Looptijd | AL37: Looptijd | AM37: Looptijd | AN37: Looptijd | AO37: Looptijd | AP37: Looptijd | AQ37: Looptijd | AR37: Looptijd | AS37: Looptijd | AT37: Looptijd | AU37: Looptijd | AV37: Looptijd | AW37: Looptijd | AX37: Looptijd | AY37: Looptijd | AZ37: Looptijd | BA37: Looptijd | BB37: Looptijd | BC37: Looptijd | BD37: Looptijd | BE37: Looptijd | BF37: Looptijd | BG37: Looptijd | BH37: Looptijd | BI37: Looptijd | BJ37: Uitlooptijd | BK37: Uitlooptijd | BL37: Uitlooptijd | BM37: Uitlooptijd | BN37: Uitlooptijd | BO37: Uitlooptijd | BP37: Uitlooptijd | BQ37: Uitlooptijd | BR37: Uitlooptijd | BS37: Uitlooptijd | BT37: Uitlooptijd | BU37: Uitlooptijd | BV37: Uitlooptijd | BW37: Uitlooptijd | BX37: =IF( BX35 = 1, "Looptijd", IF( BX36 = 1, "Uitlooptijd", "" ) ) -> Uitlooptijd | BY37: Uitlooptijd | BZ37: Uitlooptijd | CA37: Uitlooptijd | CB37: Uitlooptijd | CC37: Uitlooptijd | CD37: Uitlooptijd | CE37: Uitlooptijd | CF37: Uitlooptijd | CG37: Uitlooptijd | CH37: Uitlooptijd | CI37: Uitlooptijd | CJ37: Uitlooptijd | CK37: Uitlooptijd | CL37: Uitlooptijd | CM37: Uitlooptijd | CN37: Uitlooptijd | CO37: Uitlooptijd | CP37: Uitlooptijd | CQ37: Uitlooptijd | CR37: Uitlooptijd | CS37: Uitlooptijd | CT37: Uitlooptijd | CU37: Uitlooptijd | CV37: Uitlooptijd | CW37: Uitlooptijd | CX37: Uitlooptijd | CY37: Uitlooptijd | CZ37: Uitlooptijd | DA37: Uitlooptijd | DB37: Uitlooptijd | DC37: Uitlooptijd | DD37: Uitlooptijd | DE37: Uitlooptijd | DF37: Uitlooptijd
A41: MODEL VLAGGEN
E43: =InpC!E$44 -> Handmatig afschrijven t/m | F43: =InpC!F$44 -> 0 | G43: =InpC!G$44 -> 2006 | H43: =InpC!H$44 -> jaartal
E44: =E$19 -> Modelperiode | F44: =F$19 -> 0 | G44: 0 | H44: jaartal | I44: 0 | J44: 0 | K44: 2000 | L44: 2001 | M44: 2002 | N44: 2003 | O44: 2004 | P44: 2005 | Q44: 2006 | R44: 2007 | S44: 2008 | T44: 2009 | U44: 2010 | V44: 2011 | W44: 2012 | X44: 2013 | Y44: 2014 | Z44: 2015 | AA44: 2016 | AB44: 2017 | AC44: 2018 | AD44: 2019 | AE44: 2020 | AF44: 2021 | AG44: 2022 | AH44: 2023 | AI44: 2024 | AJ44: 2025 | AK44: 2026 | AL44: 2027 | AM44: 2028 | AN44: 2029 | AO44: 2030 | AP44: 2031 | AQ44: 2032 | AR44: 2033 | AS44: 2034 | AT44: 2035 | AU44: 2036 | AV44: 2037 | AW44: 2038 | AX44: 2039 | AY44: 2040 | AZ44: 2041 | BA44: 2042 | BB44: 2043 | BC44: 2044 | BD44: 2045 | BE44: 2046 | BF44: 2047 | BG44: 2048 | BH44: 2049 | BI44: 2050 | BJ44: 2051 | BK44: 2052 | BL44: 2053 | BM44: 2054 | BN44: 2055 | BO44: 2056 | BP44: 2057 | BQ44: 2058 | BR44: =BR$19 -> 2059 | BS44: 2060 | BT44: 2061 | BU44: 2062 | BV44: 2063 | BW44: 2064 | BX44: 2065 | BY44: 2066 | BZ44: 2067 | CA44: 2068 | CB44: 2069 | CC44: 2070 | CD44: 2071 | CE44: 2072 | CF44: 2073 | CG44: 2074 | CH44: 2075 | CI44: 2076 | CJ44: 2077 | CK44: 2078 | CL44: 2079 | CM44: 2080 | CN44: 2081 | CO44: 2082 | CP44: 2083 | CQ44: 2084 | CR44: 2085 | CS44: 2086 | CT44: 2087 | CU44: 2088 | CV44: 2089 | CW44: 2090 | CX44: 2091 | CY44: 2092 | CZ44: 2093 | DA44: 2094 | DB44: 2095 | DC44: 2096 | DD44: 2097 | DE44: 2098 | DF44: 2099
E45: Handmatige afschrijving vlag | H45: vlag | I45: =SUM(K45:DF45) -> 7 | K45: =IF( K44 <= $G43, 1, 0 ) -> 1 | L45: =IF( L44 <= $G43, 1, 0 ) -> 1 | M45: 1 | N45: 1 | O45: 1 | P45: 1 | Q45: 1 | R45: 0 | S45: 0 | T45: 0 | U45: 0 | V45: 0 | W45: 0 | X45: 0 | Y45: 0 | Z45: 0 | AA45: 0 | AB45: 0 | AC45: 0 | AD45: 0 | AE45: 0 | AF45: 0 | AG45: 0 | AH45: 0 | AI45: 0 | AJ45: 0 | AK45: 0 | AL45: 0 | AM45: 0 | AN45: 0 | AO45: 0 | AP45: 0 | AQ45: 0 | AR45: 0 | AS45: 0 | AT45: 0 | AU45: 0 | AV45: 0 | AW45: 0 | AX45: 0 | AY45: 0 | AZ45: 0 | BA45: 0 | BB45: 0 | BC45: 0 | BD45: 0 | BE45: 0 | BF45: 0 | BG45: 0 | BH45: 0 | BI45: 0 | BJ45: 0 | BK45: 0 | BL45: 0 | BM45: 0 | BN45: 0 | BO45: 0 | BP45: 0 | BQ45: 0 | BR45: 0 | BS45: 0 | BT45: 0 | BU45: 0 | BV45: 0 | BW45: 0 | BX45: =IF( BX44 <= $G43, 1, 0 ) -> 0 | BY45: 0 | BZ45: 0 | CA45: 0 | CB45: 0 | CC45: 0 | CD45: 0 | CE45: 0 | CF45: 0 | CG45: 0 | CH45: 0 | CI45: 0 | CJ45: 0 | CK45: 0 | CL45: 0 | CM45: 0 | CN45: 0 | CO45: 0 | CP45: 0 | CQ45: 0 | CR45: 0 | CS45: 0 | CT45: 0 | CU45: 0 | CV45: 0 | CW45: 0 | CX45: 0 | CY45: 0 | CZ45: 0 | DA45: 0 | DB45: 0 | DC45: 0 | DD45: 0 | DE45: 0 | DF45: 0
E47: =InpC!E$45 -> Bijz. waardeverminderingen en desinvesteringen t/m | F47: =InpC!F$45 -> 0 | G47: =InpC!G$45 -> 2009 | H47: =InpC!H$45 -> jaartal
